Workbook

Sheet 사원정보
AF1: =TODAY() -> 2021-11-25 | AG1: 2021-03-31 | AH1: =AG1-AF1 -> -239 | AI1: 발생기준일: | AJ1: =DATE(AI11-1,12,31) -> 2022-12-31 | BI1: =IF(AF1>AG1,"사용기간이 종료 됐습니다. 이 연락처로 문의 바랍니다. 010-9067-0670","") -> 사용기간이 종료 됐습니다. 이 연락처로 문의 바랍니다. 010-9067-0670
AI2: 결산기준일 | AJ2: =DATE(AI11,BD11+1,0) -> 2022-12-31
AI3: 발생일과 결산기준일 차이: | AJ3: =AJ2-AJ1 -> 0
BD8: 사용가능기간: | BE8: =AH1 -> -239
A9: 1 | AM9: =IF(AH1<=0,BI1,"") -> 사용기간이 종료 됐습니다. 이 연락처로 문의 바랍니다. 010-9067-0670 | BD9: 오류체크: | BE9: =휴가입력!O2 -> 0 | BF9: =BE9=#REF! -> 
AG10: =IF(AJ1>license!C3," 라이선스 기간 초과, 연장문의: 010-9067-0670","연차 발생 및 사용 현황") -> 연차 발생 및 사용 현황 | BC10: =IF(AJ1>license!C3," 라이선스 기간 초과, 연장문의: 010-9067-0670","") -> 
A11: 1 | V11: (사용년도말: | W11: =DATE(AI11,12,31) -> 2023-12-31 | X11: 1년미만 | Z11: 11 | AH11: 사용연도: | AI11: 2023 | AJ11: 년도 | AK11: =CONCATENATE("휴가 사용기간: (",TEXT(DATE(AI11,BD11+1,1),"yy/mm/dd"),"~",TEXT(DATE(AI11,12+BD11+1,0),"yy/mm/dd"),")") -> 휴가 사용기간: (23/01/01~23/12/31) | AO11: =CONCATENATE("발생기준일: ",TEXT(AJ2,"yyyy/mm/dd")) -> 발생기준일: 2022/12/31 | BC11: 중간결산: | BE11: =>월,분기,반기 결산용이 아닌 경우 공백
A12: 1 | V12: (기준일: | W12: =AJ1 -> 2022-12-31 | X12: 1년이상 | Z12: 15 | AF12: 사원정보 | AH12: 사원정보 | AM12: 근속기간 | AQ12: 발생 연차 일수 | AV12: 당해년도 연차 사용현황 | AY12: 연차수당 | BC12: 연차최대일수: | BD12: 25 | BE12: =>3년째 1일, 이후 2년마다 1일씩 가산
A13: 1 | AM13: 근속기간 | AN13: 년월일 환산 | AQ13: 1년이상 기간 | AS13: 1년미만 | AT13: 추가 /차감 | AU13: 휴가 | AX13: 초과 사용 | AY13: 통상입금
A14: 1 | C14: 열3 | D14: 열4 | E14: 열42 | F14: 열43 | G14: 열5 | H14: *기산일 | I14: 열1 | J14: 1년이상 근무일수 | K14: 가산일도래여부 | L14: 가산휴가 사용가능일 | M14: 총근무일수-366 | N14: 가산연차 | O14: 가산연차2 | P14: 전년도 입사자 1년째 | Q14: 1년미만자 1년째 후 근속일수 | R14: 1년미만자 2년째 후 근속일수 | S14: 1년미만자 3년째 후 근속일수 | T14: 1년미만자 1년째 후 연차일수(15일 일할) | U14: 1년미만자 1년째 후 연차일수(16일 일할) | V14: 1년미만자1개월째 | W14: 1년미만자 전년 근속일수 | X14: 1년미만자 전기 연차수 | Y14: 1년미만자 전기 연차수(code반올림) | Z14: 2년미만자 전기 연차수(code반올림) | AA14: 1년미만자 당기 1년미만기간 연차수(11일 일할) | AB14: 사용연도 입사자 1개월 | AC14: 사용연도입사자 근무기간(월) | AD14: 월중 근속일수 | AE14: 열2 | AF14: 사용연도 입사자 | AG14: 순 | AH14: *이름 | AI14: 부서 | AJ14: 직책 | AK14: *입사일 | AL14: *퇴사일 | AM14: (일) | AN14: 년 | AO14: 월 | AP14: 일 | AQ14: 기본 | AR14: 추가 | AS14: 기간 | AT14: 일수 | AU14: 계 | AV14: 사용 일수 | AW14: 미사용 일수 | AX14: 일수2 | AY14: (월급) | AZ14: (일급) | BA14: 수당금액
A15: 1 | H15: =IF(표2[[#This Row],[*입사일]]=0,"",표2[[#This Row],[*입사일]]-$AJ$3) -> 2000-01-15 | I15: =IFERROR(IF(AO15="",0,IF(표2[[#This Row],[1년이상 근무일수]]=0,0,DATEDIF(표2[[#This Row],[1년이상 근무일수]]-1,$AJ$1,"y"))),0) -> 21 | J15: =IF(표2[[#This Row],[*기산일]]="","",IF(DATE(YEAR(표2[[#This Row],[*기산일]])+1,MONTH(표2[[#This Row],[*기산일]]),DAY(표2[[#This Row],[*기산일]]))>$AJ$1,"",DATE(YEAR(표2[[#This Row],[*기산일]])+1,MONTH(표2[[#This Row],[*기산일]]),DAY(표2[[#This Row],[*기산일]])))) -> 2001-01-15 | K15: =IF(ISODD(표2[[#This Row],[열1]])=TRUE,1,"") -> 1 | L15: =IF(표2[[#This Row],[가산일도래여부]]=1,DATE(YEAR($AJ$1)+1,MONTH($AJ$1),DAY($AJ$1))-DATE(YEAR($AJ$1)+1,MONTH(표2[[#This Row],[1년이상 근무일수]]),DAY(표2[[#This Row],[1년이상 근무일수]])),0) -> 350 | M15: =표2[[#This Row],[가산휴가 사용가능일]]/365 -> 0.9589041096 | N15: =VLOOKUP(표2[[#This Row],[총근무일수-366]],code!$A$5:$C$9,3) -> 1 | O15: =ROUNDDOWN(표2[[#This Row],[열1]]/2,0)+표2[[#This Row],[가산연차]] -> 11 | P15: =IF(표2[[#This Row],[*기산일]]="",0,IF(YEAR(표2[[#This Row],[*기산일]])+1=$AI$11,DATE(YEAR(표2[[#This Row],[*기산일]])+1,MONTH(표2[[#This Row],[*기산일]]),DAY(표2[[#This Row],[*기산일]])),"")) ->  | Q15: =IF(표2[[#This Row],[*기산일]]="",0,IF(표2[[#This Row],[전년도 입사자 1년째]]="","",$W$11-표2[[#This Row],[전년도 입사자 1년째]]+1)) ->  | R15: =IF(표2[[#This Row],[전년도 입사자 1년째]]="","",표2[[#This Row],[1년미만자 1년째 후 근속일수]]/365*$Z$12) ->  | S15: =IFERROR(MAX(0,SUM(MAX(0,ROUNDDOWN(표2[[#This Row],[1년미만자 2년째 후 근속일수]],0)+VLOOKUP((표2[[#This Row],[1년미만자 2년째 후 근속일수]]-ROUNDDOWN(표2[[#This Row],[1년미만자 2년째 후 근속일수]],0)),code!$A$4:$D$9,3,TRUE)),표2[[#This Row],[1년미만자 당기 1년미만기간 연차수(11일 일할)]],표2[[#This Row],[사용연도 입사자]])-$Z$12),0) -> 0 | T15: =IFERROR(MAX(0,ROUNDDOWN(표2[[#This Row],[1년미만자 2년째 후 근속일수]],0)+VLOOKUP((표2[[#This Row],[1년미만자 2년째 후 근속일수]]-ROUNDDOWN(표2[[#This Row],[1년미만자 2년째 후 근속일수]],0)),code!$A$4:$D$9,3,TRUE))-표2[[#This Row],[1년미만자 3년째 후 근속일수]],0) -> 0 | V15: =IF(표2[[#This Row],[*기산일]]="","",IF(YEAR(표2[[#This Row],[*기산일]])=$AI$11-1,DATE(YEAR(표2[[#This Row],[*기산일]]),MONTH(표2[[#This Row],[*기산일]])+1,DAY(표2[[#This Row],[*기산일]])),"")) ->  | W15: =IF(표2[[#This Row],[*기산일]]="",0,IF(표2[[#This Row],[1년미만자1개월째]]="","",MAX(0,DATEDIF(표2[[#This Row],[*기산일]],$W$12,"m")-1))) ->  | X15: =IF(표2[[#This Row],[*기산일]]="",0,IF(표2[[#This Row],[1년미만자1개월째]]="","",(DATE(YEAR(표2[[#This Row],[*기산일]]),MONTH(표2[[#This Row],[*기산일]])+1,0)-표2[[#This Row],[*기산일]]+1)/(DATE(YEAR(표2[[#This Row],[*기산일]]),MONTH(표2[[#This Row],[*기산일]])+1,0)-DATE(YEAR(표2[[#This Row],[*기산일]]),MONTH(표2[[#This Row],[*기산일]]),1)+1))) ->  | Y15: =IFERROR(ROUNDDOWN(표2[[#This Row],[1년미만자 전년 근속일수]]/365*$Z$11,0)+VLOOKUP(표2[[#This Row],[1년미만자 전기 연차수]]-ROUNDDOWN(표2[[#This Row],[1년미만자 전년 근속일수]]/365*$Z$11,0),code!$A$4:$D$9,3,TRUE),"") ->  | Z15: =IFERROR(표2[[#This Row],[1년미만자 전년 근속일수]]+ROUNDDOWN(표2[[#This Row],[1년미만자 전기 연차수]],0)+VLOOKUP((표2[[#This Row],[1년미만자 전기 연차수]]-ROUNDDOWN(표2[[#This Row],[1년미만자 전기 연차수]],0)),code!$A$4:$D$9,3,TRUE),0) -> 0 | AA15: =IF(표2[[#This Row],[1년미만자1개월째]]="","",$Z$11-표2[[#This Row],[2년미만자 전기 연차수(code반올림)]]) ->  | AB15: =IF(YEAR(표2[[#This Row],[*기산일]])=$AI$11,DATE(YEAR(표2[[#This Row],[*기산일]]),MONTH(표2[[#This Row],[*기산일]])+1,DAY(표2[[#This Row],[*기산일]])),"") ->  | AC15: =IF(표2[[#This Row],[사용연도 입사자 1개월]]="","",MAX(0,DATEDIF(표2[[#This Row],[*기산일]],$W$11,"m")-1)) ->  | AD15: =IF(표2[[#This Row],[사용연도 입사자 1개월]]="","",(DATE(YEAR(표2[[#This Row],[*기산일]]),MONTH(표2[[#This Row],[*기산일]])+1,0)-표2[[#This Row],[*기산일]]+1)/(DATE(YEAR(표2[[#This Row],[*기산일]]),MONTH(표2[[#This Row],[*기산일]])+1,0)-DATE(YEAR(표2[[#This Row],[*기산일]]),MONTH(표2[[#This Row],[*기산일]]),1)+1)) ->  | AE15: =표2[[#This Row],[월중 근속일수]] ->  | AF15: =IFERROR(표2[[#This Row],[사용연도입사자 근무기간(월)]]+ROUNDDOWN(표2[[#This Row],[열2]],0)+VLOOKUP((표2[[#This Row],[열2]]-ROUNDDOWN(표2[[#This Row],[열2]],0)),code!$A$4:$D$9,3,TRUE),0) -> 0 | AG15: =ROW()-14 -> 1 | AH15: 박진영 | AI15: 경영지원 | AK15: 2000-01-15 | AM15: =IF($AJ$1>license!$C$3,"",IF(H15=0,0,IF($AJ$1<H15,0,$AJ$1-H15+1))) -> 8387 | AN15: =IF($AJ$1>license!$C$3,"",IF(AM15=0,0,IF($H15=0,0,DATEDIF($H15-1,$AJ$1,"y")))) -> 22 | AO15: =IF($AJ$1>license!$C$3,"",IF(AM15=0,0,IF($H15=0,0,DATEDIF($H15-1,$AJ$1,"ym")))) -> 11 | AP15: =IF($AJ$1>license!$C$3,"",IF(AM15=0,0,IF($H15=0,0,DATEDIF($H15-1,$AJ$1,"md")))) -> 17 | AQ15: =IF($AJ$1>license!$C$3,"",IF(표2[[#This Row],[1년이상 근무일수]]="",0,$Z$12-표2[[#This Row],[기간]])) -> 15 | AR15: =IFERROR(IF(표2[[#This Row],[1년이상 근무일수]]="","",MIN(표2[[#This Row],[가산연차2]],$BD$12-표2[[#This Row],[기본]])),"") -> 10 | AS15: =SUM(표2[[#This Row],[1년미만자 당기 1년미만기간 연차수(11일 일할)]],표2[[#This Row],[사용연도 입사자]],표2[[#This Row],[1년미만자 1년째 후 연차일수(15일 일할)]]) -> 0 | AU15: =IF($AJ$1>license!$C$3,"",SUM(표2[[#This Row],[기본]:[일수]])) -> 25 | AV15: =IF($AJ$1>license!$C$3,"",SUMIFS(휴가입력!O:O,휴가입력!M:M,"연차",휴가입력!L:L,AH15)) -> 3 | AW15: =IFERROR(MAX(0,표2[[#This Row],[계]]-표2[[#This Row],[사용 일수]]),0) -> 22 | AX15: =IFERROR(MAX((표2[[#This Row],[계]]-표2[[#This Row],[사용 일수]])*-1,0),0) -> 0 | AY15: 1000000 | AZ15: =IF($AJ$1>license!$C$3,"",ROUNDUP(표2[[#This Row],[(월급)]]/209*8,0)) -> 38278 | BA15: =IF($AJ$1>license!$C$3,"",ROUNDUP(표2[[#This Row],[(일급)]]*표2[[#This Row],[미사용 일수]],0)) -> 842116 | BC15: =COUNTIF(AJ15:AJ314,AH15) -> 0
A16: 1 | H16: =IF(표2[[#This Row],[*입사일]]=0,"",표2[[#This Row],[*입사일]]-$AJ$3) -> 2003-07-01 | I16: =IFERROR(IF(AO16="",0,IF(표2[[#This Row],[1년이상 근무일수]]=0,0,DATEDIF(표2[[#This Row],[1년이상 근무일수]]-1,$AJ$1,"y"))),0) -> 18 | J16: =IF(표2[[#This Row],[*기산일]]="","",IF(DATE(YEAR(표2[[#This Row],[*기산일]])+1,MONTH(표2[[#This Row],[*기산일]]),DAY(표2[[#This Row],[*기산일]]))>$AJ$1,"",DATE(YEAR(표2[[#This Row],[*기산일]])+1,MONTH(표2[[#This Row],[*기산일]]),DAY(표2[[#This Row],[*기산일]])))) -> 2004-07-01 | K16: =IF(ISODD(표2[[#This Row],[열1]])=TRUE,1,"") ->  | L16: =IF(표2[[#This Row],[가산일도래여부]]=1,DATE(YEAR($AJ$1)+1,MONTH($AJ$1),DAY($AJ$1))-DATE(YEAR($AJ$1)+1,MONTH(표2[[#This Row],[1년이상 근무일수]]),DAY(표2[[#This Row],[1년이상 근무일수]])),0) -> 0 | M16: =표2[[#This Row],[가산휴가 사용가능일]]/365 -> 0 | N16: =VLOOKUP(표2[[#This Row],[총근무일수-366]],code!$A$5:$C$9,3) -> 0 | O16: =ROUNDDOWN(표2[[#This Row],[열1]]/2,0)+표2[[#This Row],[가산연차]] -> 9 | P16: =IF(표2[[#This Row],[*기산일]]="",0,IF(YEAR(표2[[#This Row],[*기산일]])+1=$AI$11,DATE(YEAR(표2[[#This Row],[*기산일]])+1,MONTH(표2[[#This Row],[*기산일]]),DAY(표2[[#This Row],[*기산일]])),"")) ->  | Q16: =IF(표2[[#This Row],[*기산일]]="",0,IF(표2[[#This Row],[전년도 입사자 1년째]]="","",$W$11-표2[[#This Row],[전년도 입사자 1년째]]+1)) ->  | R16: =IF(표2[[#This Row],[전년도 입사자 1년째]]="","",표2[[#This Row],[1년미만자 1년째 후 근속일수]]/365*$Z$12) ->  | S16: =IFERROR(MAX(0,SUM(MAX(0,ROUNDDOWN(표2[[#This Row],[1년미만자 2년째 후 근속일수]],0)+VLOOKUP((표2[[#This Row],[1년미만자 2년째 후 근속일수]]-ROUNDDOWN(표2[[#This Row],[1년미만자 2년째 후 근속일수]],0)),code!$A$4:$D$9,3,TRUE)),표2[[#This Row],[1년미만자 당기 1년미만기간 연차수(11일 일할)]],표2[[#This Row],[사용연도 입사자]])-$Z$12),0) -> 0 | T16: =IFERROR(MAX(0,ROUNDDOWN(표2[[#This Row],[1년미만자 2년째 후 근속일수]],0)+VLOOKUP((표2[[#This Row],[1년미만자 2년째 후 근속일수]]-ROUNDDOWN(표2[[#This Row],[1년미만자 2년째 후 근속일수]],0)),code!$A$4:$D$9,3,TRUE))-표2[[#This Row],[1년미만자 3년째 후 근속일수]],0) -> 0 | V16: =IF(표2[[#This Row],[*기산일]]="","",IF(YEAR(표2[[#This Row],[*기산일]])=$AI$11-1,DATE(YEAR(표2[[#This Row],[*기산일]]),MONTH(표2[[#This Row],[*기산일]])+1,DAY(표2[[#This Row],[*기산일]])),"")) ->  | W16: =IF(표2[[#This Row],[*기산일]]="",0,IF(표2[[#This Row],[1년미만자1개월째]]="","",MAX(0,DATEDIF(표2[[#This Row],[*기산일]],$W$12,"m")-1))) ->  | X16: =IF(표2[[#This Row],[*기산일]]="",0,IF(표2[[#This Row],[1년미만자1개월째]]="","",(DATE(YEAR(표2[[#This Row],[*기산일]]),MONTH(표2[[#This Row],[*기산일]])+1,0)-표2[[#This Row],[*기산일]]+1)/(DATE(YEAR(표2[[#This Row],[*기산일]]),MONTH(표2[[#This Row],[*기산일]])+1,0)-DATE(YEAR(표2[[#This Row],[*기산일]]),MONTH(표2[[#This Row],[*기산일]]),1)+1))) ->  | Y16: =IFERROR(ROUNDDOWN(표2[[#This Row],[1년미만자 전년 근속일수]]/365*$Z$11,0)+VLOOKUP(표2[[#This Row],[1년미만자 전기 연차수]]-ROUNDDOWN(표2[[#This Row],[1년미만자 전년 근속일수]]/365*$Z$11,0),code!$A$4:$D$9,3,TRUE),"") ->  | Z16: =IFERROR(표2[[#This Row],[1년미만자 전년 근속일수]]+ROUNDDOWN(표2[[#This Row],[1년미만자 전기 연차수]],0)+VLOOKUP((표2[[#This Row],[1년미만자 전기 연차수]]-ROUNDDOWN(표2[[#This Row],[1년미만자 전기 연차수]],0)),code!$A$4:$D$9,3,TRUE),0) -> 0 | AA16: =IF(표2[[#This Row],[1년미만자1개월째]]="","",$Z$11-표2[[#This Row],[2년미만자 전기 연차수(code반올림)]]) ->  | AB16: =IF(YEAR(표2[[#This Row],[*기산일]])=$AI$11,DATE(YEAR(표2[[#This Row],[*기산일]]),MONTH(표2[[#This Row],[*기산일]])+1,DAY(표2[[#This Row],[*기산일]])),"") ->  | AC16: =IF(표2[[#This Row],[사용연도 입사자 1개월]]="","",MAX(0,DATEDIF(표2[[#This Row],[*기산일]],$W$11,"m")-1)) ->  | AD16: =IF(표2[[#This Row],[사용연도 입사자 1개월]]="","",(DATE(YEAR(표2[[#This Row],[*기산일]]),MONTH(표2[[#This Row],[*기산일]])+1,0)-표2[[#This Row],[*기산일]]+1)/(DATE(YEAR(표2[[#This Row],[*기산일]]),MONTH(표2[[#This Row],[*기산일]])+1,0)-DATE(YEAR(표2[[#This Row],[*기산일]]),MONTH(표2[[#This Row],[*기산일]]),1)+1)) ->  | AE16: =표2[[#This Row],[월중 근속일수]] ->  | AF16: =IFERROR(표2[[#This Row],[사용연도입사자 근무기간(월)]]+ROUNDDOWN(표2[[#This Row],[열2]],0)+VLOOKUP((표2[[#This Row],[열2]]-ROUNDDOWN(표2[[#This Row],[열2]],0)),code!$A$4:$D$9,3,TRUE),0) -> 0 | AG16: =ROW()-14 -> 2 | AH16: 손담비 | AI16: 경영지원 | AK16: 2003-07-01 | AM16: =IF($AJ$1>license!$C$3,"",IF(H16=0,0,IF($AJ$1<H16,0,$AJ$1-H16+1))) -> 7124 | AN16: =IF($AJ$1>license!$C$3,"",IF(AM16=0,0,IF($H16=0,0,DATEDIF($H16-1,$AJ$1,"y")))) -> 19 | AO16: =IF($AJ$1>license!$C$3,"",IF(AM16=0,0,IF($H16=0,0,DATEDIF($H16-1,$AJ$1,"ym")))) -> 6 | AP16: =IF($AJ$1>license!$C$3,"",IF(AM16=0,0,IF($H16=0,0,DATEDIF($H16-1,$AJ$1,"md")))) -> 1 | AQ16: =IF($AJ$1>license!$C$3,"",IF(표2[[#This Row],[1년이상 근무일수]]="",0,$Z$12-표2[[#This Row],[기간]])) -> 15 | AR16: =IFERROR(IF(표2[[#This Row],[1년이상 근무일수]]="","",MIN(표2[[#This Row],[가산연차2]],$BD$12-표2[[#This Row],[기본]])),"") -> 9 | AS16: =SUM(표2[[#This Row],[1년미만자 당기 1년미만기간 연차수(11일 일할)]],표2[[#This Row],[사용연도 입사자]],표2[[#This Row],[1년미만자 1년째 후 연차일수(15일 일할)]]) -> 0 | AU16: =IF($AJ$1>license!$C$3,"",SUM(표2[[#This Row],[기본]:[일수]])) -> 24 | AV16: =IF($AJ$1>license!$C$3,"",SUMIFS(휴가입력!O:O,휴가입력!M:M,"연차",휴가입력!L:L,AH16)) -> 4 | AW16: =IFERROR(MAX(0,표2[[#This Row],[계]]-표2[[#This Row],[사용 일수]]),0) -> 20 | AX16: =IFERROR(MAX((표2[[#This Row],[계]]-표2[[#This Row],[사용 일수]])*-1,0),0) -> 0 | AY16: 2000000 | AZ16: =IF($AJ$1>license!$C$3,"",ROUNDUP(표2[[#This Row],[(월급)]]/209*8,0)) -> 76556 | BA16: =IF($AJ$1>license!$C$3,"",ROUNDUP(표2[[#This Row],[(일급)]]*표2[[#This Row],[미사용 일수]],0)) -> 1531120 | BC16: =COUNTIF(AJ15:AJ315,AH16) -> 0
A17: 1 | H17: =IF(표2[[#This Row],[*입사일]]=0,"",표2[[#This Row],[*입사일]]-$AJ$3) -> 2004-03-16 | I17: =IFERROR(IF(AO17="",0,IF(표2[[#This Row],[1년이상 근무일수]]=0,0,DATEDIF(표2[[#This Row],[1년이상 근무일수]]-1,$AJ$1,"y"))),0) -> 17 | J17: =IF(표2[[#This Row],[*기산일]]="","",IF(DATE(YEAR(표2[[#This Row],[*기산일]])+1,MONTH(표2[[#This Row],[*기산일]]),DAY(표2[[#This Row],[*기산일]]))>$AJ$1,"",DATE(YEAR(표2[[#This Row],[*기산일]])+1,MONTH(표2[[#This Row],[*기산일]]),DAY(표2[[#This Row],[*기산일]])))) -> 2005-03-16 | K17: =IF(ISODD(표2[[#This Row],[열1]])=TRUE,1,"") -> 1 | L17: =IF(표2[[#This Row],[가산일도래여부]]=1,DATE(YEAR($AJ$1)+1,MONTH($AJ$1),DAY($AJ$1))-DATE(YEAR($AJ$1)+1,MONTH(표2[[#This Row],[1년이상 근무일수]]),DAY(표2[[#This Row],[1년이상 근무일수]])),0) -> 290 | M17: =표2[[#This Row],[가산휴가 사용가능일]]/365 -> 0.7945205479 | N17: =VLOOKUP(표2[[#This Row],[총근무일수-366]],code!$A$5:$C$9,3) -> 1 | O17: =ROUNDDOWN(표2[[#This Row],[열1]]/2,0)+표2[[#This Row],[가산연차]] -> 9 | P17: =IF(표2[[#This Row],[*기산일]]="",0,IF(YEAR(표2[[#This Row],[*기산일]])+1=$AI$11,DATE(YEAR(표2[[#This Row],[*기산일]])+1,MONTH(표2[[#This Row],[*기산일]]),DAY(표2[[#This Row],[*기산일]])),"")) ->  | Q17: =IF(표2[[#This Row],[*기산일]]="",0,IF(표2[[#This Row],[전년도 입사자 1년째]]="","",$W$11-표2[[#This Row],[전년도 입사자 1년째]]+1)) ->  | R17: =IF(표2[[#This Row],[전년도 입사자 1년째]]="","",표2[[#This Row],[1년미만자 1년째 후 근속일수]]/365*$Z$12) ->  | S17: =IFERROR(MAX(0,SUM(MAX(0,ROUNDDOWN(표2[[#This Row],[1년미만자 2년째 후 근속일수]],0)+VLOOKUP((표2[[#This Row],[1년미만자 2년째 후 근속일수]]-ROUNDDOWN(표2[[#This Row],[1년미만자 2년째 후 근속일수]],0)),code!$A$4:$D$9,3,TRUE)),표2[[#This Row],[1년미만자 당기 1년미만기간 연차수(11일 일할)]],표2[[#This Row],[사용연도 입사자]])-$Z$12),0) -> 0 | T17: =IFERROR(MAX(0,ROUNDDOWN(표2[[#This Row],[1년미만자 2년째 후 근속일수]],0)+VLOOKUP((표2[[#This Row],[1년미만자 2년째 후 근속일수]]-ROUNDDOWN(표2[[#This Row],[1년미만자 2년째 후 근속일수]],0)),code!$A$4:$D$9,3,TRUE))-표2[[#This Row],[1년미만자 3년째 후 근속일수]],0) -> 0 | V17: =IF(표2[[#This Row],[*기산일]]="","",IF(YEAR(표2[[#This Row],[*기산일]])=$AI$11-1,DATE(YEAR(표2[[#This Row],[*기산일]]),MONTH(표2[[#This Row],[*기산일]])+1,DAY(표2[[#This Row],[*기산일]])),"")) ->  | W17: =IF(표2[[#This Row],[*기산일]]="",0,IF(표2[[#This Row],[1년미만자1개월째]]="","",MAX(0,DATEDIF(표2[[#This Row],[*기산일]],$W$12,"m")-1))) ->  | X17: =IF(표2[[#This Row],[*기산일]]="",0,IF(표2[[#This Row],[1년미만자1개월째]]="","",(DATE(YEAR(표2[[#This Row],[*기산일]]),MONTH(표2[[#This Row],[*기산일]])+1,0)-표2[[#This Row],[*기산일]]+1)/(DATE(YEAR(표2[[#This Row],[*기산일]]),MONTH(표2[[#This Row],[*기산일]])+1,0)-DATE(YEAR(표2[[#This Row],[*기산일]]),MONTH(표2[[#This Row],[*기산일]]),1)+1))) ->  | Y17: =IFERROR(ROUNDDOWN(표2[[#This Row],[1년미만자 전년 근속일수]]/365*$Z$11,0)+VLOOKUP(표2[[#This Row],[1년미만자 전기 연차수]]-ROUNDDOWN(표2[[#This Row],[1년미만자 전년 근속일수]]/365*$Z$11,0),code!$A$4:$D$9,3,TRUE),"") ->  | Z17: =IFERROR(표2[[#This Row],[1년미만자 전년 근속일수]]+ROUNDDOWN(표2[[#This Row],[1년미만자 전기 연차수]],0)+VLOOKUP((표2[[#This Row],[1년미만자 전기 연차수]]-ROUNDDOWN(표2[[#This Row],[1년미만자 전기 연차수]],0)),code!$A$4:$D$9,3,TRUE),0) -> 0 | AA17: =IF(표2[[#This Row],[1년미만자1개월째]]="","",$Z$11-표2[[#This Row],[2년미만자 전기 연차수(code반올림)]]) ->  | AB17: =IF(YEAR(표2[[#This Row],[*기산일]])=$AI$11,DATE(YEAR(표2[[#This Row],[*기산일]]),MONTH(표2[[#This Row],[*기산일]])+1,DAY(표2[[#This Row],[*기산일]])),"") ->  | AC17: =IF(표2[[#This Row],[사용연도 입사자 1개월]]="","",MAX(0,DATEDIF(표2[[#This Row],[*기산일]],$W$11,"m")-1)) ->  | AD17: =IF(표2[[#This Row],[사용연도 입사자 1개월]]="","",(DATE(YEAR(표2[[#This Row],[*기산일]]),MONTH(표2[[#This Row],[*기산일]])+1,0)-표2[[#This Row],[*기산일]]+1)/(DATE(YEAR(표2[[#This Row],[*기산일]]),MONTH(표2[[#This Row],[*기산일]])+1,0)-DATE(YEAR(표2[[#This Row],[*기산일]]),MONTH(표2[[#This Row],[*기산일]]),1)+1)) ->  | AE17: =표2[[#This Row],[월중 근속일수]] ->  | AF17: =IFERROR(표2[[#This Row],[사용연도입사자 근무기간(월)]]+ROUNDDOWN(표2[[#This Row],[열2]],0)+VLOOKUP((표2[[#This Row],[열2]]-ROUNDDOWN(표2[[#This Row],[열2]],0)),code!$A$4:$D$9,3,TRUE),0) -> 0 | AG17: 3 | AH17: 정석천 | AI17: 생산 | AK17: 2004-03-16 | AM17: =IF($AJ$1>license!$C$3,"",IF(H17=0,0,IF($AJ$1<H17,0,$AJ$1-H17+1))) -> 6865 | AN17: =IF($AJ$1>license!$C$3,"",IF(AM17=0,0,IF($H17=0,0,DATEDIF($H17-1,$AJ$1,"y")))) -> 18 | AO17: =IF($AJ$1>license!$C$3,"",IF(AM17=0,0,IF($H17=0,0,DATEDIF($H17-1,$AJ$1,"ym")))) -> 9 | AP17: =IF($AJ$1>license!$C$3,"",IF(AM17=0,0,IF($H17=0,0,DATEDIF($H17-1,$AJ$1,"md")))) -> 16 | AQ17: =IF($AJ$1>license!$C$3,"",IF(표2[[#This Row],[1년이상 근무일수]]="",0,$Z$12-표2[[#This Row],[기간]])) -> 15 | AR17: =IFERROR(IF(표2[[#This Row],[1년이상 근무일수]]="","",MIN(표2[[#This Row],[가산연차2]],$BD$12-표2[[#This Row],[기본]])),"") -> 9 | AS17: =SUM(표2[[#This Row],[1년미만자 당기 1년미만기간 연차수(11일 일할)]],표2[[#This Row],[사용연도 입사자]],표2[[#This Row],[1년미만자 1년째 후 연차일수(15일 일할)]]) -> 0 | AU17: =IF($AJ$1>license!$C$3,"",SUM(표2[[#This Row],[기본]:[일수]])) -> 24 | AV17: =IF($AJ$1>license!$C$3,"",SUMIFS(휴가입력!O:O,휴가입력!M:M,"연차",휴가입력!L:L,AH17)) -> 3.5 | AW17: =IFERROR(MAX(0,표2[[#This Row],[계]]-표2[[#This Row],[사용 일수]]),0) -> 20.5 | AX17: =IFERROR(MAX((표2[[#This Row],[계]]-표2[[#This Row],[사용 일수]])*-1,0),0) -> 0 | AY17: 2000000 | AZ17: =IF($AJ$1>license!$C$3,"",ROUNDUP(표2[[#This Row],[(월급)]]/209*8,0)) -> 76556 | BA17: =IF($AJ$1>license!$C$3,"",ROUNDUP(표2[[#This Row],[(일급)]]*표2[[#This Row],[미사용 일수]],0)) -> 1569398 | BC17: 0
A18: 1 | H18: =IF(표2[[#This Row],[*입사일]]=0,"",표2[[#This Row],[*입사일]]-$AJ$3) -> 2004-09-07 | I18: =IFERROR(IF(AO18="",0,IF(표2[[#This Row],[1년이상 근무일수]]=0,0,DATEDIF(표2[[#This Row],[1년이상 근무일수]]-1,$AJ$1,"y"))),0) -> 17 | J18: =IF(표2[[#This Row],[*기산일]]="","",IF(DATE(YEAR(표2[[#This Row],[*기산일]])+1,MONTH(표2[[#This Row],[*기산일]]),DAY(표2[[#This Row],[*기산일]]))>$AJ$1,"",DATE(YEAR(표2[[#This Row],[*기산일]])+1,MONTH(표2[[#This Row],[*기산일]]),DAY(표2[[#This Row],[*기산일]])))) -> 2005-09-07 | K18: =IF(ISODD(표2[[#This Row],[열1]])=TRUE,1,"") -> 1 | L18: =IF(표2[[#This Row],[가산일도래여부]]=1,DATE(YEAR($AJ$1)+1,MONTH($AJ$1),DAY($AJ$1))-DATE(YEAR($AJ$1)+1,MONTH(표2[[#This Row],[1년이상 근무일수]]),DAY(표2[[#This Row],[1년이상 근무일수]])),0) -> 115 | M18: =표2[[#This Row],[가산휴가 사용가능일]]/365 -> 0.3150684932 | N18: =VLOOKUP(표2[[#This Row],[총근무일수-366]],code!$A$5:$C$9,3) -> 0.5 | O18: =ROUNDDOWN(표2[[#This Row],[열1]]/2,0)+표2[[#This Row],[가산연차]] -> 8.5 | P18: =IF(표2[[#This Row],[*기산일]]="",0,IF(YEAR(표2[[#This Row],[*기산일]])+1=$AI$11,DATE(YEAR(표2[[#This Row],[*기산일]])+1,MONTH(표2[[#This Row],[*기산일]]),DAY(표2[[#This Row],[*기산일]])),"")) ->  | Q18: =IF(표2[[#This Row],[*기산일]]="",0,IF(표2[[#This Row],[전년도 입사자 1년째]]="","",$W$11-표2[[#This Row],[전년도 입사자 1년째]]+1)) ->  | R18: =IF(표2[[#This Row],[전년도 입사자 1년째]]="","",표2[[#This Row],[1년미만자 1년째 후 근속일수]]/365*$Z$12) ->  | S18: =IFERROR(MAX(0,SUM(MAX(0,ROUNDDOWN(표2[[#This Row],[1년미만자 2년째 후 근속일수]],0)+VLOOKUP((표2[[#This Row],[1년미만자 2년째 후 근속일수]]-ROUNDDOWN(표2[[#This Row],[1년미만자 2년째 후 근속일수]],0)),code!$A$4:$D$9,3,TRUE)),표2[[#This Row],[1년미만자 당기 1년미만기간 연차수(11일 일할)]],표2[[#This Row],[사용연도 입사자]])-$Z$12),0) -> 0 | T18: =IFERROR(MAX(0,ROUNDDOWN(표2[[#This Row],[1년미만자 2년째 후 근속일수]],0)+VLOOKUP((표2[[#This Row],[1년미만자 2년째 후 근속일수]]-ROUNDDOWN(표2[[#This Row],[1년미만자 2년째 후 근속일수]],0)),code!$A$4:$D$9,3,TRUE))-표2[[#This Row],[1년미만자 3년째 후 근속일수]],0) -> 0 | V18: =IF(표2[[#This Row],[*기산일]]="","",IF(YEAR(표2[[#This Row],[*기산일]])=$AI$11-1,DATE(YEAR(표2[[#This Row],[*기산일]]),MONTH(표2[[#This Row],[*기산일]])+1,DAY(표2[[#This Row],[*기산일]])),"")) ->  | W18: =IF(표2[[#This Row],[*기산일]]="",0,IF(표2[[#This Row],[1년미만자1개월째]]="","",MAX(0,DATEDIF(표2[[#This Row],[*기산일]],$W$12,"m")-1))) ->  | X18: =IF(표2[[#This Row],[*기산일]]="",0,IF(표2[[#This Row],[1년미만자1개월째]]="","",(DATE(YEAR(표2[[#This Row],[*기산일]]),MONTH(표2[[#This Row],[*기산일]])+1,0)-표2[[#This Row],[*기산일]]+1)/(DATE(YEAR(표2[[#This Row],[*기산일]]),MONTH(표2[[#This Row],[*기산일]])+1,0)-DATE(YEAR(표2[[#This Row],[*기산일]]),MONTH(표2[[#This Row],[*기산일]]),1)+1))) ->  | Y18: =IFERROR(ROUNDDOWN(표2[[#This Row],[1년미만자 전년 근속일수]]/365*$Z$11,0)+VLOOKUP(표2[[#This Row],[1년미만자 전기 연차수]]-ROUNDDOWN(표2[[#This Row],[1년미만자 전년 근속일수]]/365*$Z$11,0),code!$A$4:$D$9,3,TRUE),"") ->  | Z18: =IFERROR(표2[[#This Row],[1년미만자 전년 근속일수]]+ROUNDDOWN(표2[[#This Row],[1년미만자 전기 연차수]],0)+VLOOKUP((표2[[#This Row],[1년미만자 전기 연차수]]-ROUNDDOWN(표2[[#This Row],[1년미만자 전기 연차수]],0)),code!$A$4:$D$9,3,TRUE),0) -> 0 | AA18: =IF(표2[[#This Row],[1년미만자1개월째]]="","",$Z$11-표2[[#This Row],[2년미만자 전기 연차수(code반올림)]]) ->  | AB18: =IF(YEAR(표2[[#This Row],[*기산일]])=$AI$11,DATE(YEAR(표2[[#This Row],[*기산일]]),MONTH(표2[[#This Row],[*기산일]])+1,DAY(표2[[#This Row],[*기산일]])),"") ->  | AC18: =IF(표2[[#This Row],[사용연도 입사자 1개월]]="","",MAX(0,DATEDIF(표2[[#This Row],[*기산일]],$W$11,"m")-1)) ->  | AD18: =IF(표2[[#This Row],[사용연도 입사자 1개월]]="","",(DATE(YEAR(표2[[#This Row],[*기산일]]),MONTH(표2[[#This Row],[*기산일]])+1,0)-표2[[#This Row],[*기산일]]+1)/(DATE(YEAR(표2[[#This Row],[*기산일]]),MONTH(표2[[#This Row],[*기산일]])+1,0)-DATE(YEAR(표2[[#This Row],[*기산일]]),MONTH(표2[[#This Row],[*기산일]]),1)+1)) ->  | AE18: =표2[[#This Row],[월중 근속일수]] ->  | AF18: =IFERROR(표2[[#This Row],[사용연도입사자 근무기간(월)]]+ROUNDDOWN(표2[[#This Row],[열2]],0)+VLOOKUP((표2[[#This Row],[열2]]-ROUNDDOWN(표2[[#This Row],[열2]],0)),code!$A$4:$D$9,3,TRUE),0) -> 0 | AG18: 4 | AH18: 김현주 | AI18: 생산 | AK18: 2004-09-07 | AM18: =IF($AJ$1>license!$C$3,"",IF(H18=0,0,IF($AJ$1<H18,0,$AJ$1-H18+1))) -> 6690 | AN18: =IF($AJ$1>license!$C$3,"",IF(AM18=0,0,IF($H18=0,0,DATEDIF($H18-1,$AJ$1,"y")))) -> 18 | AO18: =IF($AJ$1>license!$C$3,"",IF(AM18=0,0,IF($H18=0,0,DATEDIF($H18-1,$AJ$1,"ym")))) -> 3 | AP18: =IF($AJ$1>license!$C$3,"",IF(AM18=0,0,IF($H18=0,0,DATEDIF($H18-1,$AJ$1,"md")))) -> 25 | AQ18: =IF($AJ$1>license!$C$3,"",IF(표2[[#This Row],[1년이상 근무일수]]="",0,$Z$12-표2[[#This Row],[기간]])) -> 15 | AR18: =IFERROR(IF(표2[[#This Row],[1년이상 근무일수]]="","",MIN(표2[[#This Row],[가산연차2]],$BD$12-표2[[#This Row],[기본]])),"") -> 8.5 | AS18: =SUM(표2[[#This Row],[1년미만자 당기 1년미만기간 연차수(11일 일할)]],표2[[#This Row],[사용연도 입사자]],표2[[#This Row],[1년미만자 1년째 후 연차일수(15일 일할)]]) -> 0 | AU18: =IF($AJ$1>license!$C$3,"",SUM(표2[[#This Row],[기본]:[일수]])) -> 23.5 | AV18: =IF($AJ$1>license!$C$3,"",SUMIFS(휴가입력!O:O,휴가입력!M:M,"연차",휴가입력!L:L,AH18)) -> 8 | AW18: =IFERROR(MAX(0,표2[[#This Row],[계]]-표2[[#This Row],[사용 일수]]),0) -> 15.5 | AX18: =IFERROR(MAX((표2[[#This Row],[계]]-표2[[#This Row],[사용 일수]])*-1,0),0) -> 0 | AY18: 2000000 | AZ18: =IF($AJ$1>license!$C$3,"",ROUNDUP(표2[[#This Row],[(월급)]]/209*8,0)) -> 76556 | BA18: =IF($AJ$1>license!$C$3,"",ROUNDUP(표2[[#This Row],[(일급)]]*표2[[#This Row],[미사용 일수]],0)) -> 1186618 | BC18: 0
A19: 1 | H19: =IF(표2[[#This Row],[*입사일]]=0,"",표2[[#This Row],[*입사일]]-$AJ$3) -> 2005-09-05 | I19: =IFERROR(IF(AO19="",0,IF(표2[[#This Row],[1년이상 근무일수]]=0,0,DATEDIF(표2[[#This Row],[1년이상 근무일수]]-1,$AJ$1,"y"))),0) -> 16 | J19: =IF(표2[[#This Row],[*기산일]]="","",IF(DATE(YEAR(표2[[#This Row],[*기산일]])+1,MONTH(표2[[#This Row],[*기산일]]),DAY(표2[[#This Row],[*기산일]]))>$AJ$1,"",DATE(YEAR(표2[[#This Row],[*기산일]])+1,MONTH(표2[[#This Row],[*기산일]]),DAY(표2[[#This Row],[*기산일]])))) -> 2006-09-05 | K19: =IF(ISODD(표2[[#This Row],[열1]])=TRUE,1,"") ->  | L19: =IF(표2[[#This Row],[가산일도래여부]]=1,DATE(YEAR($AJ$1)+1,MONTH($AJ$1),DAY($AJ$1))-DATE(YEAR($AJ$1)+1,MONTH(표2[[#This Row],[1년이상 근무일수]]),DAY(표2[[#This Row],[1년이상 근무일수]])),0) -> 0 | M19: =표2[[#This Row],[가산휴가 사용가능일]]/365 -> 0 | N19: =VLOOKUP(표2[[#This Row],[총근무일수-366]],code!$A$5:$C$9,3) -> 0 | O19: =ROUNDDOWN(표2[[#This Row],[열1]]/2,0)+표2[[#This Row],[가산연차]] -> 8 | P19: =IF(표2[[#This Row],[*기산일]]="",0,IF(YEAR(표2[[#This Row],[*기산일]])+1=$AI$11,DATE(YEAR(표2[[#This Row],[*기산일]])+1,MONTH(표2[[#This Row],[*기산일]]),DAY(표2[[#This Row],[*기산일]])),"")) ->  | Q19: =IF(표2[[#This Row],[*기산일]]="",0,IF(표2[[#This Row],[전년도 입사자 1년째]]="","",$W$11-표2[[#This Row],[전년도 입사자 1년째]]+1)) ->  | R19: =IF(표2[[#This Row],[전년도 입사자 1년째]]="","",표2[[#This Row],[1년미만자 1년째 후 근속일수]]/365*$Z$12) ->  | S19: =IFERROR(MAX(0,SUM(MAX(0,ROUNDDOWN(표2[[#This Row],[1년미만자 2년째 후 근속일수]],0)+VLOOKUP((표2[[#This Row],[1년미만자 2년째 후 근속일수]]-ROUNDDOWN(표2[[#This Row],[1년미만자 2년째 후 근속일수]],0)),code!$A$4:$D$9,3,TRUE)),표2[[#This Row],[1년미만자 당기 1년미만기간 연차수(11일 일할)]],표2[[#This Row],[사용연도 입사자]])-$Z$12),0) -> 0 | T19: =IFERROR(MAX(0,ROUNDDOWN(표2[[#This Row],[1년미만자 2년째 후 근속일수]],0)+VLOOKUP((표2[[#This Row],[1년미만자 2년째 후 근속일수]]-ROUNDDOWN(표2[[#This Row],[1년미만자 2년째 후 근속일수]],0)),code!$A$4:$D$9,3,TRUE))-표2[[#This Row],[1년미만자 3년째 후 근속일수]],0) -> 0 | V19: =IF(표2[[#This Row],[*기산일]]="","",IF(YEAR(표2[[#This Row],[*기산일]])=$AI$11-1,DATE(YEAR(표2[[#This Row],[*기산일]]),MONTH(표2[[#This Row],[*기산일]])+1,DAY(표2[[#This Row],[*기산일]])),"")) ->  | W19: =IF(표2[[#This Row],[*기산일]]="",0,IF(표2[[#This Row],[1년미만자1개월째]]="","",MAX(0,DATEDIF(표2[[#This Row],[*기산일]],$W$12,"m")-1))) ->  | X19: =IF(표2[[#This Row],[*기산일]]="",0,IF(표2[[#This Row],[1년미만자1개월째]]="","",(DATE(YEAR(표2[[#This Row],[*기산일]]),MONTH(표2[[#This Row],[*기산일]])+1,0)-표2[[#This Row],[*기산일]]+1)/(DATE(YEAR(표2[[#This Row],[*기산일]]),MONTH(표2[[#This Row],[*기산일]])+1,0)-DATE(YEAR(표2[[#This Row],[*기산일]]),MONTH(표2[[#This Row],[*기산일]]),1)+1))) ->  | Y19: =IFERROR(ROUNDDOWN(표2[[#This Row],[1년미만자 전년 근속일수]]/365*$Z$11,0)+VLOOKUP(표2[[#This Row],[1년미만자 전기 연차수]]-ROUNDDOWN(표2[[#This Row],[1년미만자 전년 근속일수]]/365*$Z$11,0),code!$A$4:$D$9,3,TRUE),"") ->  | Z19: =IFERROR(표2[[#This Row],[1년미만자 전년 근속일수]]+ROUNDDOWN(표2[[#This Row],[1년미만자 전기 연차수]],0)+VLOOKUP((표2[[#This Row],[1년미만자 전기 연차수]]-ROUNDDOWN(표2[[#This Row],[1년미만자 전기 연차수]],0)),code!$A$4:$D$9,3,TRUE),0) -> 0 | AA19: =IF(표2[[#This Row],[1년미만자1개월째]]="","",$Z$11-표2[[#This Row],[2년미만자 전기 연차수(code반올림)]]) ->  | AB19: =IF(YEAR(표2[[#This Row],[*기산일]])=$AI$11,DATE(YEAR(표2[[#This Row],[*기산일]]),MONTH(표2[[#This Row],[*기산일]])+1,DAY(표2[[#This Row],[*기산일]])),"") ->  | AC19: =IF(표2[[#This Row],[사용연도 입사자 1개월]]="","",MAX(0,DATEDIF(표2[[#This Row],[*기산일]],$W$11,"m")-1)) ->  | AD19: =IF(표2[[#This Row],[사용연도 입사자 1개월]]="","",(DATE(YEAR(표2[[#This Row],[*기산일]]),MONTH(표2[[#This Row],[*기산일]])+1,0)-표2[[#This Row],[*기산일]]+1)/(DATE(YEAR(표2[[#This Row],[*기산일]]),MONTH(표2[[#This Row],[*기산일]])+1,0)-DATE(YEAR(표2[[#This Row],[*기산일]]),MONTH(표2[[#This Row],[*기산일]]),1)+1)) ->  | AE19: =표2[[#This Row],[월중 근속일수]] ->  | AF19: =IFERROR(표2[[#This Row],[사용연도입사자 근무기간(월)]]+ROUNDDOWN(표2[[#This Row],[열2]],0)+VLOOKUP((표2[[#This Row],[열2]]-ROUNDDOWN(표2[[#This Row],[열2]],0)),code!$A$4:$D$9,3,TRUE),0) -> 0 | AG19: 5 | AH19: 임꺽정 | AI19: 연구 | AK19: 2005-09-05 | AM19: =IF($AJ$1>license!$C$3,"",IF(H19=0,0,IF($AJ$1<H19,0,$AJ$1-H19+1))) -> 6327 | AN19: =IF($AJ$1>license!$C$3,"",IF(AM19=0,0,IF($H19=0,0,DATEDIF($H19-1,$AJ$1,"y")))) -> 17 | AO19: =IF($AJ$1>license!$C$3,"",IF(AM19=0,0,IF($H19=0,0,DATEDIF($H19-1,$AJ$1,"ym")))) -> 3 | AP19: =IF($AJ$1>license!$C$3,"",IF(AM19=0,0,IF($H19=0,0,DATEDIF($H19-1,$AJ$1,"md")))) -> 27 | AQ19: =IF($AJ$1>license!$C$3,"",IF(표2[[#This Row],[1년이상 근무일수]]="",0,$Z$12-표2[[#This Row],[기간]])) -> 15 | AR19: =IFERROR(IF(표2[[#This Row],[1년이상 근무일수]]="","",MIN(표2[[#This Row],[가산연차2]],$BD$12-표2[[#This Row],[기본]])),"") -> 8 | AS19: =SUM(표2[[#This Row],[1년미만자 당기 1년미만기간 연차수(11일 일할)]],표2[[#This Row],[사용연도 입사자]],표2[[#This Row],[1년미만자 1년째 후 연차일수(15일 일할)]]) -> 0 | AU19: =IF($AJ$1>license!$C$3,"",SUM(표2[[#This Row],[기본]:[일수]])) -> 23 | AV19: =IF($AJ$1>license!$C$3,"",SUMIFS(휴가입력!O:O,휴가입력!M:M,"연차",휴가입력!L:L,AH19)) -> 8.5 | AW19: =IFERROR(MAX(0,표2[[#This Row],[계]]-표2[[#This Row],[사용 일수]]),0) -> 14.5 | AX19: =IFERROR(MAX((표2[[#This Row],[계]]-표2[[#This Row],[사용 일수]])*-1,0),0) -> 0 | AY19: 2000000 | AZ19: =IF($AJ$1>license!$C$3,"",ROUNDUP(표2[[#This Row],[(월급)]]/209*8,0)) -> 76556 | BA19: =IF($AJ$1>license!$C$3,"",ROUNDUP(표2[[#This Row],[(일급)]]*표2[[#This Row],[미사용 일수]],0)) -> 1110062 | BC19: 0
A20: 1 | H20: =IF(표2[[#This Row],[*입사일]]=0,"",표2[[#This Row],[*입사일]]-$AJ$3) -> 2007-11-12 | I20: =IFERROR(IF(AO20="",0,IF(표2[[#This Row],[1년이상 근무일수]]=0,0,DATEDIF(표2[[#This Row],[1년이상 근무일수]]-1,$AJ$1,"y"))),0) -> 14 | J20: =IF(표2[[#This Row],[*기산일]]="","",IF(DATE(YEAR(표2[[#This Row],[*기산일]])+1,MONTH(표2[[#This Row],[*기산일]]),DAY(표2[[#This Row],[*기산일]]))>$AJ$1,"",DATE(YEAR(표2[[#This Row],[*기산일]])+1,MONTH(표2[[#This Row],[*기산일]]),DAY(표2[[#This Row],[*기산일]])))) -> 2008-11-12 | K20: =IF(ISODD(표2[[#This Row],[열1]])=TRUE,1,"") ->  | L20: =IF(표2[[#This Row],[가산일도래여부]]=1,DATE(YEAR($AJ$1)+1,MONTH($AJ$1),DAY($AJ$1))-DATE(YEAR($AJ$1)+1,MONTH(표2[[#This Row],[1년이상 근무일수]]),DAY(표2[[#This Row],[1년이상 근무일수]])),0) -> 0 | M20: =표2[[#This Row],[가산휴가 사용가능일]]/365 -> 0 | N20: =VLOOKUP(표2[[#This Row],[총근무일수-366]],code!$A$5:$C$9,3) -> 0 | O20: =ROUNDDOWN(표2[[#This Row],[열1]]/2,0)+표2[[#This Row],[가산연차]] -> 7 | P20: =IF(표2[[#This Row],[*기산일]]="",0,IF(YEAR(표2[[#This Row],[*기산일]])+1=$AI$11,DATE(YEAR(표2[[#This Row],[*기산일]])+1,MONTH(표2[[#This Row],[*기산일]]),DAY(표2[[#This Row],[*기산일]])),"")) ->  | Q20: =IF(표2[[#This Row],[*기산일]]="",0,IF(표2[[#This Row],[전년도 입사자 1년째]]="","",$W$11-표2[[#This Row],[전년도 입사자 1년째]]+1)) ->  | R20: =IF(표2[[#This Row],[전년도 입사자 1년째]]="","",표2[[#This Row],[1년미만자 1년째 후 근속일수]]/365*$Z$12) ->  | S20: =IFERROR(MAX(0,SUM(MAX(0,ROUNDDOWN(표2[[#This Row],[1년미만자 2년째 후 근속일수]],0)+VLOOKUP((표2[[#This Row],[1년미만자 2년째 후 근속일수]]-ROUNDDOWN(표2[[#This Row],[1년미만자 2년째 후 근속일수]],0)),code!$A$4:$D$9,3,TRUE)),표2[[#This Row],[1년미만자 당기 1년미만기간 연차수(11일 일할)]],표2[[#This Row],[사용연도 입사자]])-$Z$12),0) -> 0 | T20: =IFERROR(MAX(0,ROUNDDOWN(표2[[#This Row],[1년미만자 2년째 후 근속일수]],0)+VLOOKUP((표2[[#This Row],[1년미만자 2년째 후 근속일수]]-ROUNDDOWN(표2[[#This Row],[1년미만자 2년째 후 근속일수]],0)),code!$A$4:$D$9,3,TRUE))-표2[[#This Row],[1년미만자 3년째 후 근속일수]],0) -> 0 | V20: =IF(표2[[#This Row],[*기산일]]="","",IF(YEAR(표2[[#This Row],[*기산일]])=$AI$11-1,DATE(YEAR(표2[[#This Row],[*기산일]]),MONTH(표2[[#This Row],[*기산일]])+1,DAY(표2[[#This Row],[*기산일]])),"")) ->  | W20: =IF(표2[[#This Row],[*기산일]]="",0,IF(표2[[#This Row],[1년미만자1개월째]]="","",MAX(0,DATEDIF(표2[[#This Row],[*기산일]],$W$12,"m")-1))) ->  | X20: =IF(표2[[#This Row],[*기산일]]="",0,IF(표2[[#This Row],[1년미만자1개월째]]="","",(DATE(YEAR(표2[[#This Row],[*기산일]]),MONTH(표2[[#This Row],[*기산일]])+1,0)-표2[[#This Row],[*기산일]]+1)/(DATE(YEAR(표2[[#This Row],[*기산일]]),MONTH(표2[[#This Row],[*기산일]])+1,0)-DATE(YEAR(표2[[#This Row],[*기산일]]),MONTH(표2[[#This Row],[*기산일]]),1)+1))) ->  | Y20: =IFERROR(ROUNDDOWN(표2[[#This Row],[1년미만자 전년 근속일수]]/365*$Z$11,0)+VLOOKUP(표2[[#This Row],[1년미만자 전기 연차수]]-ROUNDDOWN(표2[[#This Row],[1년미만자 전년 근속일수]]/365*$Z$11,0),code!$A$4:$D$9,3,TRUE),"") ->  | Z20: =IFERROR(표2[[#This Row],[1년미만자 전년 근속일수]]+ROUNDDOWN(표2[[#This Row],[1년미만자 전기 연차수]],0)+VLOOKUP((표2[[#This Row],[1년미만자 전기 연차수]]-ROUNDDOWN(표2[[#This Row],[1년미만자 전기 연차수]],0)),code!$A$4:$D$9,3,TRUE),0) -> 0 | AA20: =IF(표2[[#This Row],[1년미만자1개월째]]="","",$Z$11-표2[[#This Row],[2년미만자 전기 연차수(code반올림)]]) ->  | AB20: =IF(YEAR(표2[[#This Row],[*기산일]])=$AI$11,DATE(YEAR(표2[[#This Row],[*기산일]]),MONTH(표2[[#This Row],[*기산일]])+1,DAY(표2[[#This Row],[*기산일]])),"") ->  | AC20: =IF(표2[[#This Row],[사용연도 입사자 1개월]]="","",MAX(0,DATEDIF(표2[[#This Row],[*기산일]],$W$11,"m")-1)) ->  | AD20: =IF(표2[[#This Row],[사용연도 입사자 1개월]]="","",(DATE(YEAR(표2[[#This Row],[*기산일]]),MONTH(표2[[#This Row],[*기산일]])+1,0)-표2[[#This Row],[*기산일]]+1)/(DATE(YEAR(표2[[#This Row],[*기산일]]),MONTH(표2[[#This Row],[*기산일]])+1,0)-DATE(YEAR(표2[[#This Row],[*기산일]]),MONTH(표2[[#This Row],[*기산일]]),1)+1)) ->  | AE20: =표2[[#This Row],[월중 근속일수]] ->  | AF20: =IFERROR(표2[[#This Row],[사용연도입사자 근무기간(월)]]+ROUNDDOWN(표2[[#This Row],[열2]],0)+VLOOKUP((표2[[#This Row],[열2]]-ROUNDDOWN(표2[[#This Row],[열2]],0)),code!$A$4:$D$9,3,TRUE),0) -> 0 | AG20: 6 | AH20: 이택진 | AI20: 연구 | AK20: 2007-11-12 | AM20: =IF($AJ$1>license!$C$3,"",IF(H20=0,0,IF($AJ$1<H20,0,$AJ$1-H20+1))) -> 5529 | AN20: =IF($AJ$1>license!$C$3,"",IF(AM20=0,0,IF($H20=0,0,DATEDIF($H20-1,$AJ$1,"y")))) -> 15 | AO20: =IF($AJ$1>license!$C$3,"",IF(AM20=0,0,IF($H20=0,0,DATEDIF($H20-1,$AJ$1,"ym")))) -> 1 | AP20: =IF($AJ$1>license!$C$3,"",IF(AM20=0,0,IF($H20=0,0,DATEDIF($H20-1,$AJ$1,"md")))) -> 20 | AQ20: =IF($AJ$1>license!$C$3,"",IF(표2[[#This Row],[1년이상 근무일수]]="",0,$Z$12-표2[[#This Row],[기간]])) -> 15 | AR20: =IFERROR(IF(표2[[#This Row],[1년이상 근무일수]]="","",MIN(표2[[#This Row],[가산연차2]],$BD$12-표2[[#This Row],[기본]])),"") -> 7 | AS20: =SUM(표2[[#This Row],[1년미만자 당기 1년미만기간 연차수(11일 일할)]],표2[[#This Row],[사용연도 입사자]],표2[[#This Row],[1년미만자 1년째 후 연차일수(15일 일할)]]) -> 0 | AU20: =IF($AJ$1>license!$C$3,"",SUM(표2[[#This Row],[기본]:[일수]])) -> 22 | AV20: =IF($AJ$1>license!$C$3,"",SUMIFS(휴가입력!O:O,휴가입력!M:M,"연차",휴가입력!L:L,AH20)) -> 0 | AW20: =IFERROR(MAX(0,표2[[#This Row],[계]]-표2[[#This Row],[사용 일수]]),0) -> 22 | AX20: =IFERROR(MAX((표2[[#This Row],[계]]-표2[[#This Row],[사용 일수]])*-1,0),0) -> 0 | AY20: 5000000 | AZ20: =IF($AJ$1>license!$C$3,"",ROUNDUP(표2[[#This Row],[(월급)]]/209*8,0)) -> 191388 | BA20: =IF($AJ$1>license!$C$3,"",ROUNDUP(표2[[#This Row],[(일급)]]*표2[[#This Row],[미사용 일수]],0)) -> 4210536 | BC20: 0
A21: 1 | H21: =IF(표2[[#This Row],[*입사일]]=0,"",표2[[#This Row],[*입사일]]-$AJ$3) -> 2019-08-26 | I21: =IFERROR(IF(AO21="",0,IF(표2[[#This Row],[1년이상 근무일수]]=0,0,DATEDIF(표2[[#This Row],[1년이상 근무일수]]-1,$AJ$1,"y"))),0) -> 2 | J21: =IF(표2[[#This Row],[*기산일]]="","",IF(DATE(YEAR(표2[[#This Row],[*기산일]])+1,MONTH(표2[[#This Row],[*기산일]]),DAY(표2[[#This Row],[*기산일]]))>$AJ$1,"",DATE(YEAR(표2[[#This Row],[*기산일]])+1,MONTH(표2[[#This Row],[*기산일]]),DAY(표2[[#This Row],[*기산일]])))) -> 2020-08-26 | K21: =IF(ISODD(표2[[#This Row],[열1]])=TRUE,1,"") ->  | L21: =IF(표2[[#This Row],[가산일도래여부]]=1,DATE(YEAR($AJ$1)+1,MONTH($AJ$1),DAY($AJ$1))-DATE(YEAR($AJ$1)+1,MONTH(표2[[#This Row],[1년이상 근무일수]]),DAY(표2[[#This Row],[1년이상 근무일수]])),0) -> 0 | M21: =표2[[#This Row],[가산휴가 사용가능일]]/365 -> 0 | N21: =VLOOKUP(표2[[#This Row],[총근무일수-366]],code!$A$5:$C$9,3) -> 0 | O21: =ROUNDDOWN(표2[[#This Row],[열1]]/2,0)+표2[[#This Row],[가산연차]] -> 1 | P21: =IF(표2[[#This Row],[*기산일]]="",0,IF(YEAR(표2[[#This Row],[*기산일]])+1=$AI$11,DATE(YEAR(표2[[#This Row],[*기산일]])+1,MONTH(표2[[#This Row],[*기산일]]),DAY(표2[[#This Row],[*기산일]])),"")) ->  | Q21: =IF(표2[[#This Row],[*기산일]]="",0,IF(표2[[#This Row],[전년도 입사자 1년째]]="","",$W$11-표2[[#This Row],[전년도 입사자 1년째]]+1)) ->  | R21: =IF(표2[[#This Row],[전년도 입사자 1년째]]="","",표2[[#This Row],[1년미만자 1년째 후 근속일수]]/365*$Z$12) ->  | S21: =IFERROR(MAX(0,SUM(MAX(0,ROUNDDOWN(표2[[#This Row],[1년미만자 2년째 후 근속일수]],0)+VLOOKUP((표2[[#This Row],[1년미만자 2년째 후 근속일수]]-ROUNDDOWN(표2[[#This Row],[1년미만자 2년째 후 근속일수]],0)),code!$A$4:$D$9,3,TRUE)),표2[[#This Row],[1년미만자 당기 1년미만기간 연차수(11일 일할)]],표2[[#This Row],[사용연도 입사자]])-$Z$12),0) -> 0 | T21: =IFERROR(MAX(0,ROUNDDOWN(표2[[#This Row],[1년미만자 2년째 후 근속일수]],0)+VLOOKUP((표2[[#This Row],[1년미만자 2년째 후 근속일수]]-ROUNDDOWN(표2[[#This Row],[1년미만자 2년째 후 근속일수]],0)),code!$A$4:$D$9,3,TRUE))-표2[[#This Row],[1년미만자 3년째 후 근속일수]],0) -> 0 | V21: =IF(표2[[#This Row],[*기산일]]="","",IF(YEAR(표2[[#This Row],[*기산일]])=$AI$11-1,DATE(YEAR(표2[[#This Row],[*기산일]]),MONTH(표2[[#This Row],[*기산일]])+1,DAY(표2[[#This Row],[*기산일]])),"")) ->  | W21: =IF(표2[[#This Row],[*기산일]]="",0,IF(표2[[#This Row],[1년미만자1개월째]]="","",MAX(0,DATEDIF(표2[[#This Row],[*기산일]],$W$12,"m")-1))) ->  | X21: =IF(표2[[#This Row],[*기산일]]="",0,IF(표2[[#This Row],[1년미만자1개월째]]="","",(DATE(YEAR(표2[[#This Row],[*기산일]]),MONTH(표2[[#This Row],[*기산일]])+1,0)-표2[[#This Row],[*기산일]]+1)/(DATE(YEAR(표2[[#This Row],[*기산일]]),MONTH(표2[[#This Row],[*기산일]])+1,0)-DATE(YEAR(표2[[#This Row],[*기산일]]),MONTH(표2[[#This Row],[*기산일]]),1)+1))) ->  | Y21: =IFERROR(ROUNDDOWN(표2[[#This Row],[1년미만자 전년 근속일수]]/365*$Z$11,0)+VLOOKUP(표2[[#This Row],[1년미만자 전기 연차수]]-ROUNDDOWN(표2[[#This Row],[1년미만자 전년 근속일수]]/365*$Z$11,0),code!$A$4:$D$9,3,TRUE),"") ->  | Z21: =IFERROR(표2[[#This Row],[1년미만자 전년 근속일수]]+ROUNDDOWN(표2[[#This Row],[1년미만자 전기 연차수]],0)+VLOOKUP((표2[[#This Row],[1년미만자 전기 연차수]]-ROUNDDOWN(표2[[#This Row],[1년미만자 전기 연차수]],0)),code!$A$4:$D$9,3,TRUE),0) -> 0 | AA21: =IF(표2[[#This Row],[1년미만자1개월째]]="","",$Z$11-표2[[#This Row],[2년미만자 전기 연차수(code반올림)]]) ->  | AB21: =IF(YEAR(표2[[#This Row],[*기산일]])=$AI$11,DATE(YEAR(표2[[#This Row],[*기산일]]),MONTH(표2[[#This Row],[*기산일]])+1,DAY(표2[[#This Row],[*기산일]])),"") ->  | AC21: =IF(표2[[#This Row],[사용연도 입사자 1개월]]="","",MAX(0,DATEDIF(표2[[#This Row],[*기산일]],$W$11,"m")-1)) ->  | AD21: =IF(표2[[#This Row],[사용연도 입사자 1개월]]="","",(DATE(YEAR(표2[[#This Row],[*기산일]]),MONTH(표2[[#This Row],[*기산일]])+1,0)-표2[[#This Row],[*기산일]]+1)/(DATE(YEAR(표2[[#This Row],[*기산일]]),MONTH(표2[[#This Row],[*기산일]])+1,0)-DATE(YEAR(표2[[#This Row],[*기산일]]),MONTH(표2[[#This Row],[*기산일]]),1)+1)) ->  | AE21: =표2[[#This Row],[월중 근속일수]] ->  | AF21: =IFERROR(표2[[#This Row],[사용연도입사자 근무기간(월)]]+ROUNDDOWN(표2[[#This Row],[열2]],0)+VLOOKUP((표2[[#This Row],[열2]]-ROUNDDOWN(표2[[#This Row],[열2]],0)),code!$A$4:$D$9,3,TRUE),0) -> 0 | AG21: 7 | AH21: 백두산 | AI21: 물류 | AK21: 2019-08-26 | AL21: 2020-08-25 | AM21: =IF($AJ$1>license!$C$3,"",IF(H21=0,0,IF($AJ$1<H21,0,$AJ$1-H21+1))) -> 1224 | AN21: =IF($AJ$1>license!$C$3,"",IF(AM21=0,0,IF($H21=0,0,DATEDIF($H21-1,$AJ$1,"y")))) -> 3 | AO21: =IF($AJ$1>license!$C$3,"",IF(AM21=0,0,IF($H21=0,0,DATEDIF($H21-1,$AJ$1,"ym")))) -> 4 | AP21: =IF($AJ$1>license!$C$3,"",IF(AM21=0,0,IF($H21=0,0,DATEDIF($H21-1,$AJ$1,"md")))) -> 6 | AQ21: =IF($AJ$1>license!$C$3,"",IF(표2[[#This Row],[1년이상 근무일수]]="",0,$Z$12-표2[[#This Row],[기간]])) -> 15 | AR21: =IFERROR(IF(표2[[#This Row],[1년이상 근무일수]]="","",MIN(표2[[#This Row],[가산연차2]],$BD$12-표2[[#This Row],[기본]])),"") -> 1 | AS21: =SUM(표2[[#This Row],[1년미만자 당기 1년미만기간 연차수(11일 일할)]],표2[[#This Row],[사용연도 입사자]],표2[[#This Row],[1년미만자 1년째 후 연차일수(15일 일할)]]) -> 0 | AU21: =IF($AJ$1>license!$C$3,"",SUM(표2[[#This Row],[기본]:[일수]])) -> 16 | AV21: =IF($AJ$1>license!$C$3,"",SUMIFS(휴가입력!O:O,휴가입력!M:M,"연차",휴가입력!L:L,AH21)) -> 4.5 | AW21: =IFERROR(MAX(0,표2[[#This Row],[계]]-표2[[#This Row],[사용 일수]]),0) -> 11.5 | AX21: =IFERROR(MAX((표2[[#This Row],[계]]-표2[[#This Row],[사용 일수]])*-1,0),0) -> 0 | AY21: 2000000 | AZ21: =IF($AJ$1>license!$C$3,"",ROUNDUP(표2[[#This Row],[(월급)]]/209*8,0)) -> 76556 | BA21: =IF($AJ$1>license!$C$3,"",ROUNDUP(표2[[#This Row],[(일급)]]*표2[[#This Row],[미사용 일수]],0)) -> 880394 | BC21: 0
A22: 1 | H22: =IF(표2[[#This Row],[*입사일]]=0,"",표2[[#This Row],[*입사일]]-$AJ$3) -> 2012-10-04 | I22: =IFERROR(IF(AO22="",0,IF(표2[[#This Row],[1년이상 근무일수]]=0,0,DATEDIF(표2[[#This Row],[1년이상 근무일수]]-1,$AJ$1,"y"))),0) -> 9 | J22: =IF(표2[[#This Row],[*기산일]]="","",IF(DATE(YEAR(표2[[#This Row],[*기산일]])+1,MONTH(표2[[#This Row],[*기산일]]),DAY(표2[[#This Row],[*기산일]]))>$AJ$1,"",DATE(YEAR(표2[[#This Row],[*기산일]])+1,MONTH(표2[[#This Row],[*기산일]]),DAY(표2[[#This Row],[*기산일]])))) -> 2013-10-04 | K22: =IF(ISODD(표2[[#This Row],[열1]])=TRUE,1,"") -> 1 | L22: =IF(표2[[#This Row],[가산일도래여부]]=1,DATE(YEAR($AJ$1)+1,MONTH($AJ$1),DAY($AJ$1))-DATE(YEAR($AJ$1)+1,MONTH(표2[[#This Row],[1년이상 근무일수]]),DAY(표2[[#This Row],[1년이상 근무일수]])),0) -> 88 | M22: =표2[[#This Row],[가산휴가 사용가능일]]/365 -> 0.2410958904 | N22: =VLOOKUP(표2[[#This Row],[총근무일수-366]],code!$A$5:$C$9,3) -> 0.5 | O22: =ROUNDDOWN(표2[[#This Row],[열1]]/2,0)+표2[[#This Row],[가산연차]] -> 4.5 | P22: =IF(표2[[#This Row],[*기산일]]="",0,IF(YEAR(표2[[#This Row],[*기산일]])+1=$AI$11,DATE(YEAR(표2[[#This Row],[*기산일]])+1,MONTH(표2[[#This Row],[*기산일]]),DAY(표2[[#This Row],[*기산일]])),"")) ->  | Q22: =IF(표2[[#This Row],[*기산일]]="",0,IF(표2[[#This Row],[전년도 입사자 1년째]]="","",$W$11-표2[[#This Row],[전년도 입사자 1년째]]+1)) ->  | R22: =IF(표2[[#This Row],[전년도 입사자 1년째]]="","",표2[[#This Row],[1년미만자 1년째 후 근속일수]]/365*$Z$12) ->  | S22: =IFERROR(MAX(0,SUM(MAX(0,ROUNDDOWN(표2[[#This Row],[1년미만자 2년째 후 근속일수]],0)+VLOOKUP((표2[[#This Row],[1년미만자 2년째 후 근속일수]]-ROUNDDOWN(표2[[#This Row],[1년미만자 2년째 후 근속일수]],0)),code!$A$4:$D$9,3,TRUE)),표2[[#This Row],[1년미만자 당기 1년미만기간 연차수(11일 일할)]],표2[[#This Row],[사용연도 입사자]])-$Z$12),0) -> 0 | T22: =IFERROR(MAX(0,ROUNDDOWN(표2[[#This Row],[1년미만자 2년째 후 근속일수]],0)+VLOOKUP((표2[[#This Row],[1년미만자 2년째 후 근속일수]]-ROUNDDOWN(표2[[#This Row],[1년미만자 2년째 후 근속일수]],0)),code!$A$4:$D$9,3,TRUE))-표2[[#This Row],[1년미만자 3년째 후 근속일수]],0) -> 0 | V22: =IF(표2[[#This Row],[*기산일]]="","",IF(YEAR(표2[[#This Row],[*기산일]])=$AI$11-1,DATE(YEAR(표2[[#This Row],[*기산일]]),MONTH(표2[[#This Row],[*기산일]])+1,DAY(표2[[#This Row],[*기산일]])),"")) ->  | W22: =IF(표2[[#This Row],[*기산일]]="",0,IF(표2[[#This Row],[1년미만자1개월째]]="","",MAX(0,DATEDIF(표2[[#This Row],[*기산일]],$W$12,"m")-1))) ->  | X22: =IF(표2[[#This Row],[*기산일]]="",0,IF(표2[[#This Row],[1년미만자1개월째]]="","",(DATE(YEAR(표2[[#This Row],[*기산일]]),MONTH(표2[[#This Row],[*기산일]])+1,0)-표2[[#This Row],[*기산일]]+1)/(DATE(YEAR(표2[[#This Row],[*기산일]]),MONTH(표2[[#This Row],[*기산일]])+1,0)-DATE(YEAR(표2[[#This Row],[*기산일]]),MONTH(표2[[#This Row],[*기산일]]),1)+1))) ->  | Y22: =IFERROR(ROUNDDOWN(표2[[#This Row],[1년미만자 전년 근속일수]]/365*$Z$11,0)+VLOOKUP(표2[[#This Row],[1년미만자 전기 연차수]]-ROUNDDOWN(표2[[#This Row],[1년미만자 전년 근속일수]]/365*$Z$11,0),code!$A$4:$D$9,3,TRUE),"") ->  | Z22: =IFERROR(표2[[#This Row],[1년미만자 전년 근속일수]]+ROUNDDOWN(표2[[#This Row],[1년미만자 전기 연차수]],0)+VLOOKUP((표2[[#This Row],[1년미만자 전기 연차수]]-ROUNDDOWN(표2[[#This Row],[1년미만자 전기 연차수]],0)),code!$A$4:$D$9,3,TRUE),0) -> 0 | AA22: =IF(표2[[#This Row],[1년미만자1개월째]]="","",$Z$11-표2[[#This Row],[2년미만자 전기 연차수(code반올림)]]) ->  | AB22: =IF(YEAR(표2[[#This Row],[*기산일]])=$AI$11,DATE(YEAR(표2[[#This Row],[*기산일]]),MONTH(표2[[#This Row],[*기산일]])+1,DAY(표2[[#This Row],[*기산일]])),"") ->  | AC22: =IF(표2[[#This Row],[사용연도 입사자 1개월]]="","",MAX(0,DATEDIF(표2[[#This Row],[*기산일]],$W$11,"m")-1)) ->  | AD22: =IF(표2[[#This Row],[사용연도 입사자 1개월]]="","",(DATE(YEAR(표2[[#This Row],[*기산일]]),MONTH(표2[[#This Row],[*기산일]])+1,0)-표2[[#This Row],[*기산일]]+1)/(DATE(YEAR(표2[[#This Row],[*기산일]]),MONTH(표2[[#This Row],[*기산일]])+1,0)-DATE(YEAR(표2[[#This Row],[*기산일]]),MONTH(표2[[#This Row],[*기산일]]),1)+1)) ->  | AE22: =표2[[#This Row],[월중 근속일수]] ->  | AF22: =IFERROR(표2[[#This Row],[사용연도입사자 근무기간(월)]]+ROUNDDOWN(표2[[#This Row],[열2]],0)+VLOOKUP((표2[[#This Row],[열2]]-ROUNDDOWN(표2[[#This Row],[열2]],0)),code!$A$4:$D$9,3,TRUE),0) -> 0 | AG22: 8 | AH22: 정보청 | AI22: 물류 | AK22: 2012-10-04 | AM22: =IF($AJ$1>license!$C$3,"",IF(H22=0,0,IF($AJ$1<H22,0,$AJ$1-H22+1))) -> 3741 | AN22: =IF($AJ$1>license!$C$3,"",IF(AM22=0,0,IF($H22=0,0,DATEDIF($H22-1,$AJ$1,"y")))) -> 10 | AO22: =IF($AJ$1>license!$C$3,"",IF(AM22=0,0,IF($H22=0,0,DATEDIF($H22-1,$AJ$1,"ym")))) -> 2 | AP22: =IF($AJ$1>license!$C$3,"",IF(AM22=0,0,IF($H22=0,0,DATEDIF($H22-1,$AJ$1,"md")))) -> 28 | AQ22: =IF($AJ$1>license!$C$3,"",IF(표2[[#This Row],[1년이상 근무일수]]="",0,$Z$12-표2[[#This Row],[기간]])) -> 15 | AR22: =IFERROR(IF(표2[[#This Row],[1년이상 근무일수]]="","",MIN(표2[[#This Row],[가산연차2]],$BD$12-표2[[#This Row],[기본]])),"") -> 4.5 | AS22: =SUM(표2[[#This Row],[1년미만자 당기 1년미만기간 연차수(11일 일할)]],표2[[#This Row],[사용연도 입사자]],표2[[#This Row],[1년미만자 1년째 후 연차일수(15일 일할)]]) -> 0 | AU22: =IF($AJ$1>license!$C$3,"",SUM(표2[[#This Row],[기본]:[일수]])) -> 19.5 | AV22: =IF($AJ$1>license!$C$3,"",SUMIFS(휴가입력!O:O,휴가입력!M:M,"연차",휴가입력!L:L,AH22)) -> 6 | AW22: =IFERROR(MAX(0,표2[[#This Row],[계]]-표2[[#This Row],[사용 일수]]),0) -> 13.5 | AX22: =IFERROR(MAX((표2[[#This Row],[계]]-표2[[#This Row],[사용 일수]])*-1,0),0) -> 0 | AY22: 2000000 | AZ22: =IF($AJ$1>license!$C$3,"",ROUNDUP(표2[[#This Row],[(월급)]]/209*8,0)) -> 76556 | BA22: =IF($AJ$1>license!$C$3,"",ROUNDUP(표2[[#This Row],[(일급)]]*표2[[#This Row],[미사용 일수]],0)) -> 1033506 | BC22: 0
A23: 1 | H23: =IF(표2[[#This Row],[*입사일]]=0,"",표2[[#This Row],[*입사일]]-$AJ$3) -> 2013-01-14 | I23: =IFERROR(IF(AO23="",0,IF(표2[[#This Row],[1년이상 근무일수]]=0,0,DATEDIF(표2[[#This Row],[1년이상 근무일수]]-1,$AJ$1,"y"))),0) -> 8 | J23: =IF(표2[[#This Row],[*기산일]]="","",IF(DATE(YEAR(표2[[#This Row],[*기산일]])+1,MONTH(표2[[#This Row],[*기산일]]),DAY(표2[[#This Row],[*기산일]]))>$AJ$1,"",DATE(YEAR(표2[[#This Row],[*기산일]])+1,MONTH(표2[[#This Row],[*기산일]]),DAY(표2[[#This Row],[*기산일]])))) -> 2014-01-14 | K23: =IF(ISODD(표2[[#This Row],[열1]])=TRUE,1,"") ->  | L23: =IF(표2[[#This Row],[가산일도래여부]]=1,DATE(YEAR($AJ$1)+1,MONTH($AJ$1),DAY($AJ$1))-DATE(YEAR($AJ$1)+1,MONTH(표2[[#This Row],[1년이상 근무일수]]),DAY(표2[[#This Row],[1년이상 근무일수]])),0) -> 0 | M23: =표2[[#This Row],[가산휴가 사용가능일]]/365 -> 0 | N23: =VLOOKUP(표2[[#This Row],[총근무일수-366]],code!$A$5:$C$9,3) -> 0 | O23: =ROUNDDOWN(표2[[#This Row],[열1]]/2,0)+표2[[#This Row],[가산연차]] -> 4 | P23: =IF(표2[[#This Row],[*기산일]]="",0,IF(YEAR(표2[[#This Row],[*기산일]])+1=$AI$11,DATE(YEAR(표2[[#This Row],[*기산일]])+1,MONTH(표2[[#This Row],[*기산일]]),DAY(표2[[#This Row],[*기산일]])),"")) ->  | Q23: =IF(표2[[#This Row],[*기산일]]="",0,IF(표2[[#This Row],[전년도 입사자 1년째]]="","",$W$11-표2[[#This Row],[전년도 입사자 1년째]]+1)) ->  | R23: =IF(표2[[#This Row],[전년도 입사자 1년째]]="","",표2[[#This Row],[1년미만자 1년째 후 근속일수]]/365*$Z$12) ->  | S23: =IFERROR(MAX(0,SUM(MAX(0,ROUNDDOWN(표2[[#This Row],[1년미만자 2년째 후 근속일수]],0)+VLOOKUP((표2[[#This Row],[1년미만자 2년째 후 근속일수]]-ROUNDDOWN(표2[[#This Row],[1년미만자 2년째 후 근속일수]],0)),code!$A$4:$D$9,3,TRUE)),표2[[#This Row],[1년미만자 당기 1년미만기간 연차수(11일 일할)]],표2[[#This Row],[사용연도 입사자]])-$Z$12),0) -> 0 | T23: =IFERROR(MAX(0,ROUNDDOWN(표2[[#This Row],[1년미만자 2년째 후 근속일수]],0)+VLOOKUP((표2[[#This Row],[1년미만자 2년째 후 근속일수]]-ROUNDDOWN(표2[[#This Row],[1년미만자 2년째 후 근속일수]],0)),code!$A$4:$D$9,3,TRUE))-표2[[#This Row],[1년미만자 3년째 후 근속일수]],0) -> 0 | V23: =IF(표2[[#This Row],[*기산일]]="","",IF(YEAR(표2[[#This Row],[*기산일]])=$AI$11-1,DATE(YEAR(표2[[#This Row],[*기산일]]),MONTH(표2[[#This Row],[*기산일]])+1,DAY(표2[[#This Row],[*기산일]])),"")) ->  | W23: =IF(표2[[#This Row],[*기산일]]="",0,IF(표2[[#This Row],[1년미만자1개월째]]="","",MAX(0,DATEDIF(표2[[#This Row],[*기산일]],$W$12,"m")-1))) ->  | X23: =IF(표2[[#This Row],[*기산일]]="",0,IF(표2[[#This Row],[1년미만자1개월째]]="","",(DATE(YEAR(표2[[#This Row],[*기산일]]),MONTH(표2[[#This Row],[*기산일]])+1,0)-표2[[#This Row],[*기산일]]+1)/(DATE(YEAR(표2[[#This Row],[*기산일]]),MONTH(표2[[#This Row],[*기산일]])+1,0)-DATE(YEAR(표2[[#This Row],[*기산일]]),MONTH(표2[[#This Row],[*기산일]]),1)+1))) ->  | Y23: =IFERROR(ROUNDDOWN(표2[[#This Row],[1년미만자 전년 근속일수]]/365*$Z$11,0)+VLOOKUP(표2[[#This Row],[1년미만자 전기 연차수]]-ROUNDDOWN(표2[[#This Row],[1년미만자 전년 근속일수]]/365*$Z$11,0),code!$A$4:$D$9,3,TRUE),"") ->  | Z23: =IFERROR(표2[[#This Row],[1년미만자 전년 근속일수]]+ROUNDDOWN(표2[[#This Row],[1년미만자 전기 연차수]],0)+VLOOKUP((표2[[#This Row],[1년미만자 전기 연차수]]-ROUNDDOWN(표2[[#This Row],[1년미만자 전기 연차수]],0)),code!$A$4:$D$9,3,TRUE),0) -> 0 | AA23: =IF(표2[[#This Row],[1년미만자1개월째]]="","",$Z$11-표2[[#This Row],[2년미만자 전기 연차수(code반올림)]]) ->  | AB23: =IF(YEAR(표2[[#This Row],[*기산일]])=$AI$11,DATE(YEAR(표2[[#This Row],[*기산일]]),MONTH(표2[[#This Row],[*기산일]])+1,DAY(표2[[#This Row],[*기산일]])),"") ->  | AC23: =IF(표2[[#This Row],[사용연도 입사자 1개월]]="","",MAX(0,DATEDIF(표2[[#This Row],[*기산일]],$W$11,"m")-1)) ->  | AD23: =IF(표2[[#This Row],[사용연도 입사자 1개월]]="","",(DATE(YEAR(표2[[#This Row],[*기산일]]),MONTH(표2[[#This Row],[*기산일]])+1,0)-표2[[#This Row],[*기산일]]+1)/(DATE(YEAR(표2[[#This Row],[*기산일]]),MONTH(표2[[#This Row],[*기산일]])+1,0)-DATE(YEAR(표2[[#This Row],[*기산일]]),MONTH(표2[[#This Row],[*기산일]]),1)+1)) ->  | AE23: =표2[[#This Row],[월중 근속일수]] ->  | AF23: =IFERROR(표2[[#This Row],[사용연도입사자 근무기간(월)]]+ROUNDDOWN(표2[[#This Row],[열2]],0)+VLOOKUP((표2[[#This Row],[열2]]-ROUNDDOWN(표2[[#This Row],[열2]],0)),code!$A$4:$D$9,3,TRUE),0) -> 0 | AG23: 9 | AH23: 유승산 | AI23: 영업 | AK23: 2013-01-14 | AM23: =IF($AJ$1>license!$C$3,"",IF(H23=0,0,IF($AJ$1<H23,0,$AJ$1-H23+1))) -> 3639 | AN23: =IF($AJ$1>license!$C$3,"",IF(AM23=0,0,IF($H23=0,0,DATEDIF($H23-1,$AJ$1,"y")))) -> 9 | AO23: =IF($AJ$1>license!$C$3,"",IF(AM23=0,0,IF($H23=0,0,DATEDIF($H23-1,$AJ$1,"ym")))) -> 11 | AP23: =IF($AJ$1>license!$C$3,"",IF(AM23=0,0,IF($H23=0,0,DATEDIF($H23-1,$AJ$1,"md")))) -> 18 | AQ23: =IF($AJ$1>license!$C$3,"",IF(표2[[#This Row],[1년이상 근무일수]]="",0,$Z$12-표2[[#This Row],[기간]])) -> 15 | AR23: =IFERROR(IF(표2[[#This Row],[1년이상 근무일수]]="","",MIN(표2[[#This Row],[가산연차2]],$BD$12-표2[[#This Row],[기본]])),"") -> 4 | AS23: =SUM(표2[[#This Row],[1년미만자 당기 1년미만기간 연차수(11일 일할)]],표2[[#This Row],[사용연도 입사자]],표2[[#This Row],[1년미만자 1년째 후 연차일수(15일 일할)]]) -> 0 | AU23: =IF($AJ$1>license!$C$3,"",SUM(표2[[#This Row],[기본]:[일수]])) -> 19 | AV23: =IF($AJ$1>license!$C$3,"",SUMIFS(휴가입력!O:O,휴가입력!M:M,"연차",휴가입력!L:L,AH23)) -> 10 | AW23: =IFERROR(MAX(0,표2[[#This Row],[계]]-표2[[#This Row],[사용 일수]]),0) -> 9 | AX23: =IFERROR(MAX((표2[[#This Row],[계]]-표2[[#This Row],[사용 일수]])*-1,0),0) -> 0 | AY23: 2000000 | AZ23: =IF($AJ$1>license!$C$3,"",ROUNDUP(표2[[#This Row],[(월급)]]/209*8,0)) -> 76556 | BA23: =IF($AJ$1>license!$C$3,"",ROUNDUP(표2[[#This Row],[(일급)]]*표2[[#This Row],[미사용 일수]],0)) -> 689004 | BC23: 0
A24: 1 | H24: =IF(표2[[#This Row],[*입사일]]=0,"",표2[[#This Row],[*입사일]]-$AJ$3) -> 2013-11-04 | I24: =IFERROR(IF(AO24="",0,IF(표2[[#This Row],[1년이상 근무일수]]=0,0,DATEDIF(표2[[#This Row],[1년이상 근무일수]]-1,$AJ$1,"y"))),0) -> 8 | J24: =IF(표2[[#This Row],[*기산일]]="","",IF(DATE(YEAR(표2[[#This Row],[*기산일]])+1,MONTH(표2[[#This Row],[*기산일]]),DAY(표2[[#This Row],[*기산일]]))>$AJ$1,"",DATE(YEAR(표2[[#This Row],[*기산일]])+1,MONTH(표2[[#This Row],[*기산일]]),DAY(표2[[#This Row],[*기산일]])))) -> 2014-11-04 | K24: =IF(ISODD(표2[[#This Row],[열1]])=TRUE,1,"") ->  | L24: =IF(표2[[#This Row],[가산일도래여부]]=1,DATE(YEAR($AJ$1)+1,MONTH($AJ$1),DAY($AJ$1))-DATE(YEAR($AJ$1)+1,MONTH(표2[[#This Row],[1년이상 근무일수]]),DAY(표2[[#This Row],[1년이상 근무일수]])),0) -> 0 | M24: =표2[[#This Row],[가산휴가 사용가능일]]/365 -> 0 | N24: =VLOOKUP(표2[[#This Row],[총근무일수-366]],code!$A$5:$C$9,3) -> 0 | O24: =ROUNDDOWN(표2[[#This Row],[열1]]/2,0)+표2[[#This Row],[가산연차]] -> 4 | P24: =IF(표2[[#This Row],[*기산일]]="",0,IF(YEAR(표2[[#This Row],[*기산일]])+1=$AI$11,DATE(YEAR(표2[[#This Row],[*기산일]])+1,MONTH(표2[[#This Row],[*기산일]]),DAY(표2[[#This Row],[*기산일]])),"")) ->  | Q24: =IF(표2[[#This Row],[*기산일]]="",0,IF(표2[[#This Row],[전년도 입사자 1년째]]="","",$W$11-표2[[#This Row],[전년도 입사자 1년째]]+1)) ->  | R24: =IF(표2[[#This Row],[전년도 입사자 1년째]]="","",표2[[#This Row],[1년미만자 1년째 후 근속일수]]/365*$Z$12) ->  | S24: =IFERROR(MAX(0,SUM(MAX(0,ROUNDDOWN(표2[[#This Row],[1년미만자 2년째 후 근속일수]],0)+VLOOKUP((표2[[#This Row],[1년미만자 2년째 후 근속일수]]-ROUNDDOWN(표2[[#This Row],[1년미만자 2년째 후 근속일수]],0)),code!$A$4:$D$9,3,TRUE)),표2[[#This Row],[1년미만자 당기 1년미만기간 연차수(11일 일할)]],표2[[#This Row],[사용연도 입사자]])-$Z$12),0) -> 0 | T24: =IFERROR(MAX(0,ROUNDDOWN(표2[[#This Row],[1년미만자 2년째 후 근속일수]],0)+VLOOKUP((표2[[#This Row],[1년미만자 2년째 후 근속일수]]-ROUNDDOWN(표2[[#This Row],[1년미만자 2년째 후 근속일수]],0)),code!$A$4:$D$9,3,TRUE))-표2[[#This Row],[1년미만자 3년째 후 근속일수]],0) -> 0 | V24: =IF(표2[[#This Row],[*기산일]]="","",IF(YEAR(표2[[#This Row],[*기산일]])=$AI$11-1,DATE(YEAR(표2[[#This Row],[*기산일]]),MONTH(표2[[#This Row],[*기산일]])+1,DAY(표2[[#This Row],[*기산일]])),"")) ->  | W24: =IF(표2[[#This Row],[*기산일]]="",0,IF(표2[[#This Row],[1년미만자1개월째]]="","",MAX(0,DATEDIF(표2[[#This Row],[*기산일]],$W$12,"m")-1))) ->  | X24: =IF(표2[[#This Row],[*기산일]]="",0,IF(표2[[#This Row],[1년미만자1개월째]]="","",(DATE(YEAR(표2[[#This Row],[*기산일]]),MONTH(표2[[#This Row],[*기산일]])+1,0)-표2[[#This Row],[*기산일]]+1)/(DATE(YEAR(표2[[#This Row],[*기산일]]),MONTH(표2[[#This Row],[*기산일]])+1,0)-DATE(YEAR(표2[[#This Row],[*기산일]]),MONTH(표2[[#This Row],[*기산일]]),1)+1))) ->  | Y24: =IFERROR(ROUNDDOWN(표2[[#This Row],[1년미만자 전년 근속일수]]/365*$Z$11,0)+VLOOKUP(표2[[#This Row],[1년미만자 전기 연차수]]-ROUNDDOWN(표2[[#This Row],[1년미만자 전년 근속일수]]/365*$Z$11,0),code!$A$4:$D$9,3,TRUE),"") ->  | Z24: =IFERROR(표2[[#This Row],[1년미만자 전년 근속일수]]+ROUNDDOWN(표2[[#This Row],[1년미만자 전기 연차수]],0)+VLOOKUP((표2[[#This Row],[1년미만자 전기 연차수]]-ROUNDDOWN(표2[[#This Row],[1년미만자 전기 연차수]],0)),code!$A$4:$D$9,3,TRUE),0) -> 0 | AA24: =IF(표2[[#This Row],[1년미만자1개월째]]="","",$Z$11-표2[[#This Row],[2년미만자 전기 연차수(code반올림)]]) ->  | AB24: =IF(YEAR(표2[[#This Row],[*기산일]])=$AI$11,DATE(YEAR(표2[[#This Row],[*기산일]]),MONTH(표2[[#This Row],[*기산일]])+1,DAY(표2[[#This Row],[*기산일]])),"") ->  | AC24: =IF(표2[[#This Row],[사용연도 입사자 1개월]]="","",MAX(0,DATEDIF(표2[[#This Row],[*기산일]],$W$11,"m")-1)) ->  | AD24: =IF(표2[[#This Row],[사용연도 입사자 1개월]]="","",(DATE(YEAR(표2[[#This Row],[*기산일]]),MONTH(표2[[#This Row],[*기산일]])+1,0)-표2[[#This Row],[*기산일]]+1)/(DATE(YEAR(표2[[#This Row],[*기산일]]),MONTH(표2[[#This Row],[*기산일]])+1,0)-DATE(YEAR(표2[[#This Row],[*기산일]]),MONTH(표2[[#This Row],[*기산일]]),1)+1)) ->  | AE24: =표2[[#This Row],[월중 근속일수]] ->  | AF24: =IFERROR(표2[[#This Row],[사용연도입사자 근무기간(월)]]+ROUNDDOWN(표2[[#This Row],[열2]],0)+VLOOKUP((표2[[#This Row],[열2]]-ROUNDDOWN(표2[[#This Row],[열2]],0)),code!$A$4:$D$9,3,TRUE),0) -> 0 | AG24: 10 | AH24: 강태산 | AI24: 영업 | AK24: 2013-11-04 | AM24: =IF($AJ$1>license!$C$3,"",IF(H24=0,0,IF($AJ$1<H24,0,$AJ$1-H24+1))) -> 3345 | AN24: =IF($AJ$1>license!$C$3,"",IF(AM24=0,0,IF($H24=0,0,DATEDIF($H24-1,$AJ$1,"y")))) -> 9 | AO24: =IF($AJ$1>license!$C$3,"",IF(AM24=0,0,IF($H24=0,0,DATEDIF($H24-1,$AJ$1,"ym")))) -> 1 | AP24: =IF($AJ$1>license!$C$3,"",IF(AM24=0,0,IF($H24=0,0,DATEDIF($H24-1,$AJ$1,"md")))) -> 28 | AQ24: =IF($AJ$1>license!$C$3,"",IF(표2[[#This Row],[1년이상 근무일수]]="",0,$Z$12-표2[[#This Row],[기간]])) -> 15 | AR24: =IFERROR(IF(표2[[#This Row],[1년이상 근무일수]]="","",MIN(표2[[#This Row],[가산연차2]],$BD$12-표2[[#This Row],[기본]])),"") -> 4 | AS24: =SUM(표2[[#This Row],[1년미만자 당기 1년미만기간 연차수(11일 일할)]],표2[[#This Row],[사용연도 입사자]],표2[[#This Row],[1년미만자 1년째 후 연차일수(15일 일할)]]) -> 0 | AU24: =IF($AJ$1>license!$C$3,"",SUM(표2[[#This Row],[기본]:[일수]])) -> 19 | AV24: =IF($AJ$1>license!$C$3,"",SUMIFS(휴가입력!O:O,휴가입력!M:M,"연차",휴가입력!L:L,AH24)) -> 4 | AW24: =IFERROR(MAX(0,표2[[#This Row],[계]]-표2[[#This Row],[사용 일수]]),0) -> 15 | AX24: =IFERROR(MAX((표2[[#This Row],[계]]-표2[[#This Row],[사용 일수]])*-1,0),0) -> 0 | AY24: 2000000 | AZ24: =IF($AJ$1>license!$C$3,"",ROUNDUP(표2[[#This Row],[(월급)]]/209*8,0)) -> 76556 | BA24: =IF($AJ$1>license!$C$3,"",ROUNDUP(표2[[#This Row],[(일급)]]*표2[[#This Row],[미사용 일수]],0)) -> 1148340 | BC24: 0
A25: 1 | H25: =IF(표2[[#This Row],[*입사일]]=0,"",표2[[#This Row],[*입사일]]-$AJ$3) -> 2014-04-07 | I25: =IFERROR(IF(AO25="",0,IF(표2[[#This Row],[1년이상 근무일수]]=0,0,DATEDIF(표2[[#This Row],[1년이상 근무일수]]-1,$AJ$1,"y"))),0) -> 7 | J25: =IF(표2[[#This Row],[*기산일]]="","",IF(DATE(YEAR(표2[[#This Row],[*기산일]])+1,MONTH(표2[[#This Row],[*기산일]]),DAY(표2[[#This Row],[*기산일]]))>$AJ$1,"",DATE(YEAR(표2[[#This Row],[*기산일]])+1,MONTH(표2[[#This Row],[*기산일]]),DAY(표2[[#This Row],[*기산일]])))) -> 2015-04-07 | K25: =IF(ISODD(표2[[#This Row],[열1]])=TRUE,1,"") -> 1 | L25: =IF(표2[[#This Row],[가산일도래여부]]=1,DATE(YEAR($AJ$1)+1,MONTH($AJ$1),DAY($AJ$1))-DATE(YEAR($AJ$1)+1,MONTH(표2[[#This Row],[1년이상 근무일수]]),DAY(표2[[#This Row],[1년이상 근무일수]])),0) -> 268 | M25: =표2[[#This Row],[가산휴가 사용가능일]]/365 -> 0.7342465753 | N25: =VLOOKUP(표2[[#This Row],[총근무일수-366]],code!$A$5:$C$9,3) -> 1 | O25: =ROUNDDOWN(표2[[#This Row],[열1]]/2,0)+표2[[#This Row],[가산연차]] -> 4 | P25: =IF(표2[[#This Row],[*기산일]]="",0,IF(YEAR(표2[[#This Row],[*기산일]])+1=$AI$11,DATE(YEAR(표2[[#This Row],[*기산일]])+1,MONTH(표2[[#This Row],[*기산일]]),DAY(표2[[#This Row],[*기산일]])),"")) ->  | Q25: =IF(표2[[#This Row],[*기산일]]="",0,IF(표2[[#This Row],[전년도 입사자 1년째]]="","",$W$11-표2[[#This Row],[전년도 입사자 1년째]]+1)) ->  | R25: =IF(표2[[#This Row],[전년도 입사자 1년째]]="","",표2[[#This Row],[1년미만자 1년째 후 근속일수]]/365*$Z$12) ->  | S25: =IFERROR(MAX(0,SUM(MAX(0,ROUNDDOWN(표2[[#This Row],[1년미만자 2년째 후 근속일수]],0)+VLOOKUP((표2[[#This Row],[1년미만자 2년째 후 근속일수]]-ROUNDDOWN(표2[[#This Row],[1년미만자 2년째 후 근속일수]],0)),code!$A$4:$D$9,3,TRUE)),표2[[#This Row],[1년미만자 당기 1년미만기간 연차수(11일 일할)]],표2[[#This Row],[사용연도 입사자]])-$Z$12),0) -> 0 | T25: =IFERROR(MAX(0,ROUNDDOWN(표2[[#This Row],[1년미만자 2년째 후 근속일수]],0)+VLOOKUP((표2[[#This Row],[1년미만자 2년째 후 근속일수]]-ROUNDDOWN(표2[[#This Row],[1년미만자 2년째 후 근속일수]],0)),code!$A$4:$D$9,3,TRUE))-표2[[#This Row],[1년미만자 3년째 후 근속일수]],0) -> 0 | V25: =IF(표2[[#This Row],[*기산일]]="","",IF(YEAR(표2[[#This Row],[*기산일]])=$AI$11-1,DATE(YEAR(표2[[#This Row],[*기산일]]),MONTH(표2[[#This Row],[*기산일]])+1,DAY(표2[[#This Row],[*기산일]])),"")) ->  | W25: =IF(표2[[#This Row],[*기산일]]="",0,IF(표2[[#This Row],[1년미만자1개월째]]="","",MAX(0,DATEDIF(표2[[#This Row],[*기산일]],$W$12,"m")-1))) ->  | X25: =IF(표2[[#This Row],[*기산일]]="",0,IF(표2[[#This Row],[1년미만자1개월째]]="","",(DATE(YEAR(표2[[#This Row],[*기산일]]),MONTH(표2[[#This Row],[*기산일]])+1,0)-표2[[#This Row],[*기산일]]+1)/(DATE(YEAR(표2[[#This Row],[*기산일]]),MONTH(표2[[#This Row],[*기산일]])+1,0)-DATE(YEAR(표2[[#This Row],[*기산일]]),MONTH(표2[[#This Row],[*기산일]]),1)+1))) ->  | Y25: =IFERROR(ROUNDDOWN(표2[[#This Row],[1년미만자 전년 근속일수]]/365*$Z$11,0)+VLOOKUP(표2[[#This Row],[1년미만자 전기 연차수]]-ROUNDDOWN(표2[[#This Row],[1년미만자 전년 근속일수]]/365*$Z$11,0),code!$A$4:$D$9,3,TRUE),"") ->  | Z25: =IFERROR(표2[[#This Row],[1년미만자 전년 근속일수]]+ROUNDDOWN(표2[[#This Row],[1년미만자 전기 연차수]],0)+VLOOKUP((표2[[#This Row],[1년미만자 전기 연차수]]-ROUNDDOWN(표2[[#This Row],[1년미만자 전기 연차수]],0)),code!$A$4:$D$9,3,TRUE),0) -> 0 | AA25: =IF(표2[[#This Row],[1년미만자1개월째]]="","",$Z$11-표2[[#This Row],[2년미만자 전기 연차수(code반올림)]]) ->  | AB25: =IF(YEAR(표2[[#This Row],[*기산일]])=$AI$11,DATE(YEAR(표2[[#This Row],[*기산일]]),MONTH(표2[[#This Row],[*기산일]])+1,DAY(표2[[#This Row],[*기산일]])),"") ->  | AC25: =IF(표2[[#This Row],[사용연도 입사자 1개월]]="","",MAX(0,DATEDIF(표2[[#This Row],[*기산일]],$W$11,"m")-1)) ->  | AD25: =IF(표2[[#This Row],[사용연도 입사자 1개월]]="","",(DATE(YEAR(표2[[#This Row],[*기산일]]),MONTH(표2[[#This Row],[*기산일]])+1,0)-표2[[#This Row],[*기산일]]+1)/(DATE(YEAR(표2[[#This Row],[*기산일]]),MONTH(표2[[#This Row],[*기산일]])+1,0)-DATE(YEAR(표2[[#This Row],[*기산일]]),MONTH(표2[[#This Row],[*기산일]]),1)+1)) ->  | AE25: =표2[[#This Row],[월중 근속일수]] ->  | AF25: =IFERROR(표2[[#This Row],[사용연도입사자 근무기간(월)]]+ROUNDDOWN(표2[[#This Row],[열2]],0)+VLOOKUP((표2[[#This Row],[열2]]-ROUNDDOWN(표2[[#This Row],[열2]],0)),code!$A$4:$D$9,3,TRUE),0) -> 0 | AG25: 11 | AH25: 이용식 | AK25: 2014-04-07 | AM25: =IF($AJ$1>license!$C$3,"",IF(H25=0,0,IF($AJ$1<H25,0,$AJ$1-H25+1))) -> 3191 | AN25: =IF($AJ$1>license!$C$3,"",IF(AM25=0,0,IF($H25=0,0,DATEDIF($H25-1,$AJ$1,"y")))) -> 8 | AO25: =IF($AJ$1>license!$C$3,"",IF(AM25=0,0,IF($H25=0,0,DATEDIF($H25-1,$AJ$1,"ym")))) -> 8 | AP25: =IF($AJ$1>license!$C$3,"",IF(AM25=0,0,IF($H25=0,0,DATEDIF($H25-1,$AJ$1,"md")))) -> 25 | AQ25: =IF($AJ$1>license!$C$3,"",IF(표2[[#This Row],[1년이상 근무일수]]="",0,$Z$12-표2[[#This Row],[기간]])) -> 15 | AR25: =IFERROR(IF(표2[[#This Row],[1년이상 근무일수]]="","",MIN(표2[[#This Row],[가산연차2]],$BD$12-표2[[#This Row],[기본]])),"") -> 4 | AS25: =SUM(표2[[#This Row],[1년미만자 당기 1년미만기간 연차수(11일 일할)]],표2[[#This Row],[사용연도 입사자]],표2[[#This Row],[1년미만자 1년째 후 연차일수(15일 일할)]]) -> 0 | AU25: =IF($AJ$1>license!$C$3,"",SUM(표2[[#This Row],[기본]:[일수]])) -> 19 | AV25: =IF($AJ$1>license!$C$3,"",SUMIFS(휴가입력!O:O,휴가입력!M:M,"연차",휴가입력!L:L,AH25)) -> 6.5 | AW25: =IFERROR(MAX(0,표2[[#This Row],[계]]-표2[[#This Row],[사용 일수]]),0) -> 12.5 | AX25: =IFERROR(MAX((표2[[#This Row],[계]]-표2[[#This Row],[사용 일수]])*-1,0),0) -> 0 | AY25: 2000000 | AZ25: =IF($AJ$1>license!$C$3,"",ROUNDUP(표2[[#This Row],[(월급)]]/209*8,0)) -> 76556 | BA25: =IF($AJ$1>license!$C$3,"",ROUNDUP(표2[[#This Row],[(일급)]]*표2[[#This Row],[미사용 일수]],0)) -> 956950 | BC25: 0
A26: 1 | H26: =IF(표2[[#This Row],[*입사일]]=0,"",표2[[#This Row],[*입사일]]-$AJ$3) -> 2014-06-16 | I26: =IFERROR(IF(AO26="",0,IF(표2[[#This Row],[1년이상 근무일수]]=0,0,DATEDIF(표2[[#This Row],[1년이상 근무일수]]-1,$AJ$1,"y"))),0) -> 7 | J26: =IF(표2[[#This Row],[*기산일]]="","",IF(DATE(YEAR(표2[[#This Row],[*기산일]])+1,MONTH(표2[[#This Row],[*기산일]]),DAY(표2[[#This Row],[*기산일]]))>$AJ$1,"",DATE(YEAR(표2[[#This Row],[*기산일]])+1,MONTH(표2[[#This Row],[*기산일]]),DAY(표2[[#This Row],[*기산일]])))) -> 2015-06-16 | K26: =IF(ISODD(표2[[#This Row],[열1]])=TRUE,1,"") -> 1 | L26: =IF(표2[[#This Row],[가산일도래여부]]=1,DATE(YEAR($AJ$1)+1,MONTH($AJ$1),DAY($AJ$1))-DATE(YEAR($AJ$1)+1,MONTH(표2[[#This Row],[1년이상 근무일수]]),DAY(표2[[#This Row],[1년이상 근무일수]])),0) -> 198 | M26: =표2[[#This Row],[가산휴가 사용가능일]]/365 -> 0.5424657534 | N26: =VLOOKUP(표2[[#This Row],[총근무일수-366]],code!$A$5:$C$9,3) -> 0.5 | O26: =ROUNDDOWN(표2[[#This Row],[열1]]/2,0)+표2[[#This Row],[가산연차]] -> 3.5 | P26: =IF(표2[[#This Row],[*기산일]]="",0,IF(YEAR(표2[[#This Row],[*기산일]])+1=$AI$11,DATE(YEAR(표2[[#This Row],[*기산일]])+1,MONTH(표2[[#This Row],[*기산일]]),DAY(표2[[#This Row],[*기산일]])),"")) ->  | Q26: =IF(표2[[#This Row],[*기산일]]="",0,IF(표2[[#This Row],[전년도 입사자 1년째]]="","",$W$11-표2[[#This Row],[전년도 입사자 1년째]]+1)) ->  | R26: =IF(표2[[#This Row],[전년도 입사자 1년째]]="","",표2[[#This Row],[1년미만자 1년째 후 근속일수]]/365*$Z$12) ->  | S26: =IFERROR(MAX(0,SUM(MAX(0,ROUNDDOWN(표2[[#This Row],[1년미만자 2년째 후 근속일수]],0)+VLOOKUP((표2[[#This Row],[1년미만자 2년째 후 근속일수]]-ROUNDDOWN(표2[[#This Row],[1년미만자 2년째 후 근속일수]],0)),code!$A$4:$D$9,3,TRUE)),표2[[#This Row],[1년미만자 당기 1년미만기간 연차수(11일 일할)]],표2[[#This Row],[사용연도 입사자]])-$Z$12),0) -> 0 | T26: =IFERROR(MAX(0,ROUNDDOWN(표2[[#This Row],[1년미만자 2년째 후 근속일수]],0)+VLOOKUP((표2[[#This Row],[1년미만자 2년째 후 근속일수]]-ROUNDDOWN(표2[[#This Row],[1년미만자 2년째 후 근속일수]],0)),code!$A$4:$D$9,3,TRUE))-표2[[#This Row],[1년미만자 3년째 후 근속일수]],0) -> 0 | V26: =IF(표2[[#This Row],[*기산일]]="","",IF(YEAR(표2[[#This Row],[*기산일]])=$AI$11-1,DATE(YEAR(표2[[#This Row],[*기산일]]),MONTH(표2[[#This Row],[*기산일]])+1,DAY(표2[[#This Row],[*기산일]])),"")) ->  | W26: =IF(표2[[#This Row],[*기산일]]="",0,IF(표2[[#This Row],[1년미만자1개월째]]="","",MAX(0,DATEDIF(표2[[#This Row],[*기산일]],$W$12,"m")-1))) ->  | X26: =IF(표2[[#This Row],[*기산일]]="",0,IF(표2[[#This Row],[1년미만자1개월째]]="","",(DATE(YEAR(표2[[#This Row],[*기산일]]),MONTH(표2[[#This Row],[*기산일]])+1,0)-표2[[#This Row],[*기산일]]+1)/(DATE(YEAR(표2[[#This Row],[*기산일]]),MONTH(표2[[#This Row],[*기산일]])+1,0)-DATE(YEAR(표2[[#This Row],[*기산일]]),MONTH(표2[[#This Row],[*기산일]]),1)+1))) ->  | Y26: =IFERROR(ROUNDDOWN(표2[[#This Row],[1년미만자 전년 근속일수]]/365*$Z$11,0)+VLOOKUP(표2[[#This Row],[1년미만자 전기 연차수]]-ROUNDDOWN(표2[[#This Row],[1년미만자 전년 근속일수]]/365*$Z$11,0),code!$A$4:$D$9,3,TRUE),"") ->  | Z26: =IFERROR(표2[[#This Row],[1년미만자 전년 근속일수]]+ROUNDDOWN(표2[[#This Row],[1년미만자 전기 연차수]],0)+VLOOKUP((표2[[#This Row],[1년미만자 전기 연차수]]-ROUNDDOWN(표2[[#This Row],[1년미만자 전기 연차수]],0)),code!$A$4:$D$9,3,TRUE),0) -> 0 | AA26: =IF(표2[[#This Row],[1년미만자1개월째]]="","",$Z$11-표2[[#This Row],[2년미만자 전기 연차수(code반올림)]]) ->  | AB26: =IF(YEAR(표2[[#This Row],[*기산일]])=$AI$11,DATE(YEAR(표2[[#This Row],[*기산일]]),MONTH(표2[[#This Row],[*기산일]])+1,DAY(표2[[#This Row],[*기산일]])),"") ->  | AC26: =IF(표2[[#This Row],[사용연도 입사자 1개월]]="","",MAX(0,DATEDIF(표2[[#This Row],[*기산일]],$W$11,"m")-1)) ->  | AD26: =IF(표2[[#This Row],[사용연도 입사자 1개월]]="","",(DATE(YEAR(표2[[#This Row],[*기산일]]),MONTH(표2[[#This Row],[*기산일]])+1,0)-표2[[#This Row],[*기산일]]+1)/(DATE(YEAR(표2[[#This Row],[*기산일]]),MONTH(표2[[#This Row],[*기산일]])+1,0)-DATE(YEAR(표2[[#This Row],[*기산일]]),MONTH(표2[[#This Row],[*기산일]]),1)+1)) ->  | AE26: =표2[[#This Row],[월중 근속일수]] ->  | AF26: =IFERROR(표2[[#This Row],[사용연도입사자 근무기간(월)]]+ROUNDDOWN(표2[[#This Row],[열2]],0)+VLOOKUP((표2[[#This Row],[열2]]-ROUNDDOWN(표2[[#This Row],[열2]],0)),code!$A$4:$D$9,3,TRUE),0) -> 0 | AG26: 12 | AH26: 임창정 | AK26: 2014-06-16 | AM26: =IF($AJ$1>license!$C$3,"",IF(H26=0,0,IF($AJ$1<H26,0,$AJ$1-H26+1))) -> 3121 | AN26: =IF($AJ$1>license!$C$3,"",IF(AM26=0,0,IF($H26=0,0,DATEDIF($H26-1,$AJ$1,"y")))) -> 8 | AO26: =IF($AJ$1>license!$C$3,"",IF(AM26=0,0,IF($H26=0,0,DATEDIF($H26-1,$AJ$1,"ym")))) -> 6 | AP26: =IF($AJ$1>license!$C$3,"",IF(AM26=0,0,IF($H26=0,0,DATEDIF($H26-1,$AJ$1,"md")))) -> 16 | AQ26: =IF($AJ$1>license!$C$3,"",IF(표2[[#This Row],[1년이상 근무일수]]="",0,$Z$12-표2[[#This Row],[기간]])) -> 15 | AR26: =IFERROR(IF(표2[[#This Row],[1년이상 근무일수]]="","",MIN(표2[[#This Row],[가산연차2]],$BD$12-표2[[#This Row],[기본]])),"") -> 3.5 | AS26: =SUM(표2[[#This Row],[1년미만자 당기 1년미만기간 연차수(11일 일할)]],표2[[#This Row],[사용연도 입사자]],표2[[#This Row],[1년미만자 1년째 후 연차일수(15일 일할)]]) -> 0 | AU26: =IF($AJ$1>license!$C$3,"",SUM(표2[[#This Row],[기본]:[일수]])) -> 18.5 | AV26: =IF($AJ$1>license!$C$3,"",SUMIFS(휴가입력!O:O,휴가입력!M:M,"연차",휴가입력!L:L,AH26)) -> 21 | AW26: =IFERROR(MAX(0,표2[[#This Row],[계]]-표2[[#This Row],[사용 일수]]),0) -> 0 | AX26: =IFERROR(MAX((표2[[#This Row],[계]]-표2[[#This Row],[사용 일수]])*-1,0),0) -> 2.5 | AY26: 2000000 | AZ26: =IF($AJ$1>license!$C$3,"",ROUNDUP(표2[[#This Row],[(월급)]]/209*8,0)) -> 76556 | BA26: =IF($AJ$1>license!$C$3,"",ROUNDUP(표2[[#This Row],[(일급)]]*표2[[#This Row],[미사용 일수]],0)) -> 0 | BC26: 0
A27: 1 | H27: =IF(표2[[#This Row],[*입사일]]=0,"",표2[[#This Row],[*입사일]]-$AJ$3) -> 2014-12-15 | I27: =IFERROR(IF(AO27="",0,IF(표2[[#This Row],[1년이상 근무일수]]=0,0,DATEDIF(표2[[#This Row],[1년이상 근무일수]]-1,$AJ$1,"y"))),0) -> 7 | J27: =IF(표2[[#This Row],[*기산일]]="","",IF(DATE(YEAR(표2[[#This Row],[*기산일]])+1,MONTH(표2[[#This Row],[*기산일]]),DAY(표2[[#This Row],[*기산일]]))>$AJ$1,"",DATE(YEAR(표2[[#This Row],[*기산일]])+1,MONTH(표2[[#This Row],[*기산일]]),DAY(표2[[#This Row],[*기산일]])))) -> 2015-12-15 | K27: =IF(ISODD(표2[[#This Row],[열1]])=TRUE,1,"") -> 1 | L27: =IF(표2[[#This Row],[가산일도래여부]]=1,DATE(YEAR($AJ$1)+1,MONTH($AJ$1),DAY($AJ$1))-DATE(YEAR($AJ$1)+1,MONTH(표2[[#This Row],[1년이상 근무일수]]),DAY(표2[[#This Row],[1년이상 근무일수]])),0) -> 16 | M27: =표2[[#This Row],[가산휴가 사용가능일]]/365 -> 0.04383561644 | N27: =VLOOKUP(표2[[#This Row],[총근무일수-366]],code!$A$5:$C$9,3) -> 0 | O27: =ROUNDDOWN(표2[[#This Row],[열1]]/2,0)+표2[[#This Row],[가산연차]] -> 3 | P27: =IF(표2[[#This Row],[*기산일]]="",0,IF(YEAR(표2[[#This Row],[*기산일]])+1=$AI$11,DATE(YEAR(표2[[#This Row],[*기산일]])+1,MONTH(표2[[#This Row],[*기산일]]),DAY(표2[[#This Row],[*기산일]])),"")) ->  | Q27: =IF(표2[[#This Row],[*기산일]]="",0,IF(표2[[#This Row],[전년도 입사자 1년째]]="","",$W$11-표2[[#This Row],[전년도 입사자 1년째]]+1)) ->  | R27: =IF(표2[[#This Row],[전년도 입사자 1년째]]="","",표2[[#This Row],[1년미만자 1년째 후 근속일수]]/365*$Z$12) ->  | S27: =IFERROR(MAX(0,SUM(MAX(0,ROUNDDOWN(표2[[#This Row],[1년미만자 2년째 후 근속일수]],0)+VLOOKUP((표2[[#This Row],[1년미만자 2년째 후 근속일수]]-ROUNDDOWN(표2[[#This Row],[1년미만자 2년째 후 근속일수]],0)),code!$A$4:$D$9,3,TRUE)),표2[[#This Row],[1년미만자 당기 1년미만기간 연차수(11일 일할)]],표2[[#This Row],[사용연도 입사자]])-$Z$12),0) -> 0 | T27: =IFERROR(MAX(0,ROUNDDOWN(표2[[#This Row],[1년미만자 2년째 후 근속일수]],0)+VLOOKUP((표2[[#This Row],[1년미만자 2년째 후 근속일수]]-ROUNDDOWN(표2[[#This Row],[1년미만자 2년째 후 근속일수]],0)),code!$A$4:$D$9,3,TRUE))-표2[[#This Row],[1년미만자 3년째 후 근속일수]],0) -> 0 | V27: =IF(표2[[#This Row],[*기산일]]="","",IF(YEAR(표2[[#This Row],[*기산일]])=$AI$11-1,DATE(YEAR(표2[[#This Row],[*기산일]]),MONTH(표2[[#This Row],[*기산일]])+1,DAY(표2[[#This Row],[*기산일]])),"")) ->  | W27: =IF(표2[[#This Row],[*기산일]]="",0,IF(표2[[#This Row],[1년미만자1개월째]]="","",MAX(0,DATEDIF(표2[[#This Row],[*기산일]],$W$12,"m")-1))) ->  | X27: =IF(표2[[#This Row],[*기산일]]="",0,IF(표2[[#This Row],[1년미만자1개월째]]="","",(DATE(YEAR(표2[[#This Row],[*기산일]]),MONTH(표2[[#This Row],[*기산일]])+1,0)-표2[[#This Row],[*기산일]]+1)/(DATE(YEAR(표2[[#This Row],[*기산일]]),MONTH(표2[[#This Row],[*기산일]])+1,0)-DATE(YEAR(표2[[#This Row],[*기산일]]),MONTH(표2[[#This Row],[*기산일]]),1)+1))) ->  | Y27: =IFERROR(ROUNDDOWN(표2[[#This Row],[1년미만자 전년 근속일수]]/365*$Z$11,0)+VLOOKUP(표2[[#This Row],[1년미만자 전기 연차수]]-ROUNDDOWN(표2[[#This Row],[1년미만자 전년 근속일수]]/365*$Z$11,0),code!$A$4:$D$9,3,TRUE),"") ->  | Z27: =IFERROR(표2[[#This Row],[1년미만자 전년 근속일수]]+ROUNDDOWN(표2[[#This Row],[1년미만자 전기 연차수]],0)+VLOOKUP((표2[[#This Row],[1년미만자 전기 연차수]]-ROUNDDOWN(표2[[#This Row],[1년미만자 전기 연차수]],0)),code!$A$4:$D$9,3,TRUE),0) -> 0 | AA27: =IF(표2[[#This Row],[1년미만자1개월째]]="","",$Z$11-표2[[#This Row],[2년미만자 전기 연차수(code반올림)]]) ->  | AB27: =IF(YEAR(표2[[#This Row],[*기산일]])=$AI$11,DATE(YEAR(표2[[#This Row],[*기산일]]),MONTH(표2[[#This Row],[*기산일]])+1,DAY(표2[[#This Row],[*기산일]])),"") ->  | AC27: =IF(표2[[#This Row],[사용연도 입사자 1개월]]="","",MAX(0,DATEDIF(표2[[#This Row],[*기산일]],$W$11,"m")-1)) ->  | AD27: =IF(표2[[#This Row],[사용연도 입사자 1개월]]="","",(DATE(YEAR(표2[[#This Row],[*기산일]]),MONTH(표2[[#This Row],[*기산일]])+1,0)-표2[[#This Row],[*기산일]]+1)/(DATE(YEAR(표2[[#This Row],[*기산일]]),MONTH(표2[[#This Row],[*기산일]])+1,0)-DATE(YEAR(표2[[#This Row],[*기산일]]),MONTH(표2[[#This Row],[*기산일]]),1)+1)) ->  | AE27: =표2[[#This Row],[월중 근속일수]] ->  | AF27: =IFERROR(표2[[#This Row],[사용연도입사자 근무기간(월)]]+ROUNDDOWN(표2[[#This Row],[열2]],0)+VLOOKUP((표2[[#This Row],[열2]]-ROUNDDOWN(표2[[#This Row],[열2]],0)),code!$A$4:$D$9,3,TRUE),0) -> 0 | AG27: 13 | AH27: 임수정 | AK27: 2014-12-15 | AM27: =IF($AJ$1>license!$C$3,"",IF(H27=0,0,IF($AJ$1<H27,0,$AJ$1-H27+1))) -> 2939 | AN27: =IF($AJ$1>license!$C$3,"",IF(AM27=0,0,IF($H27=0,0,DATEDIF($H27-1,$AJ$1,"y")))) -> 8 | AO27: =IF($AJ$1>license!$C$3,"",IF(AM27=0,0,IF($H27=0,0,DATEDIF($H27-1,$AJ$1,"ym")))) -> 0 | AP27: =IF($AJ$1>license!$C$3,"",IF(AM27=0,0,IF($H27=0,0,DATEDIF($H27-1,$AJ$1,"md")))) -> 17 | AQ27: =IF($AJ$1>license!$C$3,"",IF(표2[[#This Row],[1년이상 근무일수]]="",0,$Z$12-표2[[#This Row],[기간]])) -> 15 | AR27: =IFERROR(IF(표2[[#This Row],[1년이상 근무일수]]="","",MIN(표2[[#This Row],[가산연차2]],$BD$12-표2[[#This Row],[기본]])),"") -> 3 | AS27: =SUM(표2[[#This Row],[1년미만자 당기 1년미만기간 연차수(11일 일할)]],표2[[#This Row],[사용연도 입사자]],표2[[#This Row],[1년미만자 1년째 후 연차일수(15일 일할)]]) -> 0 | AU27: =IF($AJ$1>license!$C$3,"",SUM(표2[[#This Row],[기본]:[일수]])) -> 18 | AV27: =IF($AJ$1>license!$C$3,"",SUMIFS(휴가입력!O:O,휴가입력!M:M,"연차",휴가입력!L:L,AH27)) -> 14 | AW27: =IFERROR(MAX(0,표2[[#This Row],[계]]-표2[[#This Row],[사용 일수]]),0) -> 4 | AX27: =IFERROR(MAX((표2[[#This Row],[계]]-표2[[#This Row],[사용 일수]])*-1,0),0) -> 0 | AY27: 2000000 | AZ27: =IF($AJ$1>license!$C$3,"",ROUNDUP(표2[[#This Row],[(월급)]]/209*8,0)) -> 76556 | BA27: =IF($AJ$1>license!$C$3,"",ROUNDUP(표2[[#This Row],[(일급)]]*표2[[#This Row],[미사용 일수]],0)) -> 306224 | BC27: 0
A28: 1 | H28: =IF(표2[[#This Row],[*입사일]]=0,"",표2[[#This Row],[*입사일]]-$AJ$3) -> 2015-01-19 | I28: =IFERROR(IF(AO28="",0,IF(표2[[#This Row],[1년이상 근무일수]]=0,0,DATEDIF(표2[[#This Row],[1년이상 근무일수]]-1,$AJ$1,"y"))),0) -> 6 | J28: =IF(표2[[#This Row],[*기산일]]="","",IF(DATE(YEAR(표2[[#This Row],[*기산일]])+1,MONTH(표2[[#This Row],[*기산일]]),DAY(표2[[#This Row],[*기산일]]))>$AJ$1,"",DATE(YEAR(표2[[#This Row],[*기산일]])+1,MONTH(표2[[#This Row],[*기산일]]),DAY(표2[[#This Row],[*기산일]])))) -> 2016-01-19 | K28: =IF(ISODD(표2[[#This Row],[열1]])=TRUE,1,"") ->  | L28: =IF(표2[[#This Row],[가산일도래여부]]=1,DATE(YEAR($AJ$1)+1,MONTH($AJ$1),DAY($AJ$1))-DATE(YEAR($AJ$1)+1,MONTH(표2[[#This Row],[1년이상 근무일수]]),DAY(표2[[#This Row],[1년이상 근무일수]])),0) -> 0 | M28: =표2[[#This Row],[가산휴가 사용가능일]]/365 -> 0 | N28: =VLOOKUP(표2[[#This Row],[총근무일수-366]],code!$A$5:$C$9,3) -> 0 | O28: =ROUNDDOWN(표2[[#This Row],[열1]]/2,0)+표2[[#This Row],[가산연차]] -> 3 | P28: =IF(표2[[#This Row],[*기산일]]="",0,IF(YEAR(표2[[#This Row],[*기산일]])+1=$AI$11,DATE(YEAR(표2[[#This Row],[*기산일]])+1,MONTH(표2[[#This Row],[*기산일]]),DAY(표2[[#This Row],[*기산일]])),"")) ->  | Q28: =IF(표2[[#This Row],[*기산일]]="",0,IF(표2[[#This Row],[전년도 입사자 1년째]]="","",$W$11-표2[[#This Row],[전년도 입사자 1년째]]+1)) ->  | R28: =IF(표2[[#This Row],[전년도 입사자 1년째]]="","",표2[[#This Row],[1년미만자 1년째 후 근속일수]]/365*$Z$12) ->  | S28: =IFERROR(MAX(0,SUM(MAX(0,ROUNDDOWN(표2[[#This Row],[1년미만자 2년째 후 근속일수]],0)+VLOOKUP((표2[[#This Row],[1년미만자 2년째 후 근속일수]]-ROUNDDOWN(표2[[#This Row],[1년미만자 2년째 후 근속일수]],0)),code!$A$4:$D$9,3,TRUE)),표2[[#This Row],[1년미만자 당기 1년미만기간 연차수(11일 일할)]],표2[[#This Row],[사용연도 입사자]])-$Z$12),0) -> 0 | T28: =IFERROR(MAX(0,ROUNDDOWN(표2[[#This Row],[1년미만자 2년째 후 근속일수]],0)+VLOOKUP((표2[[#This Row],[1년미만자 2년째 후 근속일수]]-ROUNDDOWN(표2[[#This Row],[1년미만자 2년째 후 근속일수]],0)),code!$A$4:$D$9,3,TRUE))-표2[[#This Row],[1년미만자 3년째 후 근속일수]],0) -> 0 | V28: =IF(표2[[#This Row],[*기산일]]="","",IF(YEAR(표2[[#This Row],[*기산일]])=$AI$11-1,DATE(YEAR(표2[[#This Row],[*기산일]]),MONTH(표2[[#This Row],[*기산일]])+1,DAY(표2[[#This Row],[*기산일]])),"")) ->  | W28: =IF(표2[[#This Row],[*기산일]]="",0,IF(표2[[#This Row],[1년미만자1개월째]]="","",MAX(0,DATEDIF(표2[[#This Row],[*기산일]],$W$12,"m")-1))) ->  | X28: =IF(표2[[#This Row],[*기산일]]="",0,IF(표2[[#This Row],[1년미만자1개월째]]="","",(DATE(YEAR(표2[[#This Row],[*기산일]]),MONTH(표2[[#This Row],[*기산일]])+1,0)-표2[[#This Row],[*기산일]]+1)/(DATE(YEAR(표2[[#This Row],[*기산일]]),MONTH(표2[[#This Row],[*기산일]])+1,0)-DATE(YEAR(표2[[#This Row],[*기산일]]),MONTH(표2[[#This Row],[*기산일]]),1)+1))) ->  | Y28: =IFERROR(ROUNDDOWN(표2[[#This Row],[1년미만자 전년 근속일수]]/365*$Z$11,0)+VLOOKUP(표2[[#This Row],[1년미만자 전기 연차수]]-ROUNDDOWN(표2[[#This Row],[1년미만자 전년 근속일수]]/365*$Z$11,0),code!$A$4:$D$9,3,TRUE),"") ->  | Z28: =IFERROR(표2[[#This Row],[1년미만자 전년 근속일수]]+ROUNDDOWN(표2[[#This Row],[1년미만자 전기 연차수]],0)+VLOOKUP((표2[[#This Row],[1년미만자 전기 연차수]]-ROUNDDOWN(표2[[#This Row],[1년미만자 전기 연차수]],0)),code!$A$4:$D$9,3,TRUE),0) -> 0 | AA28: =IF(표2[[#This Row],[1년미만자1개월째]]="","",$Z$11-표2[[#This Row],[2년미만자 전기 연차수(code반올림)]]) ->  | AB28: =IF(YEAR(표2[[#This Row],[*기산일]])=$AI$11,DATE(YEAR(표2[[#This Row],[*기산일]]),MONTH(표2[[#This Row],[*기산일]])+1,DAY(표2[[#This Row],[*기산일]])),"") ->  | AC28: =IF(표2[[#This Row],[사용연도 입사자 1개월]]="","",MAX(0,DATEDIF(표2[[#This Row],[*기산일]],$W$11,"m")-1)) ->  | AD28: =IF(표2[[#This Row],[사용연도 입사자 1개월]]="","",(DATE(YEAR(표2[[#This Row],[*기산일]]),MONTH(표2[[#This Row],[*기산일]])+1,0)-표2[[#This Row],[*기산일]]+1)/(DATE(YEAR(표2[[#This Row],[*기산일]]),MONTH(표2[[#This Row],[*기산일]])+1,0)-DATE(YEAR(표2[[#This Row],[*기산일]]),MONTH(표2[[#This Row],[*기산일]]),1)+1)) ->  | AE28: =표2[[#This Row],[월중 근속일수]] ->  | AF28: =IFERROR(표2[[#This Row],[사용연도입사자 근무기간(월)]]+ROUNDDOWN(표2[[#This Row],[열2]],0)+VLOOKUP((표2[[#This Row],[열2]]-ROUNDDOWN(표2[[#This Row],[열2]],0)),code!$A$4:$D$9,3,TRUE),0) -> 0 | AG28: 14 | AH28: 장두삼 | AK28: 2015-01-19 | AM28: =IF($AJ$1>license!$C$3,"",IF(H28=0,0,IF($AJ$1<H28,0,$AJ$1-H28+1))) -> 2904 | AN28: =IF($AJ$1>license!$C$3,"",IF(AM28=0,0,IF($H28=0,0,DATEDIF($H28-1,$AJ$1,"y")))) -> 7 | AO28: =IF($AJ$1>license!$C$3,"",IF(AM28=0,0,IF($H28=0,0,DATEDIF($H28-1,$AJ$1,"ym")))) -> 11 | AP28: =IF($AJ$1>license!$C$3,"",IF(AM28=0,0,IF($H28=0,0,DATEDIF($H28-1,$AJ$1,"md")))) -> 13 | AQ28: =IF($AJ$1>license!$C$3,"",IF(표2[[#This Row],[1년이상 근무일수]]="",0,$Z$12-표2[[#This Row],[기간]])) -> 15 | AR28: =IFERROR(IF(표2[[#This Row],[1년이상 근무일수]]="","",MIN(표2[[#This Row],[가산연차2]],$BD$12-표2[[#This Row],[기본]])),"") -> 3 | AS28: =SUM(표2[[#This Row],[1년미만자 당기 1년미만기간 연차수(11일 일할)]],표2[[#This Row],[사용연도 입사자]],표2[[#This Row],[1년미만자 1년째 후 연차일수(15일 일할)]]) -> 0 | AU28: =IF($AJ$1>license!$C$3,"",SUM(표2[[#This Row],[기본]:[일수]])) -> 18 | AV28: =IF($AJ$1>license!$C$3,"",SUMIFS(휴가입력!O:O,휴가입력!M:M,"연차",휴가입력!L:L,AH28)) -> 7.5 | AW28: =IFERROR(MAX(0,표2[[#This Row],[계]]-표2[[#This Row],[사용 일수]]),0) -> 10.5 | AX28: =IFERROR(MAX((표2[[#This Row],[계]]-표2[[#This Row],[사용 일수]])*-1,0),0) -> 0 | AY28: 6000000 | AZ28: =IF($AJ$1>license!$C$3,"",ROUNDUP(표2[[#This Row],[(월급)]]/209*8,0)) -> 229666 | BA28: =IF($AJ$1>license!$C$3,"",ROUNDUP(표2[[#This Row],[(일급)]]*표2[[#This Row],[미사용 일수]],0)) -> 2411493 | BC28: 0
A29: 1 | H29: =IF(표2[[#This Row],[*입사일]]=0,"",표2[[#This Row],[*입사일]]-$AJ$3) -> 2015-07-02 | I29: =IFERROR(IF(AO29="",0,IF(표2[[#This Row],[1년이상 근무일수]]=0,0,DATEDIF(표2[[#This Row],[1년이상 근무일수]]-1,$AJ$1,"y"))),0) -> 6 | J29: =IF(표2[[#This Row],[*기산일]]="","",IF(DATE(YEAR(표2[[#This Row],[*기산일]])+1,MONTH(표2[[#This Row],[*기산일]]),DAY(표2[[#This Row],[*기산일]]))>$AJ$1,"",DATE(YEAR(표2[[#This Row],[*기산일]])+1,MONTH(표2[[#This Row],[*기산일]]),DAY(표2[[#This Row],[*기산일]])))) -> 2016-07-02 | K29: =IF(ISODD(표2[[#This Row],[열1]])=TRUE,1,"") ->  | L29: =IF(표2[[#This Row],[가산일도래여부]]=1,DATE(YEAR($AJ$1)+1,MONTH($AJ$1),DAY($AJ$1))-DATE(YEAR($AJ$1)+1,MONTH(표2[[#This Row],[1년이상 근무일수]]),DAY(표2[[#This Row],[1년이상 근무일수]])),0) -> 0 | M29: =표2[[#This Row],[가산휴가 사용가능일]]/365 -> 0 | N29: =VLOOKUP(표2[[#This Row],[총근무일수-366]],code!$A$5:$C$9,3) -> 0 | O29: =ROUNDDOWN(표2[[#This Row],[열1]]/2,0)+표2[[#This Row],[가산연차]] -> 3 | P29: =IF(표2[[#This Row],[*기산일]]="",0,IF(YEAR(표2[[#This Row],[*기산일]])+1=$AI$11,DATE(YEAR(표2[[#This Row],[*기산일]])+1,MONTH(표2[[#This Row],[*기산일]]),DAY(표2[[#This Row],[*기산일]])),"")) ->  | Q29: =IF(표2[[#This Row],[*기산일]]="",0,IF(표2[[#This Row],[전년도 입사자 1년째]]="","",$W$11-표2[[#This Row],[전년도 입사자 1년째]]+1)) ->  | R29: =IF(표2[[#This Row],[전년도 입사자 1년째]]="","",표2[[#This Row],[1년미만자 1년째 후 근속일수]]/365*$Z$12) ->  | S29: =IFERROR(MAX(0,SUM(MAX(0,ROUNDDOWN(표2[[#This Row],[1년미만자 2년째 후 근속일수]],0)+VLOOKUP((표2[[#This Row],[1년미만자 2년째 후 근속일수]]-ROUNDDOWN(표2[[#This Row],[1년미만자 2년째 후 근속일수]],0)),code!$A$4:$D$9,3,TRUE)),표2[[#This Row],[1년미만자 당기 1년미만기간 연차수(11일 일할)]],표2[[#This Row],[사용연도 입사자]])-$Z$12),0) -> 0 | T29: =IFERROR(MAX(0,ROUNDDOWN(표2[[#This Row],[1년미만자 2년째 후 근속일수]],0)+VLOOKUP((표2[[#This Row],[1년미만자 2년째 후 근속일수]]-ROUNDDOWN(표2[[#This Row],[1년미만자 2년째 후 근속일수]],0)),code!$A$4:$D$9,3,TRUE))-표2[[#This Row],[1년미만자 3년째 후 근속일수]],0) -> 0 | V29: =IF(표2[[#This Row],[*기산일]]="","",IF(YEAR(표2[[#This Row],[*기산일]])=$AI$11-1,DATE(YEAR(표2[[#This Row],[*기산일]]),MONTH(표2[[#This Row],[*기산일]])+1,DAY(표2[[#This Row],[*기산일]])),"")) ->  | W29: =IF(표2[[#This Row],[*기산일]]="",0,IF(표2[[#This Row],[1년미만자1개월째]]="","",MAX(0,DATEDIF(표2[[#This Row],[*기산일]],$W$12,"m")-1))) ->  | X29: =IF(표2[[#This Row],[*기산일]]="",0,IF(표2[[#This Row],[1년미만자1개월째]]="","",(DATE(YEAR(표2[[#This Row],[*기산일]]),MONTH(표2[[#This Row],[*기산일]])+1,0)-표2[[#This Row],[*기산일]]+1)/(DATE(YEAR(표2[[#This Row],[*기산일]]),MONTH(표2[[#This Row],[*기산일]])+1,0)-DATE(YEAR(표2[[#This Row],[*기산일]]),MONTH(표2[[#This Row],[*기산일]]),1)+1))) ->  | Y29: =IFERROR(ROUNDDOWN(표2[[#This Row],[1년미만자 전년 근속일수]]/365*$Z$11,0)+VLOOKUP(표2[[#This Row],[1년미만자 전기 연차수]]-ROUNDDOWN(표2[[#This Row],[1년미만자 전년 근속일수]]/365*$Z$11,0),code!$A$4:$D$9,3,TRUE),"") ->  | Z29: =IFERROR(표2[[#This Row],[1년미만자 전년 근속일수]]+ROUNDDOWN(표2[[#This Row],[1년미만자 전기 연차수]],0)+VLOOKUP((표2[[#This Row],[1년미만자 전기 연차수]]-ROUNDDOWN(표2[[#This Row],[1년미만자 전기 연차수]],0)),code!$A$4:$D$9,3,TRUE),0) -> 0 | AA29: =IF(표2[[#This Row],[1년미만자1개월째]]="","",$Z$11-표2[[#This Row],[2년미만자 전기 연차수(code반올림)]]) ->  | AB29: =IF(YEAR(표2[[#This Row],[*기산일]])=$AI$11,DATE(YEAR(표2[[#This Row],[*기산일]]),MONTH(표2[[#This Row],[*기산일]])+1,DAY(표2[[#This Row],[*기산일]])),"") ->  | AC29: =IF(표2[[#This Row],[사용연도 입사자 1개월]]="","",MAX(0,DATEDIF(표2[[#This Row],[*기산일]],$W$11,"m")-1)) ->  | AD29: =IF(표2[[#This Row],[사용연도 입사자 1개월]]="","",(DATE(YEAR(표2[[#This Row],[*기산일]]),MONTH(표2[[#This Row],[*기산일]])+1,0)-표2[[#This Row],[*기산일]]+1)/(DATE(YEAR(표2[[#This Row],[*기산일]]),MONTH(표2[[#This Row],[*기산일]])+1,0)-DATE(YEAR(표2[[#This Row],[*기산일]]),MONTH(표2[[#This Row],[*기산일]]),1)+1)) ->  | AE29: =표2[[#This Row],[월중 근속일수]] ->  | AF29: =IFERROR(표2[[#This Row],[사용연도입사자 근무기간(월)]]+ROUNDDOWN(표2[[#This Row],[열2]],0)+VLOOKUP((표2[[#This Row],[열2]]-ROUNDDOWN(표2[[#This Row],[열2]],0)),code!$A$4:$D$9,3,TRUE),0) -> 0 | AG29: 15 | AH29: 김용종 | AK29: 2015-07-02 | AM29: =IF($AJ$1>license!$C$3,"",IF(H29=0,0,IF($AJ$1<H29,0,$AJ$1-H29+1))) -> 2740 | AN29: =IF($AJ$1>license!$C$3,"",IF(AM29=0,0,IF($H29=0,0,DATEDIF($H29-1,$AJ$1,"y")))) -> 7 | AO29: =IF($AJ$1>license!$C$3,"",IF(AM29=0,0,IF($H29=0,0,DATEDIF($H29-1,$AJ$1,"ym")))) -> 5 | AP29: =IF($AJ$1>license!$C$3,"",IF(AM29=0,0,IF($H29=0,0,DATEDIF($H29-1,$AJ$1,"md")))) -> 30 | AQ29: =IF($AJ$1>license!$C$3,"",IF(표2[[#This Row],[1년이상 근무일수]]="",0,$Z$12-표2[[#This Row],[기간]])) -> 15 | AR29: =IFERROR(IF(표2[[#This Row],[1년이상 근무일수]]="","",MIN(표2[[#This Row],[가산연차2]],$BD$12-표2[[#This Row],[기본]])),"") -> 3 | AS29: =SUM(표2[[#This Row],[1년미만자 당기 1년미만기간 연차수(11일 일할)]],표2[[#This Row],[사용연도 입사자]],표2[[#This Row],[1년미만자 1년째 후 연차일수(15일 일할)]]) -> 0 | AU29: =IF($AJ$1>license!$C$3,"",SUM(표2[[#This Row],[기본]:[일수]])) -> 18 | AV29: =IF($AJ$1>license!$C$3,"",SUMIFS(휴가입력!O:O,휴가입력!M:M,"연차",휴가입력!L:L,AH29)) -> 1.5 | AW29: =IFERROR(MAX(0,표2[[#This Row],[계]]-표2[[#This Row],[사용 일수]]),0) -> 16.5 | AX29: =IFERROR(MAX((표2[[#This Row],[계]]-표2[[#This Row],[사용 일수]])*-1,0),0) -> 0 | AY29: 3500000 | AZ29: =IF($AJ$1>license!$C$3,"",ROUNDUP(표2[[#This Row],[(월급)]]/209*8,0)) -> 133972 | BA29: =IF($AJ$1>license!$C$3,"",ROUNDUP(표2[[#This Row],[(일급)]]*표2[[#This Row],[미사용 일수]],0)) -> 2210538 | BC29: 0
A30: 1 | H30: =IF(표2[[#This Row],[*입사일]]=0,"",표2[[#This Row],[*입사일]]-$AJ$3) -> 2016-11-10 | I30: =IFERROR(IF(AO30="",0,IF(표2[[#This Row],[1년이상 근무일수]]=0,0,DATEDIF(표2[[#This Row],[1년이상 근무일수]]-1,$AJ$1,"y"))),0) -> 5 | J30: =IF(표2[[#This Row],[*기산일]]="","",IF(DATE(YEAR(표2[[#This Row],[*기산일]])+1,MONTH(표2[[#This Row],[*기산일]]),DAY(표2[[#This Row],[*기산일]]))>$AJ$1,"",DATE(YEAR(표2[[#This Row],[*기산일]])+1,MONTH(표2[[#This Row],[*기산일]]),DAY(표2[[#This Row],[*기산일]])))) -> 2017-11-10 | K30: =IF(ISODD(표2[[#This Row],[열1]])=TRUE,1,"") -> 1 | L30: =IF(표2[[#This Row],[가산일도래여부]]=1,DATE(YEAR($AJ$1)+1,MONTH($AJ$1),DAY($AJ$1))-DATE(YEAR($AJ$1)+1,MONTH(표2[[#This Row],[1년이상 근무일수]]),DAY(표2[[#This Row],[1년이상 근무일수]])),0) -> 51 | M30: =표2[[#This Row],[가산휴가 사용가능일]]/365 -> 0.1397260274 | N30: =VLOOKUP(표2[[#This Row],[총근무일수-366]],code!$A$5:$C$9,3) -> 0.5 | O30: =ROUNDDOWN(표2[[#This Row],[열1]]/2,0)+표2[[#This Row],[가산연차]] -> 2.5 | P30: =IF(표2[[#This Row],[*기산일]]="",0,IF(YEAR(표2[[#This Row],[*기산일]])+1=$AI$11,DATE(YEAR(표2[[#This Row],[*기산일]])+1,MONTH(표2[[#This Row],[*기산일]]),DAY(표2[[#This Row],[*기산일]])),"")) ->  | Q30: =IF(표2[[#This Row],[*기산일]]="",0,IF(표2[[#This Row],[전년도 입사자 1년째]]="","",$W$11-표2[[#This Row],[전년도 입사자 1년째]]+1)) ->  | R30: =IF(표2[[#This Row],[전년도 입사자 1년째]]="","",표2[[#This Row],[1년미만자 1년째 후 근속일수]]/365*$Z$12) ->  | S30: =IFERROR(MAX(0,SUM(MAX(0,ROUNDDOWN(표2[[#This Row],[1년미만자 2년째 후 근속일수]],0)+VLOOKUP((표2[[#This Row],[1년미만자 2년째 후 근속일수]]-ROUNDDOWN(표2[[#This Row],[1년미만자 2년째 후 근속일수]],0)),code!$A$4:$D$9,3,TRUE)),표2[[#This Row],[1년미만자 당기 1년미만기간 연차수(11일 일할)]],표2[[#This Row],[사용연도 입사자]])-$Z$12),0) -> 0 | T30: =IFERROR(MAX(0,ROUNDDOWN(표2[[#This Row],[1년미만자 2년째 후 근속일수]],0)+VLOOKUP((표2[[#This Row],[1년미만자 2년째 후 근속일수]]-ROUNDDOWN(표2[[#This Row],[1년미만자 2년째 후 근속일수]],0)),code!$A$4:$D$9,3,TRUE))-표2[[#This Row],[1년미만자 3년째 후 근속일수]],0) -> 0 | V30: =IF(표2[[#This Row],[*기산일]]="","",IF(YEAR(표2[[#This Row],[*기산일]])=$AI$11-1,DATE(YEAR(표2[[#This Row],[*기산일]]),MONTH(표2[[#This Row],[*기산일]])+1,DAY(표2[[#This Row],[*기산일]])),"")) ->  | W30: =IF(표2[[#This Row],[*기산일]]="",0,IF(표2[[#This Row],[1년미만자1개월째]]="","",MAX(0,DATEDIF(표2[[#This Row],[*기산일]],$W$12,"m")-1))) ->  | X30: =IF(표2[[#This Row],[*기산일]]="",0,IF(표2[[#This Row],[1년미만자1개월째]]="","",(DATE(YEAR(표2[[#This Row],[*기산일]]),MONTH(표2[[#This Row],[*기산일]])+1,0)-표2[[#This Row],[*기산일]]+1)/(DATE(YEAR(표2[[#This Row],[*기산일]]),MONTH(표2[[#This Row],[*기산일]])+1,0)-DATE(YEAR(표2[[#This Row],[*기산일]]),MONTH(표2[[#This Row],[*기산일]]),1)+1))) ->  | Y30: =IFERROR(ROUNDDOWN(표2[[#This Row],[1년미만자 전년 근속일수]]/365*$Z$11,0)+VLOOKUP(표2[[#This Row],[1년미만자 전기 연차수]]-ROUNDDOWN(표2[[#This Row],[1년미만자 전년 근속일수]]/365*$Z$11,0),code!$A$4:$D$9,3,TRUE),"") ->  | Z30: =IFERROR(표2[[#This Row],[1년미만자 전년 근속일수]]+ROUNDDOWN(표2[[#This Row],[1년미만자 전기 연차수]],0)+VLOOKUP((표2[[#This Row],[1년미만자 전기 연차수]]-ROUNDDOWN(표2[[#This Row],[1년미만자 전기 연차수]],0)),code!$A$4:$D$9,3,TRUE),0) -> 0 | AA30: =IF(표2[[#This Row],[1년미만자1개월째]]="","",$Z$11-표2[[#This Row],[2년미만자 전기 연차수(code반올림)]]) ->  | AB30: =IF(YEAR(표2[[#This Row],[*기산일]])=$AI$11,DATE(YEAR(표2[[#This Row],[*기산일]]),MONTH(표2[[#This Row],[*기산일]])+1,DAY(표2[[#This Row],[*기산일]])),"") ->  | AC30: =IF(표2[[#This Row],[사용연도 입사자 1개월]]="","",MAX(0,DATEDIF(표2[[#This Row],[*기산일]],$W$11,"m")-1)) ->  | AD30: =IF(표2[[#This Row],[사용연도 입사자 1개월]]="","",(DATE(YEAR(표2[[#This Row],[*기산일]]),MONTH(표2[[#This Row],[*기산일]])+1,0)-표2[[#This Row],[*기산일]]+1)/(DATE(YEAR(표2[[#This Row],[*기산일]]),MONTH(표2[[#This Row],[*기산일]])+1,0)-DATE(YEAR(표2[[#This Row],[*기산일]]),MONTH(표2[[#This Row],[*기산일]]),1)+1)) ->  | AE30: =표2[[#This Row],[월중 근속일수]] ->  | AF30: =IFERROR(표2[[#This Row],[사용연도입사자 근무기간(월)]]+ROUNDDOWN(표2[[#This Row],[열2]],0)+VLOOKUP((표2[[#This Row],[열2]]-ROUNDDOWN(표2[[#This Row],[열2]],0)),code!$A$4:$D$9,3,TRUE),0) -> 0 | AG30: 16 | AH30: 최고수 | AK30: 2016-11-10 | AM30: =IF($AJ$1>license!$C$3,"",IF(H30=0,0,IF($AJ$1<H30,0,$AJ$1-H30+1))) -> 2243 | AN30: =IF($AJ$1>license!$C$3,"",IF(AM30=0,0,IF($H30=0,0,DATEDIF($H30-1,$AJ$1,"y")))) -> 6 | AO30: =IF($AJ$1>license!$C$3,"",IF(AM30=0,0,IF($H30=0,0,DATEDIF($H30-1,$AJ$1,"ym")))) -> 1 | AP30: =IF($AJ$1>license!$C$3,"",IF(AM30=0,0,IF($H30=0,0,DATEDIF($H30-1,$AJ$1,"md")))) -> 22 | AQ30: =IF($AJ$1>license!$C$3,"",IF(표2[[#This Row],[1년이상 근무일수]]="",0,$Z$12-표2[[#This Row],[기간]])) -> 15 | AR30: =IFERROR(IF(표2[[#This Row],[1년이상 근무일수]]="","",MIN(표2[[#This Row],[가산연차2]],$BD$12-표2[[#This Row],[기본]])),"") -> 2.5 | AS30: =SUM(표2[[#This Row],[1년미만자 당기 1년미만기간 연차수(11일 일할)]],표2[[#This Row],[사용연도 입사자]],표2[[#This Row],[1년미만자 1년째 후 연차일수(15일 일할)]]) -> 0 | AU30: =IF($AJ$1>license!$C$3,"",SUM(표2[[#This Row],[기본]:[일수]])) -> 17.5 | AV30: =IF($AJ$1>license!$C$3,"",SUMIFS(휴가입력!O:O,휴가입력!M:M,"연차",휴가입력!L:L,AH30)) -> 6.5 | AW30: =IFERROR(MAX(0,표2[[#This Row],[계]]-표2[[#This Row],[사용 일수]]),0) -> 11 | AX30: =IFERROR(MAX((표2[[#This Row],[계]]-표2[[#This Row],[사용 일수]])*-1,0),0) -> 0 | AY30: 1000000 | AZ30: =IF($AJ$1>license!$C$3,"",ROUNDUP(표2[[#This Row],[(월급)]]/209*8,0)) -> 38278 | BA30: =IF($AJ$1>license!$C$3,"",ROUNDUP(표2[[#This Row],[(일급)]]*표2[[#This Row],[미사용 일수]],0)) -> 421058 | BC30: 0
A31: 1 | H31: =IF(표2[[#This Row],[*입사일]]=0,"",표2[[#This Row],[*입사일]]-$AJ$3) -> 2017-01-17 | I31: =IFERROR(IF(AO31="",0,IF(표2[[#This Row],[1년이상 근무일수]]=0,0,DATEDIF(표2[[#This Row],[1년이상 근무일수]]-1,$AJ$1,"y"))),0) -> 4 | J31: =IF(표2[[#This Row],[*기산일]]="","",IF(DATE(YEAR(표2[[#This Row],[*기산일]])+1,MONTH(표2[[#This Row],[*기산일]]),DAY(표2[[#This Row],[*기산일]]))>$AJ$1,"",DATE(YEAR(표2[[#This Row],[*기산일]])+1,MONTH(표2[[#This Row],[*기산일]]),DAY(표2[[#This Row],[*기산일]])))) -> 2018-01-17 | K31: =IF(ISODD(표2[[#This Row],[열1]])=TRUE,1,"") ->  | L31: =IF(표2[[#This Row],[가산일도래여부]]=1,DATE(YEAR($AJ$1)+1,MONTH($AJ$1),DAY($AJ$1))-DATE(YEAR($AJ$1)+1,MONTH(표2[[#This Row],[1년이상 근무일수]]),DAY(표2[[#This Row],[1년이상 근무일수]])),0) -> 0 | M31: =표2[[#This Row],[가산휴가 사용가능일]]/365 -> 0 | N31: =VLOOKUP(표2[[#This Row],[총근무일수-366]],code!$A$5:$C$9,3) -> 0 | O31: =ROUNDDOWN(표2[[#This Row],[열1]]/2,0)+표2[[#This Row],[가산연차]] -> 2 | P31: =IF(표2[[#This Row],[*기산일]]="",0,IF(YEAR(표2[[#This Row],[*기산일]])+1=$AI$11,DATE(YEAR(표2[[#This Row],[*기산일]])+1,MONTH(표2[[#This Row],[*기산일]]),DAY(표2[[#This Row],[*기산일]])),"")) ->  | Q31: =IF(표2[[#This Row],[*기산일]]="",0,IF(표2[[#This Row],[전년도 입사자 1년째]]="","",$W$11-표2[[#This Row],[전년도 입사자 1년째]]+1)) ->  | R31: =IF(표2[[#This Row],[전년도 입사자 1년째]]="","",표2[[#This Row],[1년미만자 1년째 후 근속일수]]/365*$Z$12) ->  | S31: =IFERROR(MAX(0,SUM(MAX(0,ROUNDDOWN(표2[[#This Row],[1년미만자 2년째 후 근속일수]],0)+VLOOKUP((표2[[#This Row],[1년미만자 2년째 후 근속일수]]-ROUNDDOWN(표2[[#This Row],[1년미만자 2년째 후 근속일수]],0)),code!$A$4:$D$9,3,TRUE)),표2[[#This Row],[1년미만자 당기 1년미만기간 연차수(11일 일할)]],표2[[#This Row],[사용연도 입사자]])-$Z$12),0) -> 0 | T31: =IFERROR(MAX(0,ROUNDDOWN(표2[[#This Row],[1년미만자 2년째 후 근속일수]],0)+VLOOKUP((표2[[#This Row],[1년미만자 2년째 후 근속일수]]-ROUNDDOWN(표2[[#This Row],[1년미만자 2년째 후 근속일수]],0)),code!$A$4:$D$9,3,TRUE))-표2[[#This Row],[1년미만자 3년째 후 근속일수]],0) -> 0 | V31: =IF(표2[[#This Row],[*기산일]]="","",IF(YEAR(표2[[#This Row],[*기산일]])=$AI$11-1,DATE(YEAR(표2[[#This Row],[*기산일]]),MONTH(표2[[#This Row],[*기산일]])+1,DAY(표2[[#This Row],[*기산일]])),"")) ->  | W31: =IF(표2[[#This Row],[*기산일]]="",0,IF(표2[[#This Row],[1년미만자1개월째]]="","",MAX(0,DATEDIF(표2[[#This Row],[*기산일]],$W$12,"m")-1))) ->  | X31: =IF(표2[[#This Row],[*기산일]]="",0,IF(표2[[#This Row],[1년미만자1개월째]]="","",(DATE(YEAR(표2[[#This Row],[*기산일]]),MONTH(표2[[#This Row],[*기산일]])+1,0)-표2[[#This Row],[*기산일]]+1)/(DATE(YEAR(표2[[#This Row],[*기산일]]),MONTH(표2[[#This Row],[*기산일]])+1,0)-DATE(YEAR(표2[[#This Row],[*기산일]]),MONTH(표2[[#This Row],[*기산일]]),1)+1))) ->  | Y31: =IFERROR(ROUNDDOWN(표2[[#This Row],[1년미만자 전년 근속일수]]/365*$Z$11,0)+VLOOKUP(표2[[#This Row],[1년미만자 전기 연차수]]-ROUNDDOWN(표2[[#This Row],[1년미만자 전년 근속일수]]/365*$Z$11,0),code!$A$4:$D$9,3,TRUE),"") ->  | Z31: =IFERROR(표2[[#This Row],[1년미만자 전년 근속일수]]+ROUNDDOWN(표2[[#This Row],[1년미만자 전기 연차수]],0)+VLOOKUP((표2[[#This Row],[1년미만자 전기 연차수]]-ROUNDDOWN(표2[[#This Row],[1년미만자 전기 연차수]],0)),code!$A$4:$D$9,3,TRUE),0) -> 0 | AA31: =IF(표2[[#This Row],[1년미만자1개월째]]="","",$Z$11-표2[[#This Row],[2년미만자 전기 연차수(code반올림)]]) ->  | AB31: =IF(YEAR(표2[[#This Row],[*기산일]])=$AI$11,DATE(YEAR(표2[[#This Row],[*기산일]]),MONTH(표2[[#This Row],[*기산일]])+1,DAY(표2[[#This Row],[*기산일]])),"") ->  | AC31: =IF(표2[[#This Row],[사용연도 입사자 1개월]]="","",MAX(0,DATEDIF(표2[[#This Row],[*기산일]],$W$11,"m")-1)) ->  | AD31: =IF(표2[[#This Row],[사용연도 입사자 1개월]]="","",(DATE(YEAR(표2[[#This Row],[*기산일]]),MONTH(표2[[#This Row],[*기산일]])+1,0)-표2[[#This Row],[*기산일]]+1)/(DATE(YEAR(표2[[#This Row],[*기산일]]),MONTH(표2[[#This Row],[*기산일]])+1,0)-DATE(YEAR(표2[[#This Row],[*기산일]]),MONTH(표2[[#This Row],[*기산일]]),1)+1)) ->  | AE31: =표2[[#This Row],[월중 근속일수]] ->  | AF31: =IFERROR(표2[[#This Row],[사용연도입사자 근무기간(월)]]+ROUNDDOWN(표2[[#This Row],[열2]],0)+VLOOKUP((표2[[#This Row],[열2]]-ROUNDDOWN(표2[[#This Row],[열2]],0)),code!$A$4:$D$9,3,TRUE),0) -> 0 | AG31: 17 | AH31: 이수성 | AK31: 2017-01-17 | AM31: =IF($AJ$1>license!$C$3,"",IF(H31=0,0,IF($AJ$1<H31,0,$AJ$1-H31+1))) -> 2175 | AN31: =IF($AJ$1>license!$C$3,"",IF(AM31=0,0,IF($H31=0,0,DATEDIF($H31-1,$AJ$1,"y")))) -> 5 | AO31: =IF($AJ$1>license!$C$3,"",IF(AM31=0,0,IF($H31=0,0,DATEDIF($H31-1,$AJ$1,"ym")))) -> 11 | AP31: =IF($AJ$1>license!$C$3,"",IF(AM31=0,0,IF($H31=0,0,DATEDIF($H31-1,$AJ$1,"md")))) -> 15 | AQ31: =IF($AJ$1>license!$C$3,"",IF(표2[[#This Row],[1년이상 근무일수]]="",0,$Z$12-표2[[#This Row],[기간]])) -> 15 | AR31: =IFERROR(IF(표2[[#This Row],[1년이상 근무일수]]="","",MIN(표2[[#This Row],[가산연차2]],$BD$12-표2[[#This Row],[기본]])),"") -> 2 | AS31: =SUM(표2[[#This Row],[1년미만자 당기 1년미만기간 연차수(11일 일할)]],표2[[#This Row],[사용연도 입사자]],표2[[#This Row],[1년미만자 1년째 후 연차일수(15일 일할)]]) -> 0 | AU31: =IF($AJ$1>license!$C$3,"",SUM(표2[[#This Row],[기본]:[일수]])) -> 17 | AV31: =IF($AJ$1>license!$C$3,"",SUMIFS(휴가입력!O:O,휴가입력!M:M,"연차",휴가입력!L:L,AH31)) -> 5.5 | AW31: =IFERROR(MAX(0,표2[[#This Row],[계]]-표2[[#This Row],[사용 일수]]),0) -> 11.5 | AX31: =IFERROR(MAX((표2[[#This Row],[계]]-표2[[#This Row],[사용 일수]])*-1,0),0) -> 0 | AZ31: =IF($AJ$1>license!$C$3,"",ROUNDUP(표2[[#This Row],[(월급)]]/209*8,0)) -> 0 | BA31: =IF($AJ$1>license!$C$3,"",ROUNDUP(표2[[#This Row],[(일급)]]*표2[[#This Row],[미사용 일수]],0)) -> 0 | BC31: 0
A32: 1 | H32: =IF(표2[[#This Row],[*입사일]]=0,"",표2[[#This Row],[*입사일]]-$AJ$3) -> 2017-02-15 | I32: =IFERROR(IF(AO32="",0,IF(표2[[#This Row],[1년이상 근무일수]]=0,0,DATEDIF(표2[[#This Row],[1년이상 근무일수]]-1,$AJ$1,"y"))),0) -> 4 | J32: =IF(표2[[#This Row],[*기산일]]="","",IF(DATE(YEAR(표2[[#This Row],[*기산일]])+1,MONTH(표2[[#This Row],[*기산일]]),DAY(표2[[#This Row],[*기산일]]))>$AJ$1,"",DATE(YEAR(표2[[#This Row],[*기산일]])+1,MONTH(표2[[#This Row],[*기산일]]),DAY(표2[[#This Row],[*기산일]])))) -> 2018-02-15 | K32: =IF(ISODD(표2[[#This Row],[열1]])=TRUE,1,"") ->  | L32: =IF(표2[[#This Row],[가산일도래여부]]=1,DATE(YEAR($AJ$1)+1,MONTH($AJ$1),DAY($AJ$1))-DATE(YEAR($AJ$1)+1,MONTH(표2[[#This Row],[1년이상 근무일수]]),DAY(표2[[#This Row],[1년이상 근무일수]])),0) -> 0 | M32: =표2[[#This Row],[가산휴가 사용가능일]]/365 -> 0 | N32: =VLOOKUP(표2[[#This Row],[총근무일수-366]],code!$A$5:$C$9,3) -> 0 | O32: =ROUNDDOWN(표2[[#This Row],[열1]]/2,0)+표2[[#This Row],[가산연차]] -> 2 | P32: =IF(표2[[#This Row],[*기산일]]="",0,IF(YEAR(표2[[#This Row],[*기산일]])+1=$AI$11,DATE(YEAR(표2[[#This Row],[*기산일]])+1,MONTH(표2[[#This Row],[*기산일]]),DAY(표2[[#This Row],[*기산일]])),"")) ->  | Q32: =IF(표2[[#This Row],[*기산일]]="",0,IF(표2[[#This Row],[전년도 입사자 1년째]]="","",$W$11-표2[[#This Row],[전년도 입사자 1년째]]+1)) ->  | R32: =IF(표2[[#This Row],[전년도 입사자 1년째]]="","",표2[[#This Row],[1년미만자 1년째 후 근속일수]]/365*$Z$12) ->  | S32: =IFERROR(MAX(0,SUM(MAX(0,ROUNDDOWN(표2[[#This Row],[1년미만자 2년째 후 근속일수]],0)+VLOOKUP((표2[[#This Row],[1년미만자 2년째 후 근속일수]]-ROUNDDOWN(표2[[#This Row],[1년미만자 2년째 후 근속일수]],0)),code!$A$4:$D$9,3,TRUE)),표2[[#This Row],[1년미만자 당기 1년미만기간 연차수(11일 일할)]],표2[[#This Row],[사용연도 입사자]])-$Z$12),0) -> 0 | T32: =IFERROR(MAX(0,ROUNDDOWN(표2[[#This Row],[1년미만자 2년째 후 근속일수]],0)+VLOOKUP((표2[[#This Row],[1년미만자 2년째 후 근속일수]]-ROUNDDOWN(표2[[#This Row],[1년미만자 2년째 후 근속일수]],0)),code!$A$4:$D$9,3,TRUE))-표2[[#This Row],[1년미만자 3년째 후 근속일수]],0) -> 0 | V32: =IF(표2[[#This Row],[*기산일]]="","",IF(YEAR(표2[[#This Row],[*기산일]])=$AI$11-1,DATE(YEAR(표2[[#This Row],[*기산일]]),MONTH(표2[[#This Row],[*기산일]])+1,DAY(표2[[#This Row],[*기산일]])),"")) ->  | W32: =IF(표2[[#This Row],[*기산일]]="",0,IF(표2[[#This Row],[1년미만자1개월째]]="","",MAX(0,DATEDIF(표2[[#This Row],[*기산일]],$W$12,"m")-1))) ->  | X32: =IF(표2[[#This Row],[*기산일]]="",0,IF(표2[[#This Row],[1년미만자1개월째]]="","",(DATE(YEAR(표2[[#This Row],[*기산일]]),MONTH(표2[[#This Row],[*기산일]])+1,0)-표2[[#This Row],[*기산일]]+1)/(DATE(YEAR(표2[[#This Row],[*기산일]]),MONTH(표2[[#This Row],[*기산일]])+1,0)-DATE(YEAR(표2[[#This Row],[*기산일]]),MONTH(표2[[#This Row],[*기산일]]),1)+1))) ->  | Y32: =IFERROR(ROUNDDOWN(표2[[#This Row],[1년미만자 전년 근속일수]]/365*$Z$11,0)+VLOOKUP(표2[[#This Row],[1년미만자 전기 연차수]]-ROUNDDOWN(표2[[#This Row],[1년미만자 전년 근속일수]]/365*$Z$11,0),code!$A$4:$D$9,3,TRUE),"") ->  | Z32: =IFERROR(표2[[#This Row],[1년미만자 전년 근속일수]]+ROUNDDOWN(표2[[#This Row],[1년미만자 전기 연차수]],0)+VLOOKUP((표2[[#This Row],[1년미만자 전기 연차수]]-ROUNDDOWN(표2[[#This Row],[1년미만자 전기 연차수]],0)),code!$A$4:$D$9,3,TRUE),0) -> 0 | AA32: =IF(표2[[#This Row],[1년미만자1개월째]]="","",$Z$11-표2[[#This Row],[2년미만자 전기 연차수(code반올림)]]) ->  | AB32: =IF(YEAR(표2[[#This Row],[*기산일]])=$AI$11,DATE(YEAR(표2[[#This Row],[*기산일]]),MONTH(표2[[#This Row],[*기산일]])+1,DAY(표2[[#This Row],[*기산일]])),"") ->  | AC32: =IF(표2[[#This Row],[사용연도 입사자 1개월]]="","",MAX(0,DATEDIF(표2[[#This Row],[*기산일]],$W$11,"m")-1)) ->  | AD32: =IF(표2[[#This Row],[사용연도 입사자 1개월]]="","",(DATE(YEAR(표2[[#This Row],[*기산일]]),MONTH(표2[[#This Row],[*기산일]])+1,0)-표2[[#This Row],[*기산일]]+1)/(DATE(YEAR(표2[[#This Row],[*기산일]]),MONTH(표2[[#This Row],[*기산일]])+1,0)-DATE(YEAR(표2[[#This Row],[*기산일]]),MONTH(표2[[#This Row],[*기산일]]),1)+1)) ->  | AE32: =표2[[#This Row],[월중 근속일수]] ->  | AF32: =IFERROR(표2[[#This Row],[사용연도입사자 근무기간(월)]]+ROUNDDOWN(표2[[#This Row],[열2]],0)+VLOOKUP((표2[[#This Row],[열2]]-ROUNDDOWN(표2[[#This Row],[열2]],0)),code!$A$4:$D$9,3,TRUE),0) -> 0 | AG32: 18 | AH32: 박승리 | AK32: 2017-02-15 | AM32: =IF($AJ$1>license!$C$3,"",IF(H32=0,0,IF($AJ$1<H32,0,$AJ$1-H32+1))) -> 2146 | AN32: =IF($AJ$1>license!$C$3,"",IF(AM32=0,0,IF($H32=0,0,DATEDIF($H32-1,$AJ$1,"y")))) -> 5 | AO32: =IF($AJ$1>license!$C$3,"",IF(AM32=0,0,IF($H32=0,0,DATEDIF($H32-1,$AJ$1,"ym")))) -> 10 | AP32: =IF($AJ$1>license!$C$3,"",IF(AM32=0,0,IF($H32=0,0,DATEDIF($H32-1,$AJ$1,"md")))) -> 17 | AQ32: =IF($AJ$1>license!$C$3,"",IF(표2[[#This Row],[1년이상 근무일수]]="",0,$Z$12-표2[[#This Row],[기간]])) -> 15 | AR32: =IFERROR(IF(표2[[#This Row],[1년이상 근무일수]]="","",MIN(표2[[#This Row],[가산연차2]],$BD$12-표2[[#This Row],[기본]])),"") -> 2 | AS32: =SUM(표2[[#This Row],[1년미만자 당기 1년미만기간 연차수(11일 일할)]],표2[[#This Row],[사용연도 입사자]],표2[[#This Row],[1년미만자 1년째 후 연차일수(15일 일할)]]) -> 0 | AU32: =IF($AJ$1>license!$C$3,"",SUM(표2[[#This Row],[기본]:[일수]])) -> 17 | AV32: =IF($AJ$1>license!$C$3,"",SUMIFS(휴가입력!O:O,휴가입력!M:M,"연차",휴가입력!L:L,AH32)) -> 9.5 | AW32: =IFERROR(MAX(0,표2[[#This Row],[계]]-표2[[#This Row],[사용 일수]]),0) -> 7.5 | AX32: =IFERROR(MAX((표2[[#This Row],[계]]-표2[[#This Row],[사용 일수]])*-1,0),0) -> 0 | AZ32: =IF($AJ$1>license!$C$3,"",ROUNDUP(표2[[#This Row],[(월급)]]/209*8,0)) -> 0 | BA32: =IF($AJ$1>license!$C$3,"",ROUNDUP(표2[[#This Row],[(일급)]]*표2[[#This Row],[미사용 일수]],0)) -> 0 | BC32: 0
A33: 1 | H33: =IF(표2[[#This Row],[*입사일]]=0,"",표2[[#This Row],[*입사일]]-$AJ$3) -> 2017-02-20 | I33: =IFERROR(IF(AO33="",0,IF(표2[[#This Row],[1년이상 근무일수]]=0,0,DATEDIF(표2[[#This Row],[1년이상 근무일수]]-1,$AJ$1,"y"))),0) -> 4 | J33: =IF(표2[[#This Row],[*기산일]]="","",IF(DATE(YEAR(표2[[#This Row],[*기산일]])+1,MONTH(표2[[#This Row],[*기산일]]),DAY(표2[[#This Row],[*기산일]]))>$AJ$1,"",DATE(YEAR(표2[[#This Row],[*기산일]])+1,MONTH(표2[[#This Row],[*기산일]]),DAY(표2[[#This Row],[*기산일]])))) -> 2018-02-20 | K33: =IF(ISODD(표2[[#This Row],[열1]])=TRUE,1,"") ->  | L33: =IF(표2[[#This Row],[가산일도래여부]]=1,DATE(YEAR($AJ$1)+1,MONTH($AJ$1),DAY($AJ$1))-DATE(YEAR($AJ$1)+1,MONTH(표2[[#This Row],[1년이상 근무일수]]),DAY(표2[[#This Row],[1년이상 근무일수]])),0) -> 0 | M33: =표2[[#This Row],[가산휴가 사용가능일]]/365 -> 0 | N33: =VLOOKUP(표2[[#This Row],[총근무일수-366]],code!$A$5:$C$9,3) -> 0 | O33: =ROUNDDOWN(표2[[#This Row],[열1]]/2,0)+표2[[#This Row],[가산연차]] -> 2 | P33: =IF(표2[[#This Row],[*기산일]]="",0,IF(YEAR(표2[[#This Row],[*기산일]])+1=$AI$11,DATE(YEAR(표2[[#This Row],[*기산일]])+1,MONTH(표2[[#This Row],[*기산일]]),DAY(표2[[#This Row],[*기산일]])),"")) ->  | Q33: =IF(표2[[#This Row],[*기산일]]="",0,IF(표2[[#This Row],[전년도 입사자 1년째]]="","",$W$11-표2[[#This Row],[전년도 입사자 1년째]]+1)) ->  | R33: =IF(표2[[#This Row],[전년도 입사자 1년째]]="","",표2[[#This Row],[1년미만자 1년째 후 근속일수]]/365*$Z$12) ->  | S33: =IFERROR(MAX(0,SUM(MAX(0,ROUNDDOWN(표2[[#This Row],[1년미만자 2년째 후 근속일수]],0)+VLOOKUP((표2[[#This Row],[1년미만자 2년째 후 근속일수]]-ROUNDDOWN(표2[[#This Row],[1년미만자 2년째 후 근속일수]],0)),code!$A$4:$D$9,3,TRUE)),표2[[#This Row],[1년미만자 당기 1년미만기간 연차수(11일 일할)]],표2[[#This Row],[사용연도 입사자]])-$Z$12),0) -> 0 | T33: =IFERROR(MAX(0,ROUNDDOWN(표2[[#This Row],[1년미만자 2년째 후 근속일수]],0)+VLOOKUP((표2[[#This Row],[1년미만자 2년째 후 근속일수]]-ROUNDDOWN(표2[[#This Row],[1년미만자 2년째 후 근속일수]],0)),code!$A$4:$D$9,3,TRUE))-표2[[#This Row],[1년미만자 3년째 후 근속일수]],0) -> 0 | V33: =IF(표2[[#This Row],[*기산일]]="","",IF(YEAR(표2[[#This Row],[*기산일]])=$AI$11-1,DATE(YEAR(표2[[#This Row],[*기산일]]),MONTH(표2[[#This Row],[*기산일]])+1,DAY(표2[[#This Row],[*기산일]])),"")) ->  | W33: =IF(표2[[#This Row],[*기산일]]="",0,IF(표2[[#This Row],[1년미만자1개월째]]="","",MAX(0,DATEDIF(표2[[#This Row],[*기산일]],$W$12,"m")-1))) ->  | X33: =IF(표2[[#This Row],[*기산일]]="",0,IF(표2[[#This Row],[1년미만자1개월째]]="","",(DATE(YEAR(표2[[#This Row],[*기산일]]),MONTH(표2[[#This Row],[*기산일]])+1,0)-표2[[#This Row],[*기산일]]+1)/(DATE(YEAR(표2[[#This Row],[*기산일]]),MONTH(표2[[#This Row],[*기산일]])+1,0)-DATE(YEAR(표2[[#This Row],[*기산일]]),MONTH(표2[[#This Row],[*기산일]]),1)+1))) ->  | Y33: =IFERROR(ROUNDDOWN(표2[[#This Row],[1년미만자 전년 근속일수]]/365*$Z$11,0)+VLOOKUP(표2[[#This Row],[1년미만자 전기 연차수]]-ROUNDDOWN(표2[[#This Row],[1년미만자 전년 근속일수]]/365*$Z$11,0),code!$A$4:$D$9,3,TRUE),"") ->  | Z33: =IFERROR(표2[[#This Row],[1년미만자 전년 근속일수]]+ROUNDDOWN(표2[[#This Row],[1년미만자 전기 연차수]],0)+VLOOKUP((표2[[#This Row],[1년미만자 전기 연차수]]-ROUNDDOWN(표2[[#This Row],[1년미만자 전기 연차수]],0)),code!$A$4:$D$9,3,TRUE),0) -> 0 | AA33: =IF(표2[[#This Row],[1년미만자1개월째]]="","",$Z$11-표2[[#This Row],[2년미만자 전기 연차수(code반올림)]]) ->  | AB33: =IF(YEAR(표2[[#This Row],[*기산일]])=$AI$11,DATE(YEAR(표2[[#This Row],[*기산일]]),MONTH(표2[[#This Row],[*기산일]])+1,DAY(표2[[#This Row],[*기산일]])),"") ->  | AC33: =IF(표2[[#This Row],[사용연도 입사자 1개월]]="","",MAX(0,DATEDIF(표2[[#This Row],[*기산일]],$W$11,"m")-1)) ->  | AD33: =IF(표2[[#This Row],[사용연도 입사자 1개월]]="","",(DATE(YEAR(표2[[#This Row],[*기산일]]),MONTH(표2[[#This Row],[*기산일]])+1,0)-표2[[#This Row],[*기산일]]+1)/(DATE(YEAR(표2[[#This Row],[*기산일]]),MONTH(표2[[#This Row],[*기산일]])+1,0)-DATE(YEAR(표2[[#This Row],[*기산일]]),MONTH(표2[[#This Row],[*기산일]]),1)+1)) ->  | AE33: =표2[[#This Row],[월중 근속일수]] ->  | AF33: =IFERROR(표2[[#This Row],[사용연도입사자 근무기간(월)]]+ROUNDDOWN(표2[[#This Row],[열2]],0)+VLOOKUP((표2[[#This Row],[열2]]-ROUNDDOWN(표2[[#This Row],[열2]],0)),code!$A$4:$D$9,3,TRUE),0) -> 0 | AG33: 19 | AH33: 이덕헌 | AK33: 2017-02-20 | AM33: =IF($AJ$1>license!$C$3,"",IF(H33=0,0,IF($AJ$1<H33,0,$AJ$1-H33+1))) -> 2141 | AN33: =IF($AJ$1>license!$C$3,"",IF(AM33=0,0,IF($H33=0,0,DATEDIF($H33-1,$AJ$1,"y")))) -> 5 | AO33: =IF($AJ$1>license!$C$3,"",IF(AM33=0,0,IF($H33=0,0,DATEDIF($H33-1,$AJ$1,"ym")))) -> 10 | AP33: =IF($AJ$1>license!$C$3,"",IF(AM33=0,0,IF($H33=0,0,DATEDIF($H33-1,$AJ$1,"md")))) -> 12 | AQ33: =IF($AJ$1>license!$C$3,"",IF(표2[[#This Row],[1년이상 근무일수]]="",0,$Z$12-표2[[#This Row],[기간]])) -> 15 | AR33: =IFERROR(IF(표2[[#This Row],[1년이상 근무일수]]="","",MIN(표2[[#This Row],[가산연차2]],$BD$12-표2[[#This Row],[기본]])),"") -> 2 | AS33: =SUM(표2[[#This Row],[1년미만자 당기 1년미만기간 연차수(11일 일할)]],표2[[#This Row],[사용연도 입사자]],표2[[#This Row],[1년미만자 1년째 후 연차일수(15일 일할)]]) -> 0 | AU33: =IF($AJ$1>license!$C$3,"",SUM(표2[[#This Row],[기본]:[일수]])) -> 17 | AV33: =IF($AJ$1>license!$C$3,"",SUMIFS(휴가입력!O:O,휴가입력!M:M,"연차",휴가입력!L:L,AH33)) -> 5.5 | AW33: =IFERROR(MAX(0,표2[[#This Row],[계]]-표2[[#This Row],[사용 일수]]),0) -> 11.5 | AX33: =IFERROR(MAX((표2[[#This Row],[계]]-표2[[#This Row],[사용 일수]])*-1,0),0) -> 0 | AZ33: =IF($AJ$1>license!$C$3,"",ROUNDUP(표2[[#This Row],[(월급)]]/209*8,0)) -> 0 | BA33: =IF($AJ$1>license!$C$3,"",ROUNDUP(표2[[#This Row],[(일급)]]*표2[[#This Row],[미사용 일수]],0)) -> 0 | BC33: 0
A34: 1 | H34: =IF(표2[[#This Row],[*입사일]]=0,"",표2[[#This Row],[*입사일]]-$AJ$3) -> 2017-05-01 | I34: =IFERROR(IF(AO34="",0,IF(표2[[#This Row],[1년이상 근무일수]]=0,0,DATEDIF(표2[[#This Row],[1년이상 근무일수]]-1,$AJ$1,"y"))),0) -> 4 | J34: =IF(표2[[#This Row],[*기산일]]="","",IF(DATE(YEAR(표2[[#This Row],[*기산일]])+1,MONTH(표2[[#This Row],[*기산일]]),DAY(표2[[#This Row],[*기산일]]))>$AJ$1,"",DATE(YEAR(표2[[#This Row],[*기산일]])+1,MONTH(표2[[#This Row],[*기산일]]),DAY(표2[[#This Row],[*기산일]])))) -> 2018-05-01 | K34: =IF(ISODD(표2[[#This Row],[열1]])=TRUE,1,"") ->  | L34: =IF(표2[[#This Row],[가산일도래여부]]=1,DATE(YEAR($AJ$1)+1,MONTH($AJ$1),DAY($AJ$1))-DATE(YEAR($AJ$1)+1,MONTH(표2[[#This Row],[1년이상 근무일수]]),DAY(표2[[#This Row],[1년이상 근무일수]])),0) -> 0 | M34: =표2[[#This Row],[가산휴가 사용가능일]]/365 -> 0 | N34: =VLOOKUP(표2[[#This Row],[총근무일수-366]],code!$A$5:$C$9,3) -> 0 | O34: =ROUNDDOWN(표2[[#This Row],[열1]]/2,0)+표2[[#This Row],[가산연차]] -> 2 | P34: =IF(표2[[#This Row],[*기산일]]="",0,IF(YEAR(표2[[#This Row],[*기산일]])+1=$AI$11,DATE(YEAR(표2[[#This Row],[*기산일]])+1,MONTH(표2[[#This Row],[*기산일]]),DAY(표2[[#This Row],[*기산일]])),"")) ->  | Q34: =IF(표2[[#This Row],[*기산일]]="",0,IF(표2[[#This Row],[전년도 입사자 1년째]]="","",$W$11-표2[[#This Row],[전년도 입사자 1년째]]+1)) ->  | R34: =IF(표2[[#This Row],[전년도 입사자 1년째]]="","",표2[[#This Row],[1년미만자 1년째 후 근속일수]]/365*$Z$12) ->  | S34: =IFERROR(MAX(0,SUM(MAX(0,ROUNDDOWN(표2[[#This Row],[1년미만자 2년째 후 근속일수]],0)+VLOOKUP((표2[[#This Row],[1년미만자 2년째 후 근속일수]]-ROUNDDOWN(표2[[#This Row],[1년미만자 2년째 후 근속일수]],0)),code!$A$4:$D$9,3,TRUE)),표2[[#This Row],[1년미만자 당기 1년미만기간 연차수(11일 일할)]],표2[[#This Row],[사용연도 입사자]])-$Z$12),0) -> 0 | T34: =IFERROR(MAX(0,ROUNDDOWN(표2[[#This Row],[1년미만자 2년째 후 근속일수]],0)+VLOOKUP((표2[[#This Row],[1년미만자 2년째 후 근속일수]]-ROUNDDOWN(표2[[#This Row],[1년미만자 2년째 후 근속일수]],0)),code!$A$4:$D$9,3,TRUE))-표2[[#This Row],[1년미만자 3년째 후 근속일수]],0) -> 0 | V34: =IF(표2[[#This Row],[*기산일]]="","",IF(YEAR(표2[[#This Row],[*기산일]])=$AI$11-1,DATE(YEAR(표2[[#This Row],[*기산일]]),MONTH(표2[[#This Row],[*기산일]])+1,DAY(표2[[#This Row],[*기산일]])),"")) ->  | W34: =IF(표2[[#This Row],[*기산일]]="",0,IF(표2[[#This Row],[1년미만자1개월째]]="","",MAX(0,DATEDIF(표2[[#This Row],[*기산일]],$W$12,"m")-1))) ->  | X34: =IF(표2[[#This Row],[*기산일]]="",0,IF(표2[[#This Row],[1년미만자1개월째]]="","",(DATE(YEAR(표2[[#This Row],[*기산일]]),MONTH(표2[[#This Row],[*기산일]])+1,0)-표2[[#This Row],[*기산일]]+1)/(DATE(YEAR(표2[[#This Row],[*기산일]]),MONTH(표2[[#This Row],[*기산일]])+1,0)-DATE(YEAR(표2[[#This Row],[*기산일]]),MONTH(표2[[#This Row],[*기산일]]),1)+1))) ->  | Y34: =IFERROR(ROUNDDOWN(표2[[#This Row],[1년미만자 전년 근속일수]]/365*$Z$11,0)+VLOOKUP(표2[[#This Row],[1년미만자 전기 연차수]]-ROUNDDOWN(표2[[#This Row],[1년미만자 전년 근속일수]]/365*$Z$11,0),code!$A$4:$D$9,3,TRUE),"") ->  | Z34: =IFERROR(표2[[#This Row],[1년미만자 전년 근속일수]]+ROUNDDOWN(표2[[#This Row],[1년미만자 전기 연차수]],0)+VLOOKUP((표2[[#This Row],[1년미만자 전기 연차수]]-ROUNDDOWN(표2[[#This Row],[1년미만자 전기 연차수]],0)),code!$A$4:$D$9,3,TRUE),0) -> 0 | AA34: =IF(표2[[#This Row],[1년미만자1개월째]]="","",$Z$11-표2[[#This Row],[2년미만자 전기 연차수(code반올림)]]) ->  | AB34: =IF(YEAR(표2[[#This Row],[*기산일]])=$AI$11,DATE(YEAR(표2[[#This Row],[*기산일]]),MONTH(표2[[#This Row],[*기산일]])+1,DAY(표2[[#This Row],[*기산일]])),"") ->  | AC34: =IF(표2[[#This Row],[사용연도 입사자 1개월]]="","",MAX(0,DATEDIF(표2[[#This Row],[*기산일]],$W$11,"m")-1)) ->  | AD34: =IF(표2[[#This Row],[사용연도 입사자 1개월]]="","",(DATE(YEAR(표2[[#This Row],[*기산일]]),MONTH(표2[[#This Row],[*기산일]])+1,0)-표2[[#This Row],[*기산일]]+1)/(DATE(YEAR(표2[[#This Row],[*기산일]]),MONTH(표2[[#This Row],[*기산일]])+1,0)-DATE(YEAR(표2[[#This Row],[*기산일]]),MONTH(표2[[#This Row],[*기산일]]),1)+1)) ->  | AE34: =표2[[#This Row],[월중 근속일수]] ->  | AF34: =IFERROR(표2[[#This Row],[사용연도입사자 근무기간(월)]]+ROUNDDOWN(표2[[#This Row],[열2]],0)+VLOOKUP((표2[[#This Row],[열2]]-ROUNDDOWN(표2[[#This Row],[열2]],0)),code!$A$4:$D$9,3,TRUE),0) -> 0 | AG34: 20 | AH34: 배재성 | AK34: 2017-05-01 | AM34: =IF($AJ$1>license!$C$3,"",IF(H34=0,0,IF($AJ$1<H34,0,$AJ$1-H34+1))) -> 2071 | AN34: =IF($AJ$1>license!$C$3,"",IF(AM34=0,0,IF($H34=0,0,DATEDIF($H34-1,$AJ$1,"y")))) -> 5 | AO34: =IF($AJ$1>license!$C$3,"",IF(AM34=0,0,IF($H34=0,0,DATEDIF($H34-1,$AJ$1,"ym")))) -> 8 | AP34: =IF($AJ$1>license!$C$3,"",IF(AM34=0,0,IF($H34=0,0,DATEDIF($H34-1,$AJ$1,"md")))) -> 1 | AQ34: =IF($AJ$1>license!$C$3,"",IF(표2[[#This Row],[1년이상 근무일수]]="",0,$Z$12-표2[[#This Row],[기간]])) -> 15 | AR34: =IFERROR(IF(표2[[#This Row],[1년이상 근무일수]]="","",MIN(표2[[#This Row],[가산연차2]],$BD$12-표2[[#This Row],[기본]])),"") -> 2 | AS34: =SUM(표2[[#This Row],[1년미만자 당기 1년미만기간 연차수(11일 일할)]],표2[[#This Row],[사용연도 입사자]],표2[[#This Row],[1년미만자 1년째 후 연차일수(15일 일할)]]) -> 0 | AU34: =IF($AJ$1>license!$C$3,"",SUM(표2[[#This Row],[기본]:[일수]])) -> 17 | AV34: =IF($AJ$1>license!$C$3,"",SUMIFS(휴가입력!O:O,휴가입력!M:M,"연차",휴가입력!L:L,AH34)) -> 6 | AW34: =IFERROR(MAX(0,표2[[#This Row],[계]]-표2[[#This Row],[사용 일수]]),0) -> 11 | AX34: =IFERROR(MAX((표2[[#This Row],[계]]-표2[[#This Row],[사용 일수]])*-1,0),0) -> 0 | AZ34: =IF($AJ$1>license!$C$3,"",ROUNDUP(표2[[#This Row],[(월급)]]/209*8,0)) -> 0 | BA34: =IF($AJ$1>license!$C$3,"",ROUNDUP(표2[[#This Row],[(일급)]]*표2[[#This Row],[미사용 일수]],0)) -> 0 | BC34: 0
A35: 1 | H35: =IF(표2[[#This Row],[*입사일]]=0,"",표2[[#This Row],[*입사일]]-$AJ$3) -> 2017-06-26 | I35: =IFERROR(IF(AO35="",0,IF(표2[[#This Row],[1년이상 근무일수]]=0,0,DATEDIF(표2[[#This Row],[1년이상 근무일수]]-1,$AJ$1,"y"))),0) -> 4 | J35: =IF(표2[[#This Row],[*기산일]]="","",IF(DATE(YEAR(표2[[#This Row],[*기산일]])+1,MONTH(표2[[#This Row],[*기산일]]),DAY(표2[[#This Row],[*기산일]]))>$AJ$1,"",DATE(YEAR(표2[[#This Row],[*기산일]])+1,MONTH(표2[[#This Row],[*기산일]]),DAY(표2[[#This Row],[*기산일]])))) -> 2018-06-26 | K35: =IF(ISODD(표2[[#This Row],[열1]])=TRUE,1,"") ->  | L35: =IF(표2[[#This Row],[가산일도래여부]]=1,DATE(YEAR($AJ$1)+1,MONTH($AJ$1),DAY($AJ$1))-DATE(YEAR($AJ$1)+1,MONTH(표2[[#This Row],[1년이상 근무일수]]),DAY(표2[[#This Row],[1년이상 근무일수]])),0) -> 0 | M35: =표2[[#This Row],[가산휴가 사용가능일]]/365 -> 0 | N35: =VLOOKUP(표2[[#This Row],[총근무일수-366]],code!$A$5:$C$9,3) -> 0 | O35: =ROUNDDOWN(표2[[#This Row],[열1]]/2,0)+표2[[#This Row],[가산연차]] -> 2 | P35: =IF(표2[[#This Row],[*기산일]]="",0,IF(YEAR(표2[[#This Row],[*기산일]])+1=$AI$11,DATE(YEAR(표2[[#This Row],[*기산일]])+1,MONTH(표2[[#This Row],[*기산일]]),DAY(표2[[#This Row],[*기산일]])),"")) ->  | Q35: =IF(표2[[#This Row],[*기산일]]="",0,IF(표2[[#This Row],[전년도 입사자 1년째]]="","",$W$11-표2[[#This Row],[전년도 입사자 1년째]]+1)) ->  | R35: =IF(표2[[#This Row],[전년도 입사자 1년째]]="","",표2[[#This Row],[1년미만자 1년째 후 근속일수]]/365*$Z$12) ->  | S35: =IFERROR(MAX(0,SUM(MAX(0,ROUNDDOWN(표2[[#This Row],[1년미만자 2년째 후 근속일수]],0)+VLOOKUP((표2[[#This Row],[1년미만자 2년째 후 근속일수]]-ROUNDDOWN(표2[[#This Row],[1년미만자 2년째 후 근속일수]],0)),code!$A$4:$D$9,3,TRUE)),표2[[#This Row],[1년미만자 당기 1년미만기간 연차수(11일 일할)]],표2[[#This Row],[사용연도 입사자]])-$Z$12),0) -> 0 | T35: =IFERROR(MAX(0,ROUNDDOWN(표2[[#This Row],[1년미만자 2년째 후 근속일수]],0)+VLOOKUP((표2[[#This Row],[1년미만자 2년째 후 근속일수]]-ROUNDDOWN(표2[[#This Row],[1년미만자 2년째 후 근속일수]],0)),code!$A$4:$D$9,3,TRUE))-표2[[#This Row],[1년미만자 3년째 후 근속일수]],0) -> 0 | V35: =IF(표2[[#This Row],[*기산일]]="","",IF(YEAR(표2[[#This Row],[*기산일]])=$AI$11-1,DATE(YEAR(표2[[#This Row],[*기산일]]),MONTH(표2[[#This Row],[*기산일]])+1,DAY(표2[[#This Row],[*기산일]])),"")) ->  | W35: =IF(표2[[#This Row],[*기산일]]="",0,IF(표2[[#This Row],[1년미만자1개월째]]="","",MAX(0,DATEDIF(표2[[#This Row],[*기산일]],$W$12,"m")-1))) ->  | X35: =IF(표2[[#This Row],[*기산일]]="",0,IF(표2[[#This Row],[1년미만자1개월째]]="","",(DATE(YEAR(표2[[#This Row],[*기산일]]),MONTH(표2[[#This Row],[*기산일]])+1,0)-표2[[#This Row],[*기산일]]+1)/(DATE(YEAR(표2[[#This Row],[*기산일]]),MONTH(표2[[#This Row],[*기산일]])+1,0)-DATE(YEAR(표2[[#This Row],[*기산일]]),MONTH(표2[[#This Row],[*기산일]]),1)+1))) ->  | Y35: =IFERROR(ROUNDDOWN(표2[[#This Row],[1년미만자 전년 근속일수]]/365*$Z$11,0)+VLOOKUP(표2[[#This Row],[1년미만자 전기 연차수]]-ROUNDDOWN(표2[[#This Row],[1년미만자 전년 근속일수]]/365*$Z$11,0),code!$A$4:$D$9,3,TRUE),"") ->  | Z35: =IFERROR(표2[[#This Row],[1년미만자 전년 근속일수]]+ROUNDDOWN(표2[[#This Row],[1년미만자 전기 연차수]],0)+VLOOKUP((표2[[#This Row],[1년미만자 전기 연차수]]-ROUNDDOWN(표2[[#This Row],[1년미만자 전기 연차수]],0)),code!$A$4:$D$9,3,TRUE),0) -> 0 | AA35: =IF(표2[[#This Row],[1년미만자1개월째]]="","",$Z$11-표2[[#This Row],[2년미만자 전기 연차수(code반올림)]]) ->  | AB35: =IF(YEAR(표2[[#This Row],[*기산일]])=$AI$11,DATE(YEAR(표2[[#This Row],[*기산일]]),MONTH(표2[[#This Row],[*기산일]])+1,DAY(표2[[#This Row],[*기산일]])),"") ->  | AC35: =IF(표2[[#This Row],[사용연도 입사자 1개월]]="","",MAX(0,DATEDIF(표2[[#This Row],[*기산일]],$W$11,"m")-1)) ->  | AD35: =IF(표2[[#This Row],[사용연도 입사자 1개월]]="","",(DATE(YEAR(표2[[#This Row],[*기산일]]),MONTH(표2[[#This Row],[*기산일]])+1,0)-표2[[#This Row],[*기산일]]+1)/(DATE(YEAR(표2[[#This Row],[*기산일]]),MONTH(표2[[#This Row],[*기산일]])+1,0)-DATE(YEAR(표2[[#This Row],[*기산일]]),MONTH(표2[[#This Row],[*기산일]]),1)+1)) ->  | AE35: =표2[[#This Row],[월중 근속일수]] ->  | AF35: =IFERROR(표2[[#This Row],[사용연도입사자 근무기간(월)]]+ROUNDDOWN(표2[[#This Row],[열2]],0)+VLOOKUP((표2[[#This Row],[열2]]-ROUNDDOWN(표2[[#This Row],[열2]],0)),code!$A$4:$D$9,3,TRUE),0) -> 0 | AG35: 21 | AH35: 손경준 | AK35: 2017-06-26 | AM35: =IF($AJ$1>license!$C$3,"",IF(H35=0,0,IF($AJ$1<H35,0,$AJ$1-H35+1))) -> 2015 | AN35: =IF($AJ$1>license!$C$3,"",IF(AM35=0,0,IF($H35=0,0,DATEDIF($H35-1,$AJ$1,"y")))) -> 5 | AO35: =IF($AJ$1>license!$C$3,"",IF(AM35=0,0,IF($H35=0,0,DATEDIF($H35-1,$AJ$1,"ym")))) -> 6 | AP35: =IF($AJ$1>license!$C$3,"",IF(AM35=0,0,IF($H35=0,0,DATEDIF($H35-1,$AJ$1,"md")))) -> 6 | AQ35: =IF($AJ$1>license!$C$3,"",IF(표2[[#This Row],[1년이상 근무일수]]="",0,$Z$12-표2[[#This Row],[기간]])) -> 15 | AR35: =IFERROR(IF(표2[[#This Row],[1년이상 근무일수]]="","",MIN(표2[[#This Row],[가산연차2]],$BD$12-표2[[#This Row],[기본]])),"") -> 2 | AS35: =SUM(표2[[#This Row],[1년미만자 당기 1년미만기간 연차수(11일 일할)]],표2[[#This Row],[사용연도 입사자]],표2[[#This Row],[1년미만자 1년째 후 연차일수(15일 일할)]]) -> 0 | AU35: =IF($AJ$1>license!$C$3,"",SUM(표2[[#This Row],[기본]:[일수]])) -> 17 | AV35: =IF($AJ$1>license!$C$3,"",SUMIFS(휴가입력!O:O,휴가입력!M:M,"연차",휴가입력!L:L,AH35)) -> 1.5 | AW35: =IFERROR(MAX(0,표2[[#This Row],[계]]-표2[[#This Row],[사용 일수]]),0) -> 15.5 | AX35: =IFERROR(MAX((표2[[#This Row],[계]]-표2[[#This Row],[사용 일수]])*-1,0),0) -> 0 | AZ35: =IF($AJ$1>license!$C$3,"",ROUNDUP(표2[[#This Row],[(월급)]]/209*8,0)) -> 0 | BA35: =IF($AJ$1>license!$C$3,"",ROUNDUP(표2[[#This Row],[(일급)]]*표2[[#This Row],[미사용 일수]],0)) -> 0 | BC35: 0
A36: 1 | H36: =IF(표2[[#This Row],[*입사일]]=0,"",표2[[#This Row],[*입사일]]-$AJ$3) -> 2017-07-10 | I36: =IFERROR(IF(AO36="",0,IF(표2[[#This Row],[1년이상 근무일수]]=0,0,DATEDIF(표2[[#This Row],[1년이상 근무일수]]-1,$AJ$1,"y"))),0) -> 4 | J36: =IF(표2[[#This Row],[*기산일]]="","",IF(DATE(YEAR(표2[[#This Row],[*기산일]])+1,MONTH(표2[[#This Row],[*기산일]]),DAY(표2[[#This Row],[*기산일]]))>$AJ$1,"",DATE(YEAR(표2[[#This Row],[*기산일]])+1,MONTH(표2[[#This Row],[*기산일]]),DAY(표2[[#This Row],[*기산일]])))) -> 2018-07-10 | K36: =IF(ISODD(표2[[#This Row],[열1]])=TRUE,1,"") ->  | L36: =IF(표2[[#This Row],[가산일도래여부]]=1,DATE(YEAR($AJ$1)+1,MONTH($AJ$1),DAY($AJ$1))-DATE(YEAR($AJ$1)+1,MONTH(표2[[#This Row],[1년이상 근무일수]]),DAY(표2[[#This Row],[1년이상 근무일수]])),0) -> 0 | M36: =표2[[#This Row],[가산휴가 사용가능일]]/365 -> 0 | N36: =VLOOKUP(표2[[#This Row],[총근무일수-366]],code!$A$5:$C$9,3) -> 0 | O36: =ROUNDDOWN(표2[[#This Row],[열1]]/2,0)+표2[[#This Row],[가산연차]] -> 2 | P36: =IF(표2[[#This Row],[*기산일]]="",0,IF(YEAR(표2[[#This Row],[*기산일]])+1=$AI$11,DATE(YEAR(표2[[#This Row],[*기산일]])+1,MONTH(표2[[#This Row],[*기산일]]),DAY(표2[[#This Row],[*기산일]])),"")) ->  | Q36: =IF(표2[[#This Row],[*기산일]]="",0,IF(표2[[#This Row],[전년도 입사자 1년째]]="","",$W$11-표2[[#This Row],[전년도 입사자 1년째]]+1)) ->  | R36: =IF(표2[[#This Row],[전년도 입사자 1년째]]="","",표2[[#This Row],[1년미만자 1년째 후 근속일수]]/365*$Z$12) ->  | S36: =IFERROR(MAX(0,SUM(MAX(0,ROUNDDOWN(표2[[#This Row],[1년미만자 2년째 후 근속일수]],0)+VLOOKUP((표2[[#This Row],[1년미만자 2년째 후 근속일수]]-ROUNDDOWN(표2[[#This Row],[1년미만자 2년째 후 근속일수]],0)),code!$A$4:$D$9,3,TRUE)),표2[[#This Row],[1년미만자 당기 1년미만기간 연차수(11일 일할)]],표2[[#This Row],[사용연도 입사자]])-$Z$12),0) -> 0 | T36: =IFERROR(MAX(0,ROUNDDOWN(표2[[#This Row],[1년미만자 2년째 후 근속일수]],0)+VLOOKUP((표2[[#This Row],[1년미만자 2년째 후 근속일수]]-ROUNDDOWN(표2[[#This Row],[1년미만자 2년째 후 근속일수]],0)),code!$A$4:$D$9,3,TRUE))-표2[[#This Row],[1년미만자 3년째 후 근속일수]],0) -> 0 | V36: =IF(표2[[#This Row],[*기산일]]="","",IF(YEAR(표2[[#This Row],[*기산일]])=$AI$11-1,DATE(YEAR(표2[[#This Row],[*기산일]]),MONTH(표2[[#This Row],[*기산일]])+1,DAY(표2[[#This Row],[*기산일]])),"")) ->  | W36: =IF(표2[[#This Row],[*기산일]]="",0,IF(표2[[#This Row],[1년미만자1개월째]]="","",MAX(0,DATEDIF(표2[[#This Row],[*기산일]],$W$12,"m")-1))) ->  | X36: =IF(표2[[#This Row],[*기산일]]="",0,IF(표2[[#This Row],[1년미만자1개월째]]="","",(DATE(YEAR(표2[[#This Row],[*기산일]]),MONTH(표2[[#This Row],[*기산일]])+1,0)-표2[[#This Row],[*기산일]]+1)/(DATE(YEAR(표2[[#This Row],[*기산일]]),MONTH(표2[[#This Row],[*기산일]])+1,0)-DATE(YEAR(표2[[#This Row],[*기산일]]),MONTH(표2[[#This Row],[*기산일]]),1)+1))) ->  | Y36: =IFERROR(ROUNDDOWN(표2[[#This Row],[1년미만자 전년 근속일수]]/365*$Z$11,0)+VLOOKUP(표2[[#This Row],[1년미만자 전기 연차수]]-ROUNDDOWN(표2[[#This Row],[1년미만자 전년 근속일수]]/365*$Z$11,0),code!$A$4:$D$9,3,TRUE),"") ->  | Z36: =IFERROR(표2[[#This Row],[1년미만자 전년 근속일수]]+ROUNDDOWN(표2[[#This Row],[1년미만자 전기 연차수]],0)+VLOOKUP((표2[[#This Row],[1년미만자 전기 연차수]]-ROUNDDOWN(표2[[#This Row],[1년미만자 전기 연차수]],0)),code!$A$4:$D$9,3,TRUE),0) -> 0 | AA36: =IF(표2[[#This Row],[1년미만자1개월째]]="","",$Z$11-표2[[#This Row],[2년미만자 전기 연차수(code반올림)]]) ->  | AB36: =IF(YEAR(표2[[#This Row],[*기산일]])=$AI$11,DATE(YEAR(표2[[#This Row],[*기산일]]),MONTH(표2[[#This Row],[*기산일]])+1,DAY(표2[[#This Row],[*기산일]])),"") ->  | AC36: =IF(표2[[#This Row],[사용연도 입사자 1개월]]="","",MAX(0,DATEDIF(표2[[#This Row],[*기산일]],$W$11,"m")-1)) ->  | AD36: =IF(표2[[#This Row],[사용연도 입사자 1개월]]="","",(DATE(YEAR(표2[[#This Row],[*기산일]]),MONTH(표2[[#This Row],[*기산일]])+1,0)-표2[[#This Row],[*기산일]]+1)/(DATE(YEAR(표2[[#This Row],[*기산일]]),MONTH(표2[[#This Row],[*기산일]])+1,0)-DATE(YEAR(표2[[#This Row],[*기산일]]),MONTH(표2[[#This Row],[*기산일]]),1)+1)) ->  | AE36: =표2[[#This Row],[월중 근속일수]] ->  | AF36: =IFERROR(표2[[#This Row],[사용연도입사자 근무기간(월)]]+ROUNDDOWN(표2[[#This Row],[열2]],0)+VLOOKUP((표2[[#This Row],[열2]]-ROUNDDOWN(표2[[#This Row],[열2]],0)),code!$A$4:$D$9,3,TRUE),0) -> 0 | AG36: 22 | AH36: 최정상 | AK36: 2017-07-10 | AM36: =IF($AJ$1>license!$C$3,"",IF(H36=0,0,IF($AJ$1<H36,0,$AJ$1-H36+1))) -> 2001 | AN36: =IF($AJ$1>license!$C$3,"",IF(AM36=0,0,IF($H36=0,0,DATEDIF($H36-1,$AJ$1,"y")))) -> 5 | AO36: =IF($AJ$1>license!$C$3,"",IF(AM36=0,0,IF($H36=0,0,DATEDIF($H36-1,$AJ$1,"ym")))) -> 5 | AP36: =IF($AJ$1>license!$C$3,"",IF(AM36=0,0,IF($H36=0,0,DATEDIF($H36-1,$AJ$1,"md")))) -> 22 | AQ36: =IF($AJ$1>license!$C$3,"",IF(표2[[#This Row],[1년이상 근무일수]]="",0,$Z$12-표2[[#This Row],[기간]])) -> 15 | AR36: =IFERROR(IF(표2[[#This Row],[1년이상 근무일수]]="","",MIN(표2[[#This Row],[가산연차2]],$BD$12-표2[[#This Row],[기본]])),"") -> 2 | AS36: =SUM(표2[[#This Row],[1년미만자 당기 1년미만기간 연차수(11일 일할)]],표2[[#This Row],[사용연도 입사자]],표2[[#This Row],[1년미만자 1년째 후 연차일수(15일 일할)]]) -> 0 | AU36: =IF($AJ$1>license!$C$3,"",SUM(표2[[#This Row],[기본]:[일수]])) -> 17 | AV36: =IF($AJ$1>license!$C$3,"",SUMIFS(휴가입력!O:O,휴가입력!M:M,"연차",휴가입력!L:L,AH36)) -> 27 | AW36: =IFERROR(MAX(0,표2[[#This Row],[계]]-표2[[#This Row],[사용 일수]]),0) -> 0 | AX36: =IFERROR(MAX((표2[[#This Row],[계]]-표2[[#This Row],[사용 일수]])*-1,0),0) -> 10 | AZ36: =IF($AJ$1>license!$C$3,"",ROUNDUP(표2[[#This Row],[(월급)]]/209*8,0)) -> 0 | BA36: =IF($AJ$1>license!$C$3,"",ROUNDUP(표2[[#This Row],[(일급)]]*표2[[#This Row],[미사용 일수]],0)) -> 0 | BC36: 0
A37: 1 | H37: =IF(표2[[#This Row],[*입사일]]=0,"",표2[[#This Row],[*입사일]]-$AJ$3) -> 2017-01-29 | I37: =IFERROR(IF(AO37="",0,IF(표2[[#This Row],[1년이상 근무일수]]=0,0,DATEDIF(표2[[#This Row],[1년이상 근무일수]]-1,$AJ$1,"y"))),0) -> 4 | J37: =IF(표2[[#This Row],[*기산일]]="","",IF(DATE(YEAR(표2[[#This Row],[*기산일]])+1,MONTH(표2[[#This Row],[*기산일]]),DAY(표2[[#This Row],[*기산일]]))>$AJ$1,"",DATE(YEAR(표2[[#This Row],[*기산일]])+1,MONTH(표2[[#This Row],[*기산일]]),DAY(표2[[#This Row],[*기산일]])))) -> 2018-01-29 | K37: =IF(ISODD(표2[[#This Row],[열1]])=TRUE,1,"") ->  | L37: =IF(표2[[#This Row],[가산일도래여부]]=1,DATE(YEAR($AJ$1)+1,MONTH($AJ$1),DAY($AJ$1))-DATE(YEAR($AJ$1)+1,MONTH(표2[[#This Row],[1년이상 근무일수]]),DAY(표2[[#This Row],[1년이상 근무일수]])),0) -> 0 | M37: =표2[[#This Row],[가산휴가 사용가능일]]/365 -> 0 | N37: =VLOOKUP(표2[[#This Row],[총근무일수-366]],code!$A$5:$C$9,3) -> 0 | O37: =ROUNDDOWN(표2[[#This Row],[열1]]/2,0)+표2[[#This Row],[가산연차]] -> 2 | P37: =IF(표2[[#This Row],[*기산일]]="",0,IF(YEAR(표2[[#This Row],[*기산일]])+1=$AI$11,DATE(YEAR(표2[[#This Row],[*기산일]])+1,MONTH(표2[[#This Row],[*기산일]]),DAY(표2[[#This Row],[*기산일]])),"")) ->  | Q37: =IF(표2[[#This Row],[*기산일]]="",0,IF(표2[[#This Row],[전년도 입사자 1년째]]="","",$W$11-표2[[#This Row],[전년도 입사자 1년째]]+1)) ->  | R37: =IF(표2[[#This Row],[전년도 입사자 1년째]]="","",표2[[#This Row],[1년미만자 1년째 후 근속일수]]/365*$Z$12) ->  | S37: =IFERROR(MAX(0,SUM(MAX(0,ROUNDDOWN(표2[[#This Row],[1년미만자 2년째 후 근속일수]],0)+VLOOKUP((표2[[#This Row],[1년미만자 2년째 후 근속일수]]-ROUNDDOWN(표2[[#This Row],[1년미만자 2년째 후 근속일수]],0)),code!$A$4:$D$9,3,TRUE)),표2[[#This Row],[1년미만자 당기 1년미만기간 연차수(11일 일할)]],표2[[#This Row],[사용연도 입사자]])-$Z$12),0) -> 0 | T37: =IFERROR(MAX(0,ROUNDDOWN(표2[[#This Row],[1년미만자 2년째 후 근속일수]],0)+VLOOKUP((표2[[#This Row],[1년미만자 2년째 후 근속일수]]-ROUNDDOWN(표2[[#This Row],[1년미만자 2년째 후 근속일수]],0)),code!$A$4:$D$9,3,TRUE))-표2[[#This Row],[1년미만자 3년째 후 근속일수]],0) -> 0 | V37: =IF(표2[[#This Row],[*기산일]]="","",IF(YEAR(표2[[#This Row],[*기산일]])=$AI$11-1,DATE(YEAR(표2[[#This Row],[*기산일]]),MONTH(표2[[#This Row],[*기산일]])+1,DAY(표2[[#This Row],[*기산일]])),"")) ->  | W37: =IF(표2[[#This Row],[*기산일]]="",0,IF(표2[[#This Row],[1년미만자1개월째]]="","",MAX(0,DATEDIF(표2[[#This Row],[*기산일]],$W$12,"m")-1))) ->  | X37: =IF(표2[[#This Row],[*기산일]]="",0,IF(표2[[#This Row],[1년미만자1개월째]]="","",(DATE(YEAR(표2[[#This Row],[*기산일]]),MONTH(표2[[#This Row],[*기산일]])+1,0)-표2[[#This Row],[*기산일]]+1)/(DATE(YEAR(표2[[#This Row],[*기산일]]),MONTH(표2[[#This Row],[*기산일]])+1,0)-DATE(YEAR(표2[[#This Row],[*기산일]]),MONTH(표2[[#This Row],[*기산일]]),1)+1))) ->  | Y37: =IFERROR(ROUNDDOWN(표2[[#This Row],[1년미만자 전년 근속일수]]/365*$Z$11,0)+VLOOKUP(표2[[#This Row],[1년미만자 전기 연차수]]-ROUNDDOWN(표2[[#This Row],[1년미만자 전년 근속일수]]/365*$Z$11,0),code!$A$4:$D$9,3,TRUE),"") ->  | Z37: =IFERROR(표2[[#This Row],[1년미만자 전년 근속일수]]+ROUNDDOWN(표2[[#This Row],[1년미만자 전기 연차수]],0)+VLOOKUP((표2[[#This Row],[1년미만자 전기 연차수]]-ROUNDDOWN(표2[[#This Row],[1년미만자 전기 연차수]],0)),code!$A$4:$D$9,3,TRUE),0) -> 0 | AA37: =IF(표2[[#This Row],[1년미만자1개월째]]="","",$Z$11-표2[[#This Row],[2년미만자 전기 연차수(code반올림)]]) ->  | AB37: =IF(YEAR(표2[[#This Row],[*기산일]])=$AI$11,DATE(YEAR(표2[[#This Row],[*기산일]]),MONTH(표2[[#This Row],[*기산일]])+1,DAY(표2[[#This Row],[*기산일]])),"") ->  | AC37: =IF(표2[[#This Row],[사용연도 입사자 1개월]]="","",MAX(0,DATEDIF(표2[[#This Row],[*기산일]],$W$11,"m")-1)) ->  | AD37: =IF(표2[[#This Row],[사용연도 입사자 1개월]]="","",(DATE(YEAR(표2[[#This Row],[*기산일]]),MONTH(표2[[#This Row],[*기산일]])+1,0)-표2[[#This Row],[*기산일]]+1)/(DATE(YEAR(표2[[#This Row],[*기산일]]),MONTH(표2[[#This Row],[*기산일]])+1,0)-DATE(YEAR(표2[[#This Row],[*기산일]]),MONTH(표2[[#This Row],[*기산일]]),1)+1)) ->  | AE37: =표2[[#This Row],[월중 근속일수]] ->  | AF37: =IFERROR(표2[[#This Row],[사용연도입사자 근무기간(월)]]+ROUNDDOWN(표2[[#This Row],[열2]],0)+VLOOKUP((표2[[#This Row],[열2]]-ROUNDDOWN(표2[[#This Row],[열2]],0)),code!$A$4:$D$9,3,TRUE),0) -> 0 | AG37: 23 | AH37: 최현법 | AK37: 2017-01-29 | AM37: =IF($AJ$1>license!$C$3,"",IF(H37=0,0,IF($AJ$1<H37,0,$AJ$1-H37+1))) -> 2163 | AN37: =IF($AJ$1>license!$C$3,"",IF(AM37=0,0,IF($H37=0,0,DATEDIF($H37-1,$AJ$1,"y")))) -> 5 | AO37: =IF($AJ$1>license!$C$3,"",IF(AM37=0,0,IF($H37=0,0,DATEDIF($H37-1,$AJ$1,"ym")))) -> 11 | AP37: =IF($AJ$1>license!$C$3,"",IF(AM37=0,0,IF($H37=0,0,DATEDIF($H37-1,$AJ$1,"md")))) -> 3 | AQ37: =IF($AJ$1>license!$C$3,"",IF(표2[[#This Row],[1년이상 근무일수]]="",0,$Z$12-표2[[#This Row],[기간]])) -> 15 | AR37: =IFERROR(IF(표2[[#This Row],[1년이상 근무일수]]="","",MIN(표2[[#This Row],[가산연차2]],$BD$12-표2[[#This Row],[기본]])),"") -> 2 | AS37: =SUM(표2[[#This Row],[1년미만자 당기 1년미만기간 연차수(11일 일할)]],표2[[#This Row],[사용연도 입사자]],표2[[#This Row],[1년미만자 1년째 후 연차일수(15일 일할)]]) -> 0 | AU37: =IF($AJ$1>license!$C$3,"",SUM(표2[[#This Row],[기본]:[일수]])) -> 17 | AV37: =IF($AJ$1>license!$C$3,"",SUMIFS(휴가입력!O:O,휴가입력!M:M,"연차",휴가입력!L:L,AH37)) -> 5 | AW37: =IFERROR(MAX(0,표2[[#This Row],[계]]-표2[[#This Row],[사용 일수]]),0) -> 12 | AX37: =IFERROR(MAX((표2[[#This Row],[계]]-표2[[#This Row],[사용 일수]])*-1,0),0) -> 0 | AZ37: =IF($AJ$1>license!$C$3,"",ROUNDUP(표2[[#This Row],[(월급)]]/209*8,0)) -> 0 | BA37: =IF($AJ$1>license!$C$3,"",ROUNDUP(표2[[#This Row],[(일급)]]*표2[[#This Row],[미사용 일수]],0)) -> 0 | BC37: 0
A38: 1 | H38: =IF(표2[[#This Row],[*입사일]]=0,"",표2[[#This Row],[*입사일]]-$AJ$3) -> 2018-03-19 | I38: =IFERROR(IF(AO38="",0,IF(표2[[#This Row],[1년이상 근무일수]]=0,0,DATEDIF(표2[[#This Row],[1년이상 근무일수]]-1,$AJ$1,"y"))),0) -> 3 | J38: =IF(표2[[#This Row],[*기산일]]="","",IF(DATE(YEAR(표2[[#This Row],[*기산일]])+1,MONTH(표2[[#This Row],[*기산일]]),DAY(표2[[#This Row],[*기산일]]))>$AJ$1,"",DATE(YEAR(표2[[#This Row],[*기산일]])+1,MONTH(표2[[#This Row],[*기산일]]),DAY(표2[[#This Row],[*기산일]])))) -> 2019-03-19 | K38: =IF(ISODD(표2[[#This Row],[열1]])=TRUE,1,"") -> 1 | L38: =IF(표2[[#This Row],[가산일도래여부]]=1,DATE(YEAR($AJ$1)+1,MONTH($AJ$1),DAY($AJ$1))-DATE(YEAR($AJ$1)+1,MONTH(표2[[#This Row],[1년이상 근무일수]]),DAY(표2[[#This Row],[1년이상 근무일수]])),0) -> 287 | M38: =표2[[#This Row],[가산휴가 사용가능일]]/365 -> 0.7863013699 | N38: =VLOOKUP(표2[[#This Row],[총근무일수-366]],code!$A$5:$C$9,3) -> 1 | O38: =ROUNDDOWN(표2[[#This Row],[열1]]/2,0)+표2[[#This Row],[가산연차]] -> 2 | P38: =IF(표2[[#This Row],[*기산일]]="",0,IF(YEAR(표2[[#This Row],[*기산일]])+1=$AI$11,DATE(YEAR(표2[[#This Row],[*기산일]])+1,MONTH(표2[[#This Row],[*기산일]]),DAY(표2[[#This Row],[*기산일]])),"")) ->  | Q38: =IF(표2[[#This Row],[*기산일]]="",0,IF(표2[[#This Row],[전년도 입사자 1년째]]="","",$W$11-표2[[#This Row],[전년도 입사자 1년째]]+1)) ->  | R38: =IF(표2[[#This Row],[전년도 입사자 1년째]]="","",표2[[#This Row],[1년미만자 1년째 후 근속일수]]/365*$Z$12) ->  | S38: =IFERROR(MAX(0,SUM(MAX(0,ROUNDDOWN(표2[[#This Row],[1년미만자 2년째 후 근속일수]],0)+VLOOKUP((표2[[#This Row],[1년미만자 2년째 후 근속일수]]-ROUNDDOWN(표2[[#This Row],[1년미만자 2년째 후 근속일수]],0)),code!$A$4:$D$9,3,TRUE)),표2[[#This Row],[1년미만자 당기 1년미만기간 연차수(11일 일할)]],표2[[#This Row],[사용연도 입사자]])-$Z$12),0) -> 0 | T38: =IFERROR(MAX(0,ROUNDDOWN(표2[[#This Row],[1년미만자 2년째 후 근속일수]],0)+VLOOKUP((표2[[#This Row],[1년미만자 2년째 후 근속일수]]-ROUNDDOWN(표2[[#This Row],[1년미만자 2년째 후 근속일수]],0)),code!$A$4:$D$9,3,TRUE))-표2[[#This Row],[1년미만자 3년째 후 근속일수]],0) -> 0 | V38: =IF(표2[[#This Row],[*기산일]]="","",IF(YEAR(표2[[#This Row],[*기산일]])=$AI$11-1,DATE(YEAR(표2[[#This Row],[*기산일]]),MONTH(표2[[#This Row],[*기산일]])+1,DAY(표2[[#This Row],[*기산일]])),"")) ->  | W38: =IF(표2[[#This Row],[*기산일]]="",0,IF(표2[[#This Row],[1년미만자1개월째]]="","",MAX(0,DATEDIF(표2[[#This Row],[*기산일]],$W$12,"m")-1))) ->  | X38: =IF(표2[[#This Row],[*기산일]]="",0,IF(표2[[#This Row],[1년미만자1개월째]]="","",(DATE(YEAR(표2[[#This Row],[*기산일]]),MONTH(표2[[#This Row],[*기산일]])+1,0)-표2[[#This Row],[*기산일]]+1)/(DATE(YEAR(표2[[#This Row],[*기산일]]),MONTH(표2[[#This Row],[*기산일]])+1,0)-DATE(YEAR(표2[[#This Row],[*기산일]]),MONTH(표2[[#This Row],[*기산일]]),1)+1))) ->  | Y38: =IFERROR(ROUNDDOWN(표2[[#This Row],[1년미만자 전년 근속일수]]/365*$Z$11,0)+VLOOKUP(표2[[#This Row],[1년미만자 전기 연차수]]-ROUNDDOWN(표2[[#This Row],[1년미만자 전년 근속일수]]/365*$Z$11,0),code!$A$4:$D$9,3,TRUE),"") ->  | Z38: =IFERROR(표2[[#This Row],[1년미만자 전년 근속일수]]+ROUNDDOWN(표2[[#This Row],[1년미만자 전기 연차수]],0)+VLOOKUP((표2[[#This Row],[1년미만자 전기 연차수]]-ROUNDDOWN(표2[[#This Row],[1년미만자 전기 연차수]],0)),code!$A$4:$D$9,3,TRUE),0) -> 0 | AA38: =IF(표2[[#This Row],[1년미만자1개월째]]="","",$Z$11-표2[[#This Row],[2년미만자 전기 연차수(code반올림)]]) ->  | AB38: =IF(YEAR(표2[[#This Row],[*기산일]])=$AI$11,DATE(YEAR(표2[[#This Row],[*기산일]]),MONTH(표2[[#This Row],[*기산일]])+1,DAY(표2[[#This Row],[*기산일]])),"") ->  | AC38: =IF(표2[[#This Row],[사용연도 입사자 1개월]]="","",MAX(0,DATEDIF(표2[[#This Row],[*기산일]],$W$11,"m")-1)) ->  | AD38: =IF(표2[[#This Row],[사용연도 입사자 1개월]]="","",(DATE(YEAR(표2[[#This Row],[*기산일]]),MONTH(표2[[#This Row],[*기산일]])+1,0)-표2[[#This Row],[*기산일]]+1)/(DATE(YEAR(표2[[#This Row],[*기산일]]),MONTH(표2[[#This Row],[*기산일]])+1,0)-DATE(YEAR(표2[[#This Row],[*기산일]]),MONTH(표2[[#This Row],[*기산일]]),1)+1)) ->  | AE38: =표2[[#This Row],[월중 근속일수]] ->  | AF38: =IFERROR(표2[[#This Row],[사용연도입사자 근무기간(월)]]+ROUNDDOWN(표2[[#This Row],[열2]],0)+VLOOKUP((표2[[#This Row],[열2]]-ROUNDDOWN(표2[[#This Row],[열2]],0)),code!$A$4:$D$9,3,TRUE),0) -> 0 | AG38: 24 | AH38: 황근삼 | AK38: 2018-03-19 | AM38: =IF($AJ$1>license!$C$3,"",IF(H38=0,0,IF($AJ$1<H38,0,$AJ$1-H38+1))) -> 1749 | AN38: =IF($AJ$1>license!$C$3,"",IF(AM38=0,0,IF($H38=0,0,DATEDIF($H38-1,$AJ$1,"y")))) -> 4 | AO38: =IF($AJ$1>license!$C$3,"",IF(AM38=0,0,IF($H38=0,0,DATEDIF($H38-1,$AJ$1,"ym")))) -> 9 | AP38: =IF($AJ$1>license!$C$3,"",IF(AM38=0,0,IF($H38=0,0,DATEDIF($H38-1,$AJ$1,"md")))) -> 13 | AQ38: =IF($AJ$1>license!$C$3,"",IF(표2[[#This Row],[1년이상 근무일수]]="",0,$Z$12-표2[[#This Row],[기간]])) -> 15 | AR38: =IFERROR(IF(표2[[#This Row],[1년이상 근무일수]]="","",MIN(표2[[#This Row],[가산연차2]],$BD$12-표2[[#This Row],[기본]])),"") -> 2 | AS38: =SUM(표2[[#This Row],[1년미만자 당기 1년미만기간 연차수(11일 일할)]],표2[[#This Row],[사용연도 입사자]],표2[[#This Row],[1년미만자 1년째 후 연차일수(15일 일할)]]) -> 0 | AU38: =IF($AJ$1>license!$C$3,"",SUM(표2[[#This Row],[기본]:[일수]])) -> 17 | AV38: =IF($AJ$1>license!$C$3,"",SUMIFS(휴가입력!O:O,휴가입력!M:M,"연차",휴가입력!L:L,AH38)) -> 6.5 | AW38: =IFERROR(MAX(0,표2[[#This Row],[계]]-표2[[#This Row],[사용 일수]]),0) -> 10.5 | AX38: =IFERROR(MAX((표2[[#This Row],[계]]-표2[[#This Row],[사용 일수]])*-1,0),0) -> 0 | AZ38: =IF($AJ$1>license!$C$3,"",ROUNDUP(표2[[#This Row],[(월급)]]/209*8,0)) -> 0 | BA38: =IF($AJ$1>license!$C$3,"",ROUNDUP(표2[[#This Row],[(일급)]]*표2[[#This Row],[미사용 일수]],0)) -> 0 | BC38: 0
A39: 1 | H39: =IF(표2[[#This Row],[*입사일]]=0,"",표2[[#This Row],[*입사일]]-$AJ$3) -> 2018-03-19 | I39: =IFERROR(IF(AO39="",0,IF(표2[[#This Row],[1년이상 근무일수]]=0,0,DATEDIF(표2[[#This Row],[1년이상 근무일수]]-1,$AJ$1,"y"))),0) -> 3 | J39: =IF(표2[[#This Row],[*기산일]]="","",IF(DATE(YEAR(표2[[#This Row],[*기산일]])+1,MONTH(표2[[#This Row],[*기산일]]),DAY(표2[[#This Row],[*기산일]]))>$AJ$1,"",DATE(YEAR(표2[[#This Row],[*기산일]])+1,MONTH(표2[[#This Row],[*기산일]]),DAY(표2[[#This Row],[*기산일]])))) -> 2019-03-19 | K39: =IF(ISODD(표2[[#This Row],[열1]])=TRUE,1,"") -> 1 | L39: =IF(표2[[#This Row],[가산일도래여부]]=1,DATE(YEAR($AJ$1)+1,MONTH($AJ$1),DAY($AJ$1))-DATE(YEAR($AJ$1)+1,MONTH(표2[[#This Row],[1년이상 근무일수]]),DAY(표2[[#This Row],[1년이상 근무일수]])),0) -> 287 | M39: =표2[[#This Row],[가산휴가 사용가능일]]/365 -> 0.7863013699 | N39: =VLOOKUP(표2[[#This Row],[총근무일수-366]],code!$A$5:$C$9,3) -> 1 | O39: =ROUNDDOWN(표2[[#This Row],[열1]]/2,0)+표2[[#This Row],[가산연차]] -> 2 | P39: =IF(표2[[#This Row],[*기산일]]="",0,IF(YEAR(표2[[#This Row],[*기산일]])+1=$AI$11,DATE(YEAR(표2[[#This Row],[*기산일]])+1,MONTH(표2[[#This Row],[*기산일]]),DAY(표2[[#This Row],[*기산일]])),"")) ->  | Q39: =IF(표2[[#This Row],[*기산일]]="",0,IF(표2[[#This Row],[전년도 입사자 1년째]]="","",$W$11-표2[[#This Row],[전년도 입사자 1년째]]+1)) ->  | R39: =IF(표2[[#This Row],[전년도 입사자 1년째]]="","",표2[[#This Row],[1년미만자 1년째 후 근속일수]]/365*$Z$12) ->  | S39: =IFERROR(MAX(0,SUM(MAX(0,ROUNDDOWN(표2[[#This Row],[1년미만자 2년째 후 근속일수]],0)+VLOOKUP((표2[[#This Row],[1년미만자 2년째 후 근속일수]]-ROUNDDOWN(표2[[#This Row],[1년미만자 2년째 후 근속일수]],0)),code!$A$4:$D$9,3,TRUE)),표2[[#This Row],[1년미만자 당기 1년미만기간 연차수(11일 일할)]],표2[[#This Row],[사용연도 입사자]])-$Z$12),0) -> 0 | T39: =IFERROR(MAX(0,ROUNDDOWN(표2[[#This Row],[1년미만자 2년째 후 근속일수]],0)+VLOOKUP((표2[[#This Row],[1년미만자 2년째 후 근속일수]]-ROUNDDOWN(표2[[#This Row],[1년미만자 2년째 후 근속일수]],0)),code!$A$4:$D$9,3,TRUE))-표2[[#This Row],[1년미만자 3년째 후 근속일수]],0) -> 0 | V39: =IF(표2[[#This Row],[*기산일]]="","",IF(YEAR(표2[[#This Row],[*기산일]])=$AI$11-1,DATE(YEAR(표2[[#This Row],[*기산일]]),MONTH(표2[[#This Row],[*기산일]])+1,DAY(표2[[#This Row],[*기산일]])),"")) ->  | W39: =IF(표2[[#This Row],[*기산일]]="",0,IF(표2[[#This Row],[1년미만자1개월째]]="","",MAX(0,DATEDIF(표2[[#This Row],[*기산일]],$W$12,"m")-1))) ->  | X39: =IF(표2[[#This Row],[*기산일]]="",0,IF(표2[[#This Row],[1년미만자1개월째]]="","",(DATE(YEAR(표2[[#This Row],[*기산일]]),MONTH(표2[[#This Row],[*기산일]])+1,0)-표2[[#This Row],[*기산일]]+1)/(DATE(YEAR(표2[[#This Row],[*기산일]]),MONTH(표2[[#This Row],[*기산일]])+1,0)-DATE(YEAR(표2[[#This Row],[*기산일]]),MONTH(표2[[#This Row],[*기산일]]),1)+1))) ->  | Y39: =IFERROR(ROUNDDOWN(표2[[#This Row],[1년미만자 전년 근속일수]]/365*$Z$11,0)+VLOOKUP(표2[[#This Row],[1년미만자 전기 연차수]]-ROUNDDOWN(표2[[#This Row],[1년미만자 전년 근속일수]]/365*$Z$11,0),code!$A$4:$D$9,3,TRUE),"") ->  | Z39: =IFERROR(표2[[#This Row],[1년미만자 전년 근속일수]]+ROUNDDOWN(표2[[#This Row],[1년미만자 전기 연차수]],0)+VLOOKUP((표2[[#This Row],[1년미만자 전기 연차수]]-ROUNDDOWN(표2[[#This Row],[1년미만자 전기 연차수]],0)),code!$A$4:$D$9,3,TRUE),0) -> 0 | AA39: =IF(표2[[#This Row],[1년미만자1개월째]]="","",$Z$11-표2[[#This Row],[2년미만자 전기 연차수(code반올림)]]) ->  | AB39: =IF(YEAR(표2[[#This Row],[*기산일]])=$AI$11,DATE(YEAR(표2[[#This Row],[*기산일]]),MONTH(표2[[#This Row],[*기산일]])+1,DAY(표2[[#This Row],[*기산일]])),"") ->  | AC39: =IF(표2[[#This Row],[사용연도 입사자 1개월]]="","",MAX(0,DATEDIF(표2[[#This Row],[*기산일]],$W$11,"m")-1)) ->  | AD39: =IF(표2[[#This Row],[사용연도 입사자 1개월]]="","",(DATE(YEAR(표2[[#This Row],[*기산일]]),MONTH(표2[[#This Row],[*기산일]])+1,0)-표2[[#This Row],[*기산일]]+1)/(DATE(YEAR(표2[[#This Row],[*기산일]]),MONTH(표2[[#This Row],[*기산일]])+1,0)-DATE(YEAR(표2[[#This Row],[*기산일]]),MONTH(표2[[#This Row],[*기산일]]),1)+1)) ->  | AE39: =표2[[#This Row],[월중 근속일수]] ->  | AF39: =IFERROR(표2[[#This Row],[사용연도입사자 근무기간(월)]]+ROUNDDOWN(표2[[#This Row],[열2]],0)+VLOOKUP((표2[[#This Row],[열2]]-ROUNDDOWN(표2[[#This Row],[열2]],0)),code!$A$4:$D$9,3,TRUE),0) -> 0 | AG39: 25 | AH39: 유수조 | AK39: 2018-03-19 | AM39: =IF($AJ$1>license!$C$3,"",IF(H39=0,0,IF($AJ$1<H39,0,$AJ$1-H39+1))) -> 1749 | AN39: =IF($AJ$1>license!$C$3,"",IF(AM39=0,0,IF($H39=0,0,DATEDIF($H39-1,$AJ$1,"y")))) -> 4 | AO39: =IF($AJ$1>license!$C$3,"",IF(AM39=0,0,IF($H39=0,0,DATEDIF($H39-1,$AJ$1,"ym")))) -> 9 | AP39: =IF($AJ$1>license!$C$3,"",IF(AM39=0,0,IF($H39=0,0,DATEDIF($H39-1,$AJ$1,"md")))) -> 13 | AQ39: =IF($AJ$1>license!$C$3,"",IF(표2[[#This Row],[1년이상 근무일수]]="",0,$Z$12-표2[[#This Row],[기간]])) -> 15 | AR39: =IFERROR(IF(표2[[#This Row],[1년이상 근무일수]]="","",MIN(표2[[#This Row],[가산연차2]],$BD$12-표2[[#This Row],[기본]])),"") -> 2 | AS39: =SUM(표2[[#This Row],[1년미만자 당기 1년미만기간 연차수(11일 일할)]],표2[[#This Row],[사용연도 입사자]],표2[[#This Row],[1년미만자 1년째 후 연차일수(15일 일할)]]) -> 0 | AU39: =IF($AJ$1>license!$C$3,"",SUM(표2[[#This Row],[기본]:[일수]])) -> 17 | AV39: =IF($AJ$1>license!$C$3,"",SUMIFS(휴가입력!O:O,휴가입력!M:M,"연차",휴가입력!L:L,AH39)) -> 4 | AW39: =IFERROR(MAX(0,표2[[#This Row],[계]]-표2[[#This Row],[사용 일수]]),0) -> 13 | AX39: =IFERROR(MAX((표2[[#This Row],[계]]-표2[[#This Row],[사용 일수]])*-1,0),0) -> 0 | AZ39: =IF($AJ$1>license!$C$3,"",ROUNDUP(표2[[#This Row],[(월급)]]/209*8,0)) -> 0 | BA39: =IF($AJ$1>license!$C$3,"",ROUNDUP(표2[[#This Row],[(일급)]]*표2[[#This Row],[미사용 일수]],0)) -> 0 | BC39: 0
A40: 1 | H40: =IF(표2[[#This Row],[*입사일]]=0,"",표2[[#This Row],[*입사일]]-$AJ$3) -> 2018-03-19 | I40: =IFERROR(IF(AO40="",0,IF(표2[[#This Row],[1년이상 근무일수]]=0,0,DATEDIF(표2[[#This Row],[1년이상 근무일수]]-1,$AJ$1,"y"))),0) -> 3 | J40: =IF(표2[[#This Row],[*기산일]]="","",IF(DATE(YEAR(표2[[#This Row],[*기산일]])+1,MONTH(표2[[#This Row],[*기산일]]),DAY(표2[[#This Row],[*기산일]]))>$AJ$1,"",DATE(YEAR(표2[[#This Row],[*기산일]])+1,MONTH(표2[[#This Row],[*기산일]]),DAY(표2[[#This Row],[*기산일]])))) -> 2019-03-19 | K40: =IF(ISODD(표2[[#This Row],[열1]])=TRUE,1,"") -> 1 | L40: =IF(표2[[#This Row],[가산일도래여부]]=1,DATE(YEAR($AJ$1)+1,MONTH($AJ$1),DAY($AJ$1))-DATE(YEAR($AJ$1)+1,MONTH(표2[[#This Row],[1년이상 근무일수]]),DAY(표2[[#This Row],[1년이상 근무일수]])),0) -> 287 | M40: =표2[[#This Row],[가산휴가 사용가능일]]/365 -> 0.7863013699 | N40: =VLOOKUP(표2[[#This Row],[총근무일수-366]],code!$A$5:$C$9,3) -> 1 | O40: =ROUNDDOWN(표2[[#This Row],[열1]]/2,0)+표2[[#This Row],[가산연차]] -> 2 | P40: =IF(표2[[#This Row],[*기산일]]="",0,IF(YEAR(표2[[#This Row],[*기산일]])+1=$AI$11,DATE(YEAR(표2[[#This Row],[*기산일]])+1,MONTH(표2[[#This Row],[*기산일]]),DAY(표2[[#This Row],[*기산일]])),"")) ->  | Q40: =IF(표2[[#This Row],[*기산일]]="",0,IF(표2[[#This Row],[전년도 입사자 1년째]]="","",$W$11-표2[[#This Row],[전년도 입사자 1년째]]+1)) ->  | R40: =IF(표2[[#This Row],[전년도 입사자 1년째]]="","",표2[[#This Row],[1년미만자 1년째 후 근속일수]]/365*$Z$12) ->  | S40: =IFERROR(MAX(0,SUM(MAX(0,ROUNDDOWN(표2[[#This Row],[1년미만자 2년째 후 근속일수]],0)+VLOOKUP((표2[[#This Row],[1년미만자 2년째 후 근속일수]]-ROUNDDOWN(표2[[#This Row],[1년미만자 2년째 후 근속일수]],0)),code!$A$4:$D$9,3,TRUE)),표2[[#This Row],[1년미만자 당기 1년미만기간 연차수(11일 일할)]],표2[[#This Row],[사용연도 입사자]])-$Z$12),0) -> 0 | T40: =IFERROR(MAX(0,ROUNDDOWN(표2[[#This Row],[1년미만자 2년째 후 근속일수]],0)+VLOOKUP((표2[[#This Row],[1년미만자 2년째 후 근속일수]]-ROUNDDOWN(표2[[#This Row],[1년미만자 2년째 후 근속일수]],0)),code!$A$4:$D$9,3,TRUE))-표2[[#This Row],[1년미만자 3년째 후 근속일수]],0) -> 0 | V40: =IF(표2[[#This Row],[*기산일]]="","",IF(YEAR(표2[[#This Row],[*기산일]])=$AI$11-1,DATE(YEAR(표2[[#This Row],[*기산일]]),MONTH(표2[[#This Row],[*기산일]])+1,DAY(표2[[#This Row],[*기산일]])),"")) ->  | W40: =IF(표2[[#This Row],[*기산일]]="",0,IF(표2[[#This Row],[1년미만자1개월째]]="","",MAX(0,DATEDIF(표2[[#This Row],[*기산일]],$W$12,"m")-1))) ->  | X40: =IF(표2[[#This Row],[*기산일]]="",0,IF(표2[[#This Row],[1년미만자1개월째]]="","",(DATE(YEAR(표2[[#This Row],[*기산일]]),MONTH(표2[[#This Row],[*기산일]])+1,0)-표2[[#This Row],[*기산일]]+1)/(DATE(YEAR(표2[[#This Row],[*기산일]]),MONTH(표2[[#This Row],[*기산일]])+1,0)-DATE(YEAR(표2[[#This Row],[*기산일]]),MONTH(표2[[#This Row],[*기산일]]),1)+1))) ->  | Y40: =IFERROR(ROUNDDOWN(표2[[#This Row],[1년미만자 전년 근속일수]]/365*$Z$11,0)+VLOOKUP(표2[[#This Row],[1년미만자 전기 연차수]]-ROUNDDOWN(표2[[#This Row],[1년미만자 전년 근속일수]]/365*$Z$11,0),code!$A$4:$D$9,3,TRUE),"") ->  | Z40: =IFERROR(표2[[#This Row],[1년미만자 전년 근속일수]]+ROUNDDOWN(표2[[#This Row],[1년미만자 전기 연차수]],0)+VLOOKUP((표2[[#This Row],[1년미만자 전기 연차수]]-ROUNDDOWN(표2[[#This Row],[1년미만자 전기 연차수]],0)),code!$A$4:$D$9,3,TRUE),0) -> 0 | AA40: =IF(표2[[#This Row],[1년미만자1개월째]]="","",$Z$11-표2[[#This Row],[2년미만자 전기 연차수(code반올림)]]) ->  | AB40: =IF(YEAR(표2[[#This Row],[*기산일]])=$AI$11,DATE(YEAR(표2[[#This Row],[*기산일]]),MONTH(표2[[#This Row],[*기산일]])+1,DAY(표2[[#This Row],[*기산일]])),"") ->  | AC40: =IF(표2[[#This Row],[사용연도 입사자 1개월]]="","",MAX(0,DATEDIF(표2[[#This Row],[*기산일]],$W$11,"m")-1)) ->  | AD40: =IF(표2[[#This Row],[사용연도 입사자 1개월]]="","",(DATE(YEAR(표2[[#This Row],[*기산일]]),MONTH(표2[[#This Row],[*기산일]])+1,0)-표2[[#This Row],[*기산일]]+1)/(DATE(YEAR(표2[[#This Row],[*기산일]]),MONTH(표2[[#This Row],[*기산일]])+1,0)-DATE(YEAR(표2[[#This Row],[*기산일]]),MONTH(표2[[#This Row],[*기산일]]),1)+1)) ->  | AE40: =표2[[#This Row],[월중 근속일수]] ->  | AF40: =IFERROR(표2[[#This Row],[사용연도입사자 근무기간(월)]]+ROUNDDOWN(표2[[#This Row],[열2]],0)+VLOOKUP((표2[[#This Row],[열2]]-ROUNDDOWN(표2[[#This Row],[열2]],0)),code!$A$4:$D$9,3,TRUE),0) -> 0 | AG40: 26 | AH40: 백준상 | AK40: 2018-03-19 | AM40: =IF($AJ$1>license!$C$3,"",IF(H40=0,0,IF($AJ$1<H40,0,$AJ$1-H40+1))) -> 1749 | AN40: =IF($AJ$1>license!$C$3,"",IF(AM40=0,0,IF($H40=0,0,DATEDIF($H40-1,$AJ$1,"y")))) -> 4 | AO40: =IF($AJ$1>license!$C$3,"",IF(AM40=0,0,IF($H40=0,0,DATEDIF($H40-1,$AJ$1,"ym")))) -> 9 | AP40: =IF($AJ$1>license!$C$3,"",IF(AM40=0,0,IF($H40=0,0,DATEDIF($H40-1,$AJ$1,"md")))) -> 13 | AQ40: =IF($AJ$1>license!$C$3,"",IF(표2[[#This Row],[1년이상 근무일수]]="",0,$Z$12-표2[[#This Row],[기간]])) -> 15 | AR40: =IFERROR(IF(표2[[#This Row],[1년이상 근무일수]]="","",MIN(표2[[#This Row],[가산연차2]],$BD$12-표2[[#This Row],[기본]])),"") -> 2 | AS40: =SUM(표2[[#This Row],[1년미만자 당기 1년미만기간 연차수(11일 일할)]],표2[[#This Row],[사용연도 입사자]],표2[[#This Row],[1년미만자 1년째 후 연차일수(15일 일할)]]) -> 0 | AU40: =IF($AJ$1>license!$C$3,"",SUM(표2[[#This Row],[기본]:[일수]])) -> 17 | AV40: =IF($AJ$1>license!$C$3,"",SUMIFS(휴가입력!O:O,휴가입력!M:M,"연차",휴가입력!L:L,AH40)) -> 8 | AW40: =IFERROR(MAX(0,표2[[#This Row],[계]]-표2[[#This Row],[사용 일수]]),0) -> 9 | AX40: =IFERROR(MAX((표2[[#This Row],[계]]-표2[[#This Row],[사용 일수]])*-1,0),0) -> 0 | AZ40: =IF($AJ$1>license!$C$3,"",ROUNDUP(표2[[#This Row],[(월급)]]/209*8,0)) -> 0 | BA40: =IF($AJ$1>license!$C$3,"",ROUNDUP(표2[[#This Row],[(일급)]]*표2[[#This Row],[미사용 일수]],0)) -> 0 | BC40: =COUNTIF(AJ39:AJ340,AH40) -> 0
A41: 1 | H41: =IF(표2[[#This Row],[*입사일]]=0,"",표2[[#This Row],[*입사일]]-$AJ$3) -> 2018-06-01 | I41: =IFERROR(IF(AO41="",0,IF(표2[[#This Row],[1년이상 근무일수]]=0,0,DATEDIF(표2[[#This Row],[1년이상 근무일수]]-1,$AJ$1,"y"))),0) -> 3 | J41: =IF(표2[[#This Row],[*기산일]]="","",IF(DATE(YEAR(표2[[#This Row],[*기산일]])+1,MONTH(표2[[#This Row],[*기산일]]),DAY(표2[[#This Row],[*기산일]]))>$AJ$1,"",DATE(YEAR(표2[[#This Row],[*기산일]])+1,MONTH(표2[[#This Row],[*기산일]]),DAY(표2[[#This Row],[*기산일]])))) -> 2019-06-01 | K41: =IF(ISODD(표2[[#This Row],[열1]])=TRUE,1,"") -> 1 | L41: =IF(표2[[#This Row],[가산일도래여부]]=1,DATE(YEAR($AJ$1)+1,MONTH($AJ$1),DAY($AJ$1))-DATE(YEAR($AJ$1)+1,MONTH(표2[[#This Row],[1년이상 근무일수]]),DAY(표2[[#This Row],[1년이상 근무일수]])),0) -> 213 | M41: =표2[[#This Row],[가산휴가 사용가능일]]/365 -> 0.5835616438 | N41: =VLOOKUP(표2[[#This Row],[총근무일수-366]],code!$A$5:$C$9,3) -> 0.5 | O41: =ROUNDDOWN(표2[[#This Row],[열1]]/2,0)+표2[[#This Row],[가산연차]] -> 1.5 | P41: =IF(표2[[#This Row],[*기산일]]="",0,IF(YEAR(표2[[#This Row],[*기산일]])+1=$AI$11,DATE(YEAR(표2[[#This Row],[*기산일]])+1,MONTH(표2[[#This Row],[*기산일]]),DAY(표2[[#This Row],[*기산일]])),"")) ->  | Q41: =IF(표2[[#This Row],[*기산일]]="",0,IF(표2[[#This Row],[전년도 입사자 1년째]]="","",$W$11-표2[[#This Row],[전년도 입사자 1년째]]+1)) ->  | R41: =IF(표2[[#This Row],[전년도 입사자 1년째]]="","",표2[[#This Row],[1년미만자 1년째 후 근속일수]]/365*$Z$12) ->  | S41: =IFERROR(MAX(0,SUM(MAX(0,ROUNDDOWN(표2[[#This Row],[1년미만자 2년째 후 근속일수]],0)+VLOOKUP((표2[[#This Row],[1년미만자 2년째 후 근속일수]]-ROUNDDOWN(표2[[#This Row],[1년미만자 2년째 후 근속일수]],0)),code!$A$4:$D$9,3,TRUE)),표2[[#This Row],[1년미만자 당기 1년미만기간 연차수(11일 일할)]],표2[[#This Row],[사용연도 입사자]])-$Z$12),0) -> 0 | T41: =IFERROR(MAX(0,ROUNDDOWN(표2[[#This Row],[1년미만자 2년째 후 근속일수]],0)+VLOOKUP((표2[[#This Row],[1년미만자 2년째 후 근속일수]]-ROUNDDOWN(표2[[#This Row],[1년미만자 2년째 후 근속일수]],0)),code!$A$4:$D$9,3,TRUE))-표2[[#This Row],[1년미만자 3년째 후 근속일수]],0) -> 0 | V41: =IF(표2[[#This Row],[*기산일]]="","",IF(YEAR(표2[[#This Row],[*기산일]])=$AI$11-1,DATE(YEAR(표2[[#This Row],[*기산일]]),MONTH(표2[[#This Row],[*기산일]])+1,DAY(표2[[#This Row],[*기산일]])),"")) ->  | W41: =IF(표2[[#This Row],[*기산일]]="",0,IF(표2[[#This Row],[1년미만자1개월째]]="","",MAX(0,DATEDIF(표2[[#This Row],[*기산일]],$W$12,"m")-1))) ->  | X41: =IF(표2[[#This Row],[*기산일]]="",0,IF(표2[[#This Row],[1년미만자1개월째]]="","",(DATE(YEAR(표2[[#This Row],[*기산일]]),MONTH(표2[[#This Row],[*기산일]])+1,0)-표2[[#This Row],[*기산일]]+1)/(DATE(YEAR(표2[[#This Row],[*기산일]]),MONTH(표2[[#This Row],[*기산일]])+1,0)-DATE(YEAR(표2[[#This Row],[*기산일]]),MONTH(표2[[#This Row],[*기산일]]),1)+1))) ->  | Y41: =IFERROR(ROUNDDOWN(표2[[#This Row],[1년미만자 전년 근속일수]]/365*$Z$11,0)+VLOOKUP(표2[[#This Row],[1년미만자 전기 연차수]]-ROUNDDOWN(표2[[#This Row],[1년미만자 전년 근속일수]]/365*$Z$11,0),code!$A$4:$D$9,3,TRUE),"") ->  | Z41: =IFERROR(표2[[#This Row],[1년미만자 전년 근속일수]]+ROUNDDOWN(표2[[#This Row],[1년미만자 전기 연차수]],0)+VLOOKUP((표2[[#This Row],[1년미만자 전기 연차수]]-ROUNDDOWN(표2[[#This Row],[1년미만자 전기 연차수]],0)),code!$A$4:$D$9,3,TRUE),0) -> 0 | AA41: =IF(표2[[#This Row],[1년미만자1개월째]]="","",$Z$11-표2[[#This Row],[2년미만자 전기 연차수(code반올림)]]) ->  | AB41: =IF(YEAR(표2[[#This Row],[*기산일]])=$AI$11,DATE(YEAR(표2[[#This Row],[*기산일]]),MONTH(표2[[#This Row],[*기산일]])+1,DAY(표2[[#This Row],[*기산일]])),"") ->  | AC41: =IF(표2[[#This Row],[사용연도 입사자 1개월]]="","",MAX(0,DATEDIF(표2[[#This Row],[*기산일]],$W$11,"m")-1)) ->  | AD41: =IF(표2[[#This Row],[사용연도 입사자 1개월]]="","",(DATE(YEAR(표2[[#This Row],[*기산일]]),MONTH(표2[[#This Row],[*기산일]])+1,0)-표2[[#This Row],[*기산일]]+1)/(DATE(YEAR(표2[[#This Row],[*기산일]]),MONTH(표2[[#This Row],[*기산일]])+1,0)-DATE(YEAR(표2[[#This Row],[*기산일]]),MONTH(표2[[#This Row],[*기산일]]),1)+1)) ->  | AE41: =표2[[#This Row],[월중 근속일수]] ->  | AF41: =IFERROR(표2[[#This Row],[사용연도입사자 근무기간(월)]]+ROUNDDOWN(표2[[#This Row],[열2]],0)+VLOOKUP((표2[[#This Row],[열2]]-ROUNDDOWN(표2[[#This Row],[열2]],0)),code!$A$4:$D$9,3,TRUE),0) -> 0 | AG41: 27 | AH41: 이진실 | AK41: 2018-06-01 | AM41: =IF($AJ$1>license!$C$3,"",IF(H41=0,0,IF($AJ$1<H41,0,$AJ$1-H41+1))) -> 1675 | AN41: =IF($AJ$1>license!$C$3,"",IF(AM41=0,0,IF($H41=0,0,DATEDIF($H41-1,$AJ$1,"y")))) -> 4 | AO41: =IF($AJ$1>license!$C$3,"",IF(AM41=0,0,IF($H41=0,0,DATEDIF($H41-1,$AJ$1,"ym")))) -> 7 | AP41: =IF($AJ$1>license!$C$3,"",IF(AM41=0,0,IF($H41=0,0,DATEDIF($H41-1,$AJ$1,"md")))) -> 0 | AQ41: =IF($AJ$1>license!$C$3,"",IF(표2[[#This Row],[1년이상 근무일수]]="",0,$Z$12-표2[[#This Row],[기간]])) -> 15 | AR41: =IFERROR(IF(표2[[#This Row],[1년이상 근무일수]]="","",MIN(표2[[#This Row],[가산연차2]],$BD$12-표2[[#This Row],[기본]])),"") -> 1.5 | AS41: =SUM(표2[[#This Row],[1년미만자 당기 1년미만기간 연차수(11일 일할)]],표2[[#This Row],[사용연도 입사자]],표2[[#This Row],[1년미만자 1년째 후 연차일수(15일 일할)]]) -> 0 | AU41: =IF($AJ$1>license!$C$3,"",SUM(표2[[#This Row],[기본]:[일수]])) -> 16.5 | AV41: =IF($AJ$1>license!$C$3,"",SUMIFS(휴가입력!O:O,휴가입력!M:M,"연차",휴가입력!L:L,AH41)) -> 3 | AW41: =IFERROR(MAX(0,표2[[#This Row],[계]]-표2[[#This Row],[사용 일수]]),0) -> 13.5 | AX41: =IFERROR(MAX((표2[[#This Row],[계]]-표2[[#This Row],[사용 일수]])*-1,0),0) -> 0 | AZ41: =IF($AJ$1>license!$C$3,"",ROUNDUP(표2[[#This Row],[(월급)]]/209*8,0)) -> 0 | BA41: =IF($AJ$1>license!$C$3,"",ROUNDUP(표2[[#This Row],[(일급)]]*표2[[#This Row],[미사용 일수]],0)) -> 0 | BC41: 0
A42: 1 | H42: =IF(표2[[#This Row],[*입사일]]=0,"",표2[[#This Row],[*입사일]]-$AJ$3) -> 2018-08-06 | I42: =IFERROR(IF(AO42="",0,IF(표2[[#This Row],[1년이상 근무일수]]=0,0,DATEDIF(표2[[#This Row],[1년이상 근무일수]]-1,$AJ$1,"y"))),0) -> 3 | J42: =IF(표2[[#This Row],[*기산일]]="","",IF(DATE(YEAR(표2[[#This Row],[*기산일]])+1,MONTH(표2[[#This Row],[*기산일]]),DAY(표2[[#This Row],[*기산일]]))>$AJ$1,"",DATE(YEAR(표2[[#This Row],[*기산일]])+1,MONTH(표2[[#This Row],[*기산일]]),DAY(표2[[#This Row],[*기산일]])))) -> 2019-08-06 | K42: =IF(ISODD(표2[[#This Row],[열1]])=TRUE,1,"") -> 1 | L42: =IF(표2[[#This Row],[가산일도래여부]]=1,DATE(YEAR($AJ$1)+1,MONTH($AJ$1),DAY($AJ$1))-DATE(YEAR($AJ$1)+1,MONTH(표2[[#This Row],[1년이상 근무일수]]),DAY(표2[[#This Row],[1년이상 근무일수]])),0) -> 147 | M42: =표2[[#This Row],[가산휴가 사용가능일]]/365 -> 0.402739726 | N42: =VLOOKUP(표2[[#This Row],[총근무일수-366]],code!$A$5:$C$9,3) -> 0.5 | O42: =ROUNDDOWN(표2[[#This Row],[열1]]/2,0)+표2[[#This Row],[가산연차]] -> 1.5 | P42: =IF(표2[[#This Row],[*기산일]]="",0,IF(YEAR(표2[[#This Row],[*기산일]])+1=$AI$11,DATE(YEAR(표2[[#This Row],[*기산일]])+1,MONTH(표2[[#This Row],[*기산일]]),DAY(표2[[#This Row],[*기산일]])),"")) ->  | Q42: =IF(표2[[#This Row],[*기산일]]="",0,IF(표2[[#This Row],[전년도 입사자 1년째]]="","",$W$11-표2[[#This Row],[전년도 입사자 1년째]]+1)) ->  | R42: =IF(표2[[#This Row],[전년도 입사자 1년째]]="","",표2[[#This Row],[1년미만자 1년째 후 근속일수]]/365*$Z$12) ->  | S42: =IFERROR(MAX(0,SUM(MAX(0,ROUNDDOWN(표2[[#This Row],[1년미만자 2년째 후 근속일수]],0)+VLOOKUP((표2[[#This Row],[1년미만자 2년째 후 근속일수]]-ROUNDDOWN(표2[[#This Row],[1년미만자 2년째 후 근속일수]],0)),code!$A$4:$D$9,3,TRUE)),표2[[#This Row],[1년미만자 당기 1년미만기간 연차수(11일 일할)]],표2[[#This Row],[사용연도 입사자]])-$Z$12),0) -> 0 | T42: =IFERROR(MAX(0,ROUNDDOWN(표2[[#This Row],[1년미만자 2년째 후 근속일수]],0)+VLOOKUP((표2[[#This Row],[1년미만자 2년째 후 근속일수]]-ROUNDDOWN(표2[[#This Row],[1년미만자 2년째 후 근속일수]],0)),code!$A$4:$D$9,3,TRUE))-표2[[#This Row],[1년미만자 3년째 후 근속일수]],0) -> 0 | V42: =IF(표2[[#This Row],[*기산일]]="","",IF(YEAR(표2[[#This Row],[*기산일]])=$AI$11-1,DATE(YEAR(표2[[#This Row],[*기산일]]),MONTH(표2[[#This Row],[*기산일]])+1,DAY(표2[[#This Row],[*기산일]])),"")) ->  | W42: =IF(표2[[#This Row],[*기산일]]="",0,IF(표2[[#This Row],[1년미만자1개월째]]="","",MAX(0,DATEDIF(표2[[#This Row],[*기산일]],$W$12,"m")-1))) ->  | X42: =IF(표2[[#This Row],[*기산일]]="",0,IF(표2[[#This Row],[1년미만자1개월째]]="","",(DATE(YEAR(표2[[#This Row],[*기산일]]),MONTH(표2[[#This Row],[*기산일]])+1,0)-표2[[#This Row],[*기산일]]+1)/(DATE(YEAR(표2[[#This Row],[*기산일]]),MONTH(표2[[#This Row],[*기산일]])+1,0)-DATE(YEAR(표2[[#This Row],[*기산일]]),MONTH(표2[[#This Row],[*기산일]]),1)+1))) ->  | Y42: =IFERROR(ROUNDDOWN(표2[[#This Row],[1년미만자 전년 근속일수]]/365*$Z$11,0)+VLOOKUP(표2[[#This Row],[1년미만자 전기 연차수]]-ROUNDDOWN(표2[[#This Row],[1년미만자 전년 근속일수]]/365*$Z$11,0),code!$A$4:$D$9,3,TRUE),"") ->  | Z42: =IFERROR(표2[[#This Row],[1년미만자 전년 근속일수]]+ROUNDDOWN(표2[[#This Row],[1년미만자 전기 연차수]],0)+VLOOKUP((표2[[#This Row],[1년미만자 전기 연차수]]-ROUNDDOWN(표2[[#This Row],[1년미만자 전기 연차수]],0)),code!$A$4:$D$9,3,TRUE),0) -> 0 | AA42: =IF(표2[[#This Row],[1년미만자1개월째]]="","",$Z$11-표2[[#This Row],[2년미만자 전기 연차수(code반올림)]]) ->  | AB42: =IF(YEAR(표2[[#This Row],[*기산일]])=$AI$11,DATE(YEAR(표2[[#This Row],[*기산일]]),MONTH(표2[[#This Row],[*기산일]])+1,DAY(표2[[#This Row],[*기산일]])),"") ->  | AC42: =IF(표2[[#This Row],[사용연도 입사자 1개월]]="","",MAX(0,DATEDIF(표2[[#This Row],[*기산일]],$W$11,"m")-1)) ->  | AD42: =IF(표2[[#This Row],[사용연도 입사자 1개월]]="","",(DATE(YEAR(표2[[#This Row],[*기산일]]),MONTH(표2[[#This Row],[*기산일]])+1,0)-표2[[#This Row],[*기산일]]+1)/(DATE(YEAR(표2[[#This Row],[*기산일]]),MONTH(표2[[#This Row],[*기산일]])+1,0)-DATE(YEAR(표2[[#This Row],[*기산일]]),MONTH(표2[[#This Row],[*기산일]]),1)+1)) ->  | AE42: =표2[[#This Row],[월중 근속일수]] ->  | AF42: =IFERROR(표2[[#This Row],[사용연도입사자 근무기간(월)]]+ROUNDDOWN(표2[[#This Row],[열2]],0)+VLOOKUP((표2[[#This Row],[열2]]-ROUNDDOWN(표2[[#This Row],[열2]],0)),code!$A$4:$D$9,3,TRUE),0) -> 0 | AG42: 28 | AH42: 정용실 | AK42: 2018-08-06 | AM42: =IF($AJ$1>license!$C$3,"",IF(H42=0,0,IF($AJ$1<H42,0,$AJ$1-H42+1))) -> 1609 | AN42: =IF($AJ$1>license!$C$3,"",IF(AM42=0,0,IF($H42=0,0,DATEDIF($H42-1,$AJ$1,"y")))) -> 4 | AO42: =IF($AJ$1>license!$C$3,"",IF(AM42=0,0,IF($H42=0,0,DATEDIF($H42-1,$AJ$1,"ym")))) -> 4 | AP42: =IF($AJ$1>license!$C$3,"",IF(AM42=0,0,IF($H42=0,0,DATEDIF($H42-1,$AJ$1,"md")))) -> 26 | AQ42: =IF($AJ$1>license!$C$3,"",IF(표2[[#This Row],[1년이상 근무일수]]="",0,$Z$12-표2[[#This Row],[기간]])) -> 15 | AR42: =IFERROR(IF(표2[[#This Row],[1년이상 근무일수]]="","",MIN(표2[[#This Row],[가산연차2]],$BD$12-표2[[#This Row],[기본]])),"") -> 1.5 | AS42: =SUM(표2[[#This Row],[1년미만자 당기 1년미만기간 연차수(11일 일할)]],표2[[#This Row],[사용연도 입사자]],표2[[#This Row],[1년미만자 1년째 후 연차일수(15일 일할)]]) -> 0 | AU42: =IF($AJ$1>license!$C$3,"",SUM(표2[[#This Row],[기본]:[일수]])) -> 16.5 | AV42: =IF($AJ$1>license!$C$3,"",SUMIFS(휴가입력!O:O,휴가입력!M:M,"연차",휴가입력!L:L,AH42)) -> 3.5 | AW42: =IFERROR(MAX(0,표2[[#This Row],[계]]-표2[[#This Row],[사용 일수]]),0) -> 13 | AX42: =IFERROR(MAX((표2[[#This Row],[계]]-표2[[#This Row],[사용 일수]])*-1,0),0) -> 0 | AZ42: =IF($AJ$1>license!$C$3,"",ROUNDUP(표2[[#This Row],[(월급)]]/209*8,0)) -> 0 | BA42: =IF($AJ$1>license!$C$3,"",ROUNDUP(표2[[#This Row],[(일급)]]*표2[[#This Row],[미사용 일수]],0)) -> 0 | BC42: 0
A43: 1 | H43: =IF(표2[[#This Row],[*입사일]]=0,"",표2[[#This Row],[*입사일]]-$AJ$3) -> 2018-08-06 | I43: =IFERROR(IF(AO43="",0,IF(표2[[#This Row],[1년이상 근무일수]]=0,0,DATEDIF(표2[[#This Row],[1년이상 근무일수]]-1,$AJ$1,"y"))),0) -> 3 | J43: =IF(표2[[#This Row],[*기산일]]="","",IF(DATE(YEAR(표2[[#This Row],[*기산일]])+1,MONTH(표2[[#This Row],[*기산일]]),DAY(표2[[#This Row],[*기산일]]))>$AJ$1,"",DATE(YEAR(표2[[#This Row],[*기산일]])+1,MONTH(표2[[#This Row],[*기산일]]),DAY(표2[[#This Row],[*기산일]])))) -> 2019-08-06 | K43: =IF(ISODD(표2[[#This Row],[열1]])=TRUE,1,"") -> 1 | L43: =IF(표2[[#This Row],[가산일도래여부]]=1,DATE(YEAR($AJ$1)+1,MONTH($AJ$1),DAY($AJ$1))-DATE(YEAR($AJ$1)+1,MONTH(표2[[#This Row],[1년이상 근무일수]]),DAY(표2[[#This Row],[1년이상 근무일수]])),0) -> 147 | M43: =표2[[#This Row],[가산휴가 사용가능일]]/365 -> 0.402739726 | N43: =VLOOKUP(표2[[#This Row],[총근무일수-366]],code!$A$5:$C$9,3) -> 0.5 | O43: =ROUNDDOWN(표2[[#This Row],[열1]]/2,0)+표2[[#This Row],[가산연차]] -> 1.5 | P43: =IF(표2[[#This Row],[*기산일]]="",0,IF(YEAR(표2[[#This Row],[*기산일]])+1=$AI$11,DATE(YEAR(표2[[#This Row],[*기산일]])+1,MONTH(표2[[#This Row],[*기산일]]),DAY(표2[[#This Row],[*기산일]])),"")) ->  | Q43: =IF(표2[[#This Row],[*기산일]]="",0,IF(표2[[#This Row],[전년도 입사자 1년째]]="","",$W$11-표2[[#This Row],[전년도 입사자 1년째]]+1)) ->  | R43: =IF(표2[[#This Row],[전년도 입사자 1년째]]="","",표2[[#This Row],[1년미만자 1년째 후 근속일수]]/365*$Z$12) ->  | S43: =IFERROR(MAX(0,SUM(MAX(0,ROUNDDOWN(표2[[#This Row],[1년미만자 2년째 후 근속일수]],0)+VLOOKUP((표2[[#This Row],[1년미만자 2년째 후 근속일수]]-ROUNDDOWN(표2[[#This Row],[1년미만자 2년째 후 근속일수]],0)),code!$A$4:$D$9,3,TRUE)),표2[[#This Row],[1년미만자 당기 1년미만기간 연차수(11일 일할)]],표2[[#This Row],[사용연도 입사자]])-$Z$12),0) -> 0 | T43: =IFERROR(MAX(0,ROUNDDOWN(표2[[#This Row],[1년미만자 2년째 후 근속일수]],0)+VLOOKUP((표2[[#This Row],[1년미만자 2년째 후 근속일수]]-ROUNDDOWN(표2[[#This Row],[1년미만자 2년째 후 근속일수]],0)),code!$A$4:$D$9,3,TRUE))-표2[[#This Row],[1년미만자 3년째 후 근속일수]],0) -> 0 | V43: =IF(표2[[#This Row],[*기산일]]="","",IF(YEAR(표2[[#This Row],[*기산일]])=$AI$11-1,DATE(YEAR(표2[[#This Row],[*기산일]]),MONTH(표2[[#This Row],[*기산일]])+1,DAY(표2[[#This Row],[*기산일]])),"")) ->  | W43: =IF(표2[[#This Row],[*기산일]]="",0,IF(표2[[#This Row],[1년미만자1개월째]]="","",MAX(0,DATEDIF(표2[[#This Row],[*기산일]],$W$12,"m")-1))) ->  | X43: =IF(표2[[#This Row],[*기산일]]="",0,IF(표2[[#This Row],[1년미만자1개월째]]="","",(DATE(YEAR(표2[[#This Row],[*기산일]]),MONTH(표2[[#This Row],[*기산일]])+1,0)-표2[[#This Row],[*기산일]]+1)/(DATE(YEAR(표2[[#This Row],[*기산일]]),MONTH(표2[[#This Row],[*기산일]])+1,0)-DATE(YEAR(표2[[#This Row],[*기산일]]),MONTH(표2[[#This Row],[*기산일]]),1)+1))) ->  | Y43: =IFERROR(ROUNDDOWN(표2[[#This Row],[1년미만자 전년 근속일수]]/365*$Z$11,0)+VLOOKUP(표2[[#This Row],[1년미만자 전기 연차수]]-ROUNDDOWN(표2[[#This Row],[1년미만자 전년 근속일수]]/365*$Z$11,0),code!$A$4:$D$9,3,TRUE),"") ->  | Z43: =IFERROR(표2[[#This Row],[1년미만자 전년 근속일수]]+ROUNDDOWN(표2[[#This Row],[1년미만자 전기 연차수]],0)+VLOOKUP((표2[[#This Row],[1년미만자 전기 연차수]]-ROUNDDOWN(표2[[#This Row],[1년미만자 전기 연차수]],0)),code!$A$4:$D$9,3,TRUE),0) -> 0 | AA43: =IF(표2[[#This Row],[1년미만자1개월째]]="","",$Z$11-표2[[#This Row],[2년미만자 전기 연차수(code반올림)]]) ->  | AB43: =IF(YEAR(표2[[#This Row],[*기산일]])=$AI$11,DATE(YEAR(표2[[#This Row],[*기산일]]),MONTH(표2[[#This Row],[*기산일]])+1,DAY(표2[[#This Row],[*기산일]])),"") ->  | AC43: =IF(표2[[#This Row],[사용연도 입사자 1개월]]="","",MAX(0,DATEDIF(표2[[#This Row],[*기산일]],$W$11,"m")-1)) ->  | AD43: =IF(표2[[#This Row],[사용연도 입사자 1개월]]="","",(DATE(YEAR(표2[[#This Row],[*기산일]]),MONTH(표2[[#This Row],[*기산일]])+1,0)-표2[[#This Row],[*기산일]]+1)/(DATE(YEAR(표2[[#This Row],[*기산일]]),MONTH(표2[[#This Row],[*기산일]])+1,0)-DATE(YEAR(표2[[#This Row],[*기산일]]),MONTH(표2[[#This Row],[*기산일]]),1)+1)) ->  | AE43: =표2[[#This Row],[월중 근속일수]] ->  | AF43: =IFERROR(표2[[#This Row],[사용연도입사자 근무기간(월)]]+ROUNDDOWN(표2[[#This Row],[열2]],0)+VLOOKUP((표2[[#This Row],[열2]]-ROUNDDOWN(표2[[#This Row],[열2]],0)),code!$A$4:$D$9,3,TRUE),0) -> 0 | AG43: 29 | AH43: 이상해 | AK43: 2018-08-06 | AM43: =IF($AJ$1>license!$C$3,"",IF(H43=0,0,IF($AJ$1<H43,0,$AJ$1-H43+1))) -> 1609 | AN43: =IF($AJ$1>license!$C$3,"",IF(AM43=0,0,IF($H43=0,0,DATEDIF($H43-1,$AJ$1,"y")))) -> 4 | AO43: =IF($AJ$1>license!$C$3,"",IF(AM43=0,0,IF($H43=0,0,DATEDIF($H43-1,$AJ$1,"ym")))) -> 4 | AP43: =IF($AJ$1>license!$C$3,"",IF(AM43=0,0,IF($H43=0,0,DATEDIF($H43-1,$AJ$1,"md")))) -> 26 | AQ43: =IF($AJ$1>license!$C$3,"",IF(표2[[#This Row],[1년이상 근무일수]]="",0,$Z$12-표2[[#This Row],[기간]])) -> 15 | AR43: =IFERROR(IF(표2[[#This Row],[1년이상 근무일수]]="","",MIN(표2[[#This Row],[가산연차2]],$BD$12-표2[[#This Row],[기본]])),"") -> 1.5 | AS43: =SUM(표2[[#This Row],[1년미만자 당기 1년미만기간 연차수(11일 일할)]],표2[[#This Row],[사용연도 입사자]],표2[[#This Row],[1년미만자 1년째 후 연차일수(15일 일할)]]) -> 0 | AU43: =IF($AJ$1>license!$C$3,"",SUM(표2[[#This Row],[기본]:[일수]])) -> 16.5 | AV43: =IF($AJ$1>license!$C$3,"",SUMIFS(휴가입력!O:O,휴가입력!M:M,"연차",휴가입력!L:L,AH43)) -> 3 | AW43: =IFERROR(MAX(0,표2[[#This Row],[계]]-표2[[#This Row],[사용 일수]]),0) -> 13.5 | AX43: =IFERROR(MAX((표2[[#This Row],[계]]-표2[[#This Row],[사용 일수]])*-1,0),0) -> 0 | AZ43: =IF($AJ$1>license!$C$3,"",ROUNDUP(표2[[#This Row],[(월급)]]/209*8,0)) -> 0 | BA43: =IF($AJ$1>license!$C$3,"",ROUNDUP(표2[[#This Row],[(일급)]]*표2[[#This Row],[미사용 일수]],0)) -> 0 | BC43: 0
A44: 1 | H44: =IF(표2[[#This Row],[*입사일]]=0,"",표2[[#This Row],[*입사일]]-$AJ$3) -> 2018-08-06 | I44: =IFERROR(IF(AO44="",0,IF(표2[[#This Row],[1년이상 근무일수]]=0,0,DATEDIF(표2[[#This Row],[1년이상 근무일수]]-1,$AJ$1,"y"))),0) -> 3 | J44: =IF(표2[[#This Row],[*기산일]]="","",IF(DATE(YEAR(표2[[#This Row],[*기산일]])+1,MONTH(표2[[#This Row],[*기산일]]),DAY(표2[[#This Row],[*기산일]]))>$AJ$1,"",DATE(YEAR(표2[[#This Row],[*기산일]])+1,MONTH(표2[[#This Row],[*기산일]]),DAY(표2[[#This Row],[*기산일]])))) -> 2019-08-06 | K44: =IF(ISODD(표2[[#This Row],[열1]])=TRUE,1,"") -> 1 | L44: =IF(표2[[#This Row],[가산일도래여부]]=1,DATE(YEAR($AJ$1)+1,MONTH($AJ$1),DAY($AJ$1))-DATE(YEAR($AJ$1)+1,MONTH(표2[[#This Row],[1년이상 근무일수]]),DAY(표2[[#This Row],[1년이상 근무일수]])),0) -> 147 | M44: =표2[[#This Row],[가산휴가 사용가능일]]/365 -> 0.402739726 | N44: =VLOOKUP(표2[[#This Row],[총근무일수-366]],code!$A$5:$C$9,3) -> 0.5 | O44: =ROUNDDOWN(표2[[#This Row],[열1]]/2,0)+표2[[#This Row],[가산연차]] -> 1.5 | P44: =IF(표2[[#This Row],[*기산일]]="",0,IF(YEAR(표2[[#This Row],[*기산일]])+1=$AI$11,DATE(YEAR(표2[[#This Row],[*기산일]])+1,MONTH(표2[[#This Row],[*기산일]]),DAY(표2[[#This Row],[*기산일]])),"")) ->  | Q44: =IF(표2[[#This Row],[*기산일]]="",0,IF(표2[[#This Row],[전년도 입사자 1년째]]="","",$W$11-표2[[#This Row],[전년도 입사자 1년째]]+1)) ->  | R44: =IF(표2[[#This Row],[전년도 입사자 1년째]]="","",표2[[#This Row],[1년미만자 1년째 후 근속일수]]/365*$Z$12) ->  | S44: =IFERROR(MAX(0,SUM(MAX(0,ROUNDDOWN(표2[[#This Row],[1년미만자 2년째 후 근속일수]],0)+VLOOKUP((표2[[#This Row],[1년미만자 2년째 후 근속일수]]-ROUNDDOWN(표2[[#This Row],[1년미만자 2년째 후 근속일수]],0)),code!$A$4:$D$9,3,TRUE)),표2[[#This Row],[1년미만자 당기 1년미만기간 연차수(11일 일할)]],표2[[#This Row],[사용연도 입사자]])-$Z$12),0) -> 0 | T44: =IFERROR(MAX(0,ROUNDDOWN(표2[[#This Row],[1년미만자 2년째 후 근속일수]],0)+VLOOKUP((표2[[#This Row],[1년미만자 2년째 후 근속일수]]-ROUNDDOWN(표2[[#This Row],[1년미만자 2년째 후 근속일수]],0)),code!$A$4:$D$9,3,TRUE))-표2[[#This Row],[1년미만자 3년째 후 근속일수]],0) -> 0 | V44: =IF(표2[[#This Row],[*기산일]]="","",IF(YEAR(표2[[#This Row],[*기산일]])=$AI$11-1,DATE(YEAR(표2[[#This Row],[*기산일]]),MONTH(표2[[#This Row],[*기산일]])+1,DAY(표2[[#This Row],[*기산일]])),"")) ->  | W44: =IF(표2[[#This Row],[*기산일]]="",0,IF(표2[[#This Row],[1년미만자1개월째]]="","",MAX(0,DATEDIF(표2[[#This Row],[*기산일]],$W$12,"m")-1))) ->  | X44: =IF(표2[[#This Row],[*기산일]]="",0,IF(표2[[#This Row],[1년미만자1개월째]]="","",(DATE(YEAR(표2[[#This Row],[*기산일]]),MONTH(표2[[#This Row],[*기산일]])+1,0)-표2[[#This Row],[*기산일]]+1)/(DATE(YEAR(표2[[#This Row],[*기산일]]),MONTH(표2[[#This Row],[*기산일]])+1,0)-DATE(YEAR(표2[[#This Row],[*기산일]]),MONTH(표2[[#This Row],[*기산일]]),1)+1))) ->  | Y44: =IFERROR(ROUNDDOWN(표2[[#This Row],[1년미만자 전년 근속일수]]/365*$Z$11,0)+VLOOKUP(표2[[#This Row],[1년미만자 전기 연차수]]-ROUNDDOWN(표2[[#This Row],[1년미만자 전년 근속일수]]/365*$Z$11,0),code!$A$4:$D$9,3,TRUE),"") ->  | Z44: =IFERROR(표2[[#This Row],[1년미만자 전년 근속일수]]+ROUNDDOWN(표2[[#This Row],[1년미만자 전기 연차수]],0)+VLOOKUP((표2[[#This Row],[1년미만자 전기 연차수]]-ROUNDDOWN(표2[[#This Row],[1년미만자 전기 연차수]],0)),code!$A$4:$D$9,3,TRUE),0) -> 0 | AA44: =IF(표2[[#This Row],[1년미만자1개월째]]="","",$Z$11-표2[[#This Row],[2년미만자 전기 연차수(code반올림)]]) ->  | AB44: =IF(YEAR(표2[[#This Row],[*기산일]])=$AI$11,DATE(YEAR(표2[[#This Row],[*기산일]]),MONTH(표2[[#This Row],[*기산일]])+1,DAY(표2[[#This Row],[*기산일]])),"") ->  | AC44: =IF(표2[[#This Row],[사용연도 입사자 1개월]]="","",MAX(0,DATEDIF(표2[[#This Row],[*기산일]],$W$11,"m")-1)) ->  | AD44: =IF(표2[[#This Row],[사용연도 입사자 1개월]]="","",(DATE(YEAR(표2[[#This Row],[*기산일]]),MONTH(표2[[#This Row],[*기산일]])+1,0)-표2[[#This Row],[*기산일]]+1)/(DATE(YEAR(표2[[#This Row],[*기산일]]),MONTH(표2[[#This Row],[*기산일]])+1,0)-DATE(YEAR(표2[[#This Row],[*기산일]]),MONTH(표2[[#This Row],[*기산일]]),1)+1)) ->  | AE44: =표2[[#This Row],[월중 근속일수]] ->  | AF44: =IFERROR(표2[[#This Row],[사용연도입사자 근무기간(월)]]+ROUNDDOWN(표2[[#This Row],[열2]],0)+VLOOKUP((표2[[#This Row],[열2]]-ROUNDDOWN(표2[[#This Row],[열2]],0)),code!$A$4:$D$9,3,TRUE),0) -> 0 | AG44: 30 | AH44: 정연술 | AK44: 2018-08-06 | AM44: =IF($AJ$1>license!$C$3,"",IF(H44=0,0,IF($AJ$1<H44,0,$AJ$1-H44+1))) -> 1609 | AN44: =IF($AJ$1>license!$C$3,"",IF(AM44=0,0,IF($H44=0,0,DATEDIF($H44-1,$AJ$1,"y")))) -> 4 | AO44: =IF($AJ$1>license!$C$3,"",IF(AM44=0,0,IF($H44=0,0,DATEDIF($H44-1,$AJ$1,"ym")))) -> 4 | AP44: =IF($AJ$1>license!$C$3,"",IF(AM44=0,0,IF($H44=0,0,DATEDIF($H44-1,$AJ$1,"md")))) -> 26 | AQ44: =IF($AJ$1>license!$C$3,"",IF(표2[[#This Row],[1년이상 근무일수]]="",0,$Z$12-표2[[#This Row],[기간]])) -> 15 | AR44: =IFERROR(IF(표2[[#This Row],[1년이상 근무일수]]="","",MIN(표2[[#This Row],[가산연차2]],$BD$12-표2[[#This Row],[기본]])),"") -> 1.5 | AS44: =SUM(표2[[#This Row],[1년미만자 당기 1년미만기간 연차수(11일 일할)]],표2[[#This Row],[사용연도 입사자]],표2[[#This Row],[1년미만자 1년째 후 연차일수(15일 일할)]]) -> 0 | AU44: =IF($AJ$1>license!$C$3,"",SUM(표2[[#This Row],[기본]:[일수]])) -> 16.5 | AV44: =IF($AJ$1>license!$C$3,"",SUMIFS(휴가입력!O:O,휴가입력!M:M,"연차",휴가입력!L:L,AH44)) -> 3 | AW44: =IFERROR(MAX(0,표2[[#This Row],[계]]-표2[[#This Row],[사용 일수]]),0) -> 13.5 | AX44: =IFERROR(MAX((표2[[#This Row],[계]]-표2[[#This Row],[사용 일수]])*-1,0),0) -> 0 | AZ44: =IF($AJ$1>license!$C$3,"",ROUNDUP(표2[[#This Row],[(월급)]]/209*8,0)) -> 0 | BA44: =IF($AJ$1>license!$C$3,"",ROUNDUP(표2[[#This Row],[(일급)]]*표2[[#This Row],[미사용 일수]],0)) -> 0 | BC44: 0
A45: 1 | H45: =IF(표2[[#This Row],[*입사일]]=0,"",표2[[#This Row],[*입사일]]-$AJ$3) -> 2018-07-01 | I45: =IFERROR(IF(AO45="",0,IF(표2[[#This Row],[1년이상 근무일수]]=0,0,DATEDIF(표2[[#This Row],[1년이상 근무일수]]-1,$AJ$1,"y"))),0) -> 3 | J45: =IF(표2[[#This Row],[*기산일]]="","",IF(DATE(YEAR(표2[[#This Row],[*기산일]])+1,MONTH(표2[[#This Row],[*기산일]]),DAY(표2[[#This Row],[*기산일]]))>$AJ$1,"",DATE(YEAR(표2[[#This Row],[*기산일]])+1,MONTH(표2[[#This Row],[*기산일]]),DAY(표2[[#This Row],[*기산일]])))) -> 2019-07-01 | K45: =IF(ISODD(표2[[#This Row],[열1]])=TRUE,1,"") -> 1 | L45: =IF(표2[[#This Row],[가산일도래여부]]=1,DATE(YEAR($AJ$1)+1,MONTH($AJ$1),DAY($AJ$1))-DATE(YEAR($AJ$1)+1,MONTH(표2[[#This Row],[1년이상 근무일수]]),DAY(표2[[#This Row],[1년이상 근무일수]])),0) -> 183 | M45: =표2[[#This Row],[가산휴가 사용가능일]]/365 -> 0.501369863 | N45: =VLOOKUP(표2[[#This Row],[총근무일수-366]],code!$A$5:$C$9,3) -> 0.5 | O45: =ROUNDDOWN(표2[[#This Row],[열1]]/2,0)+표2[[#This Row],[가산연차]] -> 1.5 | P45: =IF(표2[[#This Row],[*기산일]]="",0,IF(YEAR(표2[[#This Row],[*기산일]])+1=$AI$11,DATE(YEAR(표2[[#This Row],[*기산일]])+1,MONTH(표2[[#This Row],[*기산일]]),DAY(표2[[#This Row],[*기산일]])),"")) ->  | Q45: =IF(표2[[#This Row],[*기산일]]="",0,IF(표2[[#This Row],[전년도 입사자 1년째]]="","",$W$11-표2[[#This Row],[전년도 입사자 1년째]]+1)) ->  | R45: =IF(표2[[#This Row],[전년도 입사자 1년째]]="","",표2[[#This Row],[1년미만자 1년째 후 근속일수]]/365*$Z$12) ->  | S45: =IFERROR(MAX(0,SUM(MAX(0,ROUNDDOWN(표2[[#This Row],[1년미만자 2년째 후 근속일수]],0)+VLOOKUP((표2[[#This Row],[1년미만자 2년째 후 근속일수]]-ROUNDDOWN(표2[[#This Row],[1년미만자 2년째 후 근속일수]],0)),code!$A$4:$D$9,3,TRUE)),표2[[#This Row],[1년미만자 당기 1년미만기간 연차수(11일 일할)]],표2[[#This Row],[사용연도 입사자]])-$Z$12),0) -> 0 | T45: =IFERROR(MAX(0,ROUNDDOWN(표2[[#This Row],[1년미만자 2년째 후 근속일수]],0)+VLOOKUP((표2[[#This Row],[1년미만자 2년째 후 근속일수]]-ROUNDDOWN(표2[[#This Row],[1년미만자 2년째 후 근속일수]],0)),code!$A$4:$D$9,3,TRUE))-표2[[#This Row],[1년미만자 3년째 후 근속일수]],0) -> 0 | V45: =IF(표2[[#This Row],[*기산일]]="","",IF(YEAR(표2[[#This Row],[*기산일]])=$AI$11-1,DATE(YEAR(표2[[#This Row],[*기산일]]),MONTH(표2[[#This Row],[*기산일]])+1,DAY(표2[[#This Row],[*기산일]])),"")) ->  | W45: =IF(표2[[#This Row],[*기산일]]="",0,IF(표2[[#This Row],[1년미만자1개월째]]="","",MAX(0,DATEDIF(표2[[#This Row],[*기산일]],$W$12,"m")-1))) ->  | X45: =IF(표2[[#This Row],[*기산일]]="",0,IF(표2[[#This Row],[1년미만자1개월째]]="","",(DATE(YEAR(표2[[#This Row],[*기산일]]),MONTH(표2[[#This Row],[*기산일]])+1,0)-표2[[#This Row],[*기산일]]+1)/(DATE(YEAR(표2[[#This Row],[*기산일]]),MONTH(표2[[#This Row],[*기산일]])+1,0)-DATE(YEAR(표2[[#This Row],[*기산일]]),MONTH(표2[[#This Row],[*기산일]]),1)+1))) ->  | Y45: =IFERROR(ROUNDDOWN(표2[[#This Row],[1년미만자 전년 근속일수]]/365*$Z$11,0)+VLOOKUP(표2[[#This Row],[1년미만자 전기 연차수]]-ROUNDDOWN(표2[[#This Row],[1년미만자 전년 근속일수]]/365*$Z$11,0),code!$A$4:$D$9,3,TRUE),"") ->  | Z45: =IFERROR(표2[[#This Row],[1년미만자 전년 근속일수]]+ROUNDDOWN(표2[[#This Row],[1년미만자 전기 연차수]],0)+VLOOKUP((표2[[#This Row],[1년미만자 전기 연차수]]-ROUNDDOWN(표2[[#This Row],[1년미만자 전기 연차수]],0)),code!$A$4:$D$9,3,TRUE),0) -> 0 | AA45: =IF(표2[[#This Row],[1년미만자1개월째]]="","",$Z$11-표2[[#This Row],[2년미만자 전기 연차수(code반올림)]]) ->  | AB45: =IF(YEAR(표2[[#This Row],[*기산일]])=$AI$11,DATE(YEAR(표2[[#This Row],[*기산일]]),MONTH(표2[[#This Row],[*기산일]])+1,DAY(표2[[#This Row],[*기산일]])),"") ->  | AC45: =IF(표2[[#This Row],[사용연도 입사자 1개월]]="","",MAX(0,DATEDIF(표2[[#This Row],[*기산일]],$W$11,"m")-1)) ->  | AD45: =IF(표2[[#This Row],[사용연도 입사자 1개월]]="","",(DATE(YEAR(표2[[#This Row],[*기산일]]),MONTH(표2[[#This Row],[*기산일]])+1,0)-표2[[#This Row],[*기산일]]+1)/(DATE(YEAR(표2[[#This Row],[*기산일]]),MONTH(표2[[#This Row],[*기산일]])+1,0)-DATE(YEAR(표2[[#This Row],[*기산일]]),MONTH(표2[[#This Row],[*기산일]]),1)+1)) ->  | AE45: =표2[[#This Row],[월중 근속일수]] ->  | AF45: =IFERROR(표2[[#This Row],[사용연도입사자 근무기간(월)]]+ROUNDDOWN(표2[[#This Row],[열2]],0)+VLOOKUP((표2[[#This Row],[열2]]-ROUNDDOWN(표2[[#This Row],[열2]],0)),code!$A$4:$D$9,3,TRUE),0) -> 0 | AG45: 31 | AH45: 권심 | AK45: 2018-07-01 | AM45: =IF($AJ$1>license!$C$3,"",IF(H45=0,0,IF($AJ$1<H45,0,$AJ$1-H45+1))) -> 1645 | AN45: =IF($AJ$1>license!$C$3,"",IF(AM45=0,0,IF($H45=0,0,DATEDIF($H45-1,$AJ$1,"y")))) -> 4 | AO45: =IF($AJ$1>license!$C$3,"",IF(AM45=0,0,IF($H45=0,0,DATEDIF($H45-1,$AJ$1,"ym")))) -> 6 | AP45: =IF($AJ$1>license!$C$3,"",IF(AM45=0,0,IF($H45=0,0,DATEDIF($H45-1,$AJ$1,"md")))) -> 1 | AQ45: =IF($AJ$1>license!$C$3,"",IF(표2[[#This Row],[1년이상 근무일수]]="",0,$Z$12-표2[[#This Row],[기간]])) -> 15 | AR45: =IFERROR(IF(표2[[#This Row],[1년이상 근무일수]]="","",MIN(표2[[#This Row],[가산연차2]],$BD$12-표2[[#This Row],[기본]])),"") -> 1.5 | AS45: =SUM(표2[[#This Row],[1년미만자 당기 1년미만기간 연차수(11일 일할)]],표2[[#This Row],[사용연도 입사자]],표2[[#This Row],[1년미만자 1년째 후 연차일수(15일 일할)]]) -> 0 | AU45: =IF($AJ$1>license!$C$3,"",SUM(표2[[#This Row],[기본]:[일수]])) -> 16.5 | AV45: =IF($AJ$1>license!$C$3,"",SUMIFS(휴가입력!O:O,휴가입력!M:M,"연차",휴가입력!L:L,AH45)) -> 0 | AW45: =IFERROR(MAX(0,표2[[#This Row],[계]]-표2[[#This Row],[사용 일수]]),0) -> 16.5 | AX45: =IFERROR(MAX((표2[[#This Row],[계]]-표2[[#This Row],[사용 일수]])*-1,0),0) -> 0 | AZ45: =IF($AJ$1>license!$C$3,"",ROUNDUP(표2[[#This Row],[(월급)]]/209*8,0)) -> 0 | BA45: =IF($AJ$1>license!$C$3,"",ROUNDUP(표2[[#This Row],[(일급)]]*표2[[#This Row],[미사용 일수]],0)) -> 0 | BC45: 0
A46: 1 | H46: =IF(표2[[#This Row],[*입사일]]=0,"",표2[[#This Row],[*입사일]]-$AJ$3) -> 2019-07-01 | I46: =IFERROR(IF(AO46="",0,IF(표2[[#This Row],[1년이상 근무일수]]=0,0,DATEDIF(표2[[#This Row],[1년이상 근무일수]]-1,$AJ$1,"y"))),0) -> 2 | J46: =IF(표2[[#This Row],[*기산일]]="","",IF(DATE(YEAR(표2[[#This Row],[*기산일]])+1,MONTH(표2[[#This Row],[*기산일]]),DAY(표2[[#This Row],[*기산일]]))>$AJ$1,"",DATE(YEAR(표2[[#This Row],[*기산일]])+1,MONTH(표2[[#This Row],[*기산일]]),DAY(표2[[#This Row],[*기산일]])))) -> 2020-07-01 | K46: =IF(ISODD(표2[[#This Row],[열1]])=TRUE,1,"") ->  | L46: =IF(표2[[#This Row],[가산일도래여부]]=1,DATE(YEAR($AJ$1)+1,MONTH($AJ$1),DAY($AJ$1))-DATE(YEAR($AJ$1)+1,MONTH(표2[[#This Row],[1년이상 근무일수]]),DAY(표2[[#This Row],[1년이상 근무일수]])),0) -> 0 | M46: =표2[[#This Row],[가산휴가 사용가능일]]/365 -> 0 | N46: =VLOOKUP(표2[[#This Row],[총근무일수-366]],code!$A$5:$C$9,3) -> 0 | O46: =ROUNDDOWN(표2[[#This Row],[열1]]/2,0)+표2[[#This Row],[가산연차]] -> 1 | P46: =IF(표2[[#This Row],[*기산일]]="",0,IF(YEAR(표2[[#This Row],[*기산일]])+1=$AI$11,DATE(YEAR(표2[[#This Row],[*기산일]])+1,MONTH(표2[[#This Row],[*기산일]]),DAY(표2[[#This Row],[*기산일]])),"")) ->  | Q46: =IF(표2[[#This Row],[*기산일]]="",0,IF(표2[[#This Row],[전년도 입사자 1년째]]="","",$W$11-표2[[#This Row],[전년도 입사자 1년째]]+1)) ->  | R46: =IF(표2[[#This Row],[전년도 입사자 1년째]]="","",표2[[#This Row],[1년미만자 1년째 후 근속일수]]/365*$Z$12) ->  | S46: =IFERROR(MAX(0,SUM(MAX(0,ROUNDDOWN(표2[[#This Row],[1년미만자 2년째 후 근속일수]],0)+VLOOKUP((표2[[#This Row],[1년미만자 2년째 후 근속일수]]-ROUNDDOWN(표2[[#This Row],[1년미만자 2년째 후 근속일수]],0)),code!$A$4:$D$9,3,TRUE)),표2[[#This Row],[1년미만자 당기 1년미만기간 연차수(11일 일할)]],표2[[#This Row],[사용연도 입사자]])-$Z$12),0) -> 0 | T46: =IFERROR(MAX(0,ROUNDDOWN(표2[[#This Row],[1년미만자 2년째 후 근속일수]],0)+VLOOKUP((표2[[#This Row],[1년미만자 2년째 후 근속일수]]-ROUNDDOWN(표2[[#This Row],[1년미만자 2년째 후 근속일수]],0)),code!$A$4:$D$9,3,TRUE))-표2[[#This Row],[1년미만자 3년째 후 근속일수]],0) -> 0 | V46: =IF(표2[[#This Row],[*기산일]]="","",IF(YEAR(표2[[#This Row],[*기산일]])=$AI$11-1,DATE(YEAR(표2[[#This Row],[*기산일]]),MONTH(표2[[#This Row],[*기산일]])+1,DAY(표2[[#This Row],[*기산일]])),"")) ->  | W46: =IF(표2[[#This Row],[*기산일]]="",0,IF(표2[[#This Row],[1년미만자1개월째]]="","",MAX(0,DATEDIF(표2[[#This Row],[*기산일]],$W$12,"m")-1))) ->  | X46: =IF(표2[[#This Row],[*기산일]]="",0,IF(표2[[#This Row],[1년미만자1개월째]]="","",(DATE(YEAR(표2[[#This Row],[*기산일]]),MONTH(표2[[#This Row],[*기산일]])+1,0)-표2[[#This Row],[*기산일]]+1)/(DATE(YEAR(표2[[#This Row],[*기산일]]),MONTH(표2[[#This Row],[*기산일]])+1,0)-DATE(YEAR(표2[[#This Row],[*기산일]]),MONTH(표2[[#This Row],[*기산일]]),1)+1))) ->  | Y46: =IFERROR(ROUNDDOWN(표2[[#This Row],[1년미만자 전년 근속일수]]/365*$Z$11,0)+VLOOKUP(표2[[#This Row],[1년미만자 전기 연차수]]-ROUNDDOWN(표2[[#This Row],[1년미만자 전년 근속일수]]/365*$Z$11,0),code!$A$4:$D$9,3,TRUE),"") ->  | Z46: =IFERROR(표2[[#This Row],[1년미만자 전년 근속일수]]+ROUNDDOWN(표2[[#This Row],[1년미만자 전기 연차수]],0)+VLOOKUP((표2[[#This Row],[1년미만자 전기 연차수]]-ROUNDDOWN(표2[[#This Row],[1년미만자 전기 연차수]],0)),code!$A$4:$D$9,3,TRUE),0) -> 0 | AA46: =IF(표2[[#This Row],[1년미만자1개월째]]="","",$Z$11-표2[[#This Row],[2년미만자 전기 연차수(code반올림)]]) ->  | AB46: =IF(YEAR(표2[[#This Row],[*기산일]])=$AI$11,DATE(YEAR(표2[[#This Row],[*기산일]]),MONTH(표2[[#This Row],[*기산일]])+1,DAY(표2[[#This Row],[*기산일]])),"") ->  | AC46: =IF(표2[[#This Row],[사용연도 입사자 1개월]]="","",MAX(0,DATEDIF(표2[[#This Row],[*기산일]],$W$11,"m")-1)) ->  | AD46: =IF(표2[[#This Row],[사용연도 입사자 1개월]]="","",(DATE(YEAR(표2[[#This Row],[*기산일]]),MONTH(표2[[#This Row],[*기산일]])+1,0)-표2[[#This Row],[*기산일]]+1)/(DATE(YEAR(표2[[#This Row],[*기산일]]),MONTH(표2[[#This Row],[*기산일]])+1,0)-DATE(YEAR(표2[[#This Row],[*기산일]]),MONTH(표2[[#This Row],[*기산일]]),1)+1)) ->  | AE46: =표2[[#This Row],[월중 근속일수]] ->  | AF46: =IFERROR(표2[[#This Row],[사용연도입사자 근무기간(월)]]+ROUNDDOWN(표2[[#This Row],[열2]],0)+VLOOKUP((표2[[#This Row],[열2]]-ROUNDDOWN(표2[[#This Row],[열2]],0)),code!$A$4:$D$9,3,TRUE),0) -> 0 | AG46: 32 | AH46: 조정래 | AK46: 2019-07-01 | AL46: 2020-08-02 | AM46: =IF($AJ$1>license!$C$3,"",IF(H46=0,0,IF($AJ$1<H46,0,$AJ$1-H46+1))) -> 1280 | AN46: =IF($AJ$1>license!$C$3,"",IF(AM46=0,0,IF($H46=0,0,DATEDIF($H46-1,$AJ$1,"y")))) -> 3 | AO46: =IF($AJ$1>license!$C$3,"",IF(AM46=0,0,IF($H46=0,0,DATEDIF($H46-1,$AJ$1,"ym")))) -> 6 | AP46: =IF($AJ$1>license!$C$3,"",IF(AM46=0,0,IF($H46=0,0,DATEDIF($H46-1,$AJ$1,"md")))) -> 1 | AQ46: =IF($AJ$1>license!$C$3,"",IF(표2[[#This Row],[1년이상 근무일수]]="",0,$Z$12-표2[[#This Row],[기간]])) -> 15 | AR46: =IFERROR(IF(표2[[#This Row],[1년이상 근무일수]]="","",MIN(표2[[#This Row],[가산연차2]],$BD$12-표2[[#This Row],[기본]])),"") -> 1 | AS46: =SUM(표2[[#This Row],[1년미만자 당기 1년미만기간 연차수(11일 일할)]],표2[[#This Row],[사용연도 입사자]],표2[[#This Row],[1년미만자 1년째 후 연차일수(15일 일할)]]) -> 0 | AU46: =IF($AJ$1>license!$C$3,"",SUM(표2[[#This Row],[기본]:[일수]])) -> 16 | AV46: =IF($AJ$1>license!$C$3,"",SUMIFS(휴가입력!O:O,휴가입력!M:M,"연차",휴가입력!L:L,AH46)) -> 0 | AW46: =IFERROR(MAX(0,표2[[#This Row],[계]]-표2[[#This Row],[사용 일수]]),0) -> 16 | AX46: =IFERROR(MAX((표2[[#This Row],[계]]-표2[[#This Row],[사용 일수]])*-1,0),0) -> 0 | AZ46: =IF($AJ$1>license!$C$3,"",ROUNDUP(표2[[#This Row],[(월급)]]/209*8,0)) -> 0 | BA46: =IF($AJ$1>license!$C$3,"",ROUNDUP(표2[[#This Row],[(일급)]]*표2[[#This Row],[미사용 일수]],0)) -> 0 | BC46: 0
A47: 1 | H47: =IF(표2[[#This Row],[*입사일]]=0,"",표2[[#This Row],[*입사일]]-$AJ$3) -> 2020-05-01 | I47: =IFERROR(IF(AO47="",0,IF(표2[[#This Row],[1년이상 근무일수]]=0,0,DATEDIF(표2[[#This Row],[1년이상 근무일수]]-1,$AJ$1,"y"))),0) -> 1 | J47: =IF(표2[[#This Row],[*기산일]]="","",IF(DATE(YEAR(표2[[#This Row],[*기산일]])+1,MONTH(표2[[#This Row],[*기산일]]),DAY(표2[[#This Row],[*기산일]]))>$AJ$1,"",DATE(YEAR(표2[[#This Row],[*기산일]])+1,MONTH(표2[[#This Row],[*기산일]]),DAY(표2[[#This Row],[*기산일]])))) -> 2021-05-01 | K47: =IF(ISODD(표2[[#This Row],[열1]])=TRUE,1,"") -> 1 | L47: =IF(표2[[#This Row],[가산일도래여부]]=1,DATE(YEAR($AJ$1)+1,MONTH($AJ$1),DAY($AJ$1))-DATE(YEAR($AJ$1)+1,MONTH(표2[[#This Row],[1년이상 근무일수]]),DAY(표2[[#This Row],[1년이상 근무일수]])),0) -> 244 | M47: =표2[[#This Row],[가산휴가 사용가능일]]/365 -> 0.6684931507 | N47: =VLOOKUP(표2[[#This Row],[총근무일수-366]],code!$A$5:$C$9,3) -> 1 | O47: =ROUNDDOWN(표2[[#This Row],[열1]]/2,0)+표2[[#This Row],[가산연차]] -> 1 | P47: =IF(표2[[#This Row],[*기산일]]="",0,IF(YEAR(표2[[#This Row],[*기산일]])+1=$AI$11,DATE(YEAR(표2[[#This Row],[*기산일]])+1,MONTH(표2[[#This Row],[*기산일]]),DAY(표2[[#This Row],[*기산일]])),"")) ->  | Q47: =IF(표2[[#This Row],[*기산일]]="",0,IF(표2[[#This Row],[전년도 입사자 1년째]]="","",$W$11-표2[[#This Row],[전년도 입사자 1년째]]+1)) ->  | R47: =IF(표2[[#This Row],[전년도 입사자 1년째]]="","",표2[[#This Row],[1년미만자 1년째 후 근속일수]]/365*$Z$12) ->  | S47: =IFERROR(MAX(0,SUM(MAX(0,ROUNDDOWN(표2[[#This Row],[1년미만자 2년째 후 근속일수]],0)+VLOOKUP((표2[[#This Row],[1년미만자 2년째 후 근속일수]]-ROUNDDOWN(표2[[#This Row],[1년미만자 2년째 후 근속일수]],0)),code!$A$4:$D$9,3,TRUE)),표2[[#This Row],[1년미만자 당기 1년미만기간 연차수(11일 일할)]],표2[[#This Row],[사용연도 입사자]])-$Z$12),0) -> 0 | T47: =IFERROR(MAX(0,ROUNDDOWN(표2[[#This Row],[1년미만자 2년째 후 근속일수]],0)+VLOOKUP((표2[[#This Row],[1년미만자 2년째 후 근속일수]]-ROUNDDOWN(표2[[#This Row],[1년미만자 2년째 후 근속일수]],0)),code!$A$4:$D$9,3,TRUE))-표2[[#This Row],[1년미만자 3년째 후 근속일수]],0) -> 0 | V47: =IF(표2[[#This Row],[*기산일]]="","",IF(YEAR(표2[[#This Row],[*기산일]])=$AI$11-1,DATE(YEAR(표2[[#This Row],[*기산일]]),MONTH(표2[[#This Row],[*기산일]])+1,DAY(표2[[#This Row],[*기산일]])),"")) ->  | W47: =IF(표2[[#This Row],[*기산일]]="",0,IF(표2[[#This Row],[1년미만자1개월째]]="","",MAX(0,DATEDIF(표2[[#This Row],[*기산일]],$W$12,"m")-1))) ->  | X47: =IF(표2[[#This Row],[*기산일]]="",0,IF(표2[[#This Row],[1년미만자1개월째]]="","",(DATE(YEAR(표2[[#This Row],[*기산일]]),MONTH(표2[[#This Row],[*기산일]])+1,0)-표2[[#This Row],[*기산일]]+1)/(DATE(YEAR(표2[[#This Row],[*기산일]]),MONTH(표2[[#This Row],[*기산일]])+1,0)-DATE(YEAR(표2[[#This Row],[*기산일]]),MONTH(표2[[#This Row],[*기산일]]),1)+1))) ->  | Y47: =IFERROR(ROUNDDOWN(표2[[#This Row],[1년미만자 전년 근속일수]]/365*$Z$11,0)+VLOOKUP(표2[[#This Row],[1년미만자 전기 연차수]]-ROUNDDOWN(표2[[#This Row],[1년미만자 전년 근속일수]]/365*$Z$11,0),code!$A$4:$D$9,3,TRUE),"") ->  | Z47: =IFERROR(표2[[#This Row],[1년미만자 전년 근속일수]]+ROUNDDOWN(표2[[#This Row],[1년미만자 전기 연차수]],0)+VLOOKUP((표2[[#This Row],[1년미만자 전기 연차수]]-ROUNDDOWN(표2[[#This Row],[1년미만자 전기 연차수]],0)),code!$A$4:$D$9,3,TRUE),0) -> 0 | AA47: =IF(표2[[#This Row],[1년미만자1개월째]]="","",$Z$11-표2[[#This Row],[2년미만자 전기 연차수(code반올림)]]) ->  | AB47: =IF(YEAR(표2[[#This Row],[*기산일]])=$AI$11,DATE(YEAR(표2[[#This Row],[*기산일]]),MONTH(표2[[#This Row],[*기산일]])+1,DAY(표2[[#This Row],[*기산일]])),"") ->  | AC47: =IF(표2[[#This Row],[사용연도 입사자 1개월]]="","",MAX(0,DATEDIF(표2[[#This Row],[*기산일]],$W$11,"m")-1)) ->  | AD47: =IF(표2[[#This Row],[사용연도 입사자 1개월]]="","",(DATE(YEAR(표2[[#This Row],[*기산일]]),MONTH(표2[[#This Row],[*기산일]])+1,0)-표2[[#This Row],[*기산일]]+1)/(DATE(YEAR(표2[[#This Row],[*기산일]]),MONTH(표2[[#This Row],[*기산일]])+1,0)-DATE(YEAR(표2[[#This Row],[*기산일]]),MONTH(표2[[#This Row],[*기산일]]),1)+1)) ->  | AE47: =표2[[#This Row],[월중 근속일수]] ->  | AF47: =IFERROR(표2[[#This Row],[사용연도입사자 근무기간(월)]]+ROUNDDOWN(표2[[#This Row],[열2]],0)+VLOOKUP((표2[[#This Row],[열2]]-ROUNDDOWN(표2[[#This Row],[열2]],0)),code!$A$4:$D$9,3,TRUE),0) -> 0 | AG47: 33 | AH47: 박정래 | AK47: 2020-05-01 | AL47: 2020-08-02 | AM47: =IF($AJ$1>license!$C$3,"",IF(H47=0,0,IF($AJ$1<H47,0,$AJ$1-H47+1))) -> 975 | AN47: =IF($AJ$1>license!$C$3,"",IF(AM47=0,0,IF($H47=0,0,DATEDIF($H47-1,$AJ$1,"y")))) -> 2 | AO47: =IF($AJ$1>license!$C$3,"",IF(AM47=0,0,IF($H47=0,0,DATEDIF($H47-1,$AJ$1,"ym")))) -> 8 | AP47: =IF($AJ$1>license!$C$3,"",IF(AM47=0,0,IF($H47=0,0,DATEDIF($H47-1,$AJ$1,"md")))) -> 1 | AQ47: =IF($AJ$1>license!$C$3,"",IF(표2[[#This Row],[1년이상 근무일수]]="",0,$Z$12-표2[[#This Row],[기간]])) -> 15 | AR47: =IFERROR(IF(표2[[#This Row],[1년이상 근무일수]]="","",MIN(표2[[#This Row],[가산연차2]],$BD$12-표2[[#This Row],[기본]])),"") -> 1 | AS47: =SUM(표2[[#This Row],[1년미만자 당기 1년미만기간 연차수(11일 일할)]],표2[[#This Row],[사용연도 입사자]],표2[[#This Row],[1년미만자 1년째 후 연차일수(15일 일할)]]) -> 0 | AU47: =IF($AJ$1>license!$C$3,"",SUM(표2[[#This Row],[기본]:[일수]])) -> 16 | AV47: =IF($AJ$1>license!$C$3,"",SUMIFS(휴가입력!O:O,휴가입력!M:M,"연차",휴가입력!L:L,AH47)) -> 0 | AW47: =IFERROR(MAX(0,표2[[#This Row],[계]]-표2[[#This Row],[사용 일수]]),0) -> 16 | AX47: =IFERROR(MAX((표2[[#This Row],[계]]-표2[[#This Row],[사용 일수]])*-1,0),0) -> 0 | AZ47: =IF($AJ$1>license!$C$3,"",ROUNDUP(표2[[#This Row],[(월급)]]/209*8,0)) -> 0 | BA47: =IF($AJ$1>license!$C$3,"",ROUNDUP(표2[[#This Row],[(일급)]]*표2[[#This Row],[미사용 일수]],0)) -> 0 | BC47: 0
A48: 1 | H48: =IF(표2[[#This Row],[*입사일]]=0,"",표2[[#This Row],[*입사일]]-$AJ$3) -> 2020-07-01 | I48: =IFERROR(IF(AO48="",0,IF(표2[[#This Row],[1년이상 근무일수]]=0,0,DATEDIF(표2[[#This Row],[1년이상 근무일수]]-1,$AJ$1,"y"))),0) -> 1 | J48: =IF(표2[[#This Row],[*기산일]]="","",IF(DATE(YEAR(표2[[#This Row],[*기산일]])+1,MONTH(표2[[#This Row],[*기산일]]),DAY(표2[[#This Row],[*기산일]]))>$AJ$1,"",DATE(YEAR(표2[[#This Row],[*기산일]])+1,MONTH(표2[[#This Row],[*기산일]]),DAY(표2[[#This Row],[*기산일]])))) -> 2021-07-01 | K48: =IF(ISODD(표2[[#This Row],[열1]])=TRUE,1,"") -> 1 | L48: =IF(표2[[#This Row],[가산일도래여부]]=1,DATE(YEAR($AJ$1)+1,MONTH($AJ$1),DAY($AJ$1))-DATE(YEAR($AJ$1)+1,MONTH(표2[[#This Row],[1년이상 근무일수]]),DAY(표2[[#This Row],[1년이상 근무일수]])),0) -> 183 | M48: =표2[[#This Row],[가산휴가 사용가능일]]/365 -> 0.501369863 | N48: =VLOOKUP(표2[[#This Row],[총근무일수-366]],code!$A$5:$C$9,3) -> 0.5 | O48: =ROUNDDOWN(표2[[#This Row],[열1]]/2,0)+표2[[#This Row],[가산연차]] -> 0.5 | P48: =IF(표2[[#This Row],[*기산일]]="",0,IF(YEAR(표2[[#This Row],[*기산일]])+1=$AI$11,DATE(YEAR(표2[[#This Row],[*기산일]])+1,MONTH(표2[[#This Row],[*기산일]]),DAY(표2[[#This Row],[*기산일]])),"")) ->  | Q48: =IF(표2[[#This Row],[*기산일]]="",0,IF(표2[[#This Row],[전년도 입사자 1년째]]="","",$W$11-표2[[#This Row],[전년도 입사자 1년째]]+1)) ->  | R48: =IF(표2[[#This Row],[전년도 입사자 1년째]]="","",표2[[#This Row],[1년미만자 1년째 후 근속일수]]/365*$Z$12) ->  | S48: =IFERROR(MAX(0,SUM(MAX(0,ROUNDDOWN(표2[[#This Row],[1년미만자 2년째 후 근속일수]],0)+VLOOKUP((표2[[#This Row],[1년미만자 2년째 후 근속일수]]-ROUNDDOWN(표2[[#This Row],[1년미만자 2년째 후 근속일수]],0)),code!$A$4:$D$9,3,TRUE)),표2[[#This Row],[1년미만자 당기 1년미만기간 연차수(11일 일할)]],표2[[#This Row],[사용연도 입사자]])-$Z$12),0) -> 0 | T48: =IFERROR(MAX(0,ROUNDDOWN(표2[[#This Row],[1년미만자 2년째 후 근속일수]],0)+VLOOKUP((표2[[#This Row],[1년미만자 2년째 후 근속일수]]-ROUNDDOWN(표2[[#This Row],[1년미만자 2년째 후 근속일수]],0)),code!$A$4:$D$9,3,TRUE))-표2[[#This Row],[1년미만자 3년째 후 근속일수]],0) -> 0 | V48: =IF(표2[[#This Row],[*기산일]]="","",IF(YEAR(표2[[#This Row],[*기산일]])=$AI$11-1,DATE(YEAR(표2[[#This Row],[*기산일]]),MONTH(표2[[#This Row],[*기산일]])+1,DAY(표2[[#This Row],[*기산일]])),"")) ->  | W48: =IF(표2[[#This Row],[*기산일]]="",0,IF(표2[[#This Row],[1년미만자1개월째]]="","",MAX(0,DATEDIF(표2[[#This Row],[*기산일]],$W$12,"m")-1))) ->  | X48: =IF(표2[[#This Row],[*기산일]]="",0,IF(표2[[#This Row],[1년미만자1개월째]]="","",(DATE(YEAR(표2[[#This Row],[*기산일]]),MONTH(표2[[#This Row],[*기산일]])+1,0)-표2[[#This Row],[*기산일]]+1)/(DATE(YEAR(표2[[#This Row],[*기산일]]),MONTH(표2[[#This Row],[*기산일]])+1,0)-DATE(YEAR(표2[[#This Row],[*기산일]]),MONTH(표2[[#This Row],[*기산일]]),1)+1))) ->  | Y48: =IFERROR(ROUNDDOWN(표2[[#This Row],[1년미만자 전년 근속일수]]/365*$Z$11,0)+VLOOKUP(표2[[#This Row],[1년미만자 전기 연차수]]-ROUNDDOWN(표2[[#This Row],[1년미만자 전년 근속일수]]/365*$Z$11,0),code!$A$4:$D$9,3,TRUE),"") ->  | Z48: =IFERROR(표2[[#This Row],[1년미만자 전년 근속일수]]+ROUNDDOWN(표2[[#This Row],[1년미만자 전기 연차수]],0)+VLOOKUP((표2[[#This Row],[1년미만자 전기 연차수]]-ROUNDDOWN(표2[[#This Row],[1년미만자 전기 연차수]],0)),code!$A$4:$D$9,3,TRUE),0) -> 0 | AA48: =IF(표2[[#This Row],[1년미만자1개월째]]="","",$Z$11-표2[[#This Row],[2년미만자 전기 연차수(code반올림)]]) ->  | AB48: =IF(YEAR(표2[[#This Row],[*기산일]])=$AI$11,DATE(YEAR(표2[[#This Row],[*기산일]]),MONTH(표2[[#This Row],[*기산일]])+1,DAY(표2[[#This Row],[*기산일]])),"") ->  | AC48: =IF(표2[[#This Row],[사용연도 입사자 1개월]]="","",MAX(0,DATEDIF(표2[[#This Row],[*기산일]],$W$11,"m")-1)) ->  | AD48: =IF(표2[[#This Row],[사용연도 입사자 1개월]]="","",(DATE(YEAR(표2[[#This Row],[*기산일]]),MONTH(표2[[#This Row],[*기산일]])+1,0)-표2[[#This Row],[*기산일]]+1)/(DATE(YEAR(표2[[#This Row],[*기산일]]),MONTH(표2[[#This Row],[*기산일]])+1,0)-DATE(YEAR(표2[[#This Row],[*기산일]]),MONTH(표2[[#This Row],[*기산일]]),1)+1)) ->  | AE48: =표2[[#This Row],[월중 근속일수]] ->  | AF48: =IFERROR(표2[[#This Row],[사용연도입사자 근무기간(월)]]+ROUNDDOWN(표2[[#This Row],[열2]],0)+VLOOKUP((표2[[#This Row],[열2]]-ROUNDDOWN(표2[[#This Row],[열2]],0)),code!$A$4:$D$9,3,TRUE),0) -> 0 | AG48: 34 | AH48: 김운용 | AJ48: 부장 | AK48: 2020-07-01 | AL48: 2020-08-02 | AM48: =IF($AJ$1>license!$C$3,"",IF(H48=0,0,IF($AJ$1<H48,0,$AJ$1-H48+1))) -> 914 | AN48: =IF($AJ$1>license!$C$3,"",IF(AM48=0,0,IF($H48=0,0,DATEDIF($H48-1,$AJ$1,"y")))) -> 2 | AO48: =IF($AJ$1>license!$C$3,"",IF(AM48=0,0,IF($H48=0,0,DATEDIF($H48-1,$AJ$1,"ym")))) -> 6 | AP48: =IF($AJ$1>license!$C$3,"",IF(AM48=0,0,IF($H48=0,0,DATEDIF($H48-1,$AJ$1,"md")))) -> 1 | AQ48: =IF($AJ$1>license!$C$3,"",IF(표2[[#This Row],[1년이상 근무일수]]="",0,$Z$12-표2[[#This Row],[기간]])) -> 15 | AR48: =IFERROR(IF(표2[[#This Row],[1년이상 근무일수]]="","",MIN(표2[[#This Row],[가산연차2]],$BD$12-표2[[#This Row],[기본]])),"") -> 0.5 | AS48: =SUM(표2[[#This Row],[1년미만자 당기 1년미만기간 연차수(11일 일할)]],표2[[#This Row],[사용연도 입사자]],표2[[#This Row],[1년미만자 1년째 후 연차일수(15일 일할)]]) -> 0 | AU48: =IF($AJ$1>license!$C$3,"",SUM(표2[[#This Row],[기본]:[일수]])) -> 15.5 | AV48: =IF($AJ$1>license!$C$3,"",SUMIFS(휴가입력!O:O,휴가입력!M:M,"연차",휴가입력!L:L,AH48)) -> 0 | AW48: =IFERROR(MAX(0,표2[[#This Row],[계]]-표2[[#This Row],[사용 일수]]),0) -> 15.5 | AX48: =IFERROR(MAX((표2[[#This Row],[계]]-표2[[#This Row],[사용 일수]])*-1,0),0) -> 0 | AZ48: =IF($AJ$1>license!$C$3,"",ROUNDUP(표2[[#This Row],[(월급)]]/209*8,0)) -> 0 | BA48: =IF($AJ$1>license!$C$3,"",ROUNDUP(표2[[#This Row],[(일급)]]*표2[[#This Row],[미사용 일수]],0)) -> 0 | BC48: 0
A49: 1 | H49: =IF(표2[[#This Row],[*입사일]]=0,"",표2[[#This Row],[*입사일]]-$AJ$3) ->  | I49: =IFERROR(IF(AO49="",0,IF(표2[[#This Row],[1년이상 근무일수]]=0,0,DATEDIF(표2[[#This Row],[1년이상 근무일수]]-1,$AJ$1,"y"))),0) -> 0 | J49: =IF(표2[[#This Row],[*기산일]]="","",IF(DATE(YEAR(표2[[#This Row],[*기산일]])+1,MONTH(표2[[#This Row],[*기산일]]),DAY(표2[[#This Row],[*기산일]]))>$AJ$1,"",DATE(YEAR(표2[[#This Row],[*기산일]])+1,MONTH(표2[[#This Row],[*기산일]]),DAY(표2[[#This Row],[*기산일]])))) ->  | K49: =IF(ISODD(표2[[#This Row],[열1]])=TRUE,1,"") ->  | L49: =IF(표2[[#This Row],[가산일도래여부]]=1,DATE(YEAR($AJ$1)+1,MONTH($AJ$1),DAY($AJ$1))-DATE(YEAR($AJ$1)+1,MONTH(표2[[#This Row],[1년이상 근무일수]]),DAY(표2[[#This Row],[1년이상 근무일수]])),0) -> 0 | M49: =표2[[#This Row],[가산휴가 사용가능일]]/365 -> 0 | N49: =VLOOKUP(표2[[#This Row],[총근무일수-366]],code!$A$5:$C$9,3) -> 0 | O49: =ROUNDDOWN(표2[[#This Row],[열1]]/2,0)+표2[[#This Row],[가산연차]] -> 0 | P49: =IF(표2[[#This Row],[*기산일]]="",0,IF(YEAR(표2[[#This Row],[*기산일]])+1=$AI$11,DATE(YEAR(표2[[#This Row],[*기산일]])+1,MONTH(표2[[#This Row],[*기산일]]),DAY(표2[[#This Row],[*기산일]])),"")) -> 00:00:00 | Q49: =IF(표2[[#This Row],[*기산일]]="",0,IF(표2[[#This Row],[전년도 입사자 1년째]]="","",$W$11-표2[[#This Row],[전년도 입사자 1년째]]+1)) -> 0 | R49: =IF(표2[[#This Row],[전년도 입사자 1년째]]="","",표2[[#This Row],[1년미만자 1년째 후 근속일수]]/365*$Z$12) -> 0 | S49: =IFERROR(MAX(0,SUM(MAX(0,ROUNDDOWN(표2[[#This Row],[1년미만자 2년째 후 근속일수]],0)+VLOOKUP((표2[[#This Row],[1년미만자 2년째 후 근속일수]]-ROUNDDOWN(표2[[#This Row],[1년미만자 2년째 후 근속일수]],0)),code!$A$4:$D$9,3,TRUE)),표2[[#This Row],[1년미만자 당기 1년미만기간 연차수(11일 일할)]],표2[[#This Row],[사용연도 입사자]])-$Z$12),0) -> 0 | T49: =IFERROR(MAX(0,ROUNDDOWN(표2[[#This Row],[1년미만자 2년째 후 근속일수]],0)+VLOOKUP((표2[[#This Row],[1년미만자 2년째 후 근속일수]]-ROUNDDOWN(표2[[#This Row],[1년미만자 2년째 후 근속일수]],0)),code!$A$4:$D$9,3,TRUE))-표2[[#This Row],[1년미만자 3년째 후 근속일수]],0) -> 0 | V49: =IF(표2[[#This Row],[*기산일]]="","",IF(YEAR(표2[[#This Row],[*기산일]])=$AI$11-1,DATE(YEAR(표2[[#This Row],[*기산일]]),MONTH(표2[[#This Row],[*기산일]])+1,DAY(표2[[#This Row],[*기산일]])),"")) ->  | W49: =IF(표2[[#This Row],[*기산일]]="",0,IF(표2[[#This Row],[1년미만자1개월째]]="","",MAX(0,DATEDIF(표2[[#This Row],[*기산일]],$W$12,"m")-1))) -> 0 | X49: =IF(표2[[#This Row],[*기산일]]="",0,IF(표2[[#This Row],[1년미만자1개월째]]="","",(DATE(YEAR(표2[[#This Row],[*기산일]]),MONTH(표2[[#This Row],[*기산일]])+1,0)-표2[[#This Row],[*기산일]]+1)/(DATE(YEAR(표2[[#This Row],[*기산일]]),MONTH(표2[[#This Row],[*기산일]])+1,0)-DATE(YEAR(표2[[#This Row],[*기산일]]),MONTH(표2[[#This Row],[*기산일]]),1)+1))) -> 0 | Y49: =IFERROR(ROUNDDOWN(표2[[#This Row],[1년미만자 전년 근속일수]]/365*$Z$11,0)+VLOOKUP(표2[[#This Row],[1년미만자 전기 연차수]]-ROUNDDOWN(표2[[#This Row],[1년미만자 전년 근속일수]]/365*$Z$11,0),code!$A$4:$D$9,3,TRUE),"") -> 0 | Z49: =IFERROR(표2[[#This Row],[1년미만자 전년 근속일수]]+ROUNDDOWN(표2[[#This Row],[1년미만자 전기 연차수]],0)+VLOOKUP((표2[[#This Row],[1년미만자 전기 연차수]]-ROUNDDOWN(표2[[#This Row],[1년미만자 전기 연차수]],0)),code!$A$4:$D$9,3,TRUE),0) -> 0 | AA49: =IF(표2[[#This Row],[1년미만자1개월째]]="","",$Z$11-표2[[#This Row],[2년미만자 전기 연차수(code반올림)]]) ->  | AB49: =IF(YEAR(표2[[#This Row],[*기산일]])=$AI$11,DATE(YEAR(표2[[#This Row],[*기산일]]),MONTH(표2[[#This Row],[*기산일]])+1,DAY(표2[[#This Row],[*기산일]])),"") ->  | AC49: =IF(표2[[#This Row],[사용연도 입사자 1개월]]="","",MAX(0,DATEDIF(표2[[#This Row],[*기산일]],$W$11,"m")-1)) ->  | AD49: =IF(표2[[#This Row],[사용연도 입사자 1개월]]="","",(DATE(YEAR(표2[[#This Row],[*기산일]]),MONTH(표2[[#This Row],[*기산일]])+1,0)-표2[[#This Row],[*기산일]]+1)/(DATE(YEAR(표2[[#This Row],[*기산일]]),MONTH(표2[[#This Row],[*기산일]])+1,0)-DATE(YEAR(표2[[#This Row],[*기산일]]),MONTH(표2[[#This Row],[*기산일]]),1)+1)) ->  | AE49: =표2[[#This Row],[월중 근속일수]] ->  | AF49: =IFERROR(표2[[#This Row],[사용연도입사자 근무기간(월)]]+ROUNDDOWN(표2[[#This Row],[열2]],0)+VLOOKUP((표2[[#This Row],[열2]]-ROUNDDOWN(표2[[#This Row],[열2]],0)),code!$A$4:$D$9,3,TRUE),0) -> 0 | AG49: 35 | AM49: =IF($AJ$1>license!$C$3,"",IF(H49=0,0,IF($AJ$1<H49,0,$AJ$1-H49+1))) -> 0 | AN49: =IF($AJ$1>license!$C$3,"",IF(AM49=0,0,IF($H49=0,0,DATEDIF($H49-1,$AJ$1,"y")))) -> 0 | AO49: =IF($AJ$1>license!$C$3,"",IF(AM49=0,0,IF($H49=0,0,DATEDIF($H49-1,$AJ$1,"ym")))) -> 0 | AP49: =IF($AJ$1>license!$C$3,"",IF(AM49=0,0,IF($H49=0,0,DATEDIF($H49-1,$AJ$1,"md")))) -> 0 | AQ49: =IF($AJ$1>license!$C$3,"",IF(표2[[#This Row],[1년이상 근무일수]]="",0,$Z$12-표2[[#This Row],[기간]])) -> 0 | AR49: =IFERROR(IF(표2[[#This Row],[1년이상 근무일수]]="","",MIN(표2[[#This Row],[가산연차2]],$BD$12-표2[[#This Row],[기본]])),"") ->  | AS49: =SUM(표2[[#This Row],[1년미만자 당기 1년미만기간 연차수(11일 일할)]],표2[[#This Row],[사용연도 입사자]],표2[[#This Row],[1년미만자 1년째 후 연차일수(15일 일할)]]) -> 0 | AU49: =IF($AJ$1>license!$C$3,"",SUM(표2[[#This Row],[기본]:[일수]])) -> 0 | AV49: =IF($AJ$1>license!$C$3,"",SUMIFS(휴가입력!O:O,휴가입력!M:M,"연차",휴가입력!L:L,AH49)) -> 0 | AW49: =IFERROR(MAX(0,표2[[#This Row],[계]]-표2[[#This Row],[사용 일수]]),0) -> 0 | AX49: =IFERROR(MAX((표2[[#This Row],[계]]-표2[[#This Row],[사용 일수]])*-1,0),0) -> 0 | AZ49: =IF($AJ$1>license!$C$3,"",ROUNDUP(표2[[#This Row],[(월급)]]/209*8,0)) -> 0 | BA49: =IF($AJ$1>license!$C$3,"",ROUNDUP(표2[[#This Row],[(일급)]]*표2[[#This Row],[미사용 일수]],0)) -> 0 | BC49: 0
A50: 1 | H50: =IF(표2[[#This Row],[*입사일]]=0,"",표2[[#This Row],[*입사일]]-$AJ$3) ->  | I50: =IFERROR(IF(AO50="",0,IF(표2[[#This Row],[1년이상 근무일수]]=0,0,DATEDIF(표2[[#This Row],[1년이상 근무일수]]-1,$AJ$1,"y"))),0) -> 0 | J50: =IF(표2[[#This Row],[*기산일]]="","",IF(DATE(YEAR(표2[[#This Row],[*기산일]])+1,MONTH(표2[[#This Row],[*기산일]]),DAY(표2[[#This Row],[*기산일]]))>$AJ$1,"",DATE(YEAR(표2[[#This Row],[*기산일]])+1,MONTH(표2[[#This Row],[*기산일]]),DAY(표2[[#This Row],[*기산일]])))) ->  | K50: =IF(ISODD(표2[[#This Row],[열1]])=TRUE,1,"") ->  | L50: =IF(표2[[#This Row],[가산일도래여부]]=1,DATE(YEAR($AJ$1)+1,MONTH($AJ$1),DAY($AJ$1))-DATE(YEAR($AJ$1)+1,MONTH(표2[[#This Row],[1년이상 근무일수]]),DAY(표2[[#This Row],[1년이상 근무일수]])),0) -> 0 | M50: =표2[[#This Row],[가산휴가 사용가능일]]/365 -> 0 | N50: =VLOOKUP(표2[[#This Row],[총근무일수-366]],code!$A$5:$C$9,3) -> 0 | O50: =ROUNDDOWN(표2[[#This Row],[열1]]/2,0)+표2[[#This Row],[가산연차]] -> 0 | P50: =IF(표2[[#This Row],[*기산일]]="",0,IF(YEAR(표2[[#This Row],[*기산일]])+1=$AI$11,DATE(YEAR(표2[[#This Row],[*기산일]])+1,MONTH(표2[[#This Row],[*기산일]]),DAY(표2[[#This Row],[*기산일]])),"")) -> 00:00:00 | Q50: =IF(표2[[#This Row],[*기산일]]="",0,IF(표2[[#This Row],[전년도 입사자 1년째]]="","",$W$11-표2[[#This Row],[전년도 입사자 1년째]]+1)) -> 0 | R50: =IF(표2[[#This Row],[전년도 입사자 1년째]]="","",표2[[#This Row],[1년미만자 1년째 후 근속일수]]/365*$Z$12) -> 0 | S50: =IFERROR(MAX(0,SUM(MAX(0,ROUNDDOWN(표2[[#This Row],[1년미만자 2년째 후 근속일수]],0)+VLOOKUP((표2[[#This Row],[1년미만자 2년째 후 근속일수]]-ROUNDDOWN(표2[[#This Row],[1년미만자 2년째 후 근속일수]],0)),code!$A$4:$D$9,3,TRUE)),표2[[#This Row],[1년미만자 당기 1년미만기간 연차수(11일 일할)]],표2[[#This Row],[사용연도 입사자]])-$Z$12),0) -> 0 | T50: =IFERROR(MAX(0,ROUNDDOWN(표2[[#This Row],[1년미만자 2년째 후 근속일수]],0)+VLOOKUP((표2[[#This Row],[1년미만자 2년째 후 근속일수]]-ROUNDDOWN(표2[[#This Row],[1년미만자 2년째 후 근속일수]],0)),code!$A$4:$D$9,3,TRUE))-표2[[#This Row],[1년미만자 3년째 후 근속일수]],0) -> 0 | V50: =IF(표2[[#This Row],[*기산일]]="","",IF(YEAR(표2[[#This Row],[*기산일]])=$AI$11-1,DATE(YEAR(표2[[#This Row],[*기산일]]),MONTH(표2[[#This Row],[*기산일]])+1,DAY(표2[[#This Row],[*기산일]])),"")) ->  | W50: =IF(표2[[#This Row],[*기산일]]="",0,IF(표2[[#This Row],[1년미만자1개월째]]="","",MAX(0,DATEDIF(표2[[#This Row],[*기산일]],$W$12,"m")-1))) -> 0 | X50: =IF(표2[[#This Row],[*기산일]]="",0,IF(표2[[#This Row],[1년미만자1개월째]]="","",(DATE(YEAR(표2[[#This Row],[*기산일]]),MONTH(표2[[#This Row],[*기산일]])+1,0)-표2[[#This Row],[*기산일]]+1)/(DATE(YEAR(표2[[#This Row],[*기산일]]),MONTH(표2[[#This Row],[*기산일]])+1,0)-DATE(YEAR(표2[[#This Row],[*기산일]]),MONTH(표2[[#This Row],[*기산일]]),1)+1))) -> 0 | Y50: =IFERROR(ROUNDDOWN(표2[[#This Row],[1년미만자 전년 근속일수]]/365*$Z$11,0)+VLOOKUP(표2[[#This Row],[1년미만자 전기 연차수]]-ROUNDDOWN(표2[[#This Row],[1년미만자 전년 근속일수]]/365*$Z$11,0),code!$A$4:$D$9,3,TRUE),"") -> 0 | Z50: =IFERROR(표2[[#This Row],[1년미만자 전년 근속일수]]+ROUNDDOWN(표2[[#This Row],[1년미만자 전기 연차수]],0)+VLOOKUP((표2[[#This Row],[1년미만자 전기 연차수]]-ROUNDDOWN(표2[[#This Row],[1년미만자 전기 연차수]],0)),code!$A$4:$D$9,3,TRUE),0) -> 0 | AA50: =IF(표2[[#This Row],[1년미만자1개월째]]="","",$Z$11-표2[[#This Row],[2년미만자 전기 연차수(code반올림)]]) ->  | AB50: =IF(YEAR(표2[[#This Row],[*기산일]])=$AI$11,DATE(YEAR(표2[[#This Row],[*기산일]]),MONTH(표2[[#This Row],[*기산일]])+1,DAY(표2[[#This Row],[*기산일]])),"") ->  | AC50: =IF(표2[[#This Row],[사용연도 입사자 1개월]]="","",MAX(0,DATEDIF(표2[[#This Row],[*기산일]],$W$11,"m")-1)) ->  | AD50: =IF(표2[[#This Row],[사용연도 입사자 1개월]]="","",(DATE(YEAR(표2[[#This Row],[*기산일]]),MONTH(표2[[#This Row],[*기산일]])+1,0)-표2[[#This Row],[*기산일]]+1)/(DATE(YEAR(표2[[#This Row],[*기산일]]),MONTH(표2[[#This Row],[*기산일]])+1,0)-DATE(YEAR(표2[[#This Row],[*기산일]]),MONTH(표2[[#This Row],[*기산일]]),1)+1)) ->  | AE50: =표2[[#This Row],[월중 근속일수]] ->  | AF50: =IFERROR(표2[[#This Row],[사용연도입사자 근무기간(월)]]+ROUNDDOWN(표2[[#This Row],[열2]],0)+VLOOKUP((표2[[#This Row],[열2]]-ROUNDDOWN(표2[[#This Row],[열2]],0)),code!$A$4:$D$9,3,TRUE),0) -> 0 | AG50: 36 | AM50: =IF($AJ$1>license!$C$3,"",IF(H50=0,0,IF($AJ$1<H50,0,$AJ$1-H50+1))) -> 0 | AN50: =IF($AJ$1>license!$C$3,"",IF(AM50=0,0,IF($H50=0,0,DATEDIF($H50-1,$AJ$1,"y")))) -> 0 | AO50: =IF($AJ$1>license!$C$3,"",IF(AM50=0,0,IF($H50=0,0,DATEDIF($H50-1,$AJ$1,"ym")))) -> 0 | AP50: =IF($AJ$1>license!$C$3,"",IF(AM50=0,0,IF($H50=0,0,DATEDIF($H50-1,$AJ$1,"md")))) -> 0 | AQ50: =IF($AJ$1>license!$C$3,"",IF(표2[[#This Row],[1년이상 근무일수]]="",0,$Z$12-표2[[#This Row],[기간]])) -> 0 | AR50: =IFERROR(IF(표2[[#This Row],[1년이상 근무일수]]="","",MIN(표2[[#This Row],[가산연차2]],$BD$12-표2[[#This Row],[기본]])),"") ->  | AS50: =SUM(표2[[#This Row],[1년미만자 당기 1년미만기간 연차수(11일 일할)]],표2[[#This Row],[사용연도 입사자]],표2[[#This Row],[1년미만자 1년째 후 연차일수(15일 일할)]]) -> 0 | AU50: =IF($AJ$1>license!$C$3,"",SUM(표2[[#This Row],[기본]:[일수]])) -> 0 | AV50: =IF($AJ$1>license!$C$3,"",SUMIFS(휴가입력!O:O,휴가입력!M:M,"연차",휴가입력!L:L,AH50)) -> 0 | AW50: =IFERROR(MAX(0,표2[[#This Row],[계]]-표2[[#This Row],[사용 일수]]),0) -> 0 | AX50: =IFERROR(MAX((표2[[#This Row],[계]]-표2[[#This Row],[사용 일수]])*-1,0),0) -> 0 | AZ50: =IF($AJ$1>license!$C$3,"",ROUNDUP(표2[[#This Row],[(월급)]]/209*8,0)) -> 0 | BA50: =IF($AJ$1>license!$C$3,"",ROUNDUP(표2[[#This Row],[(일급)]]*표2[[#This Row],[미사용 일수]],0)) -> 0 | BC50: 0
A51: 1 | H51: =IF(표2[[#This Row],[*입사일]]=0,"",표2[[#This Row],[*입사일]]-$AJ$3) ->  | I51: =IFERROR(IF(AO51="",0,IF(표2[[#This Row],[1년이상 근무일수]]=0,0,DATEDIF(표2[[#This Row],[1년이상 근무일수]]-1,$AJ$1,"y"))),0) -> 0 | J51: =IF(표2[[#This Row],[*기산일]]="","",IF(DATE(YEAR(표2[[#This Row],[*기산일]])+1,MONTH(표2[[#This Row],[*기산일]]),DAY(표2[[#This Row],[*기산일]]))>$AJ$1,"",DATE(YEAR(표2[[#This Row],[*기산일]])+1,MONTH(표2[[#This Row],[*기산일]]),DAY(표2[[#This Row],[*기산일]])))) ->  | K51: =IF(ISODD(표2[[#This Row],[열1]])=TRUE,1,"") ->  | L51: =IF(표2[[#This Row],[가산일도래여부]]=1,DATE(YEAR($AJ$1)+1,MONTH($AJ$1),DAY($AJ$1))-DATE(YEAR($AJ$1)+1,MONTH(표2[[#This Row],[1년이상 근무일수]]),DAY(표2[[#This Row],[1년이상 근무일수]])),0) -> 0 | M51: =표2[[#This Row],[가산휴가 사용가능일]]/365 -> 0 | N51: =VLOOKUP(표2[[#This Row],[총근무일수-366]],code!$A$5:$C$9,3) -> 0 | O51: =ROUNDDOWN(표2[[#This Row],[열1]]/2,0)+표2[[#This Row],[가산연차]] -> 0 | P51: =IF(표2[[#This Row],[*기산일]]="",0,IF(YEAR(표2[[#This Row],[*기산일]])+1=$AI$11,DATE(YEAR(표2[[#This Row],[*기산일]])+1,MONTH(표2[[#This Row],[*기산일]]),DAY(표2[[#This Row],[*기산일]])),"")) -> 00:00:00 | Q51: =IF(표2[[#This Row],[*기산일]]="",0,IF(표2[[#This Row],[전년도 입사자 1년째]]="","",$W$11-표2[[#This Row],[전년도 입사자 1년째]]+1)) -> 0 | R51: =IF(표2[[#This Row],[전년도 입사자 1년째]]="","",표2[[#This Row],[1년미만자 1년째 후 근속일수]]/365*$Z$12) -> 0 | S51: =IFERROR(MAX(0,SUM(MAX(0,ROUNDDOWN(표2[[#This Row],[1년미만자 2년째 후 근속일수]],0)+VLOOKUP((표2[[#This Row],[1년미만자 2년째 후 근속일수]]-ROUNDDOWN(표2[[#This Row],[1년미만자 2년째 후 근속일수]],0)),code!$A$4:$D$9,3,TRUE)),표2[[#This Row],[1년미만자 당기 1년미만기간 연차수(11일 일할)]],표2[[#This Row],[사용연도 입사자]])-$Z$12),0) -> 0 | T51: =IFERROR(MAX(0,ROUNDDOWN(표2[[#This Row],[1년미만자 2년째 후 근속일수]],0)+VLOOKUP((표2[[#This Row],[1년미만자 2년째 후 근속일수]]-ROUNDDOWN(표2[[#This Row],[1년미만자 2년째 후 근속일수]],0)),code!$A$4:$D$9,3,TRUE))-표2[[#This Row],[1년미만자 3년째 후 근속일수]],0) -> 0 | V51: =IF(표2[[#This Row],[*기산일]]="","",IF(YEAR(표2[[#This Row],[*기산일]])=$AI$11-1,DATE(YEAR(표2[[#This Row],[*기산일]]),MONTH(표2[[#This Row],[*기산일]])+1,DAY(표2[[#This Row],[*기산일]])),"")) ->  | W51: =IF(표2[[#This Row],[*기산일]]="",0,IF(표2[[#This Row],[1년미만자1개월째]]="","",MAX(0,DATEDIF(표2[[#This Row],[*기산일]],$W$12,"m")-1))) -> 0 | X51: =IF(표2[[#This Row],[*기산일]]="",0,IF(표2[[#This Row],[1년미만자1개월째]]="","",(DATE(YEAR(표2[[#This Row],[*기산일]]),MONTH(표2[[#This Row],[*기산일]])+1,0)-표2[[#This Row],[*기산일]]+1)/(DATE(YEAR(표2[[#This Row],[*기산일]]),MONTH(표2[[#This Row],[*기산일]])+1,0)-DATE(YEAR(표2[[#This Row],[*기산일]]),MONTH(표2[[#This Row],[*기산일]]),1)+1))) -> 0 | Y51: =IFERROR(ROUNDDOWN(표2[[#This Row],[1년미만자 전년 근속일수]]/365*$Z$11,0)+VLOOKUP(표2[[#This Row],[1년미만자 전기 연차수]]-ROUNDDOWN(표2[[#This Row],[1년미만자 전년 근속일수]]/365*$Z$11,0),code!$A$4:$D$9,3,TRUE),"") -> 0 | Z51: =IFERROR(표2[[#This Row],[1년미만자 전년 근속일수]]+ROUNDDOWN(표2[[#This Row],[1년미만자 전기 연차수]],0)+VLOOKUP((표2[[#This Row],[1년미만자 전기 연차수]]-ROUNDDOWN(표2[[#This Row],[1년미만자 전기 연차수]],0)),code!$A$4:$D$9,3,TRUE),0) -> 0 | AA51: =IF(표2[[#This Row],[1년미만자1개월째]]="","",$Z$11-표2[[#This Row],[2년미만자 전기 연차수(code반올림)]]) ->  | AB51: =IF(YEAR(표2[[#This Row],[*기산일]])=$AI$11,DATE(YEAR(표2[[#This Row],[*기산일]]),MONTH(표2[[#This Row],[*기산일]])+1,DAY(표2[[#This Row],[*기산일]])),"") ->  | AC51: =IF(표2[[#This Row],[사용연도 입사자 1개월]]="","",MAX(0,DATEDIF(표2[[#This Row],[*기산일]],$W$11,"m")-1)) ->  | AD51: =IF(표2[[#This Row],[사용연도 입사자 1개월]]="","",(DATE(YEAR(표2[[#This Row],[*기산일]]),MONTH(표2[[#This Row],[*기산일]])+1,0)-표2[[#This Row],[*기산일]]+1)/(DATE(YEAR(표2[[#This Row],[*기산일]]),MONTH(표2[[#This Row],[*기산일]])+1,0)-DATE(YEAR(표2[[#This Row],[*기산일]]),MONTH(표2[[#This Row],[*기산일]]),1)+1)) ->  | AE51: =표2[[#This Row],[월중 근속일수]] ->  | AF51: =IFERROR(표2[[#This Row],[사용연도입사자 근무기간(월)]]+ROUNDDOWN(표2[[#This Row],[열2]],0)+VLOOKUP((표2[[#This Row],[열2]]-ROUNDDOWN(표2[[#This Row],[열2]],0)),code!$A$4:$D$9,3,TRUE),0) -> 0 | AG51: 37 | AM51: =IF($AJ$1>license!$C$3,"",IF(H51=0,0,IF($AJ$1<H51,0,$AJ$1-H51+1))) -> 0 | AN51: =IF($AJ$1>license!$C$3,"",IF(AM51=0,0,IF($H51=0,0,DATEDIF($H51-1,$AJ$1,"y")))) -> 0 | AO51: =IF($AJ$1>license!$C$3,"",IF(AM51=0,0,IF($H51=0,0,DATEDIF($H51-1,$AJ$1,"ym")))) -> 0 | AP51: =IF($AJ$1>license!$C$3,"",IF(AM51=0,0,IF($H51=0,0,DATEDIF($H51-1,$AJ$1,"md")))) -> 0 | AQ51: =IF($AJ$1>license!$C$3,"",IF(표2[[#This Row],[1년이상 근무일수]]="",0,$Z$12-표2[[#This Row],[기간]])) -> 0 | AR51: =IFERROR(IF(표2[[#This Row],[1년이상 근무일수]]="","",MIN(표2[[#This Row],[가산연차2]],$BD$12-표2[[#This Row],[기본]])),"") ->  | AS51: =SUM(표2[[#This Row],[1년미만자 당기 1년미만기간 연차수(11일 일할)]],표2[[#This Row],[사용연도 입사자]],표2[[#This Row],[1년미만자 1년째 후 연차일수(15일 일할)]]) -> 0 | AU51: =IF($AJ$1>license!$C$3,"",SUM(표2[[#This Row],[기본]:[일수]])) -> 0 | AV51: =IF($AJ$1>license!$C$3,"",SUMIFS(휴가입력!O:O,휴가입력!M:M,"연차",휴가입력!L:L,AH51)) -> 0 | AW51: =IFERROR(MAX(0,표2[[#This Row],[계]]-표2[[#This Row],[사용 일수]]),0) -> 0 | AX51: =IFERROR(MAX((표2[[#This Row],[계]]-표2[[#This Row],[사용 일수]])*-1,0),0) -> 0 | AZ51: =IF($AJ$1>license!$C$3,"",ROUNDUP(표2[[#This Row],[(월급)]]/209*8,0)) -> 0 | BA51: =IF($AJ$1>license!$C$3,"",ROUNDUP(표2[[#This Row],[(일급)]]*표2[[#This Row],[미사용 일수]],0)) -> 0 | BC51: 0
A52: 1 | H52: =IF(표2[[#This Row],[*입사일]]=0,"",표2[[#This Row],[*입사일]]-$AJ$3) ->  | I52: =IFERROR(IF(AO52="",0,IF(표2[[#This Row],[1년이상 근무일수]]=0,0,DATEDIF(표2[[#This Row],[1년이상 근무일수]]-1,$AJ$1,"y"))),0) -> 0 | J52: =IF(표2[[#This Row],[*기산일]]="","",IF(DATE(YEAR(표2[[#This Row],[*기산일]])+1,MONTH(표2[[#This Row],[*기산일]]),DAY(표2[[#This Row],[*기산일]]))>$AJ$1,"",DATE(YEAR(표2[[#This Row],[*기산일]])+1,MONTH(표2[[#This Row],[*기산일]]),DAY(표2[[#This Row],[*기산일]])))) ->  | K52: =IF(ISODD(표2[[#This Row],[열1]])=TRUE,1,"") ->  | L52: =IF(표2[[#This Row],[가산일도래여부]]=1,DATE(YEAR($AJ$1)+1,MONTH($AJ$1),DAY($AJ$1))-DATE(YEAR($AJ$1)+1,MONTH(표2[[#This Row],[1년이상 근무일수]]),DAY(표2[[#This Row],[1년이상 근무일수]])),0) -> 0 | M52: =표2[[#This Row],[가산휴가 사용가능일]]/365 -> 0 | N52: =VLOOKUP(표2[[#This Row],[총근무일수-366]],code!$A$5:$C$9,3) -> 0 | O52: =ROUNDDOWN(표2[[#This Row],[열1]]/2,0)+표2[[#This Row],[가산연차]] -> 0 | P52: =IF(표2[[#This Row],[*기산일]]="",0,IF(YEAR(표2[[#This Row],[*기산일]])+1=$AI$11,DATE(YEAR(표2[[#This Row],[*기산일]])+1,MONTH(표2[[#This Row],[*기산일]]),DAY(표2[[#This Row],[*기산일]])),"")) -> 00:00:00 | Q52: =IF(표2[[#This Row],[*기산일]]="",0,IF(표2[[#This Row],[전년도 입사자 1년째]]="","",$W$11-표2[[#This Row],[전년도 입사자 1년째]]+1)) -> 0 | R52: =IF(표2[[#This Row],[전년도 입사자 1년째]]="","",표2[[#This Row],[1년미만자 1년째 후 근속일수]]/365*$Z$12) -> 0 | S52: =IFERROR(MAX(0,SUM(MAX(0,ROUNDDOWN(표2[[#This Row],[1년미만자 2년째 후 근속일수]],0)+VLOOKUP((표2[[#This Row],[1년미만자 2년째 후 근속일수]]-ROUNDDOWN(표2[[#This Row],[1년미만자 2년째 후 근속일수]],0)),code!$A$4:$D$9,3,TRUE)),표2[[#This Row],[1년미만자 당기 1년미만기간 연차수(11일 일할)]],표2[[#This Row],[사용연도 입사자]])-$Z$12),0) -> 0 | T52: =IFERROR(MAX(0,ROUNDDOWN(표2[[#This Row],[1년미만자 2년째 후 근속일수]],0)+VLOOKUP((표2[[#This Row],[1년미만자 2년째 후 근속일수]]-ROUNDDOWN(표2[[#This Row],[1년미만자 2년째 후 근속일수]],0)),code!$A$4:$D$9,3,TRUE))-표2[[#This Row],[1년미만자 3년째 후 근속일수]],0) -> 0 | V52: =IF(표2[[#This Row],[*기산일]]="","",IF(YEAR(표2[[#This Row],[*기산일]])=$AI$11-1,DATE(YEAR(표2[[#This Row],[*기산일]]),MONTH(표2[[#This Row],[*기산일]])+1,DAY(표2[[#This Row],[*기산일]])),"")) ->  | W52: =IF(표2[[#This Row],[*기산일]]="",0,IF(표2[[#This Row],[1년미만자1개월째]]="","",MAX(0,DATEDIF(표2[[#This Row],[*기산일]],$W$12,"m")-1))) -> 0 | X52: =IF(표2[[#This Row],[*기산일]]="",0,IF(표2[[#This Row],[1년미만자1개월째]]="","",(DATE(YEAR(표2[[#This Row],[*기산일]]),MONTH(표2[[#This Row],[*기산일]])+1,0)-표2[[#This Row],[*기산일]]+1)/(DATE(YEAR(표2[[#This Row],[*기산일]]),MONTH(표2[[#This Row],[*기산일]])+1,0)-DATE(YEAR(표2[[#This Row],[*기산일]]),MONTH(표2[[#This Row],[*기산일]]),1)+1))) -> 0 | Y52: =IFERROR(ROUNDDOWN(표2[[#This Row],[1년미만자 전년 근속일수]]/365*$Z$11,0)+VLOOKUP(표2[[#This Row],[1년미만자 전기 연차수]]-ROUNDDOWN(표2[[#This Row],[1년미만자 전년 근속일수]]/365*$Z$11,0),code!$A$4:$D$9,3,TRUE),"") -> 0 | Z52: =IFERROR(표2[[#This Row],[1년미만자 전년 근속일수]]+ROUNDDOWN(표2[[#This Row],[1년미만자 전기 연차수]],0)+VLOOKUP((표2[[#This Row],[1년미만자 전기 연차수]]-ROUNDDOWN(표2[[#This Row],[1년미만자 전기 연차수]],0)),code!$A$4:$D$9,3,TRUE),0) -> 0 | AA52: =IF(표2[[#This Row],[1년미만자1개월째]]="","",$Z$11-표2[[#This Row],[2년미만자 전기 연차수(code반올림)]]) ->  | AB52: =IF(YEAR(표2[[#This Row],[*기산일]])=$AI$11,DATE(YEAR(표2[[#This Row],[*기산일]]),MONTH(표2[[#This Row],[*기산일]])+1,DAY(표2[[#This Row],[*기산일]])),"") ->  | AC52: =IF(표2[[#This Row],[사용연도 입사자 1개월]]="","",MAX(0,DATEDIF(표2[[#This Row],[*기산일]],$W$11,"m")-1)) ->  | AD52: =IF(표2[[#This Row],[사용연도 입사자 1개월]]="","",(DATE(YEAR(표2[[#This Row],[*기산일]]),MONTH(표2[[#This Row],[*기산일]])+1,0)-표2[[#This Row],[*기산일]]+1)/(DATE(YEAR(표2[[#This Row],[*기산일]]),MONTH(표2[[#This Row],[*기산일]])+1,0)-DATE(YEAR(표2[[#This Row],[*기산일]]),MONTH(표2[[#This Row],[*기산일]]),1)+1)) ->  | AE52: =표2[[#This Row],[월중 근속일수]] ->  | AF52: =IFERROR(표2[[#This Row],[사용연도입사자 근무기간(월)]]+ROUNDDOWN(표2[[#This Row],[열2]],0)+VLOOKUP((표2[[#This Row],[열2]]-ROUNDDOWN(표2[[#This Row],[열2]],0)),code!$A$4:$D$9,3,TRUE),0) -> 0 | AG52: 38 | AM52: =IF($AJ$1>license!$C$3,"",IF(H52=0,0,IF($AJ$1<H52,0,$AJ$1-H52+1))) -> 0 | AN52: =IF($AJ$1>license!$C$3,"",IF(AM52=0,0,IF($H52=0,0,DATEDIF($H52-1,$AJ$1,"y")))) -> 0 | AO52: =IF($AJ$1>license!$C$3,"",IF(AM52=0,0,IF($H52=0,0,DATEDIF($H52-1,$AJ$1,"ym")))) -> 0 | AP52: =IF($AJ$1>license!$C$3,"",IF(AM52=0,0,IF($H52=0,0,DATEDIF($H52-1,$AJ$1,"md")))) -> 0 | AQ52: =IF($AJ$1>license!$C$3,"",IF(표2[[#This Row],[1년이상 근무일수]]="",0,$Z$12-표2[[#This Row],[기간]])) -> 0 | AR52: =IFERROR(IF(표2[[#This Row],[1년이상 근무일수]]="","",MIN(표2[[#This Row],[가산연차2]],$BD$12-표2[[#This Row],[기본]])),"") ->  | AS52: =SUM(표2[[#This Row],[1년미만자 당기 1년미만기간 연차수(11일 일할)]],표2[[#This Row],[사용연도 입사자]],표2[[#This Row],[1년미만자 1년째 후 연차일수(15일 일할)]]) -> 0 | AU52: =IF($AJ$1>license!$C$3,"",SUM(표2[[#This Row],[기본]:[일수]])) -> 0 | AV52: =IF($AJ$1>license!$C$3,"",SUMIFS(휴가입력!O:O,휴가입력!M:M,"연차",휴가입력!L:L,AH52)) -> 0 | AW52: =IFERROR(MAX(0,표2[[#This Row],[계]]-표2[[#This Row],[사용 일수]]),0) -> 0 | AX52: =IFERROR(MAX((표2[[#This Row],[계]]-표2[[#This Row],[사용 일수]])*-1,0),0) -> 0 | AZ52: =IF($AJ$1>license!$C$3,"",ROUNDUP(표2[[#This Row],[(월급)]]/209*8,0)) -> 0 | BA52: =IF($AJ$1>license!$C$3,"",ROUNDUP(표2[[#This Row],[(일급)]]*표2[[#This Row],[미사용 일수]],0)) -> 0 | BC52: 0
A53: 1 | H53: =IF(표2[[#This Row],[*입사일]]=0,"",표2[[#This Row],[*입사일]]-$AJ$3) ->  | I53: =IFERROR(IF(AO53="",0,IF(표2[[#This Row],[1년이상 근무일수]]=0,0,DATEDIF(표2[[#This Row],[1년이상 근무일수]]-1,$AJ$1,"y"))),0) -> 0 | J53: =IF(표2[[#This Row],[*기산일]]="","",IF(DATE(YEAR(표2[[#This Row],[*기산일]])+1,MONTH(표2[[#This Row],[*기산일]]),DAY(표2[[#This Row],[*기산일]]))>$AJ$1,"",DATE(YEAR(표2[[#This Row],[*기산일]])+1,MONTH(표2[[#This Row],[*기산일]]),DAY(표2[[#This Row],[*기산일]])))) ->  | K53: =IF(ISODD(표2[[#This Row],[열1]])=TRUE,1,"") ->  | L53: =IF(표2[[#This Row],[가산일도래여부]]=1,DATE(YEAR($AJ$1)+1,MONTH($AJ$1),DAY($AJ$1))-DATE(YEAR($AJ$1)+1,MONTH(표2[[#This Row],[1년이상 근무일수]]),DAY(표2[[#This Row],[1년이상 근무일수]])),0) -> 0 | M53: =표2[[#This Row],[가산휴가 사용가능일]]/365 -> 0 | N53: =VLOOKUP(표2[[#This Row],[총근무일수-366]],code!$A$5:$C$9,3) -> 0 | O53: =ROUNDDOWN(표2[[#This Row],[열1]]/2,0)+표2[[#This Row],[가산연차]] -> 0 | P53: =IF(표2[[#This Row],[*기산일]]="",0,IF(YEAR(표2[[#This Row],[*기산일]])+1=$AI$11,DATE(YEAR(표2[[#This Row],[*기산일]])+1,MONTH(표2[[#This Row],[*기산일]]),DAY(표2[[#This Row],[*기산일]])),"")) -> 00:00:00 | Q53: =IF(표2[[#This Row],[*기산일]]="",0,IF(표2[[#This Row],[전년도 입사자 1년째]]="","",$W$11-표2[[#This Row],[전년도 입사자 1년째]]+1)) -> 0 | R53: =IF(표2[[#This Row],[전년도 입사자 1년째]]="","",표2[[#This Row],[1년미만자 1년째 후 근속일수]]/365*$Z$12) -> 0 | S53: =IFERROR(MAX(0,SUM(MAX(0,ROUNDDOWN(표2[[#This Row],[1년미만자 2년째 후 근속일수]],0)+VLOOKUP((표2[[#This Row],[1년미만자 2년째 후 근속일수]]-ROUNDDOWN(표2[[#This Row],[1년미만자 2년째 후 근속일수]],0)),code!$A$4:$D$9,3,TRUE)),표2[[#This Row],[1년미만자 당기 1년미만기간 연차수(11일 일할)]],표2[[#This Row],[사용연도 입사자]])-$Z$12),0) -> 0 | T53: =IFERROR(MAX(0,ROUNDDOWN(표2[[#This Row],[1년미만자 2년째 후 근속일수]],0)+VLOOKUP((표2[[#This Row],[1년미만자 2년째 후 근속일수]]-ROUNDDOWN(표2[[#This Row],[1년미만자 2년째 후 근속일수]],0)),code!$A$4:$D$9,3,TRUE))-표2[[#This Row],[1년미만자 3년째 후 근속일수]],0) -> 0 | V53: =IF(표2[[#This Row],[*기산일]]="","",IF(YEAR(표2[[#This Row],[*기산일]])=$AI$11-1,DATE(YEAR(표2[[#This Row],[*기산일]]),MONTH(표2[[#This Row],[*기산일]])+1,DAY(표2[[#This Row],[*기산일]])),"")) ->  | W53: =IF(표2[[#This Row],[*기산일]]="",0,IF(표2[[#This Row],[1년미만자1개월째]]="","",MAX(0,DATEDIF(표2[[#This Row],[*기산일]],$W$12,"m")-1))) -> 0 | X53: =IF(표2[[#This Row],[*기산일]]="",0,IF(표2[[#This Row],[1년미만자1개월째]]="","",(DATE(YEAR(표2[[#This Row],[*기산일]]),MONTH(표2[[#This Row],[*기산일]])+1,0)-표2[[#This Row],[*기산일]]+1)/(DATE(YEAR(표2[[#This Row],[*기산일]]),MONTH(표2[[#This Row],[*기산일]])+1,0)-DATE(YEAR(표2[[#This Row],[*기산일]]),MONTH(표2[[#This Row],[*기산일]]),1)+1))) -> 0 | Y53: =IFERROR(ROUNDDOWN(표2[[#This Row],[1년미만자 전년 근속일수]]/365*$Z$11,0)+VLOOKUP(표2[[#This Row],[1년미만자 전기 연차수]]-ROUNDDOWN(표2[[#This Row],[1년미만자 전년 근속일수]]/365*$Z$11,0),code!$A$4:$D$9,3,TRUE),"") -> 0 | Z53: =IFERROR(표2[[#This Row],[1년미만자 전년 근속일수]]+ROUNDDOWN(표2[[#This Row],[1년미만자 전기 연차수]],0)+VLOOKUP((표2[[#This Row],[1년미만자 전기 연차수]]-ROUNDDOWN(표2[[#This Row],[1년미만자 전기 연차수]],0)),code!$A$4:$D$9,3,TRUE),0) -> 0 | AA53: =IF(표2[[#This Row],[1년미만자1개월째]]="","",$Z$11-표2[[#This Row],[2년미만자 전기 연차수(code반올림)]]) ->  | AB53: =IF(YEAR(표2[[#This Row],[*기산일]])=$AI$11,DATE(YEAR(표2[[#This Row],[*기산일]]),MONTH(표2[[#This Row],[*기산일]])+1,DAY(표2[[#This Row],[*기산일]])),"") ->  | AC53: =IF(표2[[#This Row],[사용연도 입사자 1개월]]="","",MAX(0,DATEDIF(표2[[#This Row],[*기산일]],$W$11,"m")-1)) ->  | AD53: =IF(표2[[#This Row],[사용연도 입사자 1개월]]="","",(DATE(YEAR(표2[[#This Row],[*기산일]]),MONTH(표2[[#This Row],[*기산일]])+1,0)-표2[[#This Row],[*기산일]]+1)/(DATE(YEAR(표2[[#This Row],[*기산일]]),MONTH(표2[[#This Row],[*기산일]])+1,0)-DATE(YEAR(표2[[#This Row],[*기산일]]),MONTH(표2[[#This Row],[*기산일]]),1)+1)) ->  | AE53: =표2[[#This Row],[월중 근속일수]] ->  | AF53: =IFERROR(표2[[#This Row],[사용연도입사자 근무기간(월)]]+ROUNDDOWN(표2[[#This Row],[열2]],0)+VLOOKUP((표2[[#This Row],[열2]]-ROUNDDOWN(표2[[#This Row],[열2]],0)),code!$A$4:$D$9,3,TRUE),0) -> 0 | AG53: 39 | AM53: =IF($AJ$1>license!$C$3,"",IF(H53=0,0,IF($AJ$1<H53,0,$AJ$1-H53+1))) -> 0 | AN53: =IF($AJ$1>license!$C$3,"",IF(AM53=0,0,IF($H53=0,0,DATEDIF($H53-1,$AJ$1,"y")))) -> 0 | AO53: =IF($AJ$1>license!$C$3,"",IF(AM53=0,0,IF($H53=0,0,DATEDIF($H53-1,$AJ$1,"ym")))) -> 0 | AP53: =IF($AJ$1>license!$C$3,"",IF(AM53=0,0,IF($H53=0,0,DATEDIF($H53-1,$AJ$1,"md")))) -> 0 | AQ53: =IF($AJ$1>license!$C$3,"",IF(표2[[#This Row],[1년이상 근무일수]]="",0,$Z$12-표2[[#This Row],[기간]])) -> 0 | AR53: =IFERROR(IF(표2[[#This Row],[1년이상 근무일수]]="","",MIN(표2[[#This Row],[가산연차2]],$BD$12-표2[[#This Row],[기본]])),"") ->  | AS53: =SUM(표2[[#This Row],[1년미만자 당기 1년미만기간 연차수(11일 일할)]],표2[[#This Row],[사용연도 입사자]],표2[[#This Row],[1년미만자 1년째 후 연차일수(15일 일할)]]) -> 0 | AU53: =IF($AJ$1>license!$C$3,"",SUM(표2[[#This Row],[기본]:[일수]])) -> 0 | AV53: =IF($AJ$1>license!$C$3,"",SUMIFS(휴가입력!O:O,휴가입력!M:M,"연차",휴가입력!L:L,AH53)) -> 0 | AW53: =IFERROR(MAX(0,표2[[#This Row],[계]]-표2[[#This Row],[사용 일수]]),0) -> 0 | AX53: =IFERROR(MAX((표2[[#This Row],[계]]-표2[[#This Row],[사용 일수]])*-1,0),0) -> 0 | AZ53: =IF($AJ$1>license!$C$3,"",ROUNDUP(표2[[#This Row],[(월급)]]/209*8,0)) -> 0 | BA53: =IF($AJ$1>license!$C$3,"",ROUNDUP(표2[[#This Row],[(일급)]]*표2[[#This Row],[미사용 일수]],0)) -> 0 | BC53: 0
A54: 1 | H54: =IF(표2[[#This Row],[*입사일]]=0,"",표2[[#This Row],[*입사일]]-$AJ$3) ->  | I54: =IFERROR(IF(AO54="",0,IF(표2[[#This Row],[1년이상 근무일수]]=0,0,DATEDIF(표2[[#This Row],[1년이상 근무일수]]-1,$AJ$1,"y"))),0) -> 0 | J54: =IF(표2[[#This Row],[*기산일]]="","",IF(DATE(YEAR(표2[[#This Row],[*기산일]])+1,MONTH(표2[[#This Row],[*기산일]]),DAY(표2[[#This Row],[*기산일]]))>$AJ$1,"",DATE(YEAR(표2[[#This Row],[*기산일]])+1,MONTH(표2[[#This Row],[*기산일]]),DAY(표2[[#This Row],[*기산일]])))) ->  | K54: =IF(ISODD(표2[[#This Row],[열1]])=TRUE,1,"") ->  | L54: =IF(표2[[#This Row],[가산일도래여부]]=1,DATE(YEAR($AJ$1)+1,MONTH($AJ$1),DAY($AJ$1))-DATE(YEAR($AJ$1)+1,MONTH(표2[[#This Row],[1년이상 근무일수]]),DAY(표2[[#This Row],[1년이상 근무일수]])),0) -> 0 | M54: =표2[[#This Row],[가산휴가 사용가능일]]/365 -> 0 | N54: =VLOOKUP(표2[[#This Row],[총근무일수-366]],code!$A$5:$C$9,3) -> 0 | O54: =ROUNDDOWN(표2[[#This Row],[열1]]/2,0)+표2[[#This Row],[가산연차]] -> 0 | P54: =IF(표2[[#This Row],[*기산일]]="",0,IF(YEAR(표2[[#This Row],[*기산일]])+1=$AI$11,DATE(YEAR(표2[[#This Row],[*기산일]])+1,MONTH(표2[[#This Row],[*기산일]]),DAY(표2[[#This Row],[*기산일]])),"")) -> 00:00:00 | Q54: =IF(표2[[#This Row],[*기산일]]="",0,IF(표2[[#This Row],[전년도 입사자 1년째]]="","",$W$11-표2[[#This Row],[전년도 입사자 1년째]]+1)) -> 0 | R54: =IF(표2[[#This Row],[전년도 입사자 1년째]]="","",표2[[#This Row],[1년미만자 1년째 후 근속일수]]/365*$Z$12) -> 0 | S54: =IFERROR(MAX(0,SUM(MAX(0,ROUNDDOWN(표2[[#This Row],[1년미만자 2년째 후 근속일수]],0)+VLOOKUP((표2[[#This Row],[1년미만자 2년째 후 근속일수]]-ROUNDDOWN(표2[[#This Row],[1년미만자 2년째 후 근속일수]],0)),code!$A$4:$D$9,3,TRUE)),표2[[#This Row],[1년미만자 당기 1년미만기간 연차수(11일 일할)]],표2[[#This Row],[사용연도 입사자]])-$Z$12),0) -> 0 | T54: =IFERROR(MAX(0,ROUNDDOWN(표2[[#This Row],[1년미만자 2년째 후 근속일수]],0)+VLOOKUP((표2[[#This Row],[1년미만자 2년째 후 근속일수]]-ROUNDDOWN(표2[[#This Row],[1년미만자 2년째 후 근속일수]],0)),code!$A$4:$D$9,3,TRUE))-표2[[#This Row],[1년미만자 3년째 후 근속일수]],0) -> 0 | V54: =IF(표2[[#This Row],[*기산일]]="","",IF(YEAR(표2[[#This Row],[*기산일]])=$AI$11-1,DATE(YEAR(표2[[#This Row],[*기산일]]),MONTH(표2[[#This Row],[*기산일]])+1,DAY(표2[[#This Row],[*기산일]])),"")) ->  | W54: =IF(표2[[#This Row],[*기산일]]="",0,IF(표2[[#This Row],[1년미만자1개월째]]="","",MAX(0,DATEDIF(표2[[#This Row],[*기산일]],$W$12,"m")-1))) -> 0 | X54: =IF(표2[[#This Row],[*기산일]]="",0,IF(표2[[#This Row],[1년미만자1개월째]]="","",(DATE(YEAR(표2[[#This Row],[*기산일]]),MONTH(표2[[#This Row],[*기산일]])+1,0)-표2[[#This Row],[*기산일]]+1)/(DATE(YEAR(표2[[#This Row],[*기산일]]),MONTH(표2[[#This Row],[*기산일]])+1,0)-DATE(YEAR(표2[[#This Row],[*기산일]]),MONTH(표2[[#This Row],[*기산일]]),1)+1))) -> 0 | Y54: =IFERROR(ROUNDDOWN(표2[[#This Row],[1년미만자 전년 근속일수]]/365*$Z$11,0)+VLOOKUP(표2[[#This Row],[1년미만자 전기 연차수]]-ROUNDDOWN(표2[[#This Row],[1년미만자 전년 근속일수]]/365*$Z$11,0),code!$A$4:$D$9,3,TRUE),"") -> 0 | Z54: =IFERROR(표2[[#This Row],[1년미만자 전년 근속일수]]+ROUNDDOWN(표2[[#This Row],[1년미만자 전기 연차수]],0)+VLOOKUP((표2[[#This Row],[1년미만자 전기 연차수]]-ROUNDDOWN(표2[[#This Row],[1년미만자 전기 연차수]],0)),code!$A$4:$D$9,3,TRUE),0) -> 0 | AA54: =IF(표2[[#This Row],[1년미만자1개월째]]="","",$Z$11-표2[[#This Row],[2년미만자 전기 연차수(code반올림)]]) ->  | AB54: =IF(YEAR(표2[[#This Row],[*기산일]])=$AI$11,DATE(YEAR(표2[[#This Row],[*기산일]]),MONTH(표2[[#This Row],[*기산일]])+1,DAY(표2[[#This Row],[*기산일]])),"") ->  | AC54: =IF(표2[[#This Row],[사용연도 입사자 1개월]]="","",MAX(0,DATEDIF(표2[[#This Row],[*기산일]],$W$11,"m")-1)) ->  | AD54: =IF(표2[[#This Row],[사용연도 입사자 1개월]]="","",(DATE(YEAR(표2[[#This Row],[*기산일]]),MONTH(표2[[#This Row],[*기산일]])+1,0)-표2[[#This Row],[*기산일]]+1)/(DATE(YEAR(표2[[#This Row],[*기산일]]),MONTH(표2[[#This Row],[*기산일]])+1,0)-DATE(YEAR(표2[[#This Row],[*기산일]]),MONTH(표2[[#This Row],[*기산일]]),1)+1)) ->  | AE54: =표2[[#This Row],[월중 근속일수]] ->  | AF54: =IFERROR(표2[[#This Row],[사용연도입사자 근무기간(월)]]+ROUNDDOWN(표2[[#This Row],[열2]],0)+VLOOKUP((표2[[#This Row],[열2]]-ROUNDDOWN(표2[[#This Row],[열2]],0)),code!$A$4:$D$9,3,TRUE),0) -> 0 | AG54: 40 | AM54: =IF($AJ$1>license!$C$3,"",IF(H54=0,0,IF($AJ$1<H54,0,$AJ$1-H54+1))) -> 0 | AN54: =IF($AJ$1>license!$C$3,"",IF(AM54=0,0,IF($H54=0,0,DATEDIF($H54-1,$AJ$1,"y")))) -> 0 | AO54: =IF($AJ$1>license!$C$3,"",IF(AM54=0,0,IF($H54=0,0,DATEDIF($H54-1,$AJ$1,"ym")))) -> 0 | AP54: =IF($AJ$1>license!$C$3,"",IF(AM54=0,0,IF($H54=0,0,DATEDIF($H54-1,$AJ$1,"md")))) -> 0 | AQ54: =IF($AJ$1>license!$C$3,"",IF(표2[[#This Row],[1년이상 근무일수]]="",0,$Z$12-표2[[#This Row],[기간]])) -> 0 | AR54: =IFERROR(IF(표2[[#This Row],[1년이상 근무일수]]="","",MIN(표2[[#This Row],[가산연차2]],$BD$12-표2[[#This Row],[기본]])),"") ->  | AS54: =SUM(표2[[#This Row],[1년미만자 당기 1년미만기간 연차수(11일 일할)]],표2[[#This Row],[사용연도 입사자]],표2[[#This Row],[1년미만자 1년째 후 연차일수(15일 일할)]]) -> 0 | AU54: =IF($AJ$1>license!$C$3,"",SUM(표2[[#This Row],[기본]:[일수]])) -> 0 | AV54: =IF($AJ$1>license!$C$3,"",SUMIFS(휴가입력!O:O,휴가입력!M:M,"연차",휴가입력!L:L,AH54)) -> 0 | AW54: =IFERROR(MAX(0,표2[[#This Row],[계]]-표2[[#This Row],[사용 일수]]),0) -> 0 | AX54: =IFERROR(MAX((표2[[#This Row],[계]]-표2[[#This Row],[사용 일수]])*-1,0),0) -> 0 | AZ54: =IF($AJ$1>license!$C$3,"",ROUNDUP(표2[[#This Row],[(월급)]]/209*8,0)) -> 0 | BA54: =IF($AJ$1>license!$C$3,"",ROUNDUP(표2[[#This Row],[(일급)]]*표2[[#This Row],[미사용 일수]],0)) -> 0 | BC54: 0
A55: 1 | H55: =IF(표2[[#This Row],[*입사일]]=0,"",표2[[#This Row],[*입사일]]-$AJ$3) ->  | I55: =IFERROR(IF(AO55="",0,IF(표2[[#This Row],[1년이상 근무일수]]=0,0,DATEDIF(표2[[#This Row],[1년이상 근무일수]]-1,$AJ$1,"y"))),0) -> 0 | J55: =IF(표2[[#This Row],[*기산일]]="","",IF(DATE(YEAR(표2[[#This Row],[*기산일]])+1,MONTH(표2[[#This Row],[*기산일]]),DAY(표2[[#This Row],[*기산일]]))>$AJ$1,"",DATE(YEAR(표2[[#This Row],[*기산일]])+1,MONTH(표2[[#This Row],[*기산일]]),DAY(표2[[#This Row],[*기산일]])))) ->  | K55: =IF(ISODD(표2[[#This Row],[열1]])=TRUE,1,"") ->  | L55: =IF(표2[[#This Row],[가산일도래여부]]=1,DATE(YEAR($AJ$1)+1,MONTH($AJ$1),DAY($AJ$1))-DATE(YEAR($AJ$1)+1,MONTH(표2[[#This Row],[1년이상 근무일수]]),DAY(표2[[#This Row],[1년이상 근무일수]])),0) -> 0 | M55: =표2[[#This Row],[가산휴가 사용가능일]]/365 -> 0 | N55: =VLOOKUP(표2[[#This Row],[총근무일수-366]],code!$A$5:$C$9,3) -> 0 | O55: =ROUNDDOWN(표2[[#This Row],[열1]]/2,0)+표2[[#This Row],[가산연차]] -> 0 | P55: =IF(표2[[#This Row],[*기산일]]="",0,IF(YEAR(표2[[#This Row],[*기산일]])+1=$AI$11,DATE(YEAR(표2[[#This Row],[*기산일]])+1,MONTH(표2[[#This Row],[*기산일]]),DAY(표2[[#This Row],[*기산일]])),"")) -> 00:00:00 | Q55: =IF(표2[[#This Row],[*기산일]]="",0,IF(표2[[#This Row],[전년도 입사자 1년째]]="","",$W$11-표2[[#This Row],[전년도 입사자 1년째]]+1)) -> 0 | R55: =IF(표2[[#This Row],[전년도 입사자 1년째]]="","",표2[[#This Row],[1년미만자 1년째 후 근속일수]]/365*$Z$12) -> 0 | S55: =IFERROR(MAX(0,SUM(MAX(0,ROUNDDOWN(표2[[#This Row],[1년미만자 2년째 후 근속일수]],0)+VLOOKUP((표2[[#This Row],[1년미만자 2년째 후 근속일수]]-ROUNDDOWN(표2[[#This Row],[1년미만자 2년째 후 근속일수]],0)),code!$A$4:$D$9,3,TRUE)),표2[[#This Row],[1년미만자 당기 1년미만기간 연차수(11일 일할)]],표2[[#This Row],[사용연도 입사자]])-$Z$12),0) -> 0 | T55: =IFERROR(MAX(0,ROUNDDOWN(표2[[#This Row],[1년미만자 2년째 후 근속일수]],0)+VLOOKUP((표2[[#This Row],[1년미만자 2년째 후 근속일수]]-ROUNDDOWN(표2[[#This Row],[1년미만자 2년째 후 근속일수]],0)),code!$A$4:$D$9,3,TRUE))-표2[[#This Row],[1년미만자 3년째 후 근속일수]],0) -> 0 | V55: =IF(표2[[#This Row],[*기산일]]="","",IF(YEAR(표2[[#This Row],[*기산일]])=$AI$11-1,DATE(YEAR(표2[[#This Row],[*기산일]]),MONTH(표2[[#This Row],[*기산일]])+1,DAY(표2[[#This Row],[*기산일]])),"")) ->  | W55: =IF(표2[[#This Row],[*기산일]]="",0,IF(표2[[#This Row],[1년미만자1개월째]]="","",MAX(0,DATEDIF(표2[[#This Row],[*기산일]],$W$12,"m")-1))) -> 0 | X55: =IF(표2[[#This Row],[*기산일]]="",0,IF(표2[[#This Row],[1년미만자1개월째]]="","",(DATE(YEAR(표2[[#This Row],[*기산일]]),MONTH(표2[[#This Row],[*기산일]])+1,0)-표2[[#This Row],[*기산일]]+1)/(DATE(YEAR(표2[[#This Row],[*기산일]]),MONTH(표2[[#This Row],[*기산일]])+1,0)-DATE(YEAR(표2[[#This Row],[*기산일]]),MONTH(표2[[#This Row],[*기산일]]),1)+1))) -> 0 | Y55: =IFERROR(ROUNDDOWN(표2[[#This Row],[1년미만자 전년 근속일수]]/365*$Z$11,0)+VLOOKUP(표2[[#This Row],[1년미만자 전기 연차수]]-ROUNDDOWN(표2[[#This Row],[1년미만자 전년 근속일수]]/365*$Z$11,0),code!$A$4:$D$9,3,TRUE),"") -> 0 | Z55: =IFERROR(표2[[#This Row],[1년미만자 전년 근속일수]]+ROUNDDOWN(표2[[#This Row],[1년미만자 전기 연차수]],0)+VLOOKUP((표2[[#This Row],[1년미만자 전기 연차수]]-ROUNDDOWN(표2[[#This Row],[1년미만자 전기 연차수]],0)),code!$A$4:$D$9,3,TRUE),0) -> 0 | AA55: =IF(표2[[#This Row],[1년미만자1개월째]]="","",$Z$11-표2[[#This Row],[2년미만자 전기 연차수(code반올림)]]) ->  | AB55: =IF(YEAR(표2[[#This Row],[*기산일]])=$AI$11,DATE(YEAR(표2[[#This Row],[*기산일]]),MONTH(표2[[#This Row],[*기산일]])+1,DAY(표2[[#This Row],[*기산일]])),"") ->  | AC55: =IF(표2[[#This Row],[사용연도 입사자 1개월]]="","",MAX(0,DATEDIF(표2[[#This Row],[*기산일]],$W$11,"m")-1)) ->  | AD55: =IF(표2[[#This Row],[사용연도 입사자 1개월]]="","",(DATE(YEAR(표2[[#This Row],[*기산일]]),MONTH(표2[[#This Row],[*기산일]])+1,0)-표2[[#This Row],[*기산일]]+1)/(DATE(YEAR(표2[[#This Row],[*기산일]]),MONTH(표2[[#This Row],[*기산일]])+1,0)-DATE(YEAR(표2[[#This Row],[*기산일]]),MONTH(표2[[#This Row],[*기산일]]),1)+1)) ->  | AE55: =표2[[#This Row],[월중 근속일수]] ->  | AF55: =IFERROR(표2[[#This Row],[사용연도입사자 근무기간(월)]]+ROUNDDOWN(표2[[#This Row],[열2]],0)+VLOOKUP((표2[[#This Row],[열2]]-ROUNDDOWN(표2[[#This Row],[열2]],0)),code!$A$4:$D$9,3,TRUE),0) -> 0 | AG55: 41 | AM55: =IF($AJ$1>license!$C$3,"",IF(H55=0,0,IF($AJ$1<H55,0,$AJ$1-H55+1))) -> 0 | AN55: =IF($AJ$1>license!$C$3,"",IF(AM55=0,0,IF($H55=0,0,DATEDIF($H55-1,$AJ$1,"y")))) -> 0 | AO55: =IF($AJ$1>license!$C$3,"",IF(AM55=0,0,IF($H55=0,0,DATEDIF($H55-1,$AJ$1,"ym")))) -> 0 | AP55: =IF($AJ$1>license!$C$3,"",IF(AM55=0,0,IF($H55=0,0,DATEDIF($H55-1,$AJ$1,"md")))) -> 0 | AQ55: =IF($AJ$1>license!$C$3,"",IF(표2[[#This Row],[1년이상 근무일수]]="",0,$Z$12-표2[[#This Row],[기간]])) -> 0 | AR55: =IFERROR(IF(표2[[#This Row],[1년이상 근무일수]]="","",MIN(표2[[#This Row],[가산연차2]],$BD$12-표2[[#This Row],[기본]])),"") ->  | AS55: =SUM(표2[[#This Row],[1년미만자 당기 1년미만기간 연차수(11일 일할)]],표2[[#This Row],[사용연도 입사자]],표2[[#This Row],[1년미만자 1년째 후 연차일수(15일 일할)]]) -> 0 | AU55: =IF($AJ$1>license!$C$3,"",SUM(표2[[#This Row],[기본]:[일수]])) -> 0 | AV55: =IF($AJ$1>license!$C$3,"",SUMIFS(휴가입력!O:O,휴가입력!M:M,"연차",휴가입력!L:L,AH55)) -> 0 | AW55: =IFERROR(MAX(0,표2[[#This Row],[계]]-표2[[#This Row],[사용 일수]]),0) -> 0 | AX55: =IFERROR(MAX((표2[[#This Row],[계]]-표2[[#This Row],[사용 일수]])*-1,0),0) -> 0 | AZ55: =IF($AJ$1>license!$C$3,"",ROUNDUP(표2[[#This Row],[(월급)]]/209*8,0)) -> 0 | BA55: =IF($AJ$1>license!$C$3,"",ROUNDUP(표2[[#This Row],[(일급)]]*표2[[#This Row],[미사용 일수]],0)) -> 0 | BC55: 0
A56: 1 | H56: =IF(표2[[#This Row],[*입사일]]=0,"",표2[[#This Row],[*입사일]]-$AJ$3) ->  | I56: =IFERROR(IF(AO56="",0,IF(표2[[#This Row],[1년이상 근무일수]]=0,0,DATEDIF(표2[[#This Row],[1년이상 근무일수]]-1,$AJ$1,"y"))),0) -> 0 | J56: =IF(표2[[#This Row],[*기산일]]="","",IF(DATE(YEAR(표2[[#This Row],[*기산일]])+1,MONTH(표2[[#This Row],[*기산일]]),DAY(표2[[#This Row],[*기산일]]))>$AJ$1,"",DATE(YEAR(표2[[#This Row],[*기산일]])+1,MONTH(표2[[#This Row],[*기산일]]),DAY(표2[[#This Row],[*기산일]])))) ->  | K56: =IF(ISODD(표2[[#This Row],[열1]])=TRUE,1,"") ->  | L56: =IF(표2[[#This Row],[가산일도래여부]]=1,DATE(YEAR($AJ$1)+1,MONTH($AJ$1),DAY($AJ$1))-DATE(YEAR($AJ$1)+1,MONTH(표2[[#This Row],[1년이상 근무일수]]),DAY(표2[[#This Row],[1년이상 근무일수]])),0) -> 0 | M56: =표2[[#This Row],[가산휴가 사용가능일]]/365 -> 0 | N56: =VLOOKUP(표2[[#This Row],[총근무일수-366]],code!$A$5:$C$9,3) -> 0 | O56: =ROUNDDOWN(표2[[#This Row],[열1]]/2,0)+표2[[#This Row],[가산연차]] -> 0 | P56: =IF(표2[[#This Row],[*기산일]]="",0,IF(YEAR(표2[[#This Row],[*기산일]])+1=$AI$11,DATE(YEAR(표2[[#This Row],[*기산일]])+1,MONTH(표2[[#This Row],[*기산일]]),DAY(표2[[#This Row],[*기산일]])),"")) -> 00:00:00 | Q56: =IF(표2[[#This Row],[*기산일]]="",0,IF(표2[[#This Row],[전년도 입사자 1년째]]="","",$W$11-표2[[#This Row],[전년도 입사자 1년째]]+1)) -> 0 | R56: =IF(표2[[#This Row],[전년도 입사자 1년째]]="","",표2[[#This Row],[1년미만자 1년째 후 근속일수]]/365*$Z$12) -> 0 | S56: =IFERROR(MAX(0,SUM(MAX(0,ROUNDDOWN(표2[[#This Row],[1년미만자 2년째 후 근속일수]],0)+VLOOKUP((표2[[#This Row],[1년미만자 2년째 후 근속일수]]-ROUNDDOWN(표2[[#This Row],[1년미만자 2년째 후 근속일수]],0)),code!$A$4:$D$9,3,TRUE)),표2[[#This Row],[1년미만자 당기 1년미만기간 연차수(11일 일할)]],표2[[#This Row],[사용연도 입사자]])-$Z$12),0) -> 0 | T56: =IFERROR(MAX(0,ROUNDDOWN(표2[[#This Row],[1년미만자 2년째 후 근속일수]],0)+VLOOKUP((표2[[#This Row],[1년미만자 2년째 후 근속일수]]-ROUNDDOWN(표2[[#This Row],[1년미만자 2년째 후 근속일수]],0)),code!$A$4:$D$9,3,TRUE))-표2[[#This Row],[1년미만자 3년째 후 근속일수]],0) -> 0 | V56: =IF(표2[[#This Row],[*기산일]]="","",IF(YEAR(표2[[#This Row],[*기산일]])=$AI$11-1,DATE(YEAR(표2[[#This Row],[*기산일]]),MONTH(표2[[#This Row],[*기산일]])+1,DAY(표2[[#This Row],[*기산일]])),"")) ->  | W56: =IF(표2[[#This Row],[*기산일]]="",0,IF(표2[[#This Row],[1년미만자1개월째]]="","",MAX(0,DATEDIF(표2[[#This Row],[*기산일]],$W$12,"m")-1))) -> 0 | X56: =IF(표2[[#This Row],[*기산일]]="",0,IF(표2[[#This Row],[1년미만자1개월째]]="","",(DATE(YEAR(표2[[#This Row],[*기산일]]),MONTH(표2[[#This Row],[*기산일]])+1,0)-표2[[#This Row],[*기산일]]+1)/(DATE(YEAR(표2[[#This Row],[*기산일]]),MONTH(표2[[#This Row],[*기산일]])+1,0)-DATE(YEAR(표2[[#This Row],[*기산일]]),MONTH(표2[[#This Row],[*기산일]]),1)+1))) -> 0 | Y56: =IFERROR(ROUNDDOWN(표2[[#This Row],[1년미만자 전년 근속일수]]/365*$Z$11,0)+VLOOKUP(표2[[#This Row],[1년미만자 전기 연차수]]-ROUNDDOWN(표2[[#This Row],[1년미만자 전년 근속일수]]/365*$Z$11,0),code!$A$4:$D$9,3,TRUE),"") -> 0 | Z56: =IFERROR(표2[[#This Row],[1년미만자 전년 근속일수]]+ROUNDDOWN(표2[[#This Row],[1년미만자 전기 연차수]],0)+VLOOKUP((표2[[#This Row],[1년미만자 전기 연차수]]-ROUNDDOWN(표2[[#This Row],[1년미만자 전기 연차수]],0)),code!$A$4:$D$9,3,TRUE),0) -> 0 | AA56: =IF(표2[[#This Row],[1년미만자1개월째]]="","",$Z$11-표2[[#This Row],[2년미만자 전기 연차수(code반올림)]]) ->  | AB56: =IF(YEAR(표2[[#This Row],[*기산일]])=$AI$11,DATE(YEAR(표2[[#This Row],[*기산일]]),MONTH(표2[[#This Row],[*기산일]])+1,DAY(표2[[#This Row],[*기산일]])),"") ->  | AC56: =IF(표2[[#This Row],[사용연도 입사자 1개월]]="","",MAX(0,DATEDIF(표2[[#This Row],[*기산일]],$W$11,"m")-1)) ->  | AD56: =IF(표2[[#This Row],[사용연도 입사자 1개월]]="","",(DATE(YEAR(표2[[#This Row],[*기산일]]),MONTH(표2[[#This Row],[*기산일]])+1,0)-표2[[#This Row],[*기산일]]+1)/(DATE(YEAR(표2[[#This Row],[*기산일]]),MONTH(표2[[#This Row],[*기산일]])+1,0)-DATE(YEAR(표2[[#This Row],[*기산일]]),MONTH(표2[[#This Row],[*기산일]]),1)+1)) ->  | AE56: =표2[[#This Row],[월중 근속일수]] ->  | AF56: =IFERROR(표2[[#This Row],[사용연도입사자 근무기간(월)]]+ROUNDDOWN(표2[[#This Row],[열2]],0)+VLOOKUP((표2[[#This Row],[열2]]-ROUNDDOWN(표2[[#This Row],[열2]],0)),code!$A$4:$D$9,3,TRUE),0) -> 0 | AG56: 42 | AM56: =IF($AJ$1>license!$C$3,"",IF(H56=0,0,IF($AJ$1<H56,0,$AJ$1-H56+1))) -> 0 | AN56: =IF($AJ$1>license!$C$3,"",IF(AM56=0,0,IF($H56=0,0,DATEDIF($H56-1,$AJ$1,"y")))) -> 0 | AO56: =IF($AJ$1>license!$C$3,"",IF(AM56=0,0,IF($H56=0,0,DATEDIF($H56-1,$AJ$1,"ym")))) -> 0 | AP56: =IF($AJ$1>license!$C$3,"",IF(AM56=0,0,IF($H56=0,0,DATEDIF($H56-1,$AJ$1,"md")))) -> 0 | AQ56: =IF($AJ$1>license!$C$3,"",IF(표2[[#This Row],[1년이상 근무일수]]="",0,$Z$12-표2[[#This Row],[기간]])) -> 0 | AR56: =IFERROR(IF(표2[[#This Row],[1년이상 근무일수]]="","",MIN(표2[[#This Row],[가산연차2]],$BD$12-표2[[#This Row],[기본]])),"") ->  | AS56: =SUM(표2[[#This Row],[1년미만자 당기 1년미만기간 연차수(11일 일할)]],표2[[#This Row],[사용연도 입사자]],표2[[#This Row],[1년미만자 1년째 후 연차일수(15일 일할)]]) -> 0 | AU56: =IF($AJ$1>license!$C$3,"",SUM(표2[[#This Row],[기본]:[일수]])) -> 0 | AV56: =IF($AJ$1>license!$C$3,"",SUMIFS(휴가입력!O:O,휴가입력!M:M,"연차",휴가입력!L:L,AH56)) -> 0 | AW56: =IFERROR(MAX(0,표2[[#This Row],[계]]-표2[[#This Row],[사용 일수]]),0) -> 0 | AX56: =IFERROR(MAX((표2[[#This Row],[계]]-표2[[#This Row],[사용 일수]])*-1,0),0) -> 0 | AZ56: =IF($AJ$1>license!$C$3,"",ROUNDUP(표2[[#This Row],[(월급)]]/209*8,0)) -> 0 | BA56: =IF($AJ$1>license!$C$3,"",ROUNDUP(표2[[#This Row],[(일급)]]*표2[[#This Row],[미사용 일수]],0)) -> 0 | BC56: 0
A57: 1 | H57: =IF(표2[[#This Row],[*입사일]]=0,"",표2[[#This Row],[*입사일]]-$AJ$3) ->  | I57: =IFERROR(IF(AO57="",0,IF(표2[[#This Row],[1년이상 근무일수]]=0,0,DATEDIF(표2[[#This Row],[1년이상 근무일수]]-1,$AJ$1,"y"))),0) -> 0 | J57: =IF(표2[[#This Row],[*기산일]]="","",IF(DATE(YEAR(표2[[#This Row],[*기산일]])+1,MONTH(표2[[#This Row],[*기산일]]),DAY(표2[[#This Row],[*기산일]]))>$AJ$1,"",DATE(YEAR(표2[[#This Row],[*기산일]])+1,MONTH(표2[[#This Row],[*기산일]]),DAY(표2[[#This Row],[*기산일]])))) ->  | K57: =IF(ISODD(표2[[#This Row],[열1]])=TRUE,1,"") ->  | L57: =IF(표2[[#This Row],[가산일도래여부]]=1,DATE(YEAR($AJ$1)+1,MONTH($AJ$1),DAY($AJ$1))-DATE(YEAR($AJ$1)+1,MONTH(표2[[#This Row],[1년이상 근무일수]]),DAY(표2[[#This Row],[1년이상 근무일수]])),0) -> 0 | M57: =표2[[#This Row],[가산휴가 사용가능일]]/365 -> 0 | N57: =VLOOKUP(표2[[#This Row],[총근무일수-366]],code!$A$5:$C$9,3) -> 0 | O57: =ROUNDDOWN(표2[[#This Row],[열1]]/2,0)+표2[[#This Row],[가산연차]] -> 0 | P57: =IF(표2[[#This Row],[*기산일]]="",0,IF(YEAR(표2[[#This Row],[*기산일]])+1=$AI$11,DATE(YEAR(표2[[#This Row],[*기산일]])+1,MONTH(표2[[#This Row],[*기산일]]),DAY(표2[[#This Row],[*기산일]])),"")) -> 00:00:00 | Q57: =IF(표2[[#This Row],[*기산일]]="",0,IF(표2[[#This Row],[전년도 입사자 1년째]]="","",$W$11-표2[[#This Row],[전년도 입사자 1년째]]+1)) -> 0 | R57: =IF(표2[[#This Row],[전년도 입사자 1년째]]="","",표2[[#This Row],[1년미만자 1년째 후 근속일수]]/365*$Z$12) -> 0 | S57: =IFERROR(MAX(0,SUM(MAX(0,ROUNDDOWN(표2[[#This Row],[1년미만자 2년째 후 근속일수]],0)+VLOOKUP((표2[[#This Row],[1년미만자 2년째 후 근속일수]]-ROUNDDOWN(표2[[#This Row],[1년미만자 2년째 후 근속일수]],0)),code!$A$4:$D$9,3,TRUE)),표2[[#This Row],[1년미만자 당기 1년미만기간 연차수(11일 일할)]],표2[[#This Row],[사용연도 입사자]])-$Z$12),0) -> 0 | T57: =IFERROR(MAX(0,ROUNDDOWN(표2[[#This Row],[1년미만자 2년째 후 근속일수]],0)+VLOOKUP((표2[[#This Row],[1년미만자 2년째 후 근속일수]]-ROUNDDOWN(표2[[#This Row],[1년미만자 2년째 후 근속일수]],0)),code!$A$4:$D$9,3,TRUE))-표2[[#This Row],[1년미만자 3년째 후 근속일수]],0) -> 0 | V57: =IF(표2[[#This Row],[*기산일]]="","",IF(YEAR(표2[[#This Row],[*기산일]])=$AI$11-1,DATE(YEAR(표2[[#This Row],[*기산일]]),MONTH(표2[[#This Row],[*기산일]])+1,DAY(표2[[#This Row],[*기산일]])),"")) ->  | W57: =IF(표2[[#This Row],[*기산일]]="",0,IF(표2[[#This Row],[1년미만자1개월째]]="","",MAX(0,DATEDIF(표2[[#This Row],[*기산일]],$W$12,"m")-1))) -> 0 | X57: =IF(표2[[#This Row],[*기산일]]="",0,IF(표2[[#This Row],[1년미만자1개월째]]="","",(DATE(YEAR(표2[[#This Row],[*기산일]]),MONTH(표2[[#This Row],[*기산일]])+1,0)-표2[[#This Row],[*기산일]]+1)/(DATE(YEAR(표2[[#This Row],[*기산일]]),MONTH(표2[[#This Row],[*기산일]])+1,0)-DATE(YEAR(표2[[#This Row],[*기산일]]),MONTH(표2[[#This Row],[*기산일]]),1)+1))) -> 0 | Y57: =IFERROR(ROUNDDOWN(표2[[#This Row],[1년미만자 전년 근속일수]]/365*$Z$11,0)+VLOOKUP(표2[[#This Row],[1년미만자 전기 연차수]]-ROUNDDOWN(표2[[#This Row],[1년미만자 전년 근속일수]]/365*$Z$11,0),code!$A$4:$D$9,3,TRUE),"") -> 0 | Z57: =IFERROR(표2[[#This Row],[1년미만자 전년 근속일수]]+ROUNDDOWN(표2[[#This Row],[1년미만자 전기 연차수]],0)+VLOOKUP((표2[[#This Row],[1년미만자 전기 연차수]]-ROUNDDOWN(표2[[#This Row],[1년미만자 전기 연차수]],0)),code!$A$4:$D$9,3,TRUE),0) -> 0 | AA57: =IF(표2[[#This Row],[1년미만자1개월째]]="","",$Z$11-표2[[#This Row],[2년미만자 전기 연차수(code반올림)]]) ->  | AB57: =IF(YEAR(표2[[#This Row],[*기산일]])=$AI$11,DATE(YEAR(표2[[#This Row],[*기산일]]),MONTH(표2[[#This Row],[*기산일]])+1,DAY(표2[[#This Row],[*기산일]])),"") ->  | AC57: =IF(표2[[#This Row],[사용연도 입사자 1개월]]="","",MAX(0,DATEDIF(표2[[#This Row],[*기산일]],$W$11,"m")-1)) ->  | AD57: =IF(표2[[#This Row],[사용연도 입사자 1개월]]="","",(DATE(YEAR(표2[[#This Row],[*기산일]]),MONTH(표2[[#This Row],[*기산일]])+1,0)-표2[[#This Row],[*기산일]]+1)/(DATE(YEAR(표2[[#This Row],[*기산일]]),MONTH(표2[[#This Row],[*기산일]])+1,0)-DATE(YEAR(표2[[#This Row],[*기산일]]),MONTH(표2[[#This Row],[*기산일]]),1)+1)) ->  | AE57: =표2[[#This Row],[월중 근속일수]] ->  | AF57: =IFERROR(표2[[#This Row],[사용연도입사자 근무기간(월)]]+ROUNDDOWN(표2[[#This Row],[열2]],0)+VLOOKUP((표2[[#This Row],[열2]]-ROUNDDOWN(표2[[#This Row],[열2]],0)),code!$A$4:$D$9,3,TRUE),0) -> 0 | AG57: 43 | AM57: =IF($AJ$1>license!$C$3,"",IF(H57=0,0,IF($AJ$1<H57,0,$AJ$1-H57+1))) -> 0 | AN57: =IF($AJ$1>license!$C$3,"",IF(AM57=0,0,IF($H57=0,0,DATEDIF($H57-1,$AJ$1,"y")))) -> 0 | AO57: =IF($AJ$1>license!$C$3,"",IF(AM57=0,0,IF($H57=0,0,DATEDIF($H57-1,$AJ$1,"ym")))) -> 0 | AP57: =IF($AJ$1>license!$C$3,"",IF(AM57=0,0,IF($H57=0,0,DATEDIF($H57-1,$AJ$1,"md")))) -> 0 | AQ57: =IF($AJ$1>license!$C$3,"",IF(표2[[#This Row],[1년이상 근무일수]]="",0,$Z$12-표2[[#This Row],[기간]])) -> 0 | AR57: =IFERROR(IF(표2[[#This Row],[1년이상 근무일수]]="","",MIN(표2[[#This Row],[가산연차2]],$BD$12-표2[[#This Row],[기본]])),"") ->  | AS57: =SUM(표2[[#This Row],[1년미만자 당기 1년미만기간 연차수(11일 일할)]],표2[[#This Row],[사용연도 입사자]],표2[[#This Row],[1년미만자 1년째 후 연차일수(15일 일할)]]) -> 0 | AU57: =IF($AJ$1>license!$C$3,"",SUM(표2[[#This Row],[기본]:[일수]])) -> 0 | AV57: =IF($AJ$1>license!$C$3,"",SUMIFS(휴가입력!O:O,휴가입력!M:M,"연차",휴가입력!L:L,AH57)) -> 0 | AW57: =IFERROR(MAX(0,표2[[#This Row],[계]]-표2[[#This Row],[사용 일수]]),0) -> 0 | AX57: =IFERROR(MAX((표2[[#This Row],[계]]-표2[[#This Row],[사용 일수]])*-1,0),0) -> 0 | AZ57: =IF($AJ$1>license!$C$3,"",ROUNDUP(표2[[#This Row],[(월급)]]/209*8,0)) -> 0 | BA57: =IF($AJ$1>license!$C$3,"",ROUNDUP(표2[[#This Row],[(일급)]]*표2[[#This Row],[미사용 일수]],0)) -> 0 | BC57: 0
A58: 1 | H58: =IF(표2[[#This Row],[*입사일]]=0,"",표2[[#This Row],[*입사일]]-$AJ$3) ->  | I58: =IFERROR(IF(AO58="",0,IF(표2[[#This Row],[1년이상 근무일수]]=0,0,DATEDIF(표2[[#This Row],[1년이상 근무일수]]-1,$AJ$1,"y"))),0) -> 0 | J58: =IF(표2[[#This Row],[*기산일]]="","",IF(DATE(YEAR(표2[[#This Row],[*기산일]])+1,MONTH(표2[[#This Row],[*기산일]]),DAY(표2[[#This Row],[*기산일]]))>$AJ$1,"",DATE(YEAR(표2[[#This Row],[*기산일]])+1,MONTH(표2[[#This Row],[*기산일]]),DAY(표2[[#This Row],[*기산일]])))) ->  | K58: =IF(ISODD(표2[[#This Row],[열1]])=TRUE,1,"") ->  | L58: =IF(표2[[#This Row],[가산일도래여부]]=1,DATE(YEAR($AJ$1)+1,MONTH($AJ$1),DAY($AJ$1))-DATE(YEAR($AJ$1)+1,MONTH(표2[[#This Row],[1년이상 근무일수]]),DAY(표2[[#This Row],[1년이상 근무일수]])),0) -> 0 | M58: =표2[[#This Row],[가산휴가 사용가능일]]/365 -> 0 | N58: =VLOOKUP(표2[[#This Row],[총근무일수-366]],code!$A$5:$C$9,3) -> 0 | O58: =ROUNDDOWN(표2[[#This Row],[열1]]/2,0)+표2[[#This Row],[가산연차]] -> 0 | P58: =IF(표2[[#This Row],[*기산일]]="",0,IF(YEAR(표2[[#This Row],[*기산일]])+1=$AI$11,DATE(YEAR(표2[[#This Row],[*기산일]])+1,MONTH(표2[[#This Row],[*기산일]]),DAY(표2[[#This Row],[*기산일]])),"")) -> 00:00:00 | Q58: =IF(표2[[#This Row],[*기산일]]="",0,IF(표2[[#This Row],[전년도 입사자 1년째]]="","",$W$11-표2[[#This Row],[전년도 입사자 1년째]]+1)) -> 0 | R58: =IF(표2[[#This Row],[전년도 입사자 1년째]]="","",표2[[#This Row],[1년미만자 1년째 후 근속일수]]/365*$Z$12) -> 0 | S58: =IFERROR(MAX(0,SUM(MAX(0,ROUNDDOWN(표2[[#This Row],[1년미만자 2년째 후 근속일수]],0)+VLOOKUP((표2[[#This Row],[1년미만자 2년째 후 근속일수]]-ROUNDDOWN(표2[[#This Row],[1년미만자 2년째 후 근속일수]],0)),code!$A$4:$D$9,3,TRUE)),표2[[#This Row],[1년미만자 당기 1년미만기간 연차수(11일 일할)]],표2[[#This Row],[사용연도 입사자]])-$Z$12),0) -> 0 | T58: =IFERROR(MAX(0,ROUNDDOWN(표2[[#This Row],[1년미만자 2년째 후 근속일수]],0)+VLOOKUP((표2[[#This Row],[1년미만자 2년째 후 근속일수]]-ROUNDDOWN(표2[[#This Row],[1년미만자 2년째 후 근속일수]],0)),code!$A$4:$D$9,3,TRUE))-표2[[#This Row],[1년미만자 3년째 후 근속일수]],0) -> 0 | V58: =IF(표2[[#This Row],[*기산일]]="","",IF(YEAR(표2[[#This Row],[*기산일]])=$AI$11-1,DATE(YEAR(표2[[#This Row],[*기산일]]),MONTH(표2[[#This Row],[*기산일]])+1,DAY(표2[[#This Row],[*기산일]])),"")) ->  | W58: =IF(표2[[#This Row],[*기산일]]="",0,IF(표2[[#This Row],[1년미만자1개월째]]="","",MAX(0,DATEDIF(표2[[#This Row],[*기산일]],$W$12,"m")-1))) -> 0 | X58: =IF(표2[[#This Row],[*기산일]]="",0,IF(표2[[#This Row],[1년미만자1개월째]]="","",(DATE(YEAR(표2[[#This Row],[*기산일]]),MONTH(표2[[#This Row],[*기산일]])+1,0)-표2[[#This Row],[*기산일]]+1)/(DATE(YEAR(표2[[#This Row],[*기산일]]),MONTH(표2[[#This Row],[*기산일]])+1,0)-DATE(YEAR(표2[[#This Row],[*기산일]]),MONTH(표2[[#This Row],[*기산일]]),1)+1))) -> 0 | Y58: =IFERROR(ROUNDDOWN(표2[[#This Row],[1년미만자 전년 근속일수]]/365*$Z$11,0)+VLOOKUP(표2[[#This Row],[1년미만자 전기 연차수]]-ROUNDDOWN(표2[[#This Row],[1년미만자 전년 근속일수]]/365*$Z$11,0),code!$A$4:$D$9,3,TRUE),"") -> 0 | Z58: =IFERROR(표2[[#This Row],[1년미만자 전년 근속일수]]+ROUNDDOWN(표2[[#This Row],[1년미만자 전기 연차수]],0)+VLOOKUP((표2[[#This Row],[1년미만자 전기 연차수]]-ROUNDDOWN(표2[[#This Row],[1년미만자 전기 연차수]],0)),code!$A$4:$D$9,3,TRUE),0) -> 0 | AA58: =IF(표2[[#This Row],[1년미만자1개월째]]="","",$Z$11-표2[[#This Row],[2년미만자 전기 연차수(code반올림)]]) ->  | AB58: =IF(YEAR(표2[[#This Row],[*기산일]])=$AI$11,DATE(YEAR(표2[[#This Row],[*기산일]]),MONTH(표2[[#This Row],[*기산일]])+1,DAY(표2[[#This Row],[*기산일]])),"") ->  | AC58: =IF(표2[[#This Row],[사용연도 입사자 1개월]]="","",MAX(0,DATEDIF(표2[[#This Row],[*기산일]],$W$11,"m")-1)) ->  | AD58: =IF(표2[[#This Row],[사용연도 입사자 1개월]]="","",(DATE(YEAR(표2[[#This Row],[*기산일]]),MONTH(표2[[#This Row],[*기산일]])+1,0)-표2[[#This Row],[*기산일]]+1)/(DATE(YEAR(표2[[#This Row],[*기산일]]),MONTH(표2[[#This Row],[*기산일]])+1,0)-DATE(YEAR(표2[[#This Row],[*기산일]]),MONTH(표2[[#This Row],[*기산일]]),1)+1)) ->  | AE58: =표2[[#This Row],[월중 근속일수]] ->  | AF58: =IFERROR(표2[[#This Row],[사용연도입사자 근무기간(월)]]+ROUNDDOWN(표2[[#This Row],[열2]],0)+VLOOKUP((표2[[#This Row],[열2]]-ROUNDDOWN(표2[[#This Row],[열2]],0)),code!$A$4:$D$9,3,TRUE),0) -> 0 | AG58: 44 | AM58: =IF($AJ$1>license!$C$3,"",IF(H58=0,0,IF($AJ$1<H58,0,$AJ$1-H58+1))) -> 0 | AN58: =IF($AJ$1>license!$C$3,"",IF(AM58=0,0,IF($H58=0,0,DATEDIF($H58-1,$AJ$1,"y")))) -> 0 | AO58: =IF($AJ$1>license!$C$3,"",IF(AM58=0,0,IF($H58=0,0,DATEDIF($H58-1,$AJ$1,"ym")))) -> 0 | AP58: =IF($AJ$1>license!$C$3,"",IF(AM58=0,0,IF($H58=0,0,DATEDIF($H58-1,$AJ$1,"md")))) -> 0 | AQ58: =IF($AJ$1>license!$C$3,"",IF(표2[[#This Row],[1년이상 근무일수]]="",0,$Z$12-표2[[#This Row],[기간]])) -> 0 | AR58: =IFERROR(IF(표2[[#This Row],[1년이상 근무일수]]="","",MIN(표2[[#This Row],[가산연차2]],$BD$12-표2[[#This Row],[기본]])),"") ->  | AS58: =SUM(표2[[#This Row],[1년미만자 당기 1년미만기간 연차수(11일 일할)]],표2[[#This Row],[사용연도 입사자]],표2[[#This Row],[1년미만자 1년째 후 연차일수(15일 일할)]]) -> 0 | AU58: =IF($AJ$1>license!$C$3,"",SUM(표2[[#This Row],[기본]:[일수]])) -> 0 | AV58: =IF($AJ$1>license!$C$3,"",SUMIFS(휴가입력!O:O,휴가입력!M:M,"연차",휴가입력!L:L,AH58)) -> 0 | AW58: =IFERROR(MAX(0,표2[[#This Row],[계]]-표2[[#This Row],[사용 일수]]),0) -> 0 | AX58: =IFERROR(MAX((표2[[#This Row],[계]]-표2[[#This Row],[사용 일수]])*-1,0),0) -> 0 | AZ58: =IF($AJ$1>license!$C$3,"",ROUNDUP(표2[[#This Row],[(월급)]]/209*8,0)) -> 0 | BA58: =IF($AJ$1>license!$C$3,"",ROUNDUP(표2[[#This Row],[(일급)]]*표2[[#This Row],[미사용 일수]],0)) -> 0 | BC58: 0
A59: 1 | H59: =IF(표2[[#This Row],[*입사일]]=0,"",표2[[#This Row],[*입사일]]-$AJ$3) ->  | I59: =IFERROR(IF(AO59="",0,IF(표2[[#This Row],[1년이상 근무일수]]=0,0,DATEDIF(표2[[#This Row],[1년이상 근무일수]]-1,$AJ$1,"y"))),0) -> 0 | J59: =IF(표2[[#This Row],[*기산일]]="","",IF(DATE(YEAR(표2[[#This Row],[*기산일]])+1,MONTH(표2[[#This Row],[*기산일]]),DAY(표2[[#This Row],[*기산일]]))>$AJ$1,"",DATE(YEAR(표2[[#This Row],[*기산일]])+1,MONTH(표2[[#This Row],[*기산일]]),DAY(표2[[#This Row],[*기산일]])))) ->  | K59: =IF(ISODD(표2[[#This Row],[열1]])=TRUE,1,"") ->  | L59: =IF(표2[[#This Row],[가산일도래여부]]=1,DATE(YEAR($AJ$1)+1,MONTH($AJ$1),DAY($AJ$1))-DATE(YEAR($AJ$1)+1,MONTH(표2[[#This Row],[1년이상 근무일수]]),DAY(표2[[#This Row],[1년이상 근무일수]])),0) -> 0 | M59: =표2[[#This Row],[가산휴가 사용가능일]]/365 -> 0 | N59: =VLOOKUP(표2[[#This Row],[총근무일수-366]],code!$A$5:$C$9,3) -> 0 | O59: =ROUNDDOWN(표2[[#This Row],[열1]]/2,0)+표2[[#This Row],[가산연차]] -> 0 | P59: =IF(표2[[#This Row],[*기산일]]="",0,IF(YEAR(표2[[#This Row],[*기산일]])+1=$AI$11,DATE(YEAR(표2[[#This Row],[*기산일]])+1,MONTH(표2[[#This Row],[*기산일]]),DAY(표2[[#This Row],[*기산일]])),"")) -> 00:00:00 | Q59: =IF(표2[[#This Row],[*기산일]]="",0,IF(표2[[#This Row],[전년도 입사자 1년째]]="","",$W$11-표2[[#This Row],[전년도 입사자 1년째]]+1)) -> 0 | R59: =IF(표2[[#This Row],[전년도 입사자 1년째]]="","",표2[[#This Row],[1년미만자 1년째 후 근속일수]]/365*$Z$12) -> 0 | S59: =IFERROR(MAX(0,SUM(MAX(0,ROUNDDOWN(표2[[#This Row],[1년미만자 2년째 후 근속일수]],0)+VLOOKUP((표2[[#This Row],[1년미만자 2년째 후 근속일수]]-ROUNDDOWN(표2[[#This Row],[1년미만자 2년째 후 근속일수]],0)),code!$A$4:$D$9,3,TRUE)),표2[[#This Row],[1년미만자 당기 1년미만기간 연차수(11일 일할)]],표2[[#This Row],[사용연도 입사자]])-$Z$12),0) -> 0 | T59: =IFERROR(MAX(0,ROUNDDOWN(표2[[#This Row],[1년미만자 2년째 후 근속일수]],0)+VLOOKUP((표2[[#This Row],[1년미만자 2년째 후 근속일수]]-ROUNDDOWN(표2[[#This Row],[1년미만자 2년째 후 근속일수]],0)),code!$A$4:$D$9,3,TRUE))-표2[[#This Row],[1년미만자 3년째 후 근속일수]],0) -> 0 | V59: =IF(표2[[#This Row],[*기산일]]="","",IF(YEAR(표2[[#This Row],[*기산일]])=$AI$11-1,DATE(YEAR(표2[[#This Row],[*기산일]]),MONTH(표2[[#This Row],[*기산일]])+1,DAY(표2[[#This Row],[*기산일]])),"")) ->  | W59: =IF(표2[[#This Row],[*기산일]]="",0,IF(표2[[#This Row],[1년미만자1개월째]]="","",MAX(0,DATEDIF(표2[[#This Row],[*기산일]],$W$12,"m")-1))) -> 0 | X59: =IF(표2[[#This Row],[*기산일]]="",0,IF(표2[[#This Row],[1년미만자1개월째]]="","",(DATE(YEAR(표2[[#This Row],[*기산일]]),MONTH(표2[[#This Row],[*기산일]])+1,0)-표2[[#This Row],[*기산일]]+1)/(DATE(YEAR(표2[[#This Row],[*기산일]]),MONTH(표2[[#This Row],[*기산일]])+1,0)-DATE(YEAR(표2[[#This Row],[*기산일]]),MONTH(표2[[#This Row],[*기산일]]),1)+1))) -> 0 | Y59: =IFERROR(ROUNDDOWN(표2[[#This Row],[1년미만자 전년 근속일수]]/365*$Z$11,0)+VLOOKUP(표2[[#This Row],[1년미만자 전기 연차수]]-ROUNDDOWN(표2[[#This Row],[1년미만자 전년 근속일수]]/365*$Z$11,0),code!$A$4:$D$9,3,TRUE),"") -> 0 | Z59: =IFERROR(표2[[#This Row],[1년미만자 전년 근속일수]]+ROUNDDOWN(표2[[#This Row],[1년미만자 전기 연차수]],0)+VLOOKUP((표2[[#This Row],[1년미만자 전기 연차수]]-ROUNDDOWN(표2[[#This Row],[1년미만자 전기 연차수]],0)),code!$A$4:$D$9,3,TRUE),0) -> 0 | AA59: =IF(표2[[#This Row],[1년미만자1개월째]]="","",$Z$11-표2[[#This Row],[2년미만자 전기 연차수(code반올림)]]) ->  | AB59: =IF(YEAR(표2[[#This Row],[*기산일]])=$AI$11,DATE(YEAR(표2[[#This Row],[*기산일]]),MONTH(표2[[#This Row],[*기산일]])+1,DAY(표2[[#This Row],[*기산일]])),"") ->  | AC59: =IF(표2[[#This Row],[사용연도 입사자 1개월]]="","",MAX(0,DATEDIF(표2[[#This Row],[*기산일]],$W$11,"m")-1)) ->  | AD59: =IF(표2[[#This Row],[사용연도 입사자 1개월]]="","",(DATE(YEAR(표2[[#This Row],[*기산일]]),MONTH(표2[[#This Row],[*기산일]])+1,0)-표2[[#This Row],[*기산일]]+1)/(DATE(YEAR(표2[[#This Row],[*기산일]]),MONTH(표2[[#This Row],[*기산일]])+1,0)-DATE(YEAR(표2[[#This Row],[*기산일]]),MONTH(표2[[#This Row],[*기산일]]),1)+1)) ->  | AE59: =표2[[#This Row],[월중 근속일수]] ->  | AF59: =IFERROR(표2[[#This Row],[사용연도입사자 근무기간(월)]]+ROUNDDOWN(표2[[#This Row],[열2]],0)+VLOOKUP((표2[[#This Row],[열2]]-ROUNDDOWN(표2[[#This Row],[열2]],0)),code!$A$4:$D$9,3,TRUE),0) -> 0 | AG59: 45 | AM59: =IF($AJ$1>license!$C$3,"",IF(H59=0,0,IF($AJ$1<H59,0,$AJ$1-H59+1))) -> 0 | AN59: =IF($AJ$1>license!$C$3,"",IF(AM59=0,0,IF($H59=0,0,DATEDIF($H59-1,$AJ$1,"y")))) -> 0 | AO59: =IF($AJ$1>license!$C$3,"",IF(AM59=0,0,IF($H59=0,0,DATEDIF($H59-1,$AJ$1,"ym")))) -> 0 | AP59: =IF($AJ$1>license!$C$3,"",IF(AM59=0,0,IF($H59=0,0,DATEDIF($H59-1,$AJ$1,"md")))) -> 0 | AQ59: =IF($AJ$1>license!$C$3,"",IF(표2[[#This Row],[1년이상 근무일수]]="",0,$Z$12-표2[[#This Row],[기간]])) -> 0 | AR59: =IFERROR(IF(표2[[#This Row],[1년이상 근무일수]]="","",MIN(표2[[#This Row],[가산연차2]],$BD$12-표2[[#This Row],[기본]])),"") ->  | AS59: =SUM(표2[[#This Row],[1년미만자 당기 1년미만기간 연차수(11일 일할)]],표2[[#This Row],[사용연도 입사자]],표2[[#This Row],[1년미만자 1년째 후 연차일수(15일 일할)]]) -> 0 | AU59: =IF($AJ$1>license!$C$3,"",SUM(표2[[#This Row],[기본]:[일수]])) -> 0 | AV59: =IF($AJ$1>license!$C$3,"",SUMIFS(휴가입력!O:O,휴가입력!M:M,"연차",휴가입력!L:L,AH59)) -> 0 | AW59: =IFERROR(MAX(0,표2[[#This Row],[계]]-표2[[#This Row],[사용 일수]]),0) -> 0 | AX59: =IFERROR(MAX((표2[[#This Row],[계]]-표2[[#This Row],[사용 일수]])*-1,0),0) -> 0 | AZ59: =IF($AJ$1>license!$C$3,"",ROUNDUP(표2[[#This Row],[(월급)]]/209*8,0)) -> 0 | BA59: =IF($AJ$1>license!$C$3,"",ROUNDUP(표2[[#This Row],[(일급)]]*표2[[#This Row],[미사용 일수]],0)) -> 0 | BC59: 0
A60: 1 | H60: =IF(표2[[#This Row],[*입사일]]=0,"",표2[[#This Row],[*입사일]]-$AJ$3) ->  | I60: =IFERROR(IF(AO60="",0,IF(표2[[#This Row],[1년이상 근무일수]]=0,0,DATEDIF(표2[[#This Row],[1년이상 근무일수]]-1,$AJ$1,"y"))),0) -> 0 | J60: =IF(표2[[#This Row],[*기산일]]="","",IF(DATE(YEAR(표2[[#This Row],[*기산일]])+1,MONTH(표2[[#This Row],[*기산일]]),DAY(표2[[#This Row],[*기산일]]))>$AJ$1,"",DATE(YEAR(표2[[#This Row],[*기산일]])+1,MONTH(표2[[#This Row],[*기산일]]),DAY(표2[[#This Row],[*기산일]])))) ->  | K60: =IF(ISODD(표2[[#This Row],[열1]])=TRUE,1,"") ->  | L60: =IF(표2[[#This Row],[가산일도래여부]]=1,DATE(YEAR($AJ$1)+1,MONTH($AJ$1),DAY($AJ$1))-DATE(YEAR($AJ$1)+1,MONTH(표2[[#This Row],[1년이상 근무일수]]),DAY(표2[[#This Row],[1년이상 근무일수]])),0) -> 0 | M60: =표2[[#This Row],[가산휴가 사용가능일]]/365 -> 0 | N60: =VLOOKUP(표2[[#This Row],[총근무일수-366]],code!$A$5:$C$9,3) -> 0 | O60: =ROUNDDOWN(표2[[#This Row],[열1]]/2,0)+표2[[#This Row],[가산연차]] -> 0 | P60: =IF(표2[[#This Row],[*기산일]]="",0,IF(YEAR(표2[[#This Row],[*기산일]])+1=$AI$11,DATE(YEAR(표2[[#This Row],[*기산일]])+1,MONTH(표2[[#This Row],[*기산일]]),DAY(표2[[#This Row],[*기산일]])),"")) -> 00:00:00 | Q60: =IF(표2[[#This Row],[*기산일]]="",0,IF(표2[[#This Row],[전년도 입사자 1년째]]="","",$W$11-표2[[#This Row],[전년도 입사자 1년째]]+1)) -> 0 | R60: =IF(표2[[#This Row],[전년도 입사자 1년째]]="","",표2[[#This Row],[1년미만자 1년째 후 근속일수]]/365*$Z$12) -> 0 | S60: =IFERROR(MAX(0,SUM(MAX(0,ROUNDDOWN(표2[[#This Row],[1년미만자 2년째 후 근속일수]],0)+VLOOKUP((표2[[#This Row],[1년미만자 2년째 후 근속일수]]-ROUNDDOWN(표2[[#This Row],[1년미만자 2년째 후 근속일수]],0)),code!$A$4:$D$9,3,TRUE)),표2[[#This Row],[1년미만자 당기 1년미만기간 연차수(11일 일할)]],표2[[#This Row],[사용연도 입사자]])-$Z$12),0) -> 0 | T60: =IFERROR(MAX(0,ROUNDDOWN(표2[[#This Row],[1년미만자 2년째 후 근속일수]],0)+VLOOKUP((표2[[#This Row],[1년미만자 2년째 후 근속일수]]-ROUNDDOWN(표2[[#This Row],[1년미만자 2년째 후 근속일수]],0)),code!$A$4:$D$9,3,TRUE))-표2[[#This Row],[1년미만자 3년째 후 근속일수]],0) -> 0 | V60: =IF(표2[[#This Row],[*기산일]]="","",IF(YEAR(표2[[#This Row],[*기산일]])=$AI$11-1,DATE(YEAR(표2[[#This Row],[*기산일]]),MONTH(표2[[#This Row],[*기산일]])+1,DAY(표2[[#This Row],[*기산일]])),"")) ->  | W60: =IF(표2[[#This Row],[*기산일]]="",0,IF(표2[[#This Row],[1년미만자1개월째]]="","",MAX(0,DATEDIF(표2[[#This Row],[*기산일]],$W$12,"m")-1))) -> 0 | X60: =IF(표2[[#This Row],[*기산일]]="",0,IF(표2[[#This Row],[1년미만자1개월째]]="","",(DATE(YEAR(표2[[#This Row],[*기산일]]),MONTH(표2[[#This Row],[*기산일]])+1,0)-표2[[#This Row],[*기산일]]+1)/(DATE(YEAR(표2[[#This Row],[*기산일]]),MONTH(표2[[#This Row],[*기산일]])+1,0)-DATE(YEAR(표2[[#This Row],[*기산일]]),MONTH(표2[[#This Row],[*기산일]]),1)+1))) -> 0 | Y60: =IFERROR(ROUNDDOWN(표2[[#This Row],[1년미만자 전년 근속일수]]/365*$Z$11,0)+VLOOKUP(표2[[#This Row],[1년미만자 전기 연차수]]-ROUNDDOWN(표2[[#This Row],[1년미만자 전년 근속일수]]/365*$Z$11,0),code!$A$4:$D$9,3,TRUE),"") -> 0 | Z60: =IFERROR(표2[[#This Row],[1년미만자 전년 근속일수]]+ROUNDDOWN(표2[[#This Row],[1년미만자 전기 연차수]],0)+VLOOKUP((표2[[#This Row],[1년미만자 전기 연차수]]-ROUNDDOWN(표2[[#This Row],[1년미만자 전기 연차수]],0)),code!$A$4:$D$9,3,TRUE),0) -> 0 | AA60: =IF(표2[[#This Row],[1년미만자1개월째]]="","",$Z$11-표2[[#This Row],[2년미만자 전기 연차수(code반올림)]]) ->  | AB60: =IF(YEAR(표2[[#This Row],[*기산일]])=$AI$11,DATE(YEAR(표2[[#This Row],[*기산일]]),MONTH(표2[[#This Row],[*기산일]])+1,DAY(표2[[#This Row],[*기산일]])),"") ->  | AC60: =IF(표2[[#This Row],[사용연도 입사자 1개월]]="","",MAX(0,DATEDIF(표2[[#This Row],[*기산일]],$W$11,"m")-1)) ->  | AD60: =IF(표2[[#This Row],[사용연도 입사자 1개월]]="","",(DATE(YEAR(표2[[#This Row],[*기산일]]),MONTH(표2[[#This Row],[*기산일]])+1,0)-표2[[#This Row],[*기산일]]+1)/(DATE(YEAR(표2[[#This Row],[*기산일]]),MONTH(표2[[#This Row],[*기산일]])+1,0)-DATE(YEAR(표2[[#This Row],[*기산일]]),MONTH(표2[[#This Row],[*기산일]]),1)+1)) ->  | AE60: =표2[[#This Row],[월중 근속일수]] ->  | AF60: =IFERROR(표2[[#This Row],[사용연도입사자 근무기간(월)]]+ROUNDDOWN(표2[[#This Row],[열2]],0)+VLOOKUP((표2[[#This Row],[열2]]-ROUNDDOWN(표2[[#This Row],[열2]],0)),code!$A$4:$D$9,3,TRUE),0) -> 0 | AG60: 46 | AM60: =IF($AJ$1>license!$C$3,"",IF(H60=0,0,IF($AJ$1<H60,0,$AJ$1-H60+1))) -> 0 | AN60: =IF($AJ$1>license!$C$3,"",IF(AM60=0,0,IF($H60=0,0,DATEDIF($H60-1,$AJ$1,"y")))) -> 0 | AO60: =IF($AJ$1>license!$C$3,"",IF(AM60=0,0,IF($H60=0,0,DATEDIF($H60-1,$AJ$1,"ym")))) -> 0 | AP60: =IF($AJ$1>license!$C$3,"",IF(AM60=0,0,IF($H60=0,0,DATEDIF($H60-1,$AJ$1,"md")))) -> 0 | AQ60: =IF($AJ$1>license!$C$3,"",IF(표2[[#This Row],[1년이상 근무일수]]="",0,$Z$12-표2[[#This Row],[기간]])) -> 0 | AR60: =IFERROR(IF(표2[[#This Row],[1년이상 근무일수]]="","",MIN(표2[[#This Row],[가산연차2]],$BD$12-표2[[#This Row],[기본]])),"") ->  | AS60: =SUM(표2[[#This Row],[1년미만자 당기 1년미만기간 연차수(11일 일할)]],표2[[#This Row],[사용연도 입사자]],표2[[#This Row],[1년미만자 1년째 후 연차일수(15일 일할)]]) -> 0 | AU60: =IF($AJ$1>license!$C$3,"",SUM(표2[[#This Row],[기본]:[일수]])) -> 0 | AV60: =IF($AJ$1>license!$C$3,"",SUMIFS(휴가입력!O:O,휴가입력!M:M,"연차",휴가입력!L:L,AH60)) -> 0 | AW60: =IFERROR(MAX(0,표2[[#This Row],[계]]-표2[[#This Row],[사용 일수]]),0) -> 0 | AX60: =IFERROR(MAX((표2[[#This Row],[계]]-표2[[#This Row],[사용 일수]])*-1,0),0) -> 0 | AZ60: =IF($AJ$1>license!$C$3,"",ROUNDUP(표2[[#This Row],[(월급)]]/209*8,0)) -> 0 | BA60: =IF($AJ$1>license!$C$3,"",ROUNDUP(표2[[#This Row],[(일급)]]*표2[[#This Row],[미사용 일수]],0)) -> 0 | BC60: 0
A61: 1 | H61: =IF(표2[[#This Row],[*입사일]]=0,"",표2[[#This Row],[*입사일]]-$AJ$3) ->  | I61: =IFERROR(IF(AO61="",0,IF(표2[[#This Row],[1년이상 근무일수]]=0,0,DATEDIF(표2[[#This Row],[1년이상 근무일수]]-1,$AJ$1,"y"))),0) -> 0 | J61: =IF(표2[[#This Row],[*기산일]]="","",IF(DATE(YEAR(표2[[#This Row],[*기산일]])+1,MONTH(표2[[#This Row],[*기산일]]),DAY(표2[[#This Row],[*기산일]]))>$AJ$1,"",DATE(YEAR(표2[[#This Row],[*기산일]])+1,MONTH(표2[[#This Row],[*기산일]]),DAY(표2[[#This Row],[*기산일]])))) ->  | K61: =IF(ISODD(표2[[#This Row],[열1]])=TRUE,1,"") ->  | L61: =IF(표2[[#This Row],[가산일도래여부]]=1,DATE(YEAR($AJ$1)+1,MONTH($AJ$1),DAY($AJ$1))-DATE(YEAR($AJ$1)+1,MONTH(표2[[#This Row],[1년이상 근무일수]]),DAY(표2[[#This Row],[1년이상 근무일수]])),0) -> 0 | M61: =표2[[#This Row],[가산휴가 사용가능일]]/365 -> 0 | N61: =VLOOKUP(표2[[#This Row],[총근무일수-366]],code!$A$5:$C$9,3) -> 0 | O61: =ROUNDDOWN(표2[[#This Row],[열1]]/2,0)+표2[[#This Row],[가산연차]] -> 0 | P61: =IF(표2[[#This Row],[*기산일]]="",0,IF(YEAR(표2[[#This Row],[*기산일]])+1=$AI$11,DATE(YEAR(표2[[#This Row],[*기산일]])+1,MONTH(표2[[#This Row],[*기산일]]),DAY(표2[[#This Row],[*기산일]])),"")) -> 00:00:00 | Q61: =IF(표2[[#This Row],[*기산일]]="",0,IF(표2[[#This Row],[전년도 입사자 1년째]]="","",$W$11-표2[[#This Row],[전년도 입사자 1년째]]+1)) -> 0 | R61: =IF(표2[[#This Row],[전년도 입사자 1년째]]="","",표2[[#This Row],[1년미만자 1년째 후 근속일수]]/365*$Z$12) -> 0 | S61: =IFERROR(MAX(0,SUM(MAX(0,ROUNDDOWN(표2[[#This Row],[1년미만자 2년째 후 근속일수]],0)+VLOOKUP((표2[[#This Row],[1년미만자 2년째 후 근속일수]]-ROUNDDOWN(표2[[#This Row],[1년미만자 2년째 후 근속일수]],0)),code!$A$4:$D$9,3,TRUE)),표2[[#This Row],[1년미만자 당기 1년미만기간 연차수(11일 일할)]],표2[[#This Row],[사용연도 입사자]])-$Z$12),0) -> 0 | T61: =IFERROR(MAX(0,ROUNDDOWN(표2[[#This Row],[1년미만자 2년째 후 근속일수]],0)+VLOOKUP((표2[[#This Row],[1년미만자 2년째 후 근속일수]]-ROUNDDOWN(표2[[#This Row],[1년미만자 2년째 후 근속일수]],0)),code!$A$4:$D$9,3,TRUE))-표2[[#This Row],[1년미만자 3년째 후 근속일수]],0) -> 0 | V61: =IF(표2[[#This Row],[*기산일]]="","",IF(YEAR(표2[[#This Row],[*기산일]])=$AI$11-1,DATE(YEAR(표2[[#This Row],[*기산일]]),MONTH(표2[[#This Row],[*기산일]])+1,DAY(표2[[#This Row],[*기산일]])),"")) ->  | W61: =IF(표2[[#This Row],[*기산일]]="",0,IF(표2[[#This Row],[1년미만자1개월째]]="","",MAX(0,DATEDIF(표2[[#This Row],[*기산일]],$W$12,"m")-1))) -> 0 | X61: =IF(표2[[#This Row],[*기산일]]="",0,IF(표2[[#This Row],[1년미만자1개월째]]="","",(DATE(YEAR(표2[[#This Row],[*기산일]]),MONTH(표2[[#This Row],[*기산일]])+1,0)-표2[[#This Row],[*기산일]]+1)/(DATE(YEAR(표2[[#This Row],[*기산일]]),MONTH(표2[[#This Row],[*기산일]])+1,0)-DATE(YEAR(표2[[#This Row],[*기산일]]),MONTH(표2[[#This Row],[*기산일]]),1)+1))) -> 0 | Y61: =IFERROR(ROUNDDOWN(표2[[#This Row],[1년미만자 전년 근속일수]]/365*$Z$11,0)+VLOOKUP(표2[[#This Row],[1년미만자 전기 연차수]]-ROUNDDOWN(표2[[#This Row],[1년미만자 전년 근속일수]]/365*$Z$11,0),code!$A$4:$D$9,3,TRUE),"") -> 0 | Z61: =IFERROR(표2[[#This Row],[1년미만자 전년 근속일수]]+ROUNDDOWN(표2[[#This Row],[1년미만자 전기 연차수]],0)+VLOOKUP((표2[[#This Row],[1년미만자 전기 연차수]]-ROUNDDOWN(표2[[#This Row],[1년미만자 전기 연차수]],0)),code!$A$4:$D$9,3,TRUE),0) -> 0 | AA61: =IF(표2[[#This Row],[1년미만자1개월째]]="","",$Z$11-표2[[#This Row],[2년미만자 전기 연차수(code반올림)]]) ->  | AB61: =IF(YEAR(표2[[#This Row],[*기산일]])=$AI$11,DATE(YEAR(표2[[#This Row],[*기산일]]),MONTH(표2[[#This Row],[*기산일]])+1,DAY(표2[[#This Row],[*기산일]])),"") ->  | AC61: =IF(표2[[#This Row],[사용연도 입사자 1개월]]="","",MAX(0,DATEDIF(표2[[#This Row],[*기산일]],$W$11,"m")-1)) ->  | AD61: =IF(표2[[#This Row],[사용연도 입사자 1개월]]="","",(DATE(YEAR(표2[[#This Row],[*기산일]]),MONTH(표2[[#This Row],[*기산일]])+1,0)-표2[[#This Row],[*기산일]]+1)/(DATE(YEAR(표2[[#This Row],[*기산일]]),MONTH(표2[[#This Row],[*기산일]])+1,0)-DATE(YEAR(표2[[#This Row],[*기산일]]),MONTH(표2[[#This Row],[*기산일]]),1)+1)) ->  | AE61: =표2[[#This Row],[월중 근속일수]] ->  | AF61: =IFERROR(표2[[#This Row],[사용연도입사자 근무기간(월)]]+ROUNDDOWN(표2[[#This Row],[열2]],0)+VLOOKUP((표2[[#This Row],[열2]]-ROUNDDOWN(표2[[#This Row],[열2]],0)),code!$A$4:$D$9,3,TRUE),0) -> 0 | AG61: 47 | AM61: =IF($AJ$1>license!$C$3,"",IF(H61=0,0,IF($AJ$1<H61,0,$AJ$1-H61+1))) -> 0 | AN61: =IF($AJ$1>license!$C$3,"",IF(AM61=0,0,IF($H61=0,0,DATEDIF($H61-1,$AJ$1,"y")))) -> 0 | AO61: =IF($AJ$1>license!$C$3,"",IF(AM61=0,0,IF($H61=0,0,DATEDIF($H61-1,$AJ$1,"ym")))) -> 0 | AP61: =IF($AJ$1>license!$C$3,"",IF(AM61=0,0,IF($H61=0,0,DATEDIF($H61-1,$AJ$1,"md")))) -> 0 | AQ61: =IF($AJ$1>license!$C$3,"",IF(표2[[#This Row],[1년이상 근무일수]]="",0,$Z$12-표2[[#This Row],[기간]])) -> 0 | AR61: =IFERROR(IF(표2[[#This Row],[1년이상 근무일수]]="","",MIN(표2[[#This Row],[가산연차2]],$BD$12-표2[[#This Row],[기본]])),"") ->  | AS61: =SUM(표2[[#This Row],[1년미만자 당기 1년미만기간 연차수(11일 일할)]],표2[[#This Row],[사용연도 입사자]],표2[[#This Row],[1년미만자 1년째 후 연차일수(15일 일할)]]) -> 0 | AU61: =IF($AJ$1>license!$C$3,"",SUM(표2[[#This Row],[기본]:[일수]])) -> 0 | AV61: =IF($AJ$1>license!$C$3,"",SUMIFS(휴가입력!O:O,휴가입력!M:M,"연차",휴가입력!L:L,AH61)) -> 0 | AW61: =IFERROR(MAX(0,표2[[#This Row],[계]]-표2[[#This Row],[사용 일수]]),0) -> 0 | AX61: =IFERROR(MAX((표2[[#This Row],[계]]-표2[[#This Row],[사용 일수]])*-1,0),0) -> 0 | AZ61: =IF($AJ$1>license!$C$3,"",ROUNDUP(표2[[#This Row],[(월급)]]/209*8,0)) -> 0 | BA61: =IF($AJ$1>license!$C$3,"",ROUNDUP(표2[[#This Row],[(일급)]]*표2[[#This Row],[미사용 일수]],0)) -> 0 | BC61: 0
A62: 1 | H62: =IF(표2[[#This Row],[*입사일]]=0,"",표2[[#This Row],[*입사일]]-$AJ$3) ->  | I62: =IFERROR(IF(AO62="",0,IF(표2[[#This Row],[1년이상 근무일수]]=0,0,DATEDIF(표2[[#This Row],[1년이상 근무일수]]-1,$AJ$1,"y"))),0) -> 0 | J62: =IF(표2[[#This Row],[*기산일]]="","",IF(DATE(YEAR(표2[[#This Row],[*기산일]])+1,MONTH(표2[[#This Row],[*기산일]]),DAY(표2[[#This Row],[*기산일]]))>$AJ$1,"",DATE(YEAR(표2[[#This Row],[*기산일]])+1,MONTH(표2[[#This Row],[*기산일]]),DAY(표2[[#This Row],[*기산일]])))) ->  | K62: =IF(ISODD(표2[[#This Row],[열1]])=TRUE,1,"") ->  | L62: =IF(표2[[#This Row],[가산일도래여부]]=1,DATE(YEAR($AJ$1)+1,MONTH($AJ$1),DAY($AJ$1))-DATE(YEAR($AJ$1)+1,MONTH(표2[[#This Row],[1년이상 근무일수]]),DAY(표2[[#This Row],[1년이상 근무일수]])),0) -> 0 | M62: =표2[[#This Row],[가산휴가 사용가능일]]/365 -> 0 | N62: =VLOOKUP(표2[[#This Row],[총근무일수-366]],code!$A$5:$C$9,3) -> 0 | O62: =ROUNDDOWN(표2[[#This Row],[열1]]/2,0)+표2[[#This Row],[가산연차]] -> 0 | P62: =IF(표2[[#This Row],[*기산일]]="",0,IF(YEAR(표2[[#This Row],[*기산일]])+1=$AI$11,DATE(YEAR(표2[[#This Row],[*기산일]])+1,MONTH(표2[[#This Row],[*기산일]]),DAY(표2[[#This Row],[*기산일]])),"")) -> 00:00:00 | Q62: =IF(표2[[#This Row],[*기산일]]="",0,IF(표2[[#This Row],[전년도 입사자 1년째]]="","",$W$11-표2[[#This Row],[전년도 입사자 1년째]]+1)) -> 0 | R62: =IF(표2[[#This Row],[전년도 입사자 1년째]]="","",표2[[#This Row],[1년미만자 1년째 후 근속일수]]/365*$Z$12) -> 0 | S62: =IFERROR(MAX(0,SUM(MAX(0,ROUNDDOWN(표2[[#This Row],[1년미만자 2년째 후 근속일수]],0)+VLOOKUP((표2[[#This Row],[1년미만자 2년째 후 근속일수]]-ROUNDDOWN(표2[[#This Row],[1년미만자 2년째 후 근속일수]],0)),code!$A$4:$D$9,3,TRUE)),표2[[#This Row],[1년미만자 당기 1년미만기간 연차수(11일 일할)]],표2[[#This Row],[사용연도 입사자]])-$Z$12),0) -> 0 | T62: =IFERROR(MAX(0,ROUNDDOWN(표2[[#This Row],[1년미만자 2년째 후 근속일수]],0)+VLOOKUP((표2[[#This Row],[1년미만자 2년째 후 근속일수]]-ROUNDDOWN(표2[[#This Row],[1년미만자 2년째 후 근속일수]],0)),code!$A$4:$D$9,3,TRUE))-표2[[#This Row],[1년미만자 3년째 후 근속일수]],0) -> 0 | V62: =IF(표2[[#This Row],[*기산일]]="","",IF(YEAR(표2[[#This Row],[*기산일]])=$AI$11-1,DATE(YEAR(표2[[#This Row],[*기산일]]),MONTH(표2[[#This Row],[*기산일]])+1,DAY(표2[[#This Row],[*기산일]])),"")) ->  | W62: =IF(표2[[#This Row],[*기산일]]="",0,IF(표2[[#This Row],[1년미만자1개월째]]="","",MAX(0,DATEDIF(표2[[#This Row],[*기산일]],$W$12,"m")-1))) -> 0 | X62: =IF(표2[[#This Row],[*기산일]]="",0,IF(표2[[#This Row],[1년미만자1개월째]]="","",(DATE(YEAR(표2[[#This Row],[*기산일]]),MONTH(표2[[#This Row],[*기산일]])+1,0)-표2[[#This Row],[*기산일]]+1)/(DATE(YEAR(표2[[#This Row],[*기산일]]),MONTH(표2[[#This Row],[*기산일]])+1,0)-DATE(YEAR(표2[[#This Row],[*기산일]]),MONTH(표2[[#This Row],[*기산일]]),1)+1))) -> 0 | Y62: =IFERROR(ROUNDDOWN(표2[[#This Row],[1년미만자 전년 근속일수]]/365*$Z$11,0)+VLOOKUP(표2[[#This Row],[1년미만자 전기 연차수]]-ROUNDDOWN(표2[[#This Row],[1년미만자 전년 근속일수]]/365*$Z$11,0),code!$A$4:$D$9,3,TRUE),"") -> 0 | Z62: =IFERROR(표2[[#This Row],[1년미만자 전년 근속일수]]+ROUNDDOWN(표2[[#This Row],[1년미만자 전기 연차수]],0)+VLOOKUP((표2[[#This Row],[1년미만자 전기 연차수]]-ROUNDDOWN(표2[[#This Row],[1년미만자 전기 연차수]],0)),code!$A$4:$D$9,3,TRUE),0) -> 0 | AA62: =IF(표2[[#This Row],[1년미만자1개월째]]="","",$Z$11-표2[[#This Row],[2년미만자 전기 연차수(code반올림)]]) ->  | AB62: =IF(YEAR(표2[[#This Row],[*기산일]])=$AI$11,DATE(YEAR(표2[[#This Row],[*기산일]]),MONTH(표2[[#This Row],[*기산일]])+1,DAY(표2[[#This Row],[*기산일]])),"") ->  | AC62: =IF(표2[[#This Row],[사용연도 입사자 1개월]]="","",MAX(0,DATEDIF(표2[[#This Row],[*기산일]],$W$11,"m")-1)) ->  | AD62: =IF(표2[[#This Row],[사용연도 입사자 1개월]]="","",(DATE(YEAR(표2[[#This Row],[*기산일]]),MONTH(표2[[#This Row],[*기산일]])+1,0)-표2[[#This Row],[*기산일]]+1)/(DATE(YEAR(표2[[#This Row],[*기산일]]),MONTH(표2[[#This Row],[*기산일]])+1,0)-DATE(YEAR(표2[[#This Row],[*기산일]]),MONTH(표2[[#This Row],[*기산일]]),1)+1)) ->  | AE62: =표2[[#This Row],[월중 근속일수]] ->  | AF62: =IFERROR(표2[[#This Row],[사용연도입사자 근무기간(월)]]+ROUNDDOWN(표2[[#This Row],[열2]],0)+VLOOKUP((표2[[#This Row],[열2]]-ROUNDDOWN(표2[[#This Row],[열2]],0)),code!$A$4:$D$9,3,TRUE),0) -> 0 | AG62: 48 | AM62: =IF($AJ$1>license!$C$3,"",IF(H62=0,0,IF($AJ$1<H62,0,$AJ$1-H62+1))) -> 0 | AN62: =IF($AJ$1>license!$C$3,"",IF(AM62=0,0,IF($H62=0,0,DATEDIF($H62-1,$AJ$1,"y")))) -> 0 | AO62: =IF($AJ$1>license!$C$3,"",IF(AM62=0,0,IF($H62=0,0,DATEDIF($H62-1,$AJ$1,"ym")))) -> 0 | AP62: =IF($AJ$1>license!$C$3,"",IF(AM62=0,0,IF($H62=0,0,DATEDIF($H62-1,$AJ$1,"md")))) -> 0 | AQ62: =IF($AJ$1>license!$C$3,"",IF(표2[[#This Row],[1년이상 근무일수]]="",0,$Z$12-표2[[#This Row],[기간]])) -> 0 | AR62: =IFERROR(IF(표2[[#This Row],[1년이상 근무일수]]="","",MIN(표2[[#This Row],[가산연차2]],$BD$12-표2[[#This Row],[기본]])),"") ->  | AS62: =SUM(표2[[#This Row],[1년미만자 당기 1년미만기간 연차수(11일 일할)]],표2[[#This Row],[사용연도 입사자]],표2[[#This Row],[1년미만자 1년째 후 연차일수(15일 일할)]]) -> 0 | AU62: =IF($AJ$1>license!$C$3,"",SUM(표2[[#This Row],[기본]:[일수]])) -> 0 | AV62: =IF($AJ$1>license!$C$3,"",SUMIFS(휴가입력!O:O,휴가입력!M:M,"연차",휴가입력!L:L,AH62)) -> 0 | AW62: =IFERROR(MAX(0,표2[[#This Row],[계]]-표2[[#This Row],[사용 일수]]),0) -> 0 | AX62: =IFERROR(MAX((표2[[#This Row],[계]]-표2[[#This Row],[사용 일수]])*-1,0),0) -> 0 | AZ62: =IF($AJ$1>license!$C$3,"",ROUNDUP(표2[[#This Row],[(월급)]]/209*8,0)) -> 0 | BA62: =IF($AJ$1>license!$C$3,"",ROUNDUP(표2[[#This Row],[(일급)]]*표2[[#This Row],[미사용 일수]],0)) -> 0 | BC62: 0
A63: 1 | H63: =IF(표2[[#This Row],[*입사일]]=0,"",표2[[#This Row],[*입사일]]-$AJ$3) ->  | I63: =IFERROR(IF(AO63="",0,IF(표2[[#This Row],[1년이상 근무일수]]=0,0,DATEDIF(표2[[#This Row],[1년이상 근무일수]]-1,$AJ$1,"y"))),0) -> 0 | J63: =IF(표2[[#This Row],[*기산일]]="","",IF(DATE(YEAR(표2[[#This Row],[*기산일]])+1,MONTH(표2[[#This Row],[*기산일]]),DAY(표2[[#This Row],[*기산일]]))>$AJ$1,"",DATE(YEAR(표2[[#This Row],[*기산일]])+1,MONTH(표2[[#This Row],[*기산일]]),DAY(표2[[#This Row],[*기산일]])))) ->  | K63: =IF(ISODD(표2[[#This Row],[열1]])=TRUE,1,"") ->  | L63: =IF(표2[[#This Row],[가산일도래여부]]=1,DATE(YEAR($AJ$1)+1,MONTH($AJ$1),DAY($AJ$1))-DATE(YEAR($AJ$1)+1,MONTH(표2[[#This Row],[1년이상 근무일수]]),DAY(표2[[#This Row],[1년이상 근무일수]])),0) -> 0 | M63: =표2[[#This Row],[가산휴가 사용가능일]]/365 -> 0 | N63: =VLOOKUP(표2[[#This Row],[총근무일수-366]],code!$A$5:$C$9,3) -> 0 | O63: =ROUNDDOWN(표2[[#This Row],[열1]]/2,0)+표2[[#This Row],[가산연차]] -> 0 | P63: =IF(표2[[#This Row],[*기산일]]="",0,IF(YEAR(표2[[#This Row],[*기산일]])+1=$AI$11,DATE(YEAR(표2[[#This Row],[*기산일]])+1,MONTH(표2[[#This Row],[*기산일]]),DAY(표2[[#This Row],[*기산일]])),"")) -> 00:00:00 | Q63: =IF(표2[[#This Row],[*기산일]]="",0,IF(표2[[#This Row],[전년도 입사자 1년째]]="","",$W$11-표2[[#This Row],[전년도 입사자 1년째]]+1)) -> 0 | R63: =IF(표2[[#This Row],[전년도 입사자 1년째]]="","",표2[[#This Row],[1년미만자 1년째 후 근속일수]]/365*$Z$12) -> 0 | S63: =IFERROR(MAX(0,SUM(MAX(0,ROUNDDOWN(표2[[#This Row],[1년미만자 2년째 후 근속일수]],0)+VLOOKUP((표2[[#This Row],[1년미만자 2년째 후 근속일수]]-ROUNDDOWN(표2[[#This Row],[1년미만자 2년째 후 근속일수]],0)),code!$A$4:$D$9,3,TRUE)),표2[[#This Row],[1년미만자 당기 1년미만기간 연차수(11일 일할)]],표2[[#This Row],[사용연도 입사자]])-$Z$12),0) -> 0 | T63: =IFERROR(MAX(0,ROUNDDOWN(표2[[#This Row],[1년미만자 2년째 후 근속일수]],0)+VLOOKUP((표2[[#This Row],[1년미만자 2년째 후 근속일수]]-ROUNDDOWN(표2[[#This Row],[1년미만자 2년째 후 근속일수]],0)),code!$A$4:$D$9,3,TRUE))-표2[[#This Row],[1년미만자 3년째 후 근속일수]],0) -> 0 | V63: =IF(표2[[#This Row],[*기산일]]="","",IF(YEAR(표2[[#This Row],[*기산일]])=$AI$11-1,DATE(YEAR(표2[[#This Row],[*기산일]]),MONTH(표2[[#This Row],[*기산일]])+1,DAY(표2[[#This Row],[*기산일]])),"")) ->  | W63: =IF(표2[[#This Row],[*기산일]]="",0,IF(표2[[#This Row],[1년미만자1개월째]]="","",MAX(0,DATEDIF(표2[[#This Row],[*기산일]],$W$12,"m")-1))) -> 0 | X63: =IF(표2[[#This Row],[*기산일]]="",0,IF(표2[[#This Row],[1년미만자1개월째]]="","",(DATE(YEAR(표2[[#This Row],[*기산일]]),MONTH(표2[[#This Row],[*기산일]])+1,0)-표2[[#This Row],[*기산일]]+1)/(DATE(YEAR(표2[[#This Row],[*기산일]]),MONTH(표2[[#This Row],[*기산일]])+1,0)-DATE(YEAR(표2[[#This Row],[*기산일]]),MONTH(표2[[#This Row],[*기산일]]),1)+1))) -> 0 | Y63: =IFERROR(ROUNDDOWN(표2[[#This Row],[1년미만자 전년 근속일수]]/365*$Z$11,0)+VLOOKUP(표2[[#This Row],[1년미만자 전기 연차수]]-ROUNDDOWN(표2[[#This Row],[1년미만자 전년 근속일수]]/365*$Z$11,0),code!$A$4:$D$9,3,TRUE),"") -> 0 | Z63: =IFERROR(표2[[#This Row],[1년미만자 전년 근속일수]]+ROUNDDOWN(표2[[#This Row],[1년미만자 전기 연차수]],0)+VLOOKUP((표2[[#This Row],[1년미만자 전기 연차수]]-ROUNDDOWN(표2[[#This Row],[1년미만자 전기 연차수]],0)),code!$A$4:$D$9,3,TRUE),0) -> 0 | AA63: =IF(표2[[#This Row],[1년미만자1개월째]]="","",$Z$11-표2[[#This Row],[2년미만자 전기 연차수(code반올림)]]) ->  | AB63: =IF(YEAR(표2[[#This Row],[*기산일]])=$AI$11,DATE(YEAR(표2[[#This Row],[*기산일]]),MONTH(표2[[#This Row],[*기산일]])+1,DAY(표2[[#This Row],[*기산일]])),"") ->  | AC63: =IF(표2[[#This Row],[사용연도 입사자 1개월]]="","",MAX(0,DATEDIF(표2[[#This Row],[*기산일]],$W$11,"m")-1)) ->  | AD63: =IF(표2[[#This Row],[사용연도 입사자 1개월]]="","",(DATE(YEAR(표2[[#This Row],[*기산일]]),MONTH(표2[[#This Row],[*기산일]])+1,0)-표2[[#This Row],[*기산일]]+1)/(DATE(YEAR(표2[[#This Row],[*기산일]]),MONTH(표2[[#This Row],[*기산일]])+1,0)-DATE(YEAR(표2[[#This Row],[*기산일]]),MONTH(표2[[#This Row],[*기산일]]),1)+1)) ->  | AE63: =표2[[#This Row],[월중 근속일수]] ->  | AF63: =IFERROR(표2[[#This Row],[사용연도입사자 근무기간(월)]]+ROUNDDOWN(표2[[#This Row],[열2]],0)+VLOOKUP((표2[[#This Row],[열2]]-ROUNDDOWN(표2[[#This Row],[열2]],0)),code!$A$4:$D$9,3,TRUE),0) -> 0 | AG63: 49 | AM63: =IF($AJ$1>license!$C$3,"",IF(H63=0,0,IF($AJ$1<H63,0,$AJ$1-H63+1))) -> 0 | AN63: =IF($AJ$1>license!$C$3,"",IF(AM63=0,0,IF($H63=0,0,DATEDIF($H63-1,$AJ$1,"y")))) -> 0 | AO63: =IF($AJ$1>license!$C$3,"",IF(AM63=0,0,IF($H63=0,0,DATEDIF($H63-1,$AJ$1,"ym")))) -> 0 | AP63: =IF($AJ$1>license!$C$3,"",IF(AM63=0,0,IF($H63=0,0,DATEDIF($H63-1,$AJ$1,"md")))) -> 0 | AQ63: =IF($AJ$1>license!$C$3,"",IF(표2[[#This Row],[1년이상 근무일수]]="",0,$Z$12-표2[[#This Row],[기간]])) -> 0 | AR63: =IFERROR(IF(표2[[#This Row],[1년이상 근무일수]]="","",MIN(표2[[#This Row],[가산연차2]],$BD$12-표2[[#This Row],[기본]])),"") ->  | AS63: =SUM(표2[[#This Row],[1년미만자 당기 1년미만기간 연차수(11일 일할)]],표2[[#This Row],[사용연도 입사자]],표2[[#This Row],[1년미만자 1년째 후 연차일수(15일 일할)]]) -> 0 | AU63: =IF($AJ$1>license!$C$3,"",SUM(표2[[#This Row],[기본]:[일수]])) -> 0 | AV63: =IF($AJ$1>license!$C$3,"",SUMIFS(휴가입력!O:O,휴가입력!M:M,"연차",휴가입력!L:L,AH63)) -> 0 | AW63: =IFERROR(MAX(0,표2[[#This Row],[계]]-표2[[#This Row],[사용 일수]]),0) -> 0 | AX63: =IFERROR(MAX((표2[[#This Row],[계]]-표2[[#This Row],[사용 일수]])*-1,0),0) -> 0 | AZ63: =IF($AJ$1>license!$C$3,"",ROUNDUP(표2[[#This Row],[(월급)]]/209*8,0)) -> 0 | BA63: =IF($AJ$1>license!$C$3,"",ROUNDUP(표2[[#This Row],[(일급)]]*표2[[#This Row],[미사용 일수]],0)) -> 0 | BC63: 0
A64: 1 | H64: =IF(표2[[#This Row],[*입사일]]=0,"",표2[[#This Row],[*입사일]]-$AJ$3) ->  | I64: =IFERROR(IF(AO64="",0,IF(표2[[#This Row],[1년이상 근무일수]]=0,0,DATEDIF(표2[[#This Row],[1년이상 근무일수]]-1,$AJ$1,"y"))),0) -> 0 | J64: =IF(표2[[#This Row],[*기산일]]="","",IF(DATE(YEAR(표2[[#This Row],[*기산일]])+1,MONTH(표2[[#This Row],[*기산일]]),DAY(표2[[#This Row],[*기산일]]))>$AJ$1,"",DATE(YEAR(표2[[#This Row],[*기산일]])+1,MONTH(표2[[#This Row],[*기산일]]),DAY(표2[[#This Row],[*기산일]])))) ->  | K64: =IF(ISODD(표2[[#This Row],[열1]])=TRUE,1,"") ->  | L64: =IF(표2[[#This Row],[가산일도래여부]]=1,DATE(YEAR($AJ$1)+1,MONTH($AJ$1),DAY($AJ$1))-DATE(YEAR($AJ$1)+1,MONTH(표2[[#This Row],[1년이상 근무일수]]),DAY(표2[[#This Row],[1년이상 근무일수]])),0) -> 0 | M64: =표2[[#This Row],[가산휴가 사용가능일]]/365 -> 0 | N64: =VLOOKUP(표2[[#This Row],[총근무일수-366]],code!$A$5:$C$9,3) -> 0 | O64: =ROUNDDOWN(표2[[#This Row],[열1]]/2,0)+표2[[#This Row],[가산연차]] -> 0 | P64: =IF(표2[[#This Row],[*기산일]]="",0,IF(YEAR(표2[[#This Row],[*기산일]])+1=$AI$11,DATE(YEAR(표2[[#This Row],[*기산일]])+1,MONTH(표2[[#This Row],[*기산일]]),DAY(표2[[#This Row],[*기산일]])),"")) -> 00:00:00 | Q64: =IF(표2[[#This Row],[*기산일]]="",0,IF(표2[[#This Row],[전년도 입사자 1년째]]="","",$W$11-표2[[#This Row],[전년도 입사자 1년째]]+1)) -> 0 | R64: =IF(표2[[#This Row],[전년도 입사자 1년째]]="","",표2[[#This Row],[1년미만자 1년째 후 근속일수]]/365*$Z$12) -> 0 | S64: =IFERROR(MAX(0,SUM(MAX(0,ROUNDDOWN(표2[[#This Row],[1년미만자 2년째 후 근속일수]],0)+VLOOKUP((표2[[#This Row],[1년미만자 2년째 후 근속일수]]-ROUNDDOWN(표2[[#This Row],[1년미만자 2년째 후 근속일수]],0)),code!$A$4:$D$9,3,TRUE)),표2[[#This Row],[1년미만자 당기 1년미만기간 연차수(11일 일할)]],표2[[#This Row],[사용연도 입사자]])-$Z$12),0) -> 0 | T64: =IFERROR(MAX(0,ROUNDDOWN(표2[[#This Row],[1년미만자 2년째 후 근속일수]],0)+VLOOKUP((표2[[#This Row],[1년미만자 2년째 후 근속일수]]-ROUNDDOWN(표2[[#This Row],[1년미만자 2년째 후 근속일수]],0)),code!$A$4:$D$9,3,TRUE))-표2[[#This Row],[1년미만자 3년째 후 근속일수]],0) -> 0 | V64: =IF(표2[[#This Row],[*기산일]]="","",IF(YEAR(표2[[#This Row],[*기산일]])=$AI$11-1,DATE(YEAR(표2[[#This Row],[*기산일]]),MONTH(표2[[#This Row],[*기산일]])+1,DAY(표2[[#This Row],[*기산일]])),"")) ->  | W64: =IF(표2[[#This Row],[*기산일]]="",0,IF(표2[[#This Row],[1년미만자1개월째]]="","",MAX(0,DATEDIF(표2[[#This Row],[*기산일]],$W$12,"m")-1))) -> 0 | X64: =IF(표2[[#This Row],[*기산일]]="",0,IF(표2[[#This Row],[1년미만자1개월째]]="","",(DATE(YEAR(표2[[#This Row],[*기산일]]),MONTH(표2[[#This Row],[*기산일]])+1,0)-표2[[#This Row],[*기산일]]+1)/(DATE(YEAR(표2[[#This Row],[*기산일]]),MONTH(표2[[#This Row],[*기산일]])+1,0)-DATE(YEAR(표2[[#This Row],[*기산일]]),MONTH(표2[[#This Row],[*기산일]]),1)+1))) -> 0 | Y64: =IFERROR(ROUNDDOWN(표2[[#This Row],[1년미만자 전년 근속일수]]/365*$Z$11,0)+VLOOKUP(표2[[#This Row],[1년미만자 전기 연차수]]-ROUNDDOWN(표2[[#This Row],[1년미만자 전년 근속일수]]/365*$Z$11,0),code!$A$4:$D$9,3,TRUE),"") -> 0 | Z64: =IFERROR(표2[[#This Row],[1년미만자 전년 근속일수]]+ROUNDDOWN(표2[[#This Row],[1년미만자 전기 연차수]],0)+VLOOKUP((표2[[#This Row],[1년미만자 전기 연차수]]-ROUNDDOWN(표2[[#This Row],[1년미만자 전기 연차수]],0)),code!$A$4:$D$9,3,TRUE),0) -> 0 | AA64: =IF(표2[[#This Row],[1년미만자1개월째]]="","",$Z$11-표2[[#This Row],[2년미만자 전기 연차수(code반올림)]]) ->  | AB64: =IF(YEAR(표2[[#This Row],[*기산일]])=$AI$11,DATE(YEAR(표2[[#This Row],[*기산일]]),MONTH(표2[[#This Row],[*기산일]])+1,DAY(표2[[#This Row],[*기산일]])),"") ->  | AC64: =IF(표2[[#This Row],[사용연도 입사자 1개월]]="","",MAX(0,DATEDIF(표2[[#This Row],[*기산일]],$W$11,"m")-1)) ->  | AD64: =IF(표2[[#This Row],[사용연도 입사자 1개월]]="","",(DATE(YEAR(표2[[#This Row],[*기산일]]),MONTH(표2[[#This Row],[*기산일]])+1,0)-표2[[#This Row],[*기산일]]+1)/(DATE(YEAR(표2[[#This Row],[*기산일]]),MONTH(표2[[#This Row],[*기산일]])+1,0)-DATE(YEAR(표2[[#This Row],[*기산일]]),MONTH(표2[[#This Row],[*기산일]]),1)+1)) ->  | AE64: =표2[[#This Row],[월중 근속일수]] ->  | AF64: =IFERROR(표2[[#This Row],[사용연도입사자 근무기간(월)]]+ROUNDDOWN(표2[[#This Row],[열2]],0)+VLOOKUP((표2[[#This Row],[열2]]-ROUNDDOWN(표2[[#This Row],[열2]],0)),code!$A$4:$D$9,3,TRUE),0) -> 0 | AG64: 50 | AM64: =IF($AJ$1>license!$C$3,"",IF(H64=0,0,IF($AJ$1<H64,0,$AJ$1-H64+1))) -> 0 | AN64: =IF($AJ$1>license!$C$3,"",IF(AM64=0,0,IF($H64=0,0,DATEDIF($H64-1,$AJ$1,"y")))) -> 0 | AO64: =IF($AJ$1>license!$C$3,"",IF(AM64=0,0,IF($H64=0,0,DATEDIF($H64-1,$AJ$1,"ym")))) -> 0 | AP64: =IF($AJ$1>license!$C$3,"",IF(AM64=0,0,IF($H64=0,0,DATEDIF($H64-1,$AJ$1,"md")))) -> 0 | AQ64: =IF($AJ$1>license!$C$3,"",IF(표2[[#This Row],[1년이상 근무일수]]="",0,$Z$12-표2[[#This Row],[기간]])) -> 0 | AR64: =IFERROR(IF(표2[[#This Row],[1년이상 근무일수]]="","",MIN(표2[[#This Row],[가산연차2]],$BD$12-표2[[#This Row],[기본]])),"") ->  | AS64: =SUM(표2[[#This Row],[1년미만자 당기 1년미만기간 연차수(11일 일할)]],표2[[#This Row],[사용연도 입사자]],표2[[#This Row],[1년미만자 1년째 후 연차일수(15일 일할)]]) -> 0 | AU64: =IF($AJ$1>license!$C$3,"",SUM(표2[[#This Row],[기본]:[일수]])) -> 0 | AV64: =IF($AJ$1>license!$C$3,"",SUMIFS(휴가입력!O:O,휴가입력!M:M,"연차",휴가입력!L:L,AH64)) -> 0 | AW64: =IFERROR(MAX(0,표2[[#This Row],[계]]-표2[[#This Row],[사용 일수]]),0) -> 0 | AX64: =IFERROR(MAX((표2[[#This Row],[계]]-표2[[#This Row],[사용 일수]])*-1,0),0) -> 0 | AZ64: =IF($AJ$1>license!$C$3,"",ROUNDUP(표2[[#This Row],[(월급)]]/209*8,0)) -> 0 | BA64: =IF($AJ$1>license!$C$3,"",ROUNDUP(표2[[#This Row],[(일급)]]*표2[[#This Row],[미사용 일수]],0)) -> 0 | BC64: 0
A65: 1 | H65: =IF(표2[[#This Row],[*입사일]]=0,"",표2[[#This Row],[*입사일]]-$AJ$3) ->  | I65: =IFERROR(IF(AO65="",0,IF(표2[[#This Row],[1년이상 근무일수]]=0,0,DATEDIF(표2[[#This Row],[1년이상 근무일수]]-1,$AJ$1,"y"))),0) -> 0 | J65: =IF(표2[[#This Row],[*기산일]]="","",IF(DATE(YEAR(표2[[#This Row],[*기산일]])+1,MONTH(표2[[#This Row],[*기산일]]),DAY(표2[[#This Row],[*기산일]]))>$AJ$1,"",DATE(YEAR(표2[[#This Row],[*기산일]])+1,MONTH(표2[[#This Row],[*기산일]]),DAY(표2[[#This Row],[*기산일]])))) ->  | K65: =IF(ISODD(표2[[#This Row],[열1]])=TRUE,1,"") ->  | L65: =IF(표2[[#This Row],[가산일도래여부]]=1,DATE(YEAR($AJ$1)+1,MONTH($AJ$1),DAY($AJ$1))-DATE(YEAR($AJ$1)+1,MONTH(표2[[#This Row],[1년이상 근무일수]]),DAY(표2[[#This Row],[1년이상 근무일수]])),0) -> 0 | M65: =표2[[#This Row],[가산휴가 사용가능일]]/365 -> 0 | N65: =VLOOKUP(표2[[#This Row],[총근무일수-366]],code!$A$5:$C$9,3) -> 0 | O65: =ROUNDDOWN(표2[[#This Row],[열1]]/2,0)+표2[[#This Row],[가산연차]] -> 0 | P65: =IF(표2[[#This Row],[*기산일]]="",0,IF(YEAR(표2[[#This Row],[*기산일]])+1=$AI$11,DATE(YEAR(표2[[#This Row],[*기산일]])+1,MONTH(표2[[#This Row],[*기산일]]),DAY(표2[[#This Row],[*기산일]])),"")) -> 00:00:00 | Q65: =IF(표2[[#This Row],[*기산일]]="",0,IF(표2[[#This Row],[전년도 입사자 1년째]]="","",$W$11-표2[[#This Row],[전년도 입사자 1년째]]+1)) -> 0 | R65: =IF(표2[[#This Row],[전년도 입사자 1년째]]="","",표2[[#This Row],[1년미만자 1년째 후 근속일수]]/365*$Z$12) -> 0 | S65: =IFERROR(MAX(0,SUM(MAX(0,ROUNDDOWN(표2[[#This Row],[1년미만자 2년째 후 근속일수]],0)+VLOOKUP((표2[[#This Row],[1년미만자 2년째 후 근속일수]]-ROUNDDOWN(표2[[#This Row],[1년미만자 2년째 후 근속일수]],0)),code!$A$4:$D$9,3,TRUE)),표2[[#This Row],[1년미만자 당기 1년미만기간 연차수(11일 일할)]],표2[[#This Row],[사용연도 입사자]])-$Z$12),0) -> 0 | T65: =IFERROR(MAX(0,ROUNDDOWN(표2[[#This Row],[1년미만자 2년째 후 근속일수]],0)+VLOOKUP((표2[[#This Row],[1년미만자 2년째 후 근속일수]]-ROUNDDOWN(표2[[#This Row],[1년미만자 2년째 후 근속일수]],0)),code!$A$4:$D$9,3,TRUE))-표2[[#This Row],[1년미만자 3년째 후 근속일수]],0) -> 0 | V65: =IF(표2[[#This Row],[*기산일]]="","",IF(YEAR(표2[[#This Row],[*기산일]])=$AI$11-1,DATE(YEAR(표2[[#This Row],[*기산일]]),MONTH(표2[[#This Row],[*기산일]])+1,DAY(표2[[#This Row],[*기산일]])),"")) ->  | W65: =IF(표2[[#This Row],[*기산일]]="",0,IF(표2[[#This Row],[1년미만자1개월째]]="","",MAX(0,DATEDIF(표2[[#This Row],[*기산일]],$W$12,"m")-1))) -> 0 | X65: =IF(표2[[#This Row],[*기산일]]="",0,IF(표2[[#This Row],[1년미만자1개월째]]="","",(DATE(YEAR(표2[[#This Row],[*기산일]]),MONTH(표2[[#This Row],[*기산일]])+1,0)-표2[[#This Row],[*기산일]]+1)/(DATE(YEAR(표2[[#This Row],[*기산일]]),MONTH(표2[[#This Row],[*기산일]])+1,0)-DATE(YEAR(표2[[#This Row],[*기산일]]),MONTH(표2[[#This Row],[*기산일]]),1)+1))) -> 0 | Y65: =IFERROR(ROUNDDOWN(표2[[#This Row],[1년미만자 전년 근속일수]]/365*$Z$11,0)+VLOOKUP(표2[[#This Row],[1년미만자 전기 연차수]]-ROUNDDOWN(표2[[#This Row],[1년미만자 전년 근속일수]]/365*$Z$11,0),code!$A$4:$D$9,3,TRUE),"") -> 0 | Z65: =IFERROR(표2[[#This Row],[1년미만자 전년 근속일수]]+ROUNDDOWN(표2[[#This Row],[1년미만자 전기 연차수]],0)+VLOOKUP((표2[[#This Row],[1년미만자 전기 연차수]]-ROUNDDOWN(표2[[#This Row],[1년미만자 전기 연차수]],0)),code!$A$4:$D$9,3,TRUE),0) -> 0 | AA65: =IF(표2[[#This Row],[1년미만자1개월째]]="","",$Z$11-표2[[#This Row],[2년미만자 전기 연차수(code반올림)]]) ->  | AB65: =IF(YEAR(표2[[#This Row],[*기산일]])=$AI$11,DATE(YEAR(표2[[#This Row],[*기산일]]),MONTH(표2[[#This Row],[*기산일]])+1,DAY(표2[[#This Row],[*기산일]])),"") ->  | AC65: =IF(표2[[#This Row],[사용연도 입사자 1개월]]="","",MAX(0,DATEDIF(표2[[#This Row],[*기산일]],$W$11,"m")-1)) ->  | AD65: =IF(표2[[#This Row],[사용연도 입사자 1개월]]="","",(DATE(YEAR(표2[[#This Row],[*기산일]]),MONTH(표2[[#This Row],[*기산일]])+1,0)-표2[[#This Row],[*기산일]]+1)/(DATE(YEAR(표2[[#This Row],[*기산일]]),MONTH(표2[[#This Row],[*기산일]])+1,0)-DATE(YEAR(표2[[#This Row],[*기산일]]),MONTH(표2[[#This Row],[*기산일]]),1)+1)) ->  | AE65: =표2[[#This Row],[월중 근속일수]] ->  | AF65: =IFERROR(표2[[#This Row],[사용연도입사자 근무기간(월)]]+ROUNDDOWN(표2[[#This Row],[열2]],0)+VLOOKUP((표2[[#This Row],[열2]]-ROUNDDOWN(표2[[#This Row],[열2]],0)),code!$A$4:$D$9,3,TRUE),0) -> 0 | AG65: 51 | AM65: =IF($AJ$1>license!$C$3,"",IF(H65=0,0,IF($AJ$1<H65,0,$AJ$1-H65+1))) -> 0 | AN65: =IF($AJ$1>license!$C$3,"",IF(AM65=0,0,IF($H65=0,0,DATEDIF($H65-1,$AJ$1,"y")))) -> 0 | AO65: =IF($AJ$1>license!$C$3,"",IF(AM65=0,0,IF($H65=0,0,DATEDIF($H65-1,$AJ$1,"ym")))) -> 0 | AP65: =IF($AJ$1>license!$C$3,"",IF(AM65=0,0,IF($H65=0,0,DATEDIF($H65-1,$AJ$1,"md")))) -> 0 | AQ65: =IF($AJ$1>license!$C$3,"",IF(표2[[#This Row],[1년이상 근무일수]]="",0,$Z$12-표2[[#This Row],[기간]])) -> 0 | AR65: =IFERROR(IF(표2[[#This Row],[1년이상 근무일수]]="","",MIN(표2[[#This Row],[가산연차2]],$BD$12-표2[[#This Row],[기본]])),"") ->  | AS65: =SUM(표2[[#This Row],[1년미만자 당기 1년미만기간 연차수(11일 일할)]],표2[[#This Row],[사용연도 입사자]],표2[[#This Row],[1년미만자 1년째 후 연차일수(15일 일할)]]) -> 0 | AU65: =IF($AJ$1>license!$C$3,"",SUM(표2[[#This Row],[기본]:[일수]])) -> 0 | AV65: =IF($AJ$1>license!$C$3,"",SUMIFS(휴가입력!O:O,휴가입력!M:M,"연차",휴가입력!L:L,AH65)) -> 0 | AW65: =IFERROR(MAX(0,표2[[#This Row],[계]]-표2[[#This Row],[사용 일수]]),0) -> 0 | AX65: =IFERROR(MAX((표2[[#This Row],[계]]-표2[[#This Row],[사용 일수]])*-1,0),0) -> 0 | AZ65: =IF($AJ$1>license!$C$3,"",ROUNDUP(표2[[#This Row],[(월급)]]/209*8,0)) -> 0 | BA65: =IF($AJ$1>license!$C$3,"",ROUNDUP(표2[[#This Row],[(일급)]]*표2[[#This Row],[미사용 일수]],0)) -> 0 | BC65: 0
A66: 1 | H66: =IF(표2[[#This Row],[*입사일]]=0,"",표2[[#This Row],[*입사일]]-$AJ$3) ->  | I66: =IFERROR(IF(AO66="",0,IF(표2[[#This Row],[1년이상 근무일수]]=0,0,DATEDIF(표2[[#This Row],[1년이상 근무일수]]-1,$AJ$1,"y"))),0) -> 0 | J66: =IF(표2[[#This Row],[*기산일]]="","",IF(DATE(YEAR(표2[[#This Row],[*기산일]])+1,MONTH(표2[[#This Row],[*기산일]]),DAY(표2[[#This Row],[*기산일]]))>$AJ$1,"",DATE(YEAR(표2[[#This Row],[*기산일]])+1,MONTH(표2[[#This Row],[*기산일]]),DAY(표2[[#This Row],[*기산일]])))) ->  | K66: =IF(ISODD(표2[[#This Row],[열1]])=TRUE,1,"") ->  | L66: =IF(표2[[#This Row],[가산일도래여부]]=1,DATE(YEAR($AJ$1)+1,MONTH($AJ$1),DAY($AJ$1))-DATE(YEAR($AJ$1)+1,MONTH(표2[[#This Row],[1년이상 근무일수]]),DAY(표2[[#This Row],[1년이상 근무일수]])),0) -> 0 | M66: =표2[[#This Row],[가산휴가 사용가능일]]/365 -> 0 | N66: =VLOOKUP(표2[[#This Row],[총근무일수-366]],code!$A$5:$C$9,3) -> 0 | O66: =ROUNDDOWN(표2[[#This Row],[열1]]/2,0)+표2[[#This Row],[가산연차]] -> 0 | P66: =IF(표2[[#This Row],[*기산일]]="",0,IF(YEAR(표2[[#This Row],[*기산일]])+1=$AI$11,DATE(YEAR(표2[[#This Row],[*기산일]])+1,MONTH(표2[[#This Row],[*기산일]]),DAY(표2[[#This Row],[*기산일]])),"")) -> 00:00:00 | Q66: =IF(표2[[#This Row],[*기산일]]="",0,IF(표2[[#This Row],[전년도 입사자 1년째]]="","",$W$11-표2[[#This Row],[전년도 입사자 1년째]]+1)) -> 0 | R66: =IF(표2[[#This Row],[전년도 입사자 1년째]]="","",표2[[#This Row],[1년미만자 1년째 후 근속일수]]/365*$Z$12) -> 0 | S66: =IFERROR(MAX(0,SUM(MAX(0,ROUNDDOWN(표2[[#This Row],[1년미만자 2년째 후 근속일수]],0)+VLOOKUP((표2[[#This Row],[1년미만자 2년째 후 근속일수]]-ROUNDDOWN(표2[[#This Row],[1년미만자 2년째 후 근속일수]],0)),code!$A$4:$D$9,3,TRUE)),표2[[#This Row],[1년미만자 당기 1년미만기간 연차수(11일 일할)]],표2[[#This Row],[사용연도 입사자]])-$Z$12),0) -> 0 | T66: =IFERROR(MAX(0,ROUNDDOWN(표2[[#This Row],[1년미만자 2년째 후 근속일수]],0)+VLOOKUP((표2[[#This Row],[1년미만자 2년째 후 근속일수]]-ROUNDDOWN(표2[[#This Row],[1년미만자 2년째 후 근속일수]],0)),code!$A$4:$D$9,3,TRUE))-표2[[#This Row],[1년미만자 3년째 후 근속일수]],0) -> 0 | V66: =IF(표2[[#This Row],[*기산일]]="","",IF(YEAR(표2[[#This Row],[*기산일]])=$AI$11-1,DATE(YEAR(표2[[#This Row],[*기산일]]),MONTH(표2[[#This Row],[*기산일]])+1,DAY(표2[[#This Row],[*기산일]])),"")) ->  | W66: =IF(표2[[#This Row],[*기산일]]="",0,IF(표2[[#This Row],[1년미만자1개월째]]="","",MAX(0,DATEDIF(표2[[#This Row],[*기산일]],$W$12,"m")-1))) -> 0 | X66: =IF(표2[[#This Row],[*기산일]]="",0,IF(표2[[#This Row],[1년미만자1개월째]]="","",(DATE(YEAR(표2[[#This Row],[*기산일]]),MONTH(표2[[#This Row],[*기산일]])+1,0)-표2[[#This Row],[*기산일]]+1)/(DATE(YEAR(표2[[#This Row],[*기산일]]),MONTH(표2[[#This Row],[*기산일]])+1,0)-DATE(YEAR(표2[[#This Row],[*기산일]]),MONTH(표2[[#This Row],[*기산일]]),1)+1))) -> 0 | Y66: =IFERROR(ROUNDDOWN(표2[[#This Row],[1년미만자 전년 근속일수]]/365*$Z$11,0)+VLOOKUP(표2[[#This Row],[1년미만자 전기 연차수]]-ROUNDDOWN(표2[[#This Row],[1년미만자 전년 근속일수]]/365*$Z$11,0),code!$A$4:$D$9,3,TRUE),"") -> 0 | Z66: =IFERROR(표2[[#This Row],[1년미만자 전년 근속일수]]+ROUNDDOWN(표2[[#This Row],[1년미만자 전기 연차수]],0)+VLOOKUP((표2[[#This Row],[1년미만자 전기 연차수]]-ROUNDDOWN(표2[[#This Row],[1년미만자 전기 연차수]],0)),code!$A$4:$D$9,3,TRUE),0) -> 0 | AA66: =IF(표2[[#This Row],[1년미만자1개월째]]="","",$Z$11-표2[[#This Row],[2년미만자 전기 연차수(code반올림)]]) ->  | AB66: =IF(YEAR(표2[[#This Row],[*기산일]])=$AI$11,DATE(YEAR(표2[[#This Row],[*기산일]]),MONTH(표2[[#This Row],[*기산일]])+1,DAY(표2[[#This Row],[*기산일]])),"") ->  | AC66: =IF(표2[[#This Row],[사용연도 입사자 1개월]]="","",MAX(0,DATEDIF(표2[[#This Row],[*기산일]],$W$11,"m")-1)) ->  | AD66: =IF(표2[[#This Row],[사용연도 입사자 1개월]]="","",(DATE(YEAR(표2[[#This Row],[*기산일]]),MONTH(표2[[#This Row],[*기산일]])+1,0)-표2[[#This Row],[*기산일]]+1)/(DATE(YEAR(표2[[#This Row],[*기산일]]),MONTH(표2[[#This Row],[*기산일]])+1,0)-DATE(YEAR(표2[[#This Row],[*기산일]]),MONTH(표2[[#This Row],[*기산일]]),1)+1)) ->  | AE66: =표2[[#This Row],[월중 근속일수]] ->  | AF66: =IFERROR(표2[[#This Row],[사용연도입사자 근무기간(월)]]+ROUNDDOWN(표2[[#This Row],[열2]],0)+VLOOKUP((표2[[#This Row],[열2]]-ROUNDDOWN(표2[[#This Row],[열2]],0)),code!$A$4:$D$9,3,TRUE),0) -> 0 | AG66: 52 | AM66: =IF($AJ$1>license!$C$3,"",IF(H66=0,0,IF($AJ$1<H66,0,$AJ$1-H66+1))) -> 0 | AN66: =IF($AJ$1>license!$C$3,"",IF(AM66=0,0,IF($H66=0,0,DATEDIF($H66-1,$AJ$1,"y")))) -> 0 | AO66: =IF($AJ$1>license!$C$3,"",IF(AM66=0,0,IF($H66=0,0,DATEDIF($H66-1,$AJ$1,"ym")))) -> 0 | AP66: =IF($AJ$1>license!$C$3,"",IF(AM66=0,0,IF($H66=0,0,DATEDIF($H66-1,$AJ$1,"md")))) -> 0 | AQ66: =IF($AJ$1>license!$C$3,"",IF(표2[[#This Row],[1년이상 근무일수]]="",0,$Z$12-표2[[#This Row],[기간]])) -> 0 | AR66: =IFERROR(IF(표2[[#This Row],[1년이상 근무일수]]="","",MIN(표2[[#This Row],[가산연차2]],$BD$12-표2[[#This Row],[기본]])),"") ->  | AS66: =SUM(표2[[#This Row],[1년미만자 당기 1년미만기간 연차수(11일 일할)]],표2[[#This Row],[사용연도 입사자]],표2[[#This Row],[1년미만자 1년째 후 연차일수(15일 일할)]]) -> 0 | AU66: =IF($AJ$1>license!$C$3,"",SUM(표2[[#This Row],[기본]:[일수]])) -> 0 | AV66: =IF($AJ$1>license!$C$3,"",SUMIFS(휴가입력!O:O,휴가입력!M:M,"연차",휴가입력!L:L,AH66)) -> 0 | AW66: =IFERROR(MAX(0,표2[[#This Row],[계]]-표2[[#This Row],[사용 일수]]),0) -> 0 | AX66: =IFERROR(MAX((표2[[#This Row],[계]]-표2[[#This Row],[사용 일수]])*-1,0),0) -> 0 | AZ66: =IF($AJ$1>license!$C$3,"",ROUNDUP(표2[[#This Row],[(월급)]]/209*8,0)) -> 0 | BA66: =IF($AJ$1>license!$C$3,"",ROUNDUP(표2[[#This Row],[(일급)]]*표2[[#This Row],[미사용 일수]],0)) -> 0 | BC66: 0
A67: 1 | H67: =IF(표2[[#This Row],[*입사일]]=0,"",표2[[#This Row],[*입사일]]-$AJ$3) ->  | I67: =IFERROR(IF(AO67="",0,IF(표2[[#This Row],[1년이상 근무일수]]=0,0,DATEDIF(표2[[#This Row],[1년이상 근무일수]]-1,$AJ$1,"y"))),0) -> 0 | J67: =IF(표2[[#This Row],[*기산일]]="","",IF(DATE(YEAR(표2[[#This Row],[*기산일]])+1,MONTH(표2[[#This Row],[*기산일]]),DAY(표2[[#This Row],[*기산일]]))>$AJ$1,"",DATE(YEAR(표2[[#This Row],[*기산일]])+1,MONTH(표2[[#This Row],[*기산일]]),DAY(표2[[#This Row],[*기산일]])))) ->  | K67: =IF(ISODD(표2[[#This Row],[열1]])=TRUE,1,"") ->  | L67: =IF(표2[[#This Row],[가산일도래여부]]=1,DATE(YEAR($AJ$1)+1,MONTH($AJ$1),DAY($AJ$1))-DATE(YEAR($AJ$1)+1,MONTH(표2[[#This Row],[1년이상 근무일수]]),DAY(표2[[#This Row],[1년이상 근무일수]])),0) -> 0 | M67: =표2[[#This Row],[가산휴가 사용가능일]]/365 -> 0 | N67: =VLOOKUP(표2[[#This Row],[총근무일수-366]],code!$A$5:$C$9,3) -> 0 | O67: =ROUNDDOWN(표2[[#This Row],[열1]]/2,0)+표2[[#This Row],[가산연차]] -> 0 | P67: =IF(표2[[#This Row],[*기산일]]="",0,IF(YEAR(표2[[#This Row],[*기산일]])+1=$AI$11,DATE(YEAR(표2[[#This Row],[*기산일]])+1,MONTH(표2[[#This Row],[*기산일]]),DAY(표2[[#This Row],[*기산일]])),"")) -> 00:00:00 | Q67: =IF(표2[[#This Row],[*기산일]]="",0,IF(표2[[#This Row],[전년도 입사자 1년째]]="","",$W$11-표2[[#This Row],[전년도 입사자 1년째]]+1)) -> 0 | R67: =IF(표2[[#This Row],[전년도 입사자 1년째]]="","",표2[[#This Row],[1년미만자 1년째 후 근속일수]]/365*$Z$12) -> 0 | S67: =IFERROR(MAX(0,SUM(MAX(0,ROUNDDOWN(표2[[#This Row],[1년미만자 2년째 후 근속일수]],0)+VLOOKUP((표2[[#This Row],[1년미만자 2년째 후 근속일수]]-ROUNDDOWN(표2[[#This Row],[1년미만자 2년째 후 근속일수]],0)),code!$A$4:$D$9,3,TRUE)),표2[[#This Row],[1년미만자 당기 1년미만기간 연차수(11일 일할)]],표2[[#This Row],[사용연도 입사자]])-$Z$12),0) -> 0 | T67: =IFERROR(MAX(0,ROUNDDOWN(표2[[#This Row],[1년미만자 2년째 후 근속일수]],0)+VLOOKUP((표2[[#This Row],[1년미만자 2년째 후 근속일수]]-ROUNDDOWN(표2[[#This Row],[1년미만자 2년째 후 근속일수]],0)),code!$A$4:$D$9,3,TRUE))-표2[[#This Row],[1년미만자 3년째 후 근속일수]],0) -> 0 | V67: =IF(표2[[#This Row],[*기산일]]="","",IF(YEAR(표2[[#This Row],[*기산일]])=$AI$11-1,DATE(YEAR(표2[[#This Row],[*기산일]]),MONTH(표2[[#This Row],[*기산일]])+1,DAY(표2[[#This Row],[*기산일]])),"")) ->  | W67: =IF(표2[[#This Row],[*기산일]]="",0,IF(표2[[#This Row],[1년미만자1개월째]]="","",MAX(0,DATEDIF(표2[[#This Row],[*기산일]],$W$12,"m")-1))) -> 0 | X67: =IF(표2[[#This Row],[*기산일]]="",0,IF(표2[[#This Row],[1년미만자1개월째]]="","",(DATE(YEAR(표2[[#This Row],[*기산일]]),MONTH(표2[[#This Row],[*기산일]])+1,0)-표2[[#This Row],[*기산일]]+1)/(DATE(YEAR(표2[[#This Row],[*기산일]]),MONTH(표2[[#This Row],[*기산일]])+1,0)-DATE(YEAR(표2[[#This Row],[*기산일]]),MONTH(표2[[#This Row],[*기산일]]),1)+1))) -> 0 | Y67: =IFERROR(ROUNDDOWN(표2[[#This Row],[1년미만자 전년 근속일수]]/365*$Z$11,0)+VLOOKUP(표2[[#This Row],[1년미만자 전기 연차수]]-ROUNDDOWN(표2[[#This Row],[1년미만자 전년 근속일수]]/365*$Z$11,0),code!$A$4:$D$9,3,TRUE),"") -> 0 | Z67: =IFERROR(표2[[#This Row],[1년미만자 전년 근속일수]]+ROUNDDOWN(표2[[#This Row],[1년미만자 전기 연차수]],0)+VLOOKUP((표2[[#This Row],[1년미만자 전기 연차수]]-ROUNDDOWN(표2[[#This Row],[1년미만자 전기 연차수]],0)),code!$A$4:$D$9,3,TRUE),0) -> 0 | AA67: =IF(표2[[#This Row],[1년미만자1개월째]]="","",$Z$11-표2[[#This Row],[2년미만자 전기 연차수(code반올림)]]) ->  | AB67: =IF(YEAR(표2[[#This Row],[*기산일]])=$AI$11,DATE(YEAR(표2[[#This Row],[*기산일]]),MONTH(표2[[#This Row],[*기산일]])+1,DAY(표2[[#This Row],[*기산일]])),"") ->  | AC67: =IF(표2[[#This Row],[사용연도 입사자 1개월]]="","",MAX(0,DATEDIF(표2[[#This Row],[*기산일]],$W$11,"m")-1)) ->  | AD67: =IF(표2[[#This Row],[사용연도 입사자 1개월]]="","",(DATE(YEAR(표2[[#This Row],[*기산일]]),MONTH(표2[[#This Row],[*기산일]])+1,0)-표2[[#This Row],[*기산일]]+1)/(DATE(YEAR(표2[[#This Row],[*기산일]]),MONTH(표2[[#This Row],[*기산일]])+1,0)-DATE(YEAR(표2[[#This Row],[*기산일]]),MONTH(표2[[#This Row],[*기산일]]),1)+1)) ->  | AE67: =표2[[#This Row],[월중 근속일수]] ->  | AF67: =IFERROR(표2[[#This Row],[사용연도입사자 근무기간(월)]]+ROUNDDOWN(표2[[#This Row],[열2]],0)+VLOOKUP((표2[[#This Row],[열2]]-ROUNDDOWN(표2[[#This Row],[열2]],0)),code!$A$4:$D$9,3,TRUE),0) -> 0 | AG67: 53 | AM67: =IF($AJ$1>license!$C$3,"",IF(H67=0,0,IF($AJ$1<H67,0,$AJ$1-H67+1))) -> 0 | AN67: =IF($AJ$1>license!$C$3,"",IF(AM67=0,0,IF($H67=0,0,DATEDIF($H67-1,$AJ$1,"y")))) -> 0 | AO67: =IF($AJ$1>license!$C$3,"",IF(AM67=0,0,IF($H67=0,0,DATEDIF($H67-1,$AJ$1,"ym")))) -> 0 | AP67: =IF($AJ$1>license!$C$3,"",IF(AM67=0,0,IF($H67=0,0,DATEDIF($H67-1,$AJ$1,"md")))) -> 0 | AQ67: =IF($AJ$1>license!$C$3,"",IF(표2[[#This Row],[1년이상 근무일수]]="",0,$Z$12-표2[[#This Row],[기간]])) -> 0 | AR67: =IFERROR(IF(표2[[#This Row],[1년이상 근무일수]]="","",MIN(표2[[#This Row],[가산연차2]],$BD$12-표2[[#This Row],[기본]])),"") ->  | AS67: =SUM(표2[[#This Row],[1년미만자 당기 1년미만기간 연차수(11일 일할)]],표2[[#This Row],[사용연도 입사자]],표2[[#This Row],[1년미만자 1년째 후 연차일수(15일 일할)]]) -> 0 | AU67: =IF($AJ$1>license!$C$3,"",SUM(표2[[#This Row],[기본]:[일수]])) -> 0 | AV67: =IF($AJ$1>license!$C$3,"",SUMIFS(휴가입력!O:O,휴가입력!M:M,"연차",휴가입력!L:L,AH67)) -> 0 | AW67: =IFERROR(MAX(0,표2[[#This Row],[계]]-표2[[#This Row],[사용 일수]]),0) -> 0 | AX67: =IFERROR(MAX((표2[[#This Row],[계]]-표2[[#This Row],[사용 일수]])*-1,0),0) -> 0 | AZ67: =IF($AJ$1>license!$C$3,"",ROUNDUP(표2[[#This Row],[(월급)]]/209*8,0)) -> 0 | BA67: =IF($AJ$1>license!$C$3,"",ROUNDUP(표2[[#This Row],[(일급)]]*표2[[#This Row],[미사용 일수]],0)) -> 0 | BC67: 0
A68: 1 | H68: =IF(표2[[#This Row],[*입사일]]=0,"",표2[[#This Row],[*입사일]]-$AJ$3) ->  | I68: =IFERROR(IF(AO68="",0,IF(표2[[#This Row],[1년이상 근무일수]]=0,0,DATEDIF(표2[[#This Row],[1년이상 근무일수]]-1,$AJ$1,"y"))),0) -> 0 | J68: =IF(표2[[#This Row],[*기산일]]="","",IF(DATE(YEAR(표2[[#This Row],[*기산일]])+1,MONTH(표2[[#This Row],[*기산일]]),DAY(표2[[#This Row],[*기산일]]))>$AJ$1,"",DATE(YEAR(표2[[#This Row],[*기산일]])+1,MONTH(표2[[#This Row],[*기산일]]),DAY(표2[[#This Row],[*기산일]])))) ->  | K68: =IF(ISODD(표2[[#This Row],[열1]])=TRUE,1,"") ->  | L68: =IF(표2[[#This Row],[가산일도래여부]]=1,DATE(YEAR($AJ$1)+1,MONTH($AJ$1),DAY($AJ$1))-DATE(YEAR($AJ$1)+1,MONTH(표2[[#This Row],[1년이상 근무일수]]),DAY(표2[[#This Row],[1년이상 근무일수]])),0) -> 0 | M68: =표2[[#This Row],[가산휴가 사용가능일]]/365 -> 0 | N68: =VLOOKUP(표2[[#This Row],[총근무일수-366]],code!$A$5:$C$9,3) -> 0 | O68: =ROUNDDOWN(표2[[#This Row],[열1]]/2,0)+표2[[#This Row],[가산연차]] -> 0 | P68: =IF(표2[[#This Row],[*기산일]]="",0,IF(YEAR(표2[[#This Row],[*기산일]])+1=$AI$11,DATE(YEAR(표2[[#This Row],[*기산일]])+1,MONTH(표2[[#This Row],[*기산일]]),DAY(표2[[#This Row],[*기산일]])),"")) -> 00:00:00 | Q68: =IF(표2[[#This Row],[*기산일]]="",0,IF(표2[[#This Row],[전년도 입사자 1년째]]="","",$W$11-표2[[#This Row],[전년도 입사자 1년째]]+1)) -> 0 | R68: =IF(표2[[#This Row],[전년도 입사자 1년째]]="","",표2[[#This Row],[1년미만자 1년째 후 근속일수]]/365*$Z$12) -> 0 | S68: =IFERROR(MAX(0,SUM(MAX(0,ROUNDDOWN(표2[[#This Row],[1년미만자 2년째 후 근속일수]],0)+VLOOKUP((표2[[#This Row],[1년미만자 2년째 후 근속일수]]-ROUNDDOWN(표2[[#This Row],[1년미만자 2년째 후 근속일수]],0)),code!$A$4:$D$9,3,TRUE)),표2[[#This Row],[1년미만자 당기 1년미만기간 연차수(11일 일할)]],표2[[#This Row],[사용연도 입사자]])-$Z$12),0) -> 0 | T68: =IFERROR(MAX(0,ROUNDDOWN(표2[[#This Row],[1년미만자 2년째 후 근속일수]],0)+VLOOKUP((표2[[#This Row],[1년미만자 2년째 후 근속일수]]-ROUNDDOWN(표2[[#This Row],[1년미만자 2년째 후 근속일수]],0)),code!$A$4:$D$9,3,TRUE))-표2[[#This Row],[1년미만자 3년째 후 근속일수]],0) -> 0 | V68: =IF(표2[[#This Row],[*기산일]]="","",IF(YEAR(표2[[#This Row],[*기산일]])=$AI$11-1,DATE(YEAR(표2[[#This Row],[*기산일]]),MONTH(표2[[#This Row],[*기산일]])+1,DAY(표2[[#This Row],[*기산일]])),"")) ->  | W68: =IF(표2[[#This Row],[*기산일]]="",0,IF(표2[[#This Row],[1년미만자1개월째]]="","",MAX(0,DATEDIF(표2[[#This Row],[*기산일]],$W$12,"m")-1))) -> 0 | X68: =IF(표2[[#This Row],[*기산일]]="",0,IF(표2[[#This Row],[1년미만자1개월째]]="","",(DATE(YEAR(표2[[#This Row],[*기산일]]),MONTH(표2[[#This Row],[*기산일]])+1,0)-표2[[#This Row],[*기산일]]+1)/(DATE(YEAR(표2[[#This Row],[*기산일]]),MONTH(표2[[#This Row],[*기산일]])+1,0)-DATE(YEAR(표2[[#This Row],[*기산일]]),MONTH(표2[[#This Row],[*기산일]]),1)+1))) -> 0 | Y68: =IFERROR(ROUNDDOWN(표2[[#This Row],[1년미만자 전년 근속일수]]/365*$Z$11,0)+VLOOKUP(표2[[#This Row],[1년미만자 전기 연차수]]-ROUNDDOWN(표2[[#This Row],[1년미만자 전년 근속일수]]/365*$Z$11,0),code!$A$4:$D$9,3,TRUE),"") -> 0 | Z68: =IFERROR(표2[[#This Row],[1년미만자 전년 근속일수]]+ROUNDDOWN(표2[[#This Row],[1년미만자 전기 연차수]],0)+VLOOKUP((표2[[#This Row],[1년미만자 전기 연차수]]-ROUNDDOWN(표2[[#This Row],[1년미만자 전기 연차수]],0)),code!$A$4:$D$9,3,TRUE),0) -> 0 | AA68: =IF(표2[[#This Row],[1년미만자1개월째]]="","",$Z$11-표2[[#This Row],[2년미만자 전기 연차수(code반올림)]]) ->  | AB68: =IF(YEAR(표2[[#This Row],[*기산일]])=$AI$11,DATE(YEAR(표2[[#This Row],[*기산일]]),MONTH(표2[[#This Row],[*기산일]])+1,DAY(표2[[#This Row],[*기산일]])),"") ->  | AC68: =IF(표2[[#This Row],[사용연도 입사자 1개월]]="","",MAX(0,DATEDIF(표2[[#This Row],[*기산일]],$W$11,"m")-1)) ->  | AD68: =IF(표2[[#This Row],[사용연도 입사자 1개월]]="","",(DATE(YEAR(표2[[#This Row],[*기산일]]),MONTH(표2[[#This Row],[*기산일]])+1,0)-표2[[#This Row],[*기산일]]+1)/(DATE(YEAR(표2[[#This Row],[*기산일]]),MONTH(표2[[#This Row],[*기산일]])+1,0)-DATE(YEAR(표2[[#This Row],[*기산일]]),MONTH(표2[[#This Row],[*기산일]]),1)+1)) ->  | AE68: =표2[[#This Row],[월중 근속일수]] ->  | AF68: =IFERROR(표2[[#This Row],[사용연도입사자 근무기간(월)]]+ROUNDDOWN(표2[[#This Row],[열2]],0)+VLOOKUP((표2[[#This Row],[열2]]-ROUNDDOWN(표2[[#This Row],[열2]],0)),code!$A$4:$D$9,3,TRUE),0) -> 0 | AG68: 54 | AM68: =IF($AJ$1>license!$C$3,"",IF(H68=0,0,IF($AJ$1<H68,0,$AJ$1-H68+1))) -> 0 | AN68: =IF($AJ$1>license!$C$3,"",IF(AM68=0,0,IF($H68=0,0,DATEDIF($H68-1,$AJ$1,"y")))) -> 0 | AO68: =IF($AJ$1>license!$C$3,"",IF(AM68=0,0,IF($H68=0,0,DATEDIF($H68-1,$AJ$1,"ym")))) -> 0 | AP68: =IF($AJ$1>license!$C$3,"",IF(AM68=0,0,IF($H68=0,0,DATEDIF($H68-1,$AJ$1,"md")))) -> 0 | AQ68: =IF($AJ$1>license!$C$3,"",IF(표2[[#This Row],[1년이상 근무일수]]="",0,$Z$12-표2[[#This Row],[기간]])) -> 0 | AR68: =IFERROR(IF(표2[[#This Row],[1년이상 근무일수]]="","",MIN(표2[[#This Row],[가산연차2]],$BD$12-표2[[#This Row],[기본]])),"") ->  | AS68: =SUM(표2[[#This Row],[1년미만자 당기 1년미만기간 연차수(11일 일할)]],표2[[#This Row],[사용연도 입사자]],표2[[#This Row],[1년미만자 1년째 후 연차일수(15일 일할)]]) -> 0 | AU68: =IF($AJ$1>license!$C$3,"",SUM(표2[[#This Row],[기본]:[일수]])) -> 0 | AV68: =IF($AJ$1>license!$C$3,"",SUMIFS(휴가입력!O:O,휴가입력!M:M,"연차",휴가입력!L:L,AH68)) -> 0 | AW68: =IFERROR(MAX(0,표2[[#This Row],[계]]-표2[[#This Row],[사용 일수]]),0) -> 0 | AX68: =IFERROR(MAX((표2[[#This Row],[계]]-표2[[#This Row],[사용 일수]])*-1,0),0) -> 0 | AZ68: =IF($AJ$1>license!$C$3,"",ROUNDUP(표2[[#This Row],[(월급)]]/209*8,0)) -> 0 | BA68: =IF($AJ$1>license!$C$3,"",ROUNDUP(표2[[#This Row],[(일급)]]*표2[[#This Row],[미사용 일수]],0)) -> 0 | BC68: 0
A69: 1 | H69: =IF(표2[[#This Row],[*입사일]]=0,"",표2[[#This Row],[*입사일]]-$AJ$3) ->  | I69: =IFERROR(IF(AO69="",0,IF(표2[[#This Row],[1년이상 근무일수]]=0,0,DATEDIF(표2[[#This Row],[1년이상 근무일수]]-1,$AJ$1,"y"))),0) -> 0 | J69: =IF(표2[[#This Row],[*기산일]]="","",IF(DATE(YEAR(표2[[#This Row],[*기산일]])+1,MONTH(표2[[#This Row],[*기산일]]),DAY(표2[[#This Row],[*기산일]]))>$AJ$1,"",DATE(YEAR(표2[[#This Row],[*기산일]])+1,MONTH(표2[[#This Row],[*기산일]]),DAY(표2[[#This Row],[*기산일]])))) ->  | K69: =IF(ISODD(표2[[#This Row],[열1]])=TRUE,1,"") ->  | L69: =IF(표2[[#This Row],[가산일도래여부]]=1,DATE(YEAR($AJ$1)+1,MONTH($AJ$1),DAY($AJ$1))-DATE(YEAR($AJ$1)+1,MONTH(표2[[#This Row],[1년이상 근무일수]]),DAY(표2[[#This Row],[1년이상 근무일수]])),0) -> 0 | M69: =표2[[#This Row],[가산휴가 사용가능일]]/365 -> 0 | N69: =VLOOKUP(표2[[#This Row],[총근무일수-366]],code!$A$5:$C$9,3) -> 0 | O69: =ROUNDDOWN(표2[[#This Row],[열1]]/2,0)+표2[[#This Row],[가산연차]] -> 0 | P69: =IF(표2[[#This Row],[*기산일]]="",0,IF(YEAR(표2[[#This Row],[*기산일]])+1=$AI$11,DATE(YEAR(표2[[#This Row],[*기산일]])+1,MONTH(표2[[#This Row],[*기산일]]),DAY(표2[[#This Row],[*기산일]])),"")) -> 00:00:00 | Q69: =IF(표2[[#This Row],[*기산일]]="",0,IF(표2[[#This Row],[전년도 입사자 1년째]]="","",$W$11-표2[[#This Row],[전년도 입사자 1년째]]+1)) -> 0 | R69: =IF(표2[[#This Row],[전년도 입사자 1년째]]="","",표2[[#This Row],[1년미만자 1년째 후 근속일수]]/365*$Z$12) -> 0 | S69: =IFERROR(MAX(0,SUM(MAX(0,ROUNDDOWN(표2[[#This Row],[1년미만자 2년째 후 근속일수]],0)+VLOOKUP((표2[[#This Row],[1년미만자 2년째 후 근속일수]]-ROUNDDOWN(표2[[#This Row],[1년미만자 2년째 후 근속일수]],0)),code!$A$4:$D$9,3,TRUE)),표2[[#This Row],[1년미만자 당기 1년미만기간 연차수(11일 일할)]],표2[[#This Row],[사용연도 입사자]])-$Z$12),0) -> 0 | T69: =IFERROR(MAX(0,ROUNDDOWN(표2[[#This Row],[1년미만자 2년째 후 근속일수]],0)+VLOOKUP((표2[[#This Row],[1년미만자 2년째 후 근속일수]]-ROUNDDOWN(표2[[#This Row],[1년미만자 2년째 후 근속일수]],0)),code!$A$4:$D$9,3,TRUE))-표2[[#This Row],[1년미만자 3년째 후 근속일수]],0) -> 0 | V69: =IF(표2[[#This Row],[*기산일]]="","",IF(YEAR(표2[[#This Row],[*기산일]])=$AI$11-1,DATE(YEAR(표2[[#This Row],[*기산일]]),MONTH(표2[[#This Row],[*기산일]])+1,DAY(표2[[#This Row],[*기산일]])),"")) ->  | W69: =IF(표2[[#This Row],[*기산일]]="",0,IF(표2[[#This Row],[1년미만자1개월째]]="","",MAX(0,DATEDIF(표2[[#This Row],[*기산일]],$W$12,"m")-1))) -> 0 | X69: =IF(표2[[#This Row],[*기산일]]="",0,IF(표2[[#This Row],[1년미만자1개월째]]="","",(DATE(YEAR(표2[[#This Row],[*기산일]]),MONTH(표2[[#This Row],[*기산일]])+1,0)-표2[[#This Row],[*기산일]]+1)/(DATE(YEAR(표2[[#This Row],[*기산일]]),MONTH(표2[[#This Row],[*기산일]])+1,0)-DATE(YEAR(표2[[#This Row],[*기산일]]),MONTH(표2[[#This Row],[*기산일]]),1)+1))) -> 0 | Y69: =IFERROR(ROUNDDOWN(표2[[#This Row],[1년미만자 전년 근속일수]]/365*$Z$11,0)+VLOOKUP(표2[[#This Row],[1년미만자 전기 연차수]]-ROUNDDOWN(표2[[#This Row],[1년미만자 전년 근속일수]]/365*$Z$11,0),code!$A$4:$D$9,3,TRUE),"") -> 0 | Z69: =IFERROR(표2[[#This Row],[1년미만자 전년 근속일수]]+ROUNDDOWN(표2[[#This Row],[1년미만자 전기 연차수]],0)+VLOOKUP((표2[[#This Row],[1년미만자 전기 연차수]]-ROUNDDOWN(표2[[#This Row],[1년미만자 전기 연차수]],0)),code!$A$4:$D$9,3,TRUE),0) -> 0 | AA69: =IF(표2[[#This Row],[1년미만자1개월째]]="","",$Z$11-표2[[#This Row],[2년미만자 전기 연차수(code반올림)]]) ->  | AB69: =IF(YEAR(표2[[#This Row],[*기산일]])=$AI$11,DATE(YEAR(표2[[#This Row],[*기산일]]),MONTH(표2[[#This Row],[*기산일]])+1,DAY(표2[[#This Row],[*기산일]])),"") ->  | AC69: =IF(표2[[#This Row],[사용연도 입사자 1개월]]="","",MAX(0,DATEDIF(표2[[#This Row],[*기산일]],$W$11,"m")-1)) ->  | AD69: =IF(표2[[#This Row],[사용연도 입사자 1개월]]="","",(DATE(YEAR(표2[[#This Row],[*기산일]]),MONTH(표2[[#This Row],[*기산일]])+1,0)-표2[[#This Row],[*기산일]]+1)/(DATE(YEAR(표2[[#This Row],[*기산일]]),MONTH(표2[[#This Row],[*기산일]])+1,0)-DATE(YEAR(표2[[#This Row],[*기산일]]),MONTH(표2[[#This Row],[*기산일]]),1)+1)) ->  | AE69: =표2[[#This Row],[월중 근속일수]] ->  | AF69: =IFERROR(표2[[#This Row],[사용연도입사자 근무기간(월)]]+ROUNDDOWN(표2[[#This Row],[열2]],0)+VLOOKUP((표2[[#This Row],[열2]]-ROUNDDOWN(표2[[#This Row],[열2]],0)),code!$A$4:$D$9,3,TRUE),0) -> 0 | AG69: 55 | AM69: =IF($AJ$1>license!$C$3,"",IF(H69=0,0,IF($AJ$1<H69,0,$AJ$1-H69+1))) -> 0 | AN69: =IF($AJ$1>license!$C$3,"",IF(AM69=0,0,IF($H69=0,0,DATEDIF($H69-1,$AJ$1,"y")))) -> 0 | AO69: =IF($AJ$1>license!$C$3,"",IF(AM69=0,0,IF($H69=0,0,DATEDIF($H69-1,$AJ$1,"ym")))) -> 0 | AP69: =IF($AJ$1>license!$C$3,"",IF(AM69=0,0,IF($H69=0,0,DATEDIF($H69-1,$AJ$1,"md")))) -> 0 | AQ69: =IF($AJ$1>license!$C$3,"",IF(표2[[#This Row],[1년이상 근무일수]]="",0,$Z$12-표2[[#This Row],[기간]])) -> 0 | AR69: =IFERROR(IF(표2[[#This Row],[1년이상 근무일수]]="","",MIN(표2[[#This Row],[가산연차2]],$BD$12-표2[[#This Row],[기본]])),"") ->  | AS69: =SUM(표2[[#This Row],[1년미만자 당기 1년미만기간 연차수(11일 일할)]],표2[[#This Row],[사용연도 입사자]],표2[[#This Row],[1년미만자 1년째 후 연차일수(15일 일할)]]) -> 0 | AU69: =IF($AJ$1>license!$C$3,"",SUM(표2[[#This Row],[기본]:[일수]])) -> 0 | AV69: =IF($AJ$1>license!$C$3,"",SUMIFS(휴가입력!O:O,휴가입력!M:M,"연차",휴가입력!L:L,AH69)) -> 0 | AW69: =IFERROR(MAX(0,표2[[#This Row],[계]]-표2[[#This Row],[사용 일수]]),0) -> 0 | AX69: =IFERROR(MAX((표2[[#This Row],[계]]-표2[[#This Row],[사용 일수]])*-1,0),0) -> 0 | AZ69: =IF($AJ$1>license!$C$3,"",ROUNDUP(표2[[#This Row],[(월급)]]/209*8,0)) -> 0 | BA69: =IF($AJ$1>license!$C$3,"",ROUNDUP(표2[[#This Row],[(일급)]]*표2[[#This Row],[미사용 일수]],0)) -> 0 | BC69: 0
A70: 1 | H70: =IF(표2[[#This Row],[*입사일]]=0,"",표2[[#This Row],[*입사일]]-$AJ$3) ->  | I70: =IFERROR(IF(AO70="",0,IF(표2[[#This Row],[1년이상 근무일수]]=0,0,DATEDIF(표2[[#This Row],[1년이상 근무일수]]-1,$AJ$1,"y"))),0) -> 0 | J70: =IF(표2[[#This Row],[*기산일]]="","",IF(DATE(YEAR(표2[[#This Row],[*기산일]])+1,MONTH(표2[[#This Row],[*기산일]]),DAY(표2[[#This Row],[*기산일]]))>$AJ$1,"",DATE(YEAR(표2[[#This Row],[*기산일]])+1,MONTH(표2[[#This Row],[*기산일]]),DAY(표2[[#This Row],[*기산일]])))) ->  | K70: =IF(ISODD(표2[[#This Row],[열1]])=TRUE,1,"") ->  | L70: =IF(표2[[#This Row],[가산일도래여부]]=1,DATE(YEAR($AJ$1)+1,MONTH($AJ$1),DAY($AJ$1))-DATE(YEAR($AJ$1)+1,MONTH(표2[[#This Row],[1년이상 근무일수]]),DAY(표2[[#This Row],[1년이상 근무일수]])),0) -> 0 | M70: =표2[[#This Row],[가산휴가 사용가능일]]/365 -> 0 | N70: =VLOOKUP(표2[[#This Row],[총근무일수-366]],code!$A$5:$C$9,3) -> 0 | O70: =ROUNDDOWN(표2[[#This Row],[열1]]/2,0)+표2[[#This Row],[가산연차]] -> 0 | P70: =IF(표2[[#This Row],[*기산일]]="",0,IF(YEAR(표2[[#This Row],[*기산일]])+1=$AI$11,DATE(YEAR(표2[[#This Row],[*기산일]])+1,MONTH(표2[[#This Row],[*기산일]]),DAY(표2[[#This Row],[*기산일]])),"")) -> 00:00:00 | Q70: =IF(표2[[#This Row],[*기산일]]="",0,IF(표2[[#This Row],[전년도 입사자 1년째]]="","",$W$11-표2[[#This Row],[전년도 입사자 1년째]]+1)) -> 0 | R70: =IF(표2[[#This Row],[전년도 입사자 1년째]]="","",표2[[#This Row],[1년미만자 1년째 후 근속일수]]/365*$Z$12) -> 0 | S70: =IFERROR(MAX(0,SUM(MAX(0,ROUNDDOWN(표2[[#This Row],[1년미만자 2년째 후 근속일수]],0)+VLOOKUP((표2[[#This Row],[1년미만자 2년째 후 근속일수]]-ROUNDDOWN(표2[[#This Row],[1년미만자 2년째 후 근속일수]],0)),code!$A$4:$D$9,3,TRUE)),표2[[#This Row],[1년미만자 당기 1년미만기간 연차수(11일 일할)]],표2[[#This Row],[사용연도 입사자]])-$Z$12),0) -> 0 | T70: =IFERROR(MAX(0,ROUNDDOWN(표2[[#This Row],[1년미만자 2년째 후 근속일수]],0)+VLOOKUP((표2[[#This Row],[1년미만자 2년째 후 근속일수]]-ROUNDDOWN(표2[[#This Row],[1년미만자 2년째 후 근속일수]],0)),code!$A$4:$D$9,3,TRUE))-표2[[#This Row],[1년미만자 3년째 후 근속일수]],0) -> 0 | V70: =IF(표2[[#This Row],[*기산일]]="","",IF(YEAR(표2[[#This Row],[*기산일]])=$AI$11-1,DATE(YEAR(표2[[#This Row],[*기산일]]),MONTH(표2[[#This Row],[*기산일]])+1,DAY(표2[[#This Row],[*기산일]])),"")) ->  | W70: =IF(표2[[#This Row],[*기산일]]="",0,IF(표2[[#This Row],[1년미만자1개월째]]="","",MAX(0,DATEDIF(표2[[#This Row],[*기산일]],$W$12,"m")-1))) -> 0 | X70: =IF(표2[[#This Row],[*기산일]]="",0,IF(표2[[#This Row],[1년미만자1개월째]]="","",(DATE(YEAR(표2[[#This Row],[*기산일]]),MONTH(표2[[#This Row],[*기산일]])+1,0)-표2[[#This Row],[*기산일]]+1)/(DATE(YEAR(표2[[#This Row],[*기산일]]),MONTH(표2[[#This Row],[*기산일]])+1,0)-DATE(YEAR(표2[[#This Row],[*기산일]]),MONTH(표2[[#This Row],[*기산일]]),1)+1))) -> 0 | Y70: =IFERROR(ROUNDDOWN(표2[[#This Row],[1년미만자 전년 근속일수]]/365*$Z$11,0)+VLOOKUP(표2[[#This Row],[1년미만자 전기 연차수]]-ROUNDDOWN(표2[[#This Row],[1년미만자 전년 근속일수]]/365*$Z$11,0),code!$A$4:$D$9,3,TRUE),"") -> 0 | Z70: =IFERROR(표2[[#This Row],[1년미만자 전년 근속일수]]+ROUNDDOWN(표2[[#This Row],[1년미만자 전기 연차수]],0)+VLOOKUP((표2[[#This Row],[1년미만자 전기 연차수]]-ROUNDDOWN(표2[[#This Row],[1년미만자 전기 연차수]],0)),code!$A$4:$D$9,3,TRUE),0) -> 0 | AA70: =IF(표2[[#This Row],[1년미만자1개월째]]="","",$Z$11-표2[[#This Row],[2년미만자 전기 연차수(code반올림)]]) ->  | AB70: =IF(YEAR(표2[[#This Row],[*기산일]])=$AI$11,DATE(YEAR(표2[[#This Row],[*기산일]]),MONTH(표2[[#This Row],[*기산일]])+1,DAY(표2[[#This Row],[*기산일]])),"") ->  | AC70: =IF(표2[[#This Row],[사용연도 입사자 1개월]]="","",MAX(0,DATEDIF(표2[[#This Row],[*기산일]],$W$11,"m")-1)) ->  | AD70: =IF(표2[[#This Row],[사용연도 입사자 1개월]]="","",(DATE(YEAR(표2[[#This Row],[*기산일]]),MONTH(표2[[#This Row],[*기산일]])+1,0)-표2[[#This Row],[*기산일]]+1)/(DATE(YEAR(표2[[#This Row],[*기산일]]),MONTH(표2[[#This Row],[*기산일]])+1,0)-DATE(YEAR(표2[[#This Row],[*기산일]]),MONTH(표2[[#This Row],[*기산일]]),1)+1)) ->  | AE70: =표2[[#This Row],[월중 근속일수]] ->  | AF70: =IFERROR(표2[[#This Row],[사용연도입사자 근무기간(월)]]+ROUNDDOWN(표2[[#This Row],[열2]],0)+VLOOKUP((표2[[#This Row],[열2]]-ROUNDDOWN(표2[[#This Row],[열2]],0)),code!$A$4:$D$9,3,TRUE),0) -> 0 | AG70: 56 | AM70: =IF($AJ$1>license!$C$3,"",IF(H70=0,0,IF($AJ$1<H70,0,$AJ$1-H70+1))) -> 0 | AN70: =IF($AJ$1>license!$C$3,"",IF(AM70=0,0,IF($H70=0,0,DATEDIF($H70-1,$AJ$1,"y")))) -> 0 | AO70: =IF($AJ$1>license!$C$3,"",IF(AM70=0,0,IF($H70=0,0,DATEDIF($H70-1,$AJ$1,"ym")))) -> 0 | AP70: =IF($AJ$1>license!$C$3,"",IF(AM70=0,0,IF($H70=0,0,DATEDIF($H70-1,$AJ$1,"md")))) -> 0 | AQ70: =IF($AJ$1>license!$C$3,"",IF(표2[[#This Row],[1년이상 근무일수]]="",0,$Z$12-표2[[#This Row],[기간]])) -> 0 | AR70: =IFERROR(IF(표2[[#This Row],[1년이상 근무일수]]="","",MIN(표2[[#This Row],[가산연차2]],$BD$12-표2[[#This Row],[기본]])),"") ->  | AS70: =SUM(표2[[#This Row],[1년미만자 당기 1년미만기간 연차수(11일 일할)]],표2[[#This Row],[사용연도 입사자]],표2[[#This Row],[1년미만자 1년째 후 연차일수(15일 일할)]]) -> 0 | AU70: =IF($AJ$1>license!$C$3,"",SUM(표2[[#This Row],[기본]:[일수]])) -> 0 | AV70: =IF($AJ$1>license!$C$3,"",SUMIFS(휴가입력!O:O,휴가입력!M:M,"연차",휴가입력!L:L,AH70)) -> 0 | AW70: =IFERROR(MAX(0,표2[[#This Row],[계]]-표2[[#This Row],[사용 일수]]),0) -> 0 | AX70: =IFERROR(MAX((표2[[#This Row],[계]]-표2[[#This Row],[사용 일수]])*-1,0),0) -> 0 | AZ70: =IF($AJ$1>license!$C$3,"",ROUNDUP(표2[[#This Row],[(월급)]]/209*8,0)) -> 0 | BA70: =IF($AJ$1>license!$C$3,"",ROUNDUP(표2[[#This Row],[(일급)]]*표2[[#This Row],[미사용 일수]],0)) -> 0 | BC70: 0
A71: 1 | H71: =IF(표2[[#This Row],[*입사일]]=0,"",표2[[#This Row],[*입사일]]-$AJ$3) ->  | I71: =IFERROR(IF(AO71="",0,IF(표2[[#This Row],[1년이상 근무일수]]=0,0,DATEDIF(표2[[#This Row],[1년이상 근무일수]]-1,$AJ$1,"y"))),0) -> 0 | J71: =IF(표2[[#This Row],[*기산일]]="","",IF(DATE(YEAR(표2[[#This Row],[*기산일]])+1,MONTH(표2[[#This Row],[*기산일]]),DAY(표2[[#This Row],[*기산일]]))>$AJ$1,"",DATE(YEAR(표2[[#This Row],[*기산일]])+1,MONTH(표2[[#This Row],[*기산일]]),DAY(표2[[#This Row],[*기산일]])))) ->  | K71: =IF(ISODD(표2[[#This Row],[열1]])=TRUE,1,"") ->  | L71: =IF(표2[[#This Row],[가산일도래여부]]=1,DATE(YEAR($AJ$1)+1,MONTH($AJ$1),DAY($AJ$1))-DATE(YEAR($AJ$1)+1,MONTH(표2[[#This Row],[1년이상 근무일수]]),DAY(표2[[#This Row],[1년이상 근무일수]])),0) -> 0 | M71: =표2[[#This Row],[가산휴가 사용가능일]]/365 -> 0 | N71: =VLOOKUP(표2[[#This Row],[총근무일수-366]],code!$A$5:$C$9,3) -> 0 | O71: =ROUNDDOWN(표2[[#This Row],[열1]]/2,0)+표2[[#This Row],[가산연차]] -> 0 | P71: =IF(표2[[#This Row],[*기산일]]="",0,IF(YEAR(표2[[#This Row],[*기산일]])+1=$AI$11,DATE(YEAR(표2[[#This Row],[*기산일]])+1,MONTH(표2[[#This Row],[*기산일]]),DAY(표2[[#This Row],[*기산일]])),"")) -> 00:00:00 | Q71: =IF(표2[[#This Row],[*기산일]]="",0,IF(표2[[#This Row],[전년도 입사자 1년째]]="","",$W$11-표2[[#This Row],[전년도 입사자 1년째]]+1)) -> 0 | R71: =IF(표2[[#This Row],[전년도 입사자 1년째]]="","",표2[[#This Row],[1년미만자 1년째 후 근속일수]]/365*$Z$12) -> 0 | S71: =IFERROR(MAX(0,SUM(MAX(0,ROUNDDOWN(표2[[#This Row],[1년미만자 2년째 후 근속일수]],0)+VLOOKUP((표2[[#This Row],[1년미만자 2년째 후 근속일수]]-ROUNDDOWN(표2[[#This Row],[1년미만자 2년째 후 근속일수]],0)),code!$A$4:$D$9,3,TRUE)),표2[[#This Row],[1년미만자 당기 1년미만기간 연차수(11일 일할)]],표2[[#This Row],[사용연도 입사자]])-$Z$12),0) -> 0 | T71: =IFERROR(MAX(0,ROUNDDOWN(표2[[#This Row],[1년미만자 2년째 후 근속일수]],0)+VLOOKUP((표2[[#This Row],[1년미만자 2년째 후 근속일수]]-ROUNDDOWN(표2[[#This Row],[1년미만자 2년째 후 근속일수]],0)),code!$A$4:$D$9,3,TRUE))-표2[[#This Row],[1년미만자 3년째 후 근속일수]],0) -> 0 | V71: =IF(표2[[#This Row],[*기산일]]="","",IF(YEAR(표2[[#This Row],[*기산일]])=$AI$11-1,DATE(YEAR(표2[[#This Row],[*기산일]]),MONTH(표2[[#This Row],[*기산일]])+1,DAY(표2[[#This Row],[*기산일]])),"")) ->  | W71: =IF(표2[[#This Row],[*기산일]]="",0,IF(표2[[#This Row],[1년미만자1개월째]]="","",MAX(0,DATEDIF(표2[[#This Row],[*기산일]],$W$12,"m")-1))) -> 0 | X71: =IF(표2[[#This Row],[*기산일]]="",0,IF(표2[[#This Row],[1년미만자1개월째]]="","",(DATE(YEAR(표2[[#This Row],[*기산일]]),MONTH(표2[[#This Row],[*기산일]])+1,0)-표2[[#This Row],[*기산일]]+1)/(DATE(YEAR(표2[[#This Row],[*기산일]]),MONTH(표2[[#This Row],[*기산일]])+1,0)-DATE(YEAR(표2[[#This Row],[*기산일]]),MONTH(표2[[#This Row],[*기산일]]),1)+1))) -> 0 | Y71: =IFERROR(ROUNDDOWN(표2[[#This Row],[1년미만자 전년 근속일수]]/365*$Z$11,0)+VLOOKUP(표2[[#This Row],[1년미만자 전기 연차수]]-ROUNDDOWN(표2[[#This Row],[1년미만자 전년 근속일수]]/365*$Z$11,0),code!$A$4:$D$9,3,TRUE),"") -> 0 | Z71: =IFERROR(표2[[#This Row],[1년미만자 전년 근속일수]]+ROUNDDOWN(표2[[#This Row],[1년미만자 전기 연차수]],0)+VLOOKUP((표2[[#This Row],[1년미만자 전기 연차수]]-ROUNDDOWN(표2[[#This Row],[1년미만자 전기 연차수]],0)),code!$A$4:$D$9,3,TRUE),0) -> 0 | AA71: =IF(표2[[#This Row],[1년미만자1개월째]]="","",$Z$11-표2[[#This Row],[2년미만자 전기 연차수(code반올림)]]) ->  | AB71: =IF(YEAR(표2[[#This Row],[*기산일]])=$AI$11,DATE(YEAR(표2[[#This Row],[*기산일]]),MONTH(표2[[#This Row],[*기산일]])+1,DAY(표2[[#This Row],[*기산일]])),"") ->  | AC71: =IF(표2[[#This Row],[사용연도 입사자 1개월]]="","",MAX(0,DATEDIF(표2[[#This Row],[*기산일]],$W$11,"m")-1)) ->  | AD71: =IF(표2[[#This Row],[사용연도 입사자 1개월]]="","",(DATE(YEAR(표2[[#This Row],[*기산일]]),MONTH(표2[[#This Row],[*기산일]])+1,0)-표2[[#This Row],[*기산일]]+1)/(DATE(YEAR(표2[[#This Row],[*기산일]]),MONTH(표2[[#This Row],[*기산일]])+1,0)-DATE(YEAR(표2[[#This Row],[*기산일]]),MONTH(표2[[#This Row],[*기산일]]),1)+1)) ->  | AE71: =표2[[#This Row],[월중 근속일수]] ->  | AF71: =IFERROR(표2[[#This Row],[사용연도입사자 근무기간(월)]]+ROUNDDOWN(표2[[#This Row],[열2]],0)+VLOOKUP((표2[[#This Row],[열2]]-ROUNDDOWN(표2[[#This Row],[열2]],0)),code!$A$4:$D$9,3,TRUE),0) -> 0 | AG71: 57 | AM71: =IF($AJ$1>license!$C$3,"",IF(H71=0,0,IF($AJ$1<H71,0,$AJ$1-H71+1))) -> 0 | AN71: =IF($AJ$1>license!$C$3,"",IF(AM71=0,0,IF($H71=0,0,DATEDIF($H71-1,$AJ$1,"y")))) -> 0 | AO71: =IF($AJ$1>license!$C$3,"",IF(AM71=0,0,IF($H71=0,0,DATEDIF($H71-1,$AJ$1,"ym")))) -> 0 | AP71: =IF($AJ$1>license!$C$3,"",IF(AM71=0,0,IF($H71=0,0,DATEDIF($H71-1,$AJ$1,"md")))) -> 0 | AQ71: =IF($AJ$1>license!$C$3,"",IF(표2[[#This Row],[1년이상 근무일수]]="",0,$Z$12-표2[[#This Row],[기간]])) -> 0 | AR71: =IFERROR(IF(표2[[#This Row],[1년이상 근무일수]]="","",MIN(표2[[#This Row],[가산연차2]],$BD$12-표2[[#This Row],[기본]])),"") ->  | AS71: =SUM(표2[[#This Row],[1년미만자 당기 1년미만기간 연차수(11일 일할)]],표2[[#This Row],[사용연도 입사자]],표2[[#This Row],[1년미만자 1년째 후 연차일수(15일 일할)]]) -> 0 | AU71: =IF($AJ$1>license!$C$3,"",SUM(표2[[#This Row],[기본]:[일수]])) -> 0 | AV71: =IF($AJ$1>license!$C$3,"",SUMIFS(휴가입력!O:O,휴가입력!M:M,"연차",휴가입력!L:L,AH71)) -> 0 | AW71: =IFERROR(MAX(0,표2[[#This Row],[계]]-표2[[#This Row],[사용 일수]]),0) -> 0 | AX71: =IFERROR(MAX((표2[[#This Row],[계]]-표2[[#This Row],[사용 일수]])*-1,0),0) -> 0 | AZ71: =IF($AJ$1>license!$C$3,"",ROUNDUP(표2[[#This Row],[(월급)]]/209*8,0)) -> 0 | BA71: =IF($AJ$1>license!$C$3,"",ROUNDUP(표2[[#This Row],[(일급)]]*표2[[#This Row],[미사용 일수]],0)) -> 0 | BC71: 0
A72: 1 | H72: =IF(표2[[#This Row],[*입사일]]=0,"",표2[[#This Row],[*입사일]]-$AJ$3) ->  | I72: =IFERROR(IF(AO72="",0,IF(표2[[#This Row],[1년이상 근무일수]]=0,0,DATEDIF(표2[[#This Row],[1년이상 근무일수]]-1,$AJ$1,"y"))),0) -> 0 | J72: =IF(표2[[#This Row],[*기산일]]="","",IF(DATE(YEAR(표2[[#This Row],[*기산일]])+1,MONTH(표2[[#This Row],[*기산일]]),DAY(표2[[#This Row],[*기산일]]))>$AJ$1,"",DATE(YEAR(표2[[#This Row],[*기산일]])+1,MONTH(표2[[#This Row],[*기산일]]),DAY(표2[[#This Row],[*기산일]])))) ->  | K72: =IF(ISODD(표2[[#This Row],[열1]])=TRUE,1,"") ->  | L72: =IF(표2[[#This Row],[가산일도래여부]]=1,DATE(YEAR($AJ$1)+1,MONTH($AJ$1),DAY($AJ$1))-DATE(YEAR($AJ$1)+1,MONTH(표2[[#This Row],[1년이상 근무일수]]),DAY(표2[[#This Row],[1년이상 근무일수]])),0) -> 0 | M72: =표2[[#This Row],[가산휴가 사용가능일]]/365 -> 0 | N72: =VLOOKUP(표2[[#This Row],[총근무일수-366]],code!$A$5:$C$9,3) -> 0 | O72: =ROUNDDOWN(표2[[#This Row],[열1]]/2,0)+표2[[#This Row],[가산연차]] -> 0 | P72: =IF(표2[[#This Row],[*기산일]]="",0,IF(YEAR(표2[[#This Row],[*기산일]])+1=$AI$11,DATE(YEAR(표2[[#This Row],[*기산일]])+1,MONTH(표2[[#This Row],[*기산일]]),DAY(표2[[#This Row],[*기산일]])),"")) -> 00:00:00 | Q72: =IF(표2[[#This Row],[*기산일]]="",0,IF(표2[[#This Row],[전년도 입사자 1년째]]="","",$W$11-표2[[#This Row],[전년도 입사자 1년째]]+1)) -> 0 | R72: =IF(표2[[#This Row],[전년도 입사자 1년째]]="","",표2[[#This Row],[1년미만자 1년째 후 근속일수]]/365*$Z$12) -> 0 | S72: =IFERROR(MAX(0,SUM(MAX(0,ROUNDDOWN(표2[[#This Row],[1년미만자 2년째 후 근속일수]],0)+VLOOKUP((표2[[#This Row],[1년미만자 2년째 후 근속일수]]-ROUNDDOWN(표2[[#This Row],[1년미만자 2년째 후 근속일수]],0)),code!$A$4:$D$9,3,TRUE)),표2[[#This Row],[1년미만자 당기 1년미만기간 연차수(11일 일할)]],표2[[#This Row],[사용연도 입사자]])-$Z$12),0) -> 0 | T72: =IFERROR(MAX(0,ROUNDDOWN(표2[[#This Row],[1년미만자 2년째 후 근속일수]],0)+VLOOKUP((표2[[#This Row],[1년미만자 2년째 후 근속일수]]-ROUNDDOWN(표2[[#This Row],[1년미만자 2년째 후 근속일수]],0)),code!$A$4:$D$9,3,TRUE))-표2[[#This Row],[1년미만자 3년째 후 근속일수]],0) -> 0 | V72: =IF(표2[[#This Row],[*기산일]]="","",IF(YEAR(표2[[#This Row],[*기산일]])=$AI$11-1,DATE(YEAR(표2[[#This Row],[*기산일]]),MONTH(표2[[#This Row],[*기산일]])+1,DAY(표2[[#This Row],[*기산일]])),"")) ->  | W72: =IF(표2[[#This Row],[*기산일]]="",0,IF(표2[[#This Row],[1년미만자1개월째]]="","",MAX(0,DATEDIF(표2[[#This Row],[*기산일]],$W$12,"m")-1))) -> 0 | X72: =IF(표2[[#This Row],[*기산일]]="",0,IF(표2[[#This Row],[1년미만자1개월째]]="","",(DATE(YEAR(표2[[#This Row],[*기산일]]),MONTH(표2[[#This Row],[*기산일]])+1,0)-표2[[#This Row],[*기산일]]+1)/(DATE(YEAR(표2[[#This Row],[*기산일]]),MONTH(표2[[#This Row],[*기산일]])+1,0)-DATE(YEAR(표2[[#This Row],[*기산일]]),MONTH(표2[[#This Row],[*기산일]]),1)+1))) -> 0 | Y72: =IFERROR(ROUNDDOWN(표2[[#This Row],[1년미만자 전년 근속일수]]/365*$Z$11,0)+VLOOKUP(표2[[#This Row],[1년미만자 전기 연차수]]-ROUNDDOWN(표2[[#This Row],[1년미만자 전년 근속일수]]/365*$Z$11,0),code!$A$4:$D$9,3,TRUE),"") -> 0 | Z72: =IFERROR(표2[[#This Row],[1년미만자 전년 근속일수]]+ROUNDDOWN(표2[[#This Row],[1년미만자 전기 연차수]],0)+VLOOKUP((표2[[#This Row],[1년미만자 전기 연차수]]-ROUNDDOWN(표2[[#This Row],[1년미만자 전기 연차수]],0)),code!$A$4:$D$9,3,TRUE),0) -> 0 | AA72: =IF(표2[[#This Row],[1년미만자1개월째]]="","",$Z$11-표2[[#This Row],[2년미만자 전기 연차수(code반올림)]]) ->  | AB72: =IF(YEAR(표2[[#This Row],[*기산일]])=$AI$11,DATE(YEAR(표2[[#This Row],[*기산일]]),MONTH(표2[[#This Row],[*기산일]])+1,DAY(표2[[#This Row],[*기산일]])),"") ->  | AC72: =IF(표2[[#This Row],[사용연도 입사자 1개월]]="","",MAX(0,DATEDIF(표2[[#This Row],[*기산일]],$W$11,"m")-1)) ->  | AD72: =IF(표2[[#This Row],[사용연도 입사자 1개월]]="","",(DATE(YEAR(표2[[#This Row],[*기산일]]),MONTH(표2[[#This Row],[*기산일]])+1,0)-표2[[#This Row],[*기산일]]+1)/(DATE(YEAR(표2[[#This Row],[*기산일]]),MONTH(표2[[#This Row],[*기산일]])+1,0)-DATE(YEAR(표2[[#This Row],[*기산일]]),MONTH(표2[[#This Row],[*기산일]]),1)+1)) ->  | AE72: =표2[[#This Row],[월중 근속일수]] ->  | AF72: =IFERROR(표2[[#This Row],[사용연도입사자 근무기간(월)]]+ROUNDDOWN(표2[[#This Row],[열2]],0)+VLOOKUP((표2[[#This Row],[열2]]-ROUNDDOWN(표2[[#This Row],[열2]],0)),code!$A$4:$D$9,3,TRUE),0) -> 0 | AG72: 58 | AM72: =IF($AJ$1>license!$C$3,"",IF(H72=0,0,IF($AJ$1<H72,0,$AJ$1-H72+1))) -> 0 | AN72: =IF($AJ$1>license!$C$3,"",IF(AM72=0,0,IF($H72=0,0,DATEDIF($H72-1,$AJ$1,"y")))) -> 0 | AO72: =IF($AJ$1>license!$C$3,"",IF(AM72=0,0,IF($H72=0,0,DATEDIF($H72-1,$AJ$1,"ym")))) -> 0 | AP72: =IF($AJ$1>license!$C$3,"",IF(AM72=0,0,IF($H72=0,0,DATEDIF($H72-1,$AJ$1,"md")))) -> 0 | AQ72: =IF($AJ$1>license!$C$3,"",IF(표2[[#This Row],[1년이상 근무일수]]="",0,$Z$12-표2[[#This Row],[기간]])) -> 0 | AR72: =IFERROR(IF(표2[[#This Row],[1년이상 근무일수]]="","",MIN(표2[[#This Row],[가산연차2]],$BD$12-표2[[#This Row],[기본]])),"") ->  | AS72: =SUM(표2[[#This Row],[1년미만자 당기 1년미만기간 연차수(11일 일할)]],표2[[#This Row],[사용연도 입사자]],표2[[#This Row],[1년미만자 1년째 후 연차일수(15일 일할)]]) -> 0 | AU72: =IF($AJ$1>license!$C$3,"",SUM(표2[[#This Row],[기본]:[일수]])) -> 0 | AV72: =IF($AJ$1>license!$C$3,"",SUMIFS(휴가입력!O:O,휴가입력!M:M,"연차",휴가입력!L:L,AH72)) -> 0 | AW72: =IFERROR(MAX(0,표2[[#This Row],[계]]-표2[[#This Row],[사용 일수]]),0) -> 0 | AX72: =IFERROR(MAX((표2[[#This Row],[계]]-표2[[#This Row],[사용 일수]])*-1,0),0) -> 0 | AZ72: =IF($AJ$1>license!$C$3,"",ROUNDUP(표2[[#This Row],[(월급)]]/209*8,0)) -> 0 | BA72: =IF($AJ$1>license!$C$3,"",ROUNDUP(표2[[#This Row],[(일급)]]*표2[[#This Row],[미사용 일수]],0)) -> 0 | BC72: 0
A73: 1 | H73: =IF(표2[[#This Row],[*입사일]]=0,"",표2[[#This Row],[*입사일]]-$AJ$3) ->  | I73: =IFERROR(IF(AO73="",0,IF(표2[[#This Row],[1년이상 근무일수]]=0,0,DATEDIF(표2[[#This Row],[1년이상 근무일수]]-1,$AJ$1,"y"))),0) -> 0 | J73: =IF(표2[[#This Row],[*기산일]]="","",IF(DATE(YEAR(표2[[#This Row],[*기산일]])+1,MONTH(표2[[#This Row],[*기산일]]),DAY(표2[[#This Row],[*기산일]]))>$AJ$1,"",DATE(YEAR(표2[[#This Row],[*기산일]])+1,MONTH(표2[[#This Row],[*기산일]]),DAY(표2[[#This Row],[*기산일]])))) ->  | K73: =IF(ISODD(표2[[#This Row],[열1]])=TRUE,1,"") ->  | L73: =IF(표2[[#This Row],[가산일도래여부]]=1,DATE(YEAR($AJ$1)+1,MONTH($AJ$1),DAY($AJ$1))-DATE(YEAR($AJ$1)+1,MONTH(표2[[#This Row],[1년이상 근무일수]]),DAY(표2[[#This Row],[1년이상 근무일수]])),0) -> 0 | M73: =표2[[#This Row],[가산휴가 사용가능일]]/365 -> 0 | N73: =VLOOKUP(표2[[#This Row],[총근무일수-366]],code!$A$5:$C$9,3) -> 0 | O73: =ROUNDDOWN(표2[[#This Row],[열1]]/2,0)+표2[[#This Row],[가산연차]] -> 0 | P73: =IF(표2[[#This Row],[*기산일]]="",0,IF(YEAR(표2[[#This Row],[*기산일]])+1=$AI$11,DATE(YEAR(표2[[#This Row],[*기산일]])+1,MONTH(표2[[#This Row],[*기산일]]),DAY(표2[[#This Row],[*기산일]])),"")) -> 00:00:00 | Q73: =IF(표2[[#This Row],[*기산일]]="",0,IF(표2[[#This Row],[전년도 입사자 1년째]]="","",$W$11-표2[[#This Row],[전년도 입사자 1년째]]+1)) -> 0 | R73: =IF(표2[[#This Row],[전년도 입사자 1년째]]="","",표2[[#This Row],[1년미만자 1년째 후 근속일수]]/365*$Z$12) -> 0 | S73: =IFERROR(MAX(0,SUM(MAX(0,ROUNDDOWN(표2[[#This Row],[1년미만자 2년째 후 근속일수]],0)+VLOOKUP((표2[[#This Row],[1년미만자 2년째 후 근속일수]]-ROUNDDOWN(표2[[#This Row],[1년미만자 2년째 후 근속일수]],0)),code!$A$4:$D$9,3,TRUE)),표2[[#This Row],[1년미만자 당기 1년미만기간 연차수(11일 일할)]],표2[[#This Row],[사용연도 입사자]])-$Z$12),0) -> 0 | T73: =IFERROR(MAX(0,ROUNDDOWN(표2[[#This Row],[1년미만자 2년째 후 근속일수]],0)+VLOOKUP((표2[[#This Row],[1년미만자 2년째 후 근속일수]]-ROUNDDOWN(표2[[#This Row],[1년미만자 2년째 후 근속일수]],0)),code!$A$4:$D$9,3,TRUE))-표2[[#This Row],[1년미만자 3년째 후 근속일수]],0) -> 0 | V73: =IF(표2[[#This Row],[*기산일]]="","",IF(YEAR(표2[[#This Row],[*기산일]])=$AI$11-1,DATE(YEAR(표2[[#This Row],[*기산일]]),MONTH(표2[[#This Row],[*기산일]])+1,DAY(표2[[#This Row],[*기산일]])),"")) ->  | W73: =IF(표2[[#This Row],[*기산일]]="",0,IF(표2[[#This Row],[1년미만자1개월째]]="","",MAX(0,DATEDIF(표2[[#This Row],[*기산일]],$W$12,"m")-1))) -> 0 | X73: =IF(표2[[#This Row],[*기산일]]="",0,IF(표2[[#This Row],[1년미만자1개월째]]="","",(DATE(YEAR(표2[[#This Row],[*기산일]]),MONTH(표2[[#This Row],[*기산일]])+1,0)-표2[[#This Row],[*기산일]]+1)/(DATE(YEAR(표2[[#This Row],[*기산일]]),MONTH(표2[[#This Row],[*기산일]])+1,0)-DATE(YEAR(표2[[#This Row],[*기산일]]),MONTH(표2[[#This Row],[*기산일]]),1)+1))) -> 0 | Y73: =IFERROR(ROUNDDOWN(표2[[#This Row],[1년미만자 전년 근속일수]]/365*$Z$11,0)+VLOOKUP(표2[[#This Row],[1년미만자 전기 연차수]]-ROUNDDOWN(표2[[#This Row],[1년미만자 전년 근속일수]]/365*$Z$11,0),code!$A$4:$D$9,3,TRUE),"") -> 0 | Z73: =IFERROR(표2[[#This Row],[1년미만자 전년 근속일수]]+ROUNDDOWN(표2[[#This Row],[1년미만자 전기 연차수]],0)+VLOOKUP((표2[[#This Row],[1년미만자 전기 연차수]]-ROUNDDOWN(표2[[#This Row],[1년미만자 전기 연차수]],0)),code!$A$4:$D$9,3,TRUE),0) -> 0 | AA73: =IF(표2[[#This Row],[1년미만자1개월째]]="","",$Z$11-표2[[#This Row],[2년미만자 전기 연차수(code반올림)]]) ->  | AB73: =IF(YEAR(표2[[#This Row],[*기산일]])=$AI$11,DATE(YEAR(표2[[#This Row],[*기산일]]),MONTH(표2[[#This Row],[*기산일]])+1,DAY(표2[[#This Row],[*기산일]])),"") ->  | AC73: =IF(표2[[#This Row],[사용연도 입사자 1개월]]="","",MAX(0,DATEDIF(표2[[#This Row],[*기산일]],$W$11,"m")-1)) ->  | AD73: =IF(표2[[#This Row],[사용연도 입사자 1개월]]="","",(DATE(YEAR(표2[[#This Row],[*기산일]]),MONTH(표2[[#This Row],[*기산일]])+1,0)-표2[[#This Row],[*기산일]]+1)/(DATE(YEAR(표2[[#This Row],[*기산일]]),MONTH(표2[[#This Row],[*기산일]])+1,0)-DATE(YEAR(표2[[#This Row],[*기산일]]),MONTH(표2[[#This Row],[*기산일]]),1)+1)) ->  | AE73: =표2[[#This Row],[월중 근속일수]] ->  | AF73: =IFERROR(표2[[#This Row],[사용연도입사자 근무기간(월)]]+ROUNDDOWN(표2[[#This Row],[열2]],0)+VLOOKUP((표2[[#This Row],[열2]]-ROUNDDOWN(표2[[#This Row],[열2]],0)),code!$A$4:$D$9,3,TRUE),0) -> 0 | AG73: 59 | AM73: =IF($AJ$1>license!$C$3,"",IF(H73=0,0,IF($AJ$1<H73,0,$AJ$1-H73+1))) -> 0 | AN73: =IF($AJ$1>license!$C$3,"",IF(AM73=0,0,IF($H73=0,0,DATEDIF($H73-1,$AJ$1,"y")))) -> 0 | AO73: =IF($AJ$1>license!$C$3,"",IF(AM73=0,0,IF($H73=0,0,DATEDIF($H73-1,$AJ$1,"ym")))) -> 0 | AP73: =IF($AJ$1>license!$C$3,"",IF(AM73=0,0,IF($H73=0,0,DATEDIF($H73-1,$AJ$1,"md")))) -> 0 | AQ73: =IF($AJ$1>license!$C$3,"",IF(표2[[#This Row],[1년이상 근무일수]]="",0,$Z$12-표2[[#This Row],[기간]])) -> 0 | AR73: =IFERROR(IF(표2[[#This Row],[1년이상 근무일수]]="","",MIN(표2[[#This Row],[가산연차2]],$BD$12-표2[[#This Row],[기본]])),"") ->  | AS73: =SUM(표2[[#This Row],[1년미만자 당기 1년미만기간 연차수(11일 일할)]],표2[[#This Row],[사용연도 입사자]],표2[[#This Row],[1년미만자 1년째 후 연차일수(15일 일할)]]) -> 0 | AU73: =IF($AJ$1>license!$C$3,"",SUM(표2[[#This Row],[기본]:[일수]])) -> 0 | AV73: =IF($AJ$1>license!$C$3,"",SUMIFS(휴가입력!O:O,휴가입력!M:M,"연차",휴가입력!L:L,AH73)) -> 0 | AW73: =IFERROR(MAX(0,표2[[#This Row],[계]]-표2[[#This Row],[사용 일수]]),0) -> 0 | AX73: =IFERROR(MAX((표2[[#This Row],[계]]-표2[[#This Row],[사용 일수]])*-1,0),0) -> 0 | AZ73: =IF($AJ$1>license!$C$3,"",ROUNDUP(표2[[#This Row],[(월급)]]/209*8,0)) -> 0 | BA73: =IF($AJ$1>license!$C$3,"",ROUNDUP(표2[[#This Row],[(일급)]]*표2[[#This Row],[미사용 일수]],0)) -> 0 | BC73: 0
